Workbook

Sheet توريدات
A1: عمود | B1: الفترة | C1: 1+2 | D1: من تاريــخ | F1: 2020-02-26 | H1: إلي تاريــخ | I1: 2020-03-24 | K1: مشروع السويس | L1: =SUBTOTAL(9,L3:L3679) -> 2186 | N1: =SUBTOTAL(9,N3:N3679) -> 114959.55 | O1: =SUBTOTAL(9,O3:O3679) -> 607 | P1: =SUBTOTAL(9,P3:P3679) -> 114352.55 | R1: =SUBTOTAL(9,R3:R3679) -> 10174560.15 | S1: =SUBTOTAL(9,S3:S3679) -> 0 | T1: =SUBTOTAL(9,T3:T3679) -> 10174560.15
A2: مساعد | B2: التاريخ | C2: رقم البون | D2: كود المقاول | E2: رقم السياره | F2: رقم المقطورة | G2: اسم السائق | H2: المقاول | I2: كود الكسارة | J2: موقع التحميل | K2: نوع النقل | L2: عدد النقل | M2: تكعيب السيارة | N2: عدد الامتار | O2: الخصومات | P2: الكمية بالمتر | Q2: سعر المتر | R2: الإجمالى | S2: العهدة بالجنيه | T2: الصافى بالجنيه | U2: ملاحظات
A3: =IF(AND($H3='كميات مقاول'!$G$1,$B3>='كميات مقاول'!$E$2,$B3<='كميات مقاول'!$H$2),$K3&$J3&$E3,"") ->  | B3: 2020-02-26 | C3: 48801 | D3: 1 | E3: 6728 | F3: =IFERROR(VLOOKUP(توريدات!$E3,تكعيبات!D:F,2,0),"") -> 3918 | G3: خليل | H3: =IFERROR(VLOOKUP(توريدات!$D3,تكعيبات!A:G,2,0),"") -> الحاج عدلي | I3: 2 | J3: =IFERROR(VLOOKUP(توريدات!$I3,تكعيبات!L:O,2,0),"") -> كسارة خليل سعيد | K3: =IFERROR(VLOOKUP(توريدات!$I3,تكعيبات!L:O,4,0),"") -> سن 6بالبودره | L3: 1 | M3: =IFERROR(VLOOKUP(توريدات!$E3,تكعيبات!D:F,3,0),"") -> 57.3 | N3: =IFERROR(توريدات!$L3*توريدات!$M3,"") -> 57.3 | O3: 0 | P3: =IFERROR(توريدات!$N3-توريدات!$O3,"") -> 57.3 | Q3: =IFERROR(VLOOKUP(توريدات!$I3,تكعيبات!L:N,3,0),"") -> 97 | R3: =IFERROR(توريدات!$Q3*توريدات!$P3,"") -> 5558.1 | S3: 0 | T3: =IFERROR(توريدات!$R3-توريدات!$S3,"") -> 5558.1
A4: =IF(AND($H4='كميات مقاول'!$G$1,$B4>='كميات مقاول'!$E$2,$B4<='كميات مقاول'!$H$2),$K4&$J4&$E4,"") ->  | B4: 2020-02-26 | C4: 48802 | D4: 1 | E4: 9467 | F4: =IFERROR(VLOOKUP(توريدات!$E4,تكعيبات!D:F,2,0),"") -> 9517 | G4: ماهر | H4: =IFERROR(VLOOKUP(توريدات!$D4,تكعيبات!A:G,2,0),"") -> الحاج عدلي | I4: 4 | J4: =IFERROR(VLOOKUP(توريدات!$I4,تكعيبات!L:O,2,0),"") -> كسارة البشير | K4: =IFERROR(VLOOKUP(توريدات!$I4,تكعيبات!L:O,4,0),"") -> سن 6بالبودره | L4: 1 | M4: =IFERROR(VLOOKUP(توريدات!$E4,تكعيبات!D:F,3,0),"") -> 0 | N4: =IFERROR(توريدات!$L4*توريدات!$M4,"") -> 0 | O4: 0 | P4: =IFERROR(توريدات!$N4-توريدات!$O4,"") -> 0 | Q4: =IFERROR(VLOOKUP(توريدات!$I4,تكعيبات!L:N,3,0),"") -> 97 | R4: =IFERROR(توريدات!$Q4*توريدات!$P4,"") -> 0 | S4: 0 | T4: =IFERROR(توريدات!$R4-توريدات!$S4,"") -> 0
A5: =IF(AND($H5='كميات مقاول'!$G$1,$B5>='كميات مقاول'!$E$2,$B5<='كميات مقاول'!$H$2),$K5&$J5&$E5,"") ->  | B5: 2020-02-26 | C5: 48803 | D5: 1 | E5: 6891 | F5: =IFERROR(VLOOKUP(توريدات!$E5,تكعيبات!D:F,2,0),"") -> 4276 | G5: السيد | H5: =IFERROR(VLOOKUP(توريدات!$D5,تكعيبات!A:G,2,0),"") -> الحاج عدلي | I5: 2 | J5: =IFERROR(VLOOKUP(توريدات!$I5,تكعيبات!L:O,2,0),"") -> كسارة خليل سعيد | K5: =IFERROR(VLOOKUP(توريدات!$I5,تكعيبات!L:O,4,0),"") -> سن 6بالبودره | L5: 1 | M5: =IFERROR(VLOOKUP(توريدات!$E5,تكعيبات!D:F,3,0),"") -> 53.5 | N5: =IFERROR(توريدات!$L5*توريدات!$M5,"") -> 53.5 | O5: 0 | P5: =IFERROR(توريدات!$N5-توريدات!$O5,"") -> 53.5 | Q5: =IFERROR(VLOOKUP(توريدات!$I5,تكعيبات!L:N,3,0),"") -> 97 | R5: =IFERROR(توريدات!$Q5*توريدات!$P5,"") -> 5189.5 | S5: 0 | T5: =IFERROR(توريدات!$R5-توريدات!$S5,"") -> 5189.5
A6: =IF(AND($H6='كميات مقاول'!$G$1,$B6>='كميات مقاول'!$E$2,$B6<='كميات مقاول'!$H$2),$K6&$J6&$E6,"") ->  | B6: 2020-02-26 | C6: 48804 | D6: 1 | E6: 9286 | F6: =IFERROR(VLOOKUP(توريدات!$E6,تكعيبات!D:F,2,0),"") -> 6912 | G6: رضا | H6: =IFERROR(VLOOKUP(توريدات!$D6,تكعيبات!A:G,2,0),"") -> الحاج عدلي | I6: 3 | J6: =IFERROR(VLOOKUP(توريدات!$I6,تكعيبات!L:O,2,0),"") -> كسارة ابناء الشرقية | K6: =IFERROR(VLOOKUP(توريدات!$I6,تكعيبات!L:O,4,0),"") -> سن 6بالبودره | L6: 1 | M6: =IFERROR(VLOOKUP(توريدات!$E6,تكعيبات!D:F,3,0),"") -> 56.6 | N6: =IFERROR(توريدات!$L6*توريدات!$M6,"") -> 56.6 | O6: 0 | P6: =IFERROR(توريدات!$N6-توريدات!$O6,"") -> 56.6 | Q6: =IFERROR(VLOOKUP(توريدات!$I6,تكعيبات!L:N,3,0),"") -> 97 | R6: =IFERROR(توريدات!$Q6*توريدات!$P6,"") -> 5490.2 | S6: 0 | T6: =IFERROR(توريدات!$R6-توريدات!$S6,"") -> 5490.2
A7: =IF(AND($H7='كميات مقاول'!$G$1,$B7>='كميات مقاول'!$E$2,$B7<='كميات مقاول'!$H$2),$K7&$J7&$E7,"") ->  | B7: 2020-02-25 | C7: 48805 | D7: 1 | E7: 5782 | F7: =IFERROR(VLOOKUP(توريدات!$E7,تكعيبات!D:F,2,0),"") -> 4516 | G7: ايمن | H7: =IFERROR(VLOOKUP(توريدات!$D7,تكعيبات!A:G,2,0),"") -> الحاج عدلي | I7: 2 | J7: =IFERROR(VLOOKUP(توريدات!$I7,تكعيبات!L:O,2,0),"") -> كسارة خليل سعيد | K7: =IFERROR(VLOOKUP(توريدات!$I7,تكعيبات!L:O,4,0),"") -> سن 6بالبودره | L7: 1 | M7: =IFERROR(VLOOKUP(توريدات!$E7,تكعيبات!D:F,3,0),"") -> 44.5 | N7: =IFERROR(توريدات!$L7*توريدات!$M7,"") -> 44.5 | O7: 0 | P7: =IFERROR(توريدات!$N7-توريدات!$O7,"") -> 44.5 | Q7: =IFERROR(VLOOKUP(توريدات!$I7,تكعيبات!L:N,3,0),"") -> 97 | R7: =IFERROR(توريدات!$Q7*توريدات!$P7,"") -> 4316.5 | S7: 0 | T7: =IFERROR(توريدات!$R7-توريدات!$S7,"") -> 4316.5
A8: =IF(AND($H8='كميات مقاول'!$G$1,$B8>='كميات مقاول'!$E$2,$B8<='كميات مقاول'!$H$2),$K8&$J8&$E8,"") ->  | B8: 2020-02-25 | C8: 48806 | D8: 1 | E8: ع 5917 | F8: =IFERROR(VLOOKUP(توريدات!$E8,تكعيبات!D:F,2,0),"") -> 5341 | G8: حسن | H8: =IFERROR(VLOOKUP(توريدات!$D8,تكعيبات!A:G,2,0),"") -> الحاج عدلي | I8: 9 | J8: =IFERROR(VLOOKUP(توريدات!$I8,تكعيبات!L:O,2,0),"") -> كسارة الفيــروز- مشــال | K8: =IFERROR(VLOOKUP(توريدات!$I8,تكعيبات!L:O,4,0),"") -> سن 6بالبودره - مشال | L8: 1 | M8: =IFERROR(VLOOKUP(توريدات!$E8,تكعيبات!D:F,3,0),"") -> 59.65 | N8: =IFERROR(توريدات!$L8*توريدات!$M8,"") -> 59.65 | O8: 0 | P8: =IFERROR(توريدات!$N8-توريدات!$O8,"") -> 59.65 | Q8: =IFERROR(VLOOKUP(توريدات!$I8,تكعيبات!L:N,3,0),"") -> 66 | R8: =IFERROR(توريدات!$Q8*توريدات!$P8,"") -> 3936.9 | S8: 0 | T8: =IFERROR(توريدات!$R8-توريدات!$S8,"") -> 3936.9
A9: =IF(AND($H9='كميات مقاول'!$G$1,$B9>='كميات مقاول'!$E$2,$B9<='كميات مقاول'!$H$2),$K9&$J9&$E9,"") ->  | B9: 2020-02-29 | C9: 48807 | D9: 1 | E9: 6728 | F9: =IFERROR(VLOOKUP(توريدات!$E9,تكعيبات!D:F,2,0),"") -> 3918 | G9: خليل | H9: =IFERROR(VLOOKUP(توريدات!$D9,تكعيبات!A:G,2,0),"") -> الحاج عدلي | I9: 2 | J9: =IFERROR(VLOOKUP(توريدات!$I9,تكعيبات!L:O,2,0),"") -> كسارة خليل سعيد | K9: =IFERROR(VLOOKUP(توريدات!$I9,تكعيبات!L:O,4,0),"") -> سن 6بالبودره | L9: 1 | M9: =IFERROR(VLOOKUP(توريدات!$E9,تكعيبات!D:F,3,0),"") -> 57.3 | N9: =IFERROR(توريدات!$L9*توريدات!$M9,"") -> 57.3 | O9: 0 | P9: =IFERROR(توريدات!$N9-توريدات!$O9,"") -> 57.3 | Q9: =IFERROR(VLOOKUP(توريدات!$I9,تكعيبات!L:N,3,0),"") -> 97 | R9: =IFERROR(توريدات!$Q9*توريدات!$P9,"") -> 5558.1 | S9: 0 | T9: =IFERROR(توريدات!$R9-توريدات!$S9,"") -> 5558.1
A10: =IF(AND($H10='كميات مقاول'!$G$1,$B10>='كميات مقاول'!$E$2,$B10<='كميات مقاول'!$H$2),$K10&$J10&$E10,"") ->  | B10: 2020-03-02 | C10: 48808 | D10: 1 | E10: 4328 | F10: =IFERROR(VLOOKUP(توريدات!$E10,تكعيبات!D:F,2,0),"") -> 713 | G10: محمد | H10: =IFERROR(VLOOKUP(توريدات!$D10,تكعيبات!A:G,2,0),"") -> الحاج عدلي | I10: 4 | J10: =IFERROR(VLOOKUP(توريدات!$I10,تكعيبات!L:O,2,0),"") -> كسارة البشير | K10: =IFERROR(VLOOKUP(توريدات!$I10,تكعيبات!L:O,4,0),"") -> سن 6بالبودره | L10: 1 | M10: =IFERROR(VLOOKUP(توريدات!$E10,تكعيبات!D:F,3,0),"") -> 0 | N10: =IFERROR(توريدات!$L10*توريدات!$M10,"") -> 0 | O10: 0 | P10: =IFERROR(توريدات!$N10-توريدات!$O10,"") -> 0 | Q10: =IFERROR(VLOOKUP(توريدات!$I10,تكعيبات!L:N,3,0),"") -> 97 | R10: =IFERROR(توريدات!$Q10*توريدات!$P10,"") -> 0 | S10: 0 | T10: =IFERROR(توريدات!$R10-توريدات!$S10,"") -> 0
A11: =IF(AND($H11='كميات مقاول'!$G$1,$B11>='كميات مقاول'!$E$2,$B11<='كميات مقاول'!$H$2),$K11&$J11&$E11,"") ->  | B11: 2020-03-02 | C11: 48809 | D11: 1 | E11: ع 5917 | F11: =IFERROR(VLOOKUP(توريدات!$E11,تكعيبات!D:F,2,0),"") -> 5341 | G11: السيد | H11: =IFERROR(VLOOKUP(توريدات!$D11,تكعيبات!A:G,2,0),"") -> الحاج عدلي | I11: 1 | J11: =IFERROR(VLOOKUP(توريدات!$I11,تكعيبات!L:O,2,0),"") -> كسارة العرمبي | K11: =IFERROR(VLOOKUP(توريدات!$I11,تكعيبات!L:O,4,0),"") -> سن 6بالبودره | L11: 1 | M11: =IFERROR(VLOOKUP(توريدات!$E11,تكعيبات!D:F,3,0),"") -> 59.65 | N11: =IFERROR(توريدات!$L11*توريدات!$M11,"") -> 59.65 | O11: 0 | P11: =IFERROR(توريدات!$N11-توريدات!$O11,"") -> 59.65 | Q11: =IFERROR(VLOOKUP(توريدات!$I11,تكعيبات!L:N,3,0),"") -> 97 | R11: =IFERROR(توريدات!$Q11*توريدات!$P11,"") -> 5786.05 | S11: 0 | T11: =IFERROR(توريدات!$R11-توريدات!$S11,"") -> 5786.05
A12: =IF(AND($H12='كميات مقاول'!$G$1,$B12>='كميات مقاول'!$E$2,$B12<='كميات مقاول'!$H$2),$K12&$J12&$E12,"") ->  | B12: 2020-03-02 | C12: 48810 | D12: 1 | E12: 6459 | F12: =IFERROR(VLOOKUP(توريدات!$E12,تكعيبات!D:F,2,0),"") -> 4752 | G12: على | H12: =IFERROR(VLOOKUP(توريدات!$D12,تكعيبات!A:G,2,0),"") -> الحاج عدلي | I12: 6 | J12: =IFERROR(VLOOKUP(توريدات!$I12,تكعيبات!L:O,2,0),"") -> كسارة القادسية | K12: =IFERROR(VLOOKUP(توريدات!$I12,تكعيبات!L:O,4,0),"") -> سن 6بالبودره | L12: 1 | M12: =IFERROR(VLOOKUP(توريدات!$E12,تكعيبات!D:F,3,0),"") -> 55 | N12: =IFERROR(توريدات!$L12*توريدات!$M12,"") -> 55 | O12: 0 | P12: =IFERROR(توريدات!$N12-توريدات!$O12,"") -> 55 | Q12: =IFERROR(VLOOKUP(توريدات!$I12,تكعيبات!L:N,3,0),"") -> 95 | R12: =IFERROR(توريدات!$Q12*توريدات!$P12,"") -> 5225 | S12: 0 | T12: =IFERROR(توريدات!$R12-توريدات!$S12,"") -> 5225
A13: =IF(AND($H13='كميات مقاول'!$G$1,$B13>='كميات مقاول'!$E$2,$B13<='كميات مقاول'!$H$2),$K13&$J13&$E13,"") ->  | B13: 2020-03-02 | C13: 48811 | D13: 1 | E13: 7594 | F13: =IFERROR(VLOOKUP(توريدات!$E13,تكعيبات!D:F,2,0),"") -> 5163 | G13: اسلام | H13: =IFERROR(VLOOKUP(توريدات!$D13,تكعيبات!A:G,2,0),"") -> الحاج عدلي | I13: 6 | J13: =IFERROR(VLOOKUP(توريدات!$I13,تكعيبات!L:O,2,0),"") -> كسارة القادسية | K13: =IFERROR(VLOOKUP(توريدات!$I13,تكعيبات!L:O,4,0),"") -> سن 6بالبودره | L13: 1 | M13: =IFERROR(VLOOKUP(توريدات!$E13,تكعيبات!D:F,3,0),"") -> 49.4 | N13: =IFERROR(توريدات!$L13*توريدات!$M13,"") -> 49.4 | O13: 0 | P13: =IFERROR(توريدات!$N13-توريدات!$O13,"") -> 49.4 | Q13: =IFERROR(VLOOKUP(توريدات!$I13,تكعيبات!L:N,3,0),"") -> 95 | R13: =IFERROR(توريدات!$Q13*توريدات!$P13,"") -> 4693 | S13: 0 | T13: =IFERROR(توريدات!$R13-توريدات!$S13,"") -> 4693
A14: =IF(AND($H14='كميات مقاول'!$G$1,$B14>='كميات مقاول'!$E$2,$B14<='كميات مقاول'!$H$2),$K14&$J14&$E14,"") ->  | B14: 2020-03-03 | C14: 48812 | D14: 1 | E14: 5982 | F14: =IFERROR(VLOOKUP(توريدات!$E14,تكعيبات!D:F,2,0),"") -> 3186 | G14: محمود | H14: =IFERROR(VLOOKUP(توريدات!$D14,تكعيبات!A:G,2,0),"") -> الحاج عدلي | I14: 4 | J14: =IFERROR(VLOOKUP(توريدات!$I14,تكعيبات!L:O,2,0),"") -> كسارة البشير | K14: =IFERROR(VLOOKUP(توريدات!$I14,تكعيبات!L:O,4,0),"") -> سن 6بالبودره | L14: 1 | M14: =IFERROR(VLOOKUP(توريدات!$E14,تكعيبات!D:F,3,0),"") -> 0 | N14: =IFERROR(توريدات!$L14*توريدات!$M14,"") -> 0 | O14: 0 | P14: =IFERROR(توريدات!$N14-توريدات!$O14,"") -> 0 | Q14: =IFERROR(VLOOKUP(توريدات!$I14,تكعيبات!L:N,3,0),"") -> 97 | R14: =IFERROR(توريدات!$Q14*توريدات!$P14,"") -> 0 | S14: 0 | T14: =IFERROR(توريدات!$R14-توريدات!$S14,"") -> 0
A15: =IF(AND($H15='كميات مقاول'!$G$1,$B15>='كميات مقاول'!$E$2,$B15<='كميات مقاول'!$H$2),$K15&$J15&$E15,"") ->  | B15: 2020-03-03 | C15: 48813 | D15: 1 | E15: 9167 | F15: =IFERROR(VLOOKUP(توريدات!$E15,تكعيبات!D:F,2,0),"") -> 8917 | G15: محمود | H15: =IFERROR(VLOOKUP(توريدات!$D15,تكعيبات!A:G,2,0),"") -> الحاج عدلي | I15: 1 | J15: =IFERROR(VLOOKUP(توريدات!$I15,تكعيبات!L:O,2,0),"") -> كسارة العرمبي | K15: =IFERROR(VLOOKUP(توريدات!$I15,تكعيبات!L:O,4,0),"") -> سن 6بالبودره | L15: 1 | M15: =IFERROR(VLOOKUP(توريدات!$E15,تكعيبات!D:F,3,0),"") -> 55.25 | N15: =IFERROR(توريدات!$L15*توريدات!$M15,"") -> 55.25 | O15: 0 | P15: =IFERROR(توريدات!$N15-توريدات!$O15,"") -> 55.25 | Q15: =IFERROR(VLOOKUP(توريدات!$I15,تكعيبات!L:N,3,0),"") -> 97 | R15: =IFERROR(توريدات!$Q15*توريدات!$P15,"") -> 5359.25 | S15: 0 | T15: =IFERROR(توريدات!$R15-توريدات!$S15,"") -> 5359.25
A16: =IF(AND($H16='كميات مقاول'!$G$1,$B16>='كميات مقاول'!$E$2,$B16<='كميات مقاول'!$H$2),$K16&$J16&$E16,"") ->  | B16: 2020-03-03 | C16: 48814 | D16: 1 | E16: ع 5917 | F16: =IFERROR(VLOOKUP(توريدات!$E16,تكعيبات!D:F,2,0),"") -> 5341 | G16: حسن | H16: =IFERROR(VLOOKUP(توريدات!$D16,تكعيبات!A:G,2,0),"") -> الحاج عدلي | I16: 1 | J16: =IFERROR(VLOOKUP(توريدات!$I16,تكعيبات!L:O,2,0),"") -> كسارة العرمبي | K16: =IFERROR(VLOOKUP(توريدات!$I16,تكعيبات!L:O,4,0),"") -> سن 6بالبودره | L16: 1 | M16: =IFERROR(VLOOKUP(توريدات!$E16,تكعيبات!D:F,3,0),"") -> 59.65 | N16: =IFERROR(توريدات!$L16*توريدات!$M16,"") -> 59.65 | O16: 0 | P16: =IFERROR(توريدات!$N16-توريدات!$O16,"") -> 59.65 | Q16: =IFERROR(VLOOKUP(توريدات!$I16,تكعيبات!L:N,3,0),"") -> 97 | R16: =IFERROR(توريدات!$Q16*توريدات!$P16,"") -> 5786.05 | S16: 0 | T16: =IFERROR(توريدات!$R16-توريدات!$S16,"") -> 5786.05
A17: =IF(AND($H17='كميات مقاول'!$G$1,$B17>='كميات مقاول'!$E$2,$B17<='كميات مقاول'!$H$2),$K17&$J17&$E17,"") ->  | B17: 2020-03-03 | C17: 48815 | D17: 1 | E17: 6459 | F17: =IFERROR(VLOOKUP(توريدات!$E17,تكعيبات!D:F,2,0),"") -> 4752 | G17: على | H17: =IFERROR(VLOOKUP(توريدات!$D17,تكعيبات!A:G,2,0),"") -> الحاج عدلي | I17: 11 | J17: =IFERROR(VLOOKUP(توريدات!$I17,تكعيبات!L:O,2,0),"") -> كسارة ام القــري | K17: =IFERROR(VLOOKUP(توريدات!$I17,تكعيبات!L:O,4,0),"") -> سن 6بالبودره | L17: 1 | M17: =IFERROR(VLOOKUP(توريدات!$E17,تكعيبات!D:F,3,0),"") -> 55 | N17: =IFERROR(توريدات!$L17*توريدات!$M17,"") -> 55 | O17: 0 | P17: =IFERROR(توريدات!$N17-توريدات!$O17,"") -> 55 | Q17: =IFERROR(VLOOKUP(توريدات!$I17,تكعيبات!L:N,3,0),"") -> 95 | R17: =IFERROR(توريدات!$Q17*توريدات!$P17,"") -> 5225 | S17: 0 | T17: =IFERROR(توريدات!$R17-توريدات!$S17,"") -> 5225
A18: =IF(AND($H18='كميات مقاول'!$G$1,$B18>='كميات مقاول'!$E$2,$B18<='كميات مقاول'!$H$2),$K18&$J18&$E18,"") ->  | B18: 2020-03-03 | C18: 48816 | D18: 1 | E18: 7594 | F18: =IFERROR(VLOOKUP(توريدات!$E18,تكعيبات!D:F,2,0),"") -> 5163 | G18: اسلام | H18: =IFERROR(VLOOKUP(توريدات!$D18,تكعيبات!A:G,2,0),"") -> الحاج عدلي | I18: 11 | J18: =IFERROR(VLOOKUP(توريدات!$I18,تكعيبات!L:O,2,0),"") -> كسارة ام القــري | K18: =IFERROR(VLOOKUP(توريدات!$I18,تكعيبات!L:O,4,0),"") -> سن 6بالبودره | L18: 1 | M18: =IFERROR(VLOOKUP(توريدات!$E18,تكعيبات!D:F,3,0),"") -> 49.4 | N18: =IFERROR(توريدات!$L18*توريدات!$M18,"") -> 49.4 | O18: 0 | P18: =IFERROR(توريدات!$N18-توريدات!$O18,"") -> 49.4 | Q18: =IFERROR(VLOOKUP(توريدات!$I18,تكعيبات!L:N,3,0),"") -> 95 | R18: =IFERROR(توريدات!$Q18*توريدات!$P18,"") -> 4693 | S18: 0 | T18: =IFERROR(توريدات!$R18-توريدات!$S18,"") -> 4693
A19: =IF(AND($H19='كميات مقاول'!$G$1,$B19>='كميات مقاول'!$E$2,$B19<='كميات مقاول'!$H$2),$K19&$J19&$E19,"") ->  | B19: 2020-03-03 | C19: 48817 | D19: 1 | E19: ع 5917 | F19: =IFERROR(VLOOKUP(توريدات!$E19,تكعيبات!D:F,2,0),"") -> 5341 | G19: السيد | H19: =IFERROR(VLOOKUP(توريدات!$D19,تكعيبات!A:G,2,0),"") -> الحاج عدلي | I19: 1 | J19: =IFERROR(VLOOKUP(توريدات!$I19,تكعيبات!L:O,2,0),"") -> كسارة العرمبي | K19: =IFERROR(VLOOKUP(توريدات!$I19,تكعيبات!L:O,4,0),"") -> سن 6بالبودره | L19: 1 | M19: =IFERROR(VLOOKUP(توريدات!$E19,تكعيبات!D:F,3,0),"") -> 59.65 | N19: =IFERROR(توريدات!$L19*توريدات!$M19,"") -> 59.65 | O19: 0 | P19: =IFERROR(توريدات!$N19-توريدات!$O19,"") -> 59.65 | Q19: =IFERROR(VLOOKUP(توريدات!$I19,تكعيبات!L:N,3,0),"") -> 97 | R19: =IFERROR(توريدات!$Q19*توريدات!$P19,"") -> 5786.05 | S19: 0 | T19: =IFERROR(توريدات!$R19-توريدات!$S19,"") -> 5786.05
A20: =IF(AND($H20='كميات مقاول'!$G$1,$B20>='كميات مقاول'!$E$2,$B20<='كميات مقاول'!$H$2),$K20&$J20&$E20,"") ->  | B20: 2020-03-03 | C20: 48818 | D20: 1 | E20: 6459 | F20: =IFERROR(VLOOKUP(توريدات!$E20,تكعيبات!D:F,2,0),"") -> 4752 | G20: على | H20: =IFERROR(VLOOKUP(توريدات!$D20,تكعيبات!A:G,2,0),"") -> الحاج عدلي | I20: 6 | J20: =IFERROR(VLOOKUP(توريدات!$I20,تكعيبات!L:O,2,0),"") -> كسارة القادسية | K20: =IFERROR(VLOOKUP(توريدات!$I20,تكعيبات!L:O,4,0),"") -> سن 6بالبودره | L20: 1 | M20: =IFERROR(VLOOKUP(توريدات!$E20,تكعيبات!D:F,3,0),"") -> 55 | N20: =IFERROR(توريدات!$L20*توريدات!$M20,"") -> 55 | O20: 0 | P20: =IFERROR(توريدات!$N20-توريدات!$O20,"") -> 55 | Q20: =IFERROR(VLOOKUP(توريدات!$I20,تكعيبات!L:N,3,0),"") -> 95 | R20: =IFERROR(توريدات!$Q20*توريدات!$P20,"") -> 5225 | S20: 0 | T20: =IFERROR(توريدات!$R20-توريدات!$S20,"") -> 5225
A21: =IF(AND($H21='كميات مقاول'!$G$1,$B21>='كميات مقاول'!$E$2,$B21<='كميات مقاول'!$H$2),$K21&$J21&$E21,"") ->  | B21: 2020-03-03 | C21: 48819 | D21: 1 | E21: 7594 | F21: =IFERROR(VLOOKUP(توريدات!$E21,تكعيبات!D:F,2,0),"") -> 5163 | G21: اسلام | H21: =IFERROR(VLOOKUP(توريدات!$D21,تكعيبات!A:G,2,0),"") -> الحاج عدلي | I21: 6 | J21: =IFERROR(VLOOKUP(توريدات!$I21,تكعيبات!L:O,2,0),"") -> كسارة القادسية | K21: =IFERROR(VLOOKUP(توريدات!$I21,تكعيبات!L:O,4,0),"") -> سن 6بالبودره | L21: 1 | M21: =IFERROR(VLOOKUP(توريدات!$E21,تكعيبات!D:F,3,0),"") -> 49.4 | N21: =IFERROR(توريدات!$L21*توريدات!$M21,"") -> 49.4 | O21: 0 | P21: =IFERROR(توريدات!$N21-توريدات!$O21,"") -> 49.4 | Q21: =IFERROR(VLOOKUP(توريدات!$I21,تكعيبات!L:N,3,0),"") -> 95 | R21: =IFERROR(توريدات!$Q21*توريدات!$P21,"") -> 4693 | S21: 0 | T21: =IFERROR(توريدات!$R21-توريدات!$S21,"") -> 4693
A22: =IF(AND($H22='كميات مقاول'!$G$1,$B22>='كميات مقاول'!$E$2,$B22<='كميات مقاول'!$H$2),$K22&$J22&$E22,"") ->  | B22: 2020-03-03 | C22: 48820 | D22: 1 | E22: ع 5917 | F22: =IFERROR(VLOOKUP(توريدات!$E22,تكعيبات!D:F,2,0),"") -> 5341 | G22: السيد | H22: =IFERROR(VLOOKUP(توريدات!$D22,تكعيبات!A:G,2,0),"") -> الحاج عدلي | I22: 1 | J22: =IFERROR(VLOOKUP(توريدات!$I22,تكعيبات!L:O,2,0),"") -> كسارة العرمبي | K22: =IFERROR(VLOOKUP(توريدات!$I22,تكعيبات!L:O,4,0),"") -> سن 6بالبودره | L22: 1 | M22: =IFERROR(VLOOKUP(توريدات!$E22,تكعيبات!D:F,3,0),"") -> 59.65 | N22: =IFERROR(توريدات!$L22*توريدات!$M22,"") -> 59.65 | O22: 0 | P22: =IFERROR(توريدات!$N22-توريدات!$O22,"") -> 59.65 | Q22: =IFERROR(VLOOKUP(توريدات!$I22,تكعيبات!L:N,3,0),"") -> 97 | R22: =IFERROR(توريدات!$Q22*توريدات!$P22,"") -> 5786.05 | S22: 0 | T22: =IFERROR(توريدات!$R22-توريدات!$S22,"") -> 5786.05
A23: =IF(AND($H23='كميات مقاول'!$G$1,$B23>='كميات مقاول'!$E$2,$B23<='كميات مقاول'!$H$2),$K23&$J23&$E23,"") ->  | B23: 2020-03-03 | C23: 48821 | D23: 1 | E23: 7594 | F23: =IFERROR(VLOOKUP(توريدات!$E23,تكعيبات!D:F,2,0),"") -> 5163 | G23: اسلام | H23: =IFERROR(VLOOKUP(توريدات!$D23,تكعيبات!A:G,2,0),"") -> الحاج عدلي | I23: 9 | J23: =IFERROR(VLOOKUP(توريدات!$I23,تكعيبات!L:O,2,0),"") -> كسارة الفيــروز- مشــال | K23: =IFERROR(VLOOKUP(توريدات!$I23,تكعيبات!L:O,4,0),"") -> سن 6بالبودره - مشال | L23: 1 | M23: =IFERROR(VLOOKUP(توريدات!$E23,تكعيبات!D:F,3,0),"") -> 49.4 | N23: =IFERROR(توريدات!$L23*توريدات!$M23,"") -> 49.4 | O23: 0 | P23: =IFERROR(توريدات!$N23-توريدات!$O23,"") -> 49.4 | Q23: =IFERROR(VLOOKUP(توريدات!$I23,تكعيبات!L:N,3,0),"") -> 66 | R23: =IFERROR(توريدات!$Q23*توريدات!$P23,"") -> 3260.4 | S23: 0 | T23: =IFERROR(توريدات!$R23-توريدات!$S23,"") -> 3260.4
A24: =IF(AND($H24='كميات مقاول'!$G$1,$B24>='كميات مقاول'!$E$2,$B24<='كميات مقاول'!$H$2),$K24&$J24&$E24,"") ->  | B24: 2020-03-04 | C24: 48822 | D24: 1 | E24: 6459 | F24: =IFERROR(VLOOKUP(توريدات!$E24,تكعيبات!D:F,2,0),"") -> 4752 | G24: على | H24: =IFERROR(VLOOKUP(توريدات!$D24,تكعيبات!A:G,2,0),"") -> الحاج عدلي | I24: 9 | J24: =IFERROR(VLOOKUP(توريدات!$I24,تكعيبات!L:O,2,0),"") -> كسارة الفيــروز- مشــال | K24: =IFERROR(VLOOKUP(توريدات!$I24,تكعيبات!L:O,4,0),"") -> سن 6بالبودره - مشال | L24: 1 | M24: =IFERROR(VLOOKUP(توريدات!$E24,تكعيبات!D:F,3,0),"") -> 55 | N24: =IFERROR(توريدات!$L24*توريدات!$M24,"") -> 55 | O24: 0 | P24: =IFERROR(توريدات!$N24-توريدات!$O24,"") -> 55 | Q24: =IFERROR(VLOOKUP(توريدات!$I24,تكعيبات!L:N,3,0),"") -> 66 | R24: =IFERROR(توريدات!$Q24*توريدات!$P24,"") -> 3630 | S24: 0 | T24: =IFERROR(توريدات!$R24-توريدات!$S24,"") -> 3630
A25: =IF(AND($H25='كميات مقاول'!$G$1,$B25>='كميات مقاول'!$E$2,$B25<='كميات مقاول'!$H$2),$K25&$J25&$E25,"") ->  | B25: 2020-03-04 | C25: 48823 | D25: 1 | E25: ع 5917 | F25: =IFERROR(VLOOKUP(توريدات!$E25,تكعيبات!D:F,2,0),"") -> 5341 | G25: السيد | H25: =IFERROR(VLOOKUP(توريدات!$D25,تكعيبات!A:G,2,0),"") -> الحاج عدلي | I25: 1 | J25: =IFERROR(VLOOKUP(توريدات!$I25,تكعيبات!L:O,2,0),"") -> كسارة العرمبي | K25: =IFERROR(VLOOKUP(توريدات!$I25,تكعيبات!L:O,4,0),"") -> سن 6بالبودره | L25: 1 | M25: =IFERROR(VLOOKUP(توريدات!$E25,تكعيبات!D:F,3,0),"") -> 59.65 | N25: =IFERROR(توريدات!$L25*توريدات!$M25,"") -> 59.65 | O25: 0 | P25: =IFERROR(توريدات!$N25-توريدات!$O25,"") -> 59.65 | Q25: =IFERROR(VLOOKUP(توريدات!$I25,تكعيبات!L:N,3,0),"") -> 97 | R25: =IFERROR(توريدات!$Q25*توريدات!$P25,"") -> 5786.05 | S25: 0 | T25: =IFERROR(توريدات!$R25-توريدات!$S25,"") -> 5786.05
A26: =IF(AND($H26='كميات مقاول'!$G$1,$B26>='كميات مقاول'!$E$2,$B26<='كميات مقاول'!$H$2),$K26&$J26&$E26,"") ->  | B26: 2020-03-04 | C26: 48824 | D26: 1 | E26: 4192 | F26: =IFERROR(VLOOKUP(توريدات!$E26,تكعيبات!D:F,2,0),"") -> 9516 | G26: محمد | H26: =IFERROR(VLOOKUP(توريدات!$D26,تكعيبات!A:G,2,0),"") -> الحاج عدلي | I26: 4 | J26: =IFERROR(VLOOKUP(توريدات!$I26,تكعيبات!L:O,2,0),"") -> كسارة البشير | K26: =IFERROR(VLOOKUP(توريدات!$I26,تكعيبات!L:O,4,0),"") -> سن 6بالبودره | L26: 1 | M26: =IFERROR(VLOOKUP(توريدات!$E26,تكعيبات!D:F,3,0),"") -> 0 | N26: =IFERROR(توريدات!$L26*توريدات!$M26,"") -> 0 | O26: 0 | P26: =IFERROR(توريدات!$N26-توريدات!$O26,"") -> 0 | Q26: =IFERROR(VLOOKUP(توريدات!$I26,تكعيبات!L:N,3,0),"") -> 97 | R26: =IFERROR(توريدات!$Q26*توريدات!$P26,"") -> 0 | S26: 0 | T26: =IFERROR(توريدات!$R26-توريدات!$S26,"") -> 0
A27: =IF(AND($H27='كميات مقاول'!$G$1,$B27>='كميات مقاول'!$E$2,$B27<='كميات مقاول'!$H$2),$K27&$J27&$E27,"") ->  | B27: 2020-03-04 | C27: 48825 | D27: 1 | E27: 2458 | F27: =IFERROR(VLOOKUP(توريدات!$E27,تكعيبات!D:F,2,0),"") -> 4629 | G27: محمد | H27: =IFERROR(VLOOKUP(توريدات!$D27,تكعيبات!A:G,2,0),"") -> الحاج عدلي | I27: 4 | J27: =IFERROR(VLOOKUP(توريدات!$I27,تكعيبات!L:O,2,0),"") -> كسارة البشير | K27: =IFERROR(VLOOKUP(توريدات!$I27,تكعيبات!L:O,4,0),"") -> سن 6بالبودره | L27: 1 | M27: =IFERROR(VLOOKUP(توريدات!$E27,تكعيبات!D:F,3,0),"") -> 0 | N27: =IFERROR(توريدات!$L27*توريدات!$M27,"") -> 0 | O27: 0 | P27: =IFERROR(توريدات!$N27-توريدات!$O27,"") -> 0 | Q27: =IFERROR(VLOOKUP(توريدات!$I27,تكعيبات!L:N,3,0),"") -> 97 | R27: =IFERROR(توريدات!$Q27*توريدات!$P27,"") -> 0 | S27: 0 | T27: =IFERROR(توريدات!$R27-توريدات!$S27,"") -> 0
A28: =IF(AND($H28='كميات مقاول'!$G$1,$B28>='كميات مقاول'!$E$2,$B28<='كميات مقاول'!$H$2),$K28&$J28&$E28,"") ->  | B28: 2020-03-05 | C28: 48826 | D28: 1 | E28: 7594 | F28: =IFERROR(VLOOKUP(توريدات!$E28,تكعيبات!D:F,2,0),"") -> 5163 | G28: اسلام | H28: =IFERROR(VLOOKUP(توريدات!$D28,تكعيبات!A:G,2,0),"") -> الحاج عدلي | I28: 4 | J28: =IFERROR(VLOOKUP(توريدات!$I28,تكعيبات!L:O,2,0),"") -> كسارة البشير | K28: =IFERROR(VLOOKUP(توريدات!$I28,تكعيبات!L:O,4,0),"") -> سن 6بالبودره | L28: 1 | M28: =IFERROR(VLOOKUP(توريدات!$E28,تكعيبات!D:F,3,0),"") -> 49.4 | N28: =IFERROR(توريدات!$L28*توريدات!$M28,"") -> 49.4 | O28: 0 | P28: =IFERROR(توريدات!$N28-توريدات!$O28,"") -> 49.4 | Q28: =IFERROR(VLOOKUP(توريدات!$I28,تكعيبات!L:N,3,0),"") -> 97 | R28: =IFERROR(توريدات!$Q28*توريدات!$P28,"") -> 4791.8 | S28: 0 | T28: =IFERROR(توريدات!$R28-توريدات!$S28,"") -> 4791.8
A29: =IF(AND($H29='كميات مقاول'!$G$1,$B29>='كميات مقاول'!$E$2,$B29<='كميات مقاول'!$H$2),$K29&$J29&$E29,"") ->  | B29: 2020-03-05 | C29: 48827 | D29: 1 | E29: 6459 | F29: =IFERROR(VLOOKUP(توريدات!$E29,تكعيبات!D:F,2,0),"") -> 4752 | G29: على | H29: =IFERROR(VLOOKUP(توريدات!$D29,تكعيبات!A:G,2,0),"") -> الحاج عدلي | I29: 4 | J29: =IFERROR(VLOOKUP(توريدات!$I29,تكعيبات!L:O,2,0),"") -> كسارة البشير | K29: =IFERROR(VLOOKUP(توريدات!$I29,تكعيبات!L:O,4,0),"") -> سن 6بالبودره | L29: 1 | M29: =IFERROR(VLOOKUP(توريدات!$E29,تكعيبات!D:F,3,0),"") -> 55 | N29: =IFERROR(توريدات!$L29*توريدات!$M29,"") -> 55 | O29: 0 | P29: =IFERROR(توريدات!$N29-توريدات!$O29,"") -> 55 | Q29: =IFERROR(VLOOKUP(توريدات!$I29,تكعيبات!L:N,3,0),"") -> 97 | R29: =IFERROR(توريدات!$Q29*توريدات!$P29,"") -> 5335 | S29: 0 | T29: =IFERROR(توريدات!$R29-توريدات!$S29,"") -> 5335
A30: =IF(AND($H30='كميات مقاول'!$G$1,$B30>='كميات مقاول'!$E$2,$B30<='كميات مقاول'!$H$2),$K30&$J30&$E30,"") ->  | B30: 2020-03-05 | C30: 48828 | D30: 1 | E30: 8753 | F30: =IFERROR(VLOOKUP(توريدات!$E30,تكعيبات!D:F,2,0),"") -> 14065 | G30: مختار | H30: =IFERROR(VLOOKUP(توريدات!$D30,تكعيبات!A:G,2,0),"") -> الحاج عدلي | I30: 4 | J30: =IFERROR(VLOOKUP(توريدات!$I30,تكعيبات!L:O,2,0),"") -> كسارة البشير | K30: =IFERROR(VLOOKUP(توريدات!$I30,تكعيبات!L:O,4,0),"") -> سن 6بالبودره | L30: 1 | M30: =IFERROR(VLOOKUP(توريدات!$E30,تكعيبات!D:F,3,0),"") -> 51.6 | N30: =IFERROR(توريدات!$L30*توريدات!$M30,"") -> 51.6 | O30: 0 | P30: =IFERROR(توريدات!$N30-توريدات!$O30,"") -> 51.6 | Q30: =IFERROR(VLOOKUP(توريدات!$I30,تكعيبات!L:N,3,0),"") -> 97 | R30: =IFERROR(توريدات!$Q30*توريدات!$P30,"") -> 5005.2 | S30: 0 | T30: =IFERROR(توريدات!$R30-توريدات!$S30,"") -> 5005.2
A31: =IF(AND($H31='كميات مقاول'!$G$1,$B31>='كميات مقاول'!$E$2,$B31<='كميات مقاول'!$H$2),$K31&$J31&$E31,"") ->  | B31: 2020-03-05 | C31: 48829 | D31: 2 | E31: 9443 | F31: =IFERROR(VLOOKUP(توريدات!$E31,تكعيبات!D:F,2,0),"") -> 1379 | G31: محمد | H31: =IFERROR(VLOOKUP(توريدات!$D31,تكعيبات!A:G,2,0),"") -> مراد الوكيل | I31: 22 | J31: =IFERROR(VLOOKUP(توريدات!$I31,تكعيبات!L:O,2,0),"") -> كسارة فرج العرمبي | K31: =IFERROR(VLOOKUP(توريدات!$I31,تكعيبات!L:O,4,0),"") -> سن 6بالبودره | L31: 1 | M31: =IFERROR(VLOOKUP(توريدات!$E31,تكعيبات!D:F,3,0),"") -> 58.25 | N31: =IFERROR(توريدات!$L31*توريدات!$M31,"") -> 58.25 | O31: 0 | P31: =IFERROR(توريدات!$N31-توريدات!$O31,"") -> 58.25 | Q31: =IFERROR(VLOOKUP(توريدات!$I31,تكعيبات!L:N,3,0),"") -> 95 | R31: =IFERROR(توريدات!$Q31*توريدات!$P31,"") -> 5533.75 | S31: 0 | T31: =IFERROR(توريدات!$R31-توريدات!$S31,"") -> 5533.75
A32: =IF(AND($H32='كميات مقاول'!$G$1,$B32>='كميات مقاول'!$E$2,$B32<='كميات مقاول'!$H$2),$K32&$J32&$E32,"") ->  | B32: 2020-03-05 | C32: 48830 | D32: 2 | E32: 8786 | F32: =IFERROR(VLOOKUP(توريدات!$E32,تكعيبات!D:F,2,0),"") -> 9137 | G32: زكى | H32: =IFERROR(VLOOKUP(توريدات!$D32,تكعيبات!A:G,2,0),"") -> مراد الوكيل | I32: 14 | J32: =IFERROR(VLOOKUP(توريدات!$I32,تكعيبات!L:O,2,0),"") -> كسارة الراشــد | K32: =IFERROR(VLOOKUP(توريدات!$I32,تكعيبات!L:O,4,0),"") -> سن 6بالبودره | L32: 1 | M32: =IFERROR(VLOOKUP(توريدات!$E32,تكعيبات!D:F,3,0),"") -> 56.5 | N32: =IFERROR(توريدات!$L32*توريدات!$M32,"") -> 56.5 | O32: 0 | P32: =IFERROR(توريدات!$N32-توريدات!$O32,"") -> 56.5 | Q32: =IFERROR(VLOOKUP(توريدات!$I32,تكعيبات!L:N,3,0),"") -> 95 | R32: =IFERROR(توريدات!$Q32*توريدات!$P32,"") -> 5367.5 | S32: 0 | T32: =IFERROR(توريدات!$R32-توريدات!$S32,"") -> 5367.5
A33: =IF(AND($H33='كميات مقاول'!$G$1,$B33>='كميات مقاول'!$E$2,$B33<='كميات مقاول'!$H$2),$K33&$J33&$E33,"") ->  | B33: 2020-03-05 | C33: 48831 | D33: 1 | E33: 6791 | F33: =IFERROR(VLOOKUP(توريدات!$E33,تكعيبات!D:F,2,0),"") -> 4389 | G33: رامى | H33: =IFERROR(VLOOKUP(توريدات!$D33,تكعيبات!A:G,2,0),"") -> الحاج عدلي | I33: 10 | J33: =IFERROR(VLOOKUP(توريدات!$I33,تكعيبات!L:O,2,0),"") -> كسارة الهاشمية - مشال | K33: =IFERROR(VLOOKUP(توريدات!$I33,تكعيبات!L:O,4,0),"") -> سن 6بالبودره - مشال | L33: 1 | M33: =IFERROR(VLOOKUP(توريدات!$E33,تكعيبات!D:F,3,0),"") -> 58 | N33: =IFERROR(توريدات!$L33*توريدات!$M33,"") -> 58 | O33: 0 | P33: =IFERROR(توريدات!$N33-توريدات!$O33,"") -> 58 | Q33: =IFERROR(VLOOKUP(توريدات!$I33,تكعيبات!L:N,3,0),"") -> 67 | R33: =IFERROR(توريدات!$Q33*توريدات!$P33,"") -> 3886 | S33: 0 | T33: =IFERROR(توريدات!$R33-توريدات!$S33,"") -> 3886
A34: =IF(AND($H34='كميات مقاول'!$G$1,$B34>='كميات مقاول'!$E$2,$B34<='كميات مقاول'!$H$2),$K34&$J34&$E34,"") ->  | B34: 2020-03-06 | C34: 48832 | D34: 1 | E34: 6459 | F34: =IFERROR(VLOOKUP(توريدات!$E34,تكعيبات!D:F,2,0),"") -> 4752 | G34: على | H34: =IFERROR(VLOOKUP(توريدات!$D34,تكعيبات!A:G,2,0),"") -> الحاج عدلي | I34: 4 | J34: =IFERROR(VLOOKUP(توريدات!$I34,تكعيبات!L:O,2,0),"") -> كسارة البشير | K34: =IFERROR(VLOOKUP(توريدات!$I34,تكعيبات!L:O,4,0),"") -> سن 6بالبودره | L34: 1 | M34: =IFERROR(VLOOKUP(توريدات!$E34,تكعيبات!D:F,3,0),"") -> 55 | N34: =IFERROR(توريدات!$L34*توريدات!$M34,"") -> 55 | O34: 0 | P34: =IFERROR(توريدات!$N34-توريدات!$O34,"") -> 55 | Q34: =IFERROR(VLOOKUP(توريدات!$I34,تكعيبات!L:N,3,0),"") -> 97 | R34: =IFERROR(توريدات!$Q34*توريدات!$P34,"") -> 5335 | S34: 0 | T34: =IFERROR(توريدات!$R34-توريدات!$S34,"") -> 5335
A35: =IF(AND($H35='كميات مقاول'!$G$1,$B35>='كميات مقاول'!$E$2,$B35<='كميات مقاول'!$H$2),$K35&$J35&$E35,"") ->  | B35: 2020-03-06 | C35: 48833 | D35: 2 | E35: 126432 | F35: =IFERROR(VLOOKUP(توريدات!$E35,تكعيبات!D:F,2,0),"") -> 14514 | G35: رضا | H35: =IFERROR(VLOOKUP(توريدات!$D35,تكعيبات!A:G,2,0),"") -> مراد الوكيل | I35: 22 | J35: =IFERROR(VLOOKUP(توريدات!$I35,تكعيبات!L:O,2,0),"") -> كسارة فرج العرمبي | K35: =IFERROR(VLOOKUP(توريدات!$I35,تكعيبات!L:O,4,0),"") -> سن 6بالبودره | L35: 1 | M35: =IFERROR(VLOOKUP(توريدات!$E35,تكعيبات!D:F,3,0),"") -> 55 | N35: =IFERROR(توريدات!$L35*توريدات!$M35,"") -> 55 | O35: 0 | P35: =IFERROR(توريدات!$N35-توريدات!$O35,"") -> 55 | Q35: =IFERROR(VLOOKUP(توريدات!$I35,تكعيبات!L:N,3,0),"") -> 95 | R35: =IFERROR(توريدات!$Q35*توريدات!$P35,"") -> 5225 | S35: 0 | T35: =IFERROR(توريدات!$R35-توريدات!$S35,"") -> 5225
A36: =IF(AND($H36='كميات مقاول'!$G$1,$B36>='كميات مقاول'!$E$2,$B36<='كميات مقاول'!$H$2),$K36&$J36&$E36,"") ->  | B36: 2020-03-06 | C36: 48834 | D36: 2 | E36: 8786 | F36: =IFERROR(VLOOKUP(توريدات!$E36,تكعيبات!D:F,2,0),"") -> 9137 | G36: زكى | H36: =IFERROR(VLOOKUP(توريدات!$D36,تكعيبات!A:G,2,0),"") -> مراد الوكيل | I36: 22 | J36: =IFERROR(VLOOKUP(توريدات!$I36,تكعيبات!L:O,2,0),"") -> كسارة فرج العرمبي | K36: =IFERROR(VLOOKUP(توريدات!$I36,تكعيبات!L:O,4,0),"") -> سن 6بالبودره | L36: 1 | M36: =IFERROR(VLOOKUP(توريدات!$E36,تكعيبات!D:F,3,0),"") -> 56.5 | N36: =IFERROR(توريدات!$L36*توريدات!$M36,"") -> 56.5 | O36: 0 | P36: =IFERROR(توريدات!$N36-توريدات!$O36,"") -> 56.5 | Q36: =IFERROR(VLOOKUP(توريدات!$I36,تكعيبات!L:N,3,0),"") -> 95 | R36: =IFERROR(توريدات!$Q36*توريدات!$P36,"") -> 5367.5 | S36: 0 | T36: =IFERROR(توريدات!$R36-توريدات!$S36,"") -> 5367.5
A37: =IF(AND($H37='كميات مقاول'!$G$1,$B37>='كميات مقاول'!$E$2,$B37<='كميات مقاول'!$H$2),$K37&$J37&$E37,"") ->  | B37: 2020-03-06 | C37: 48835 | D37: 2 | E37: 9443 | F37: =IFERROR(VLOOKUP(توريدات!$E37,تكعيبات!D:F,2,0),"") -> 1379 | G37: محمد | H37: =IFERROR(VLOOKUP(توريدات!$D37,تكعيبات!A:G,2,0),"") -> مراد الوكيل | I37: 22 | J37: =IFERROR(VLOOKUP(توريدات!$I37,تكعيبات!L:O,2,0),"") -> كسارة فرج العرمبي | K37: =IFERROR(VLOOKUP(توريدات!$I37,تكعيبات!L:O,4,0),"") -> سن 6بالبودره | L37: 1 | M37: =IFERROR(VLOOKUP(توريدات!$E37,تكعيبات!D:F,3,0),"") -> 58.25 | N37: =IFERROR(توريدات!$L37*توريدات!$M37,"") -> 58.25 | O37: 0 | P37: =IFERROR(توريدات!$N37-توريدات!$O37,"") -> 58.25 | Q37: =IFERROR(VLOOKUP(توريدات!$I37,تكعيبات!L:N,3,0),"") -> 95 | R37: =IFERROR(توريدات!$Q37*توريدات!$P37,"") -> 5533.75 | S37: 0 | T37: =IFERROR(توريدات!$R37-توريدات!$S37,"") -> 5533.75 | U37: المقطورة انقلبت
A38: =IF(AND($H38='كميات مقاول'!$G$1,$B38>='كميات مقاول'!$E$2,$B38<='كميات مقاول'!$H$2),$K38&$J38&$E38,"") ->  | B38: 2020-03-06 | C38: 48836 | D38: 3 | E38: 5142 | F38: =IFERROR(VLOOKUP(توريدات!$E38,تكعيبات!D:F,2,0),"") -> 4382 | G38: محمد | H38: =IFERROR(VLOOKUP(توريدات!$D38,تكعيبات!A:G,2,0),"") -> طارق مراد | I38: 9 | J38: =IFERROR(VLOOKUP(توريدات!$I38,تكعيبات!L:O,2,0),"") -> كسارة الفيــروز- مشــال | K38: =IFERROR(VLOOKUP(توريدات!$I38,تكعيبات!L:O,4,0),"") -> سن 6بالبودره - مشال | L38: 1 | M38: =IFERROR(VLOOKUP(توريدات!$E38,تكعيبات!D:F,3,0),"") -> 52 | N38: =IFERROR(توريدات!$L38*توريدات!$M38,"") -> 52 | O38: 0 | P38: =IFERROR(توريدات!$N38-توريدات!$O38,"") -> 52 | Q38: =IFERROR(VLOOKUP(توريدات!$I38,تكعيبات!L:N,3,0),"") -> 66 | R38: =IFERROR(توريدات!$Q38*توريدات!$P38,"") -> 3432 | S38: 0 | T38: =IFERROR(توريدات!$R38-توريدات!$S38,"") -> 3432
A39: =IF(AND($H39='كميات مقاول'!$G$1,$B39>='كميات مقاول'!$E$2,$B39<='كميات مقاول'!$H$2),$K39&$J39&$E39,"") ->  | B39: 2020-03-06 | C39: 48837 | D39: 1 | E39: 6573 | F39: =IFERROR(VLOOKUP(توريدات!$E39,تكعيبات!D:F,2,0),"") -> 3819 | G39: محمد | H39: =IFERROR(VLOOKUP(توريدات!$D39,تكعيبات!A:G,2,0),"") -> الحاج عدلي | I39: 2 | J39: =IFERROR(VLOOKUP(توريدات!$I39,تكعيبات!L:O,2,0),"") -> كسارة خليل سعيد | K39: =IFERROR(VLOOKUP(توريدات!$I39,تكعيبات!L:O,4,0),"") -> سن 6بالبودره | L39: 1 | M39: =IFERROR(VLOOKUP(توريدات!$E39,تكعيبات!D:F,3,0),"") -> 0 | N39: =IFERROR(توريدات!$L39*توريدات!$M39,"") -> 0 | O39: 0 | P39: =IFERROR(توريدات!$N39-توريدات!$O39,"") -> 0 | Q39: =IFERROR(VLOOKUP(توريدات!$I39,تكعيبات!L:N,3,0),"") -> 97 | R39: =IFERROR(توريدات!$Q39*توريدات!$P39,"") -> 0 | S39: 0 | T39: =IFERROR(توريدات!$R39-توريدات!$S39,"") -> 0
A40: =IF(AND($H40='كميات مقاول'!$G$1,$B40>='كميات مقاول'!$E$2,$B40<='كميات مقاول'!$H$2),$K40&$J40&$E40,"") ->  | B40: 2020-03-07 | C40: 48838 | D40: 1 | E40: 6791 | F40: =IFERROR(VLOOKUP(توريدات!$E40,تكعيبات!D:F,2,0),"") -> 4389 | G40: احمد | H40: =IFERROR(VLOOKUP(توريدات!$D40,تكعيبات!A:G,2,0),"") -> الحاج عدلي | I40: 2 | J40: =IFERROR(VLOOKUP(توريدات!$I40,تكعيبات!L:O,2,0),"") -> كسارة خليل سعيد | K40: =IFERROR(VLOOKUP(توريدات!$I40,تكعيبات!L:O,4,0),"") -> سن 6بالبودره | L40: 1 | M40: =IFERROR(VLOOKUP(توريدات!$E40,تكعيبات!D:F,3,0),"") -> 58 | N40: =IFERROR(توريدات!$L40*توريدات!$M40,"") -> 58 | O40: 0 | P40: =IFERROR(توريدات!$N40-توريدات!$O40,"") -> 58 | Q40: =IFERROR(VLOOKUP(توريدات!$I40,تكعيبات!L:N,3,0),"") -> 97 | R40: =IFERROR(توريدات!$Q40*توريدات!$P40,"") -> 5626 | S40: 0 | T40: =IFERROR(توريدات!$R40-توريدات!$S40,"") -> 5626
A41: =IF(AND($H41='كميات مقاول'!$G$1,$B41>='كميات مقاول'!$E$2,$B41<='كميات مقاول'!$H$2),$K41&$J41&$E41,"") ->  | B41: 2020-03-07 | C41: 48839 | D41: 3 | E41: 5142 | F41: =IFERROR(VLOOKUP(توريدات!$E41,تكعيبات!D:F,2,0),"") -> 4382 | G41: محمد | H41: =IFERROR(VLOOKUP(توريدات!$D41,تكعيبات!A:G,2,0),"") -> طارق مراد | I41: 9 | J41: =IFERROR(VLOOKUP(توريدات!$I41,تكعيبات!L:O,2,0),"") -> كسارة الفيــروز- مشــال | K41: =IFERROR(VLOOKUP(توريدات!$I41,تكعيبات!L:O,4,0),"") -> سن 6بالبودره - مشال | L41: 1 | M41: =IFERROR(VLOOKUP(توريدات!$E41,تكعيبات!D:F,3,0),"") -> 52 | N41: =IFERROR(توريدات!$L41*توريدات!$M41,"") -> 52 | O41: 0 | P41: =IFERROR(توريدات!$N41-توريدات!$O41,"") -> 52 | Q41: =IFERROR(VLOOKUP(توريدات!$I41,تكعيبات!L:N,3,0),"") -> 66 | R41: =IFERROR(توريدات!$Q41*توريدات!$P41,"") -> 3432 | S41: 0 | T41: =IFERROR(توريدات!$R41-توريدات!$S41,"") -> 3432
A42: =IF(AND($H42='كميات مقاول'!$G$1,$B42>='كميات مقاول'!$E$2,$B42<='كميات مقاول'!$H$2),$K42&$J42&$E42,"") ->  | B42: 2020-03-07 | C42: 48840 | D42: 1 | E42: 1863 | F42: =IFERROR(VLOOKUP(توريدات!$E42,تكعيبات!D:F,2,0),"") -> 526 | G42: ابراهيم | H42: =IFERROR(VLOOKUP(توريدات!$D42,تكعيبات!A:G,2,0),"") -> الحاج عدلي | I42: 1 | J42: =IFERROR(VLOOKUP(توريدات!$I42,تكعيبات!L:O,2,0),"") -> كسارة العرمبي | K42: =IFERROR(VLOOKUP(توريدات!$I42,تكعيبات!L:O,4,0),"") -> سن 6بالبودره | L42: 1 | M42: =IFERROR(VLOOKUP(توريدات!$E42,تكعيبات!D:F,3,0),"") -> 52 | N42: =IFERROR(توريدات!$L42*توريدات!$M42,"") -> 52 | O42: 0 | P42: =IFERROR(توريدات!$N42-توريدات!$O42,"") -> 52 | Q42: =IFERROR(VLOOKUP(توريدات!$I42,تكعيبات!L:N,3,0),"") -> 97 | R42: =IFERROR(توريدات!$Q42*توريدات!$P42,"") -> 5044 | S42: 0 | T42: =IFERROR(توريدات!$R42-توريدات!$S42,"") -> 5044
A43: =IF(AND($H43='كميات مقاول'!$G$1,$B43>='كميات مقاول'!$E$2,$B43<='كميات مقاول'!$H$2),$K43&$J43&$E43,"") ->  | B43: 2020-03-07 | C43: 48841 | D43: 1 | E43: 6891 | F43: =IFERROR(VLOOKUP(توريدات!$E43,تكعيبات!D:F,2,0),"") -> 4276 | G43: محمد | H43: =IFERROR(VLOOKUP(توريدات!$D43,تكعيبات!A:G,2,0),"") -> الحاج عدلي | I43: 2 | J43: =IFERROR(VLOOKUP(توريدات!$I43,تكعيبات!L:O,2,0),"") -> كسارة خليل سعيد | K43: =IFERROR(VLOOKUP(توريدات!$I43,تكعيبات!L:O,4,0),"") -> سن 6بالبودره | L43: 1 | M43: =IFERROR(VLOOKUP(توريدات!$E43,تكعيبات!D:F,3,0),"") -> 53.5 | N43: =IFERROR(توريدات!$L43*توريدات!$M43,"") -> 53.5 | O43: 0 | P43: =IFERROR(توريدات!$N43-توريدات!$O43,"") -> 53.5 | Q43: =IFERROR(VLOOKUP(توريدات!$I43,تكعيبات!L:N,3,0),"") -> 97 | R43: =IFERROR(توريدات!$Q43*توريدات!$P43,"") -> 5189.5 | S43: 0 | T43: =IFERROR(توريدات!$R43-توريدات!$S43,"") -> 5189.5
A44: =IF(AND($H44='كميات مقاول'!$G$1,$B44>='كميات مقاول'!$E$2,$B44<='كميات مقاول'!$H$2),$K44&$J44&$E44,"") ->  | B44: 2020-03-07 | C44: 48842 | D44: 1 | E44: 6573 | F44: =IFERROR(VLOOKUP(توريدات!$E44,تكعيبات!D:F,2,0),"") -> 3819 | G44: محمد | H44: =IFERROR(VLOOKUP(توريدات!$D44,تكعيبات!A:G,2,0),"") -> الحاج عدلي | I44: 2 | J44: =IFERROR(VLOOKUP(توريدات!$I44,تكعيبات!L:O,2,0),"") -> كسارة خليل سعيد | K44: =IFERROR(VLOOKUP(توريدات!$I44,تكعيبات!L:O,4,0),"") -> سن 6بالبودره | L44: 1 | M44: =IFERROR(VLOOKUP(توريدات!$E44,تكعيبات!D:F,3,0),"") -> 0 | N44: =IFERROR(توريدات!$L44*توريدات!$M44,"") -> 0 | O44: 0 | P44: =IFERROR(توريدات!$N44-توريدات!$O44,"") -> 0 | Q44: =IFERROR(VLOOKUP(توريدات!$I44,تكعيبات!L:N,3,0),"") -> 97 | R44: =IFERROR(توريدات!$Q44*توريدات!$P44,"") -> 0 | S44: 0 | T44: =IFERROR(توريدات!$R44-توريدات!$S44,"") -> 0
A45: =IF(AND($H45='كميات مقاول'!$G$1,$B45>='كميات مقاول'!$E$2,$B45<='كميات مقاول'!$H$2),$K45&$J45&$E45,"") ->  | B45: 2020-03-07 | C45: 48843 | D45: 2 | E45: 126432 | F45: =IFERROR(VLOOKUP(توريدات!$E45,تكعيبات!D:F,2,0),"") -> 14514 | G45: رضا | H45: =IFERROR(VLOOKUP(توريدات!$D45,تكعيبات!A:G,2,0),"") -> مراد الوكيل | I45: 22 | J45: =IFERROR(VLOOKUP(توريدات!$I45,تكعيبات!L:O,2,0),"") -> كسارة فرج العرمبي | K45: =IFERROR(VLOOKUP(توريدات!$I45,تكعيبات!L:O,4,0),"") -> سن 6بالبودره | L45: 1 | M45: =IFERROR(VLOOKUP(توريدات!$E45,تكعيبات!D:F,3,0),"") -> 55 | N45: =IFERROR(توريدات!$L45*توريدات!$M45,"") -> 55 | O45: 0 | P45: =IFERROR(توريدات!$N45-توريدات!$O45,"") -> 55 | Q45: =IFERROR(VLOOKUP(توريدات!$I45,تكعيبات!L:N,3,0),"") -> 95 | R45: =IFERROR(توريدات!$Q45*توريدات!$P45,"") -> 5225 | S45: 0 | T45: =IFERROR(توريدات!$R45-توريدات!$S45,"") -> 5225
A46: =IF(AND($H46='كميات مقاول'!$G$1,$B46>='كميات مقاول'!$E$2,$B46<='كميات مقاول'!$H$2),$K46&$J46&$E46,"") ->  | B46: 2020-03-07 | C46: 48844 | D46: 2 | E46: 8786 | F46: =IFERROR(VLOOKUP(توريدات!$E46,تكعيبات!D:F,2,0),"") -> 9137 | G46: زكى | H46: =IFERROR(VLOOKUP(توريدات!$D46,تكعيبات!A:G,2,0),"") -> مراد الوكيل | I46: 22 | J46: =IFERROR(VLOOKUP(توريدات!$I46,تكعيبات!L:O,2,0),"") -> كسارة فرج العرمبي | K46: =IFERROR(VLOOKUP(توريدات!$I46,تكعيبات!L:O,4,0),"") -> سن 6بالبودره | L46: 1 | M46: =IFERROR(VLOOKUP(توريدات!$E46,تكعيبات!D:F,3,0),"") -> 56.5 | N46: =IFERROR(توريدات!$L46*توريدات!$M46,"") -> 56.5 | O46: 0 | P46: =IFERROR(توريدات!$N46-توريدات!$O46,"") -> 56.5 | Q46: =IFERROR(VLOOKUP(توريدات!$I46,تكعيبات!L:N,3,0),"") -> 95 | R46: =IFERROR(توريدات!$Q46*توريدات!$P46,"") -> 5367.5 | S46: 0 | T46: =IFERROR(توريدات!$R46-توريدات!$S46,"") -> 5367.5
A47: =IF(AND($H47='كميات مقاول'!$G$1,$B47>='كميات مقاول'!$E$2,$B47<='كميات مقاول'!$H$2),$K47&$J47&$E47,"") ->  | B47: 2020-03-07 | C47: 48845 | D47: 2 | E47: 4199 | F47: =IFERROR(VLOOKUP(توريدات!$E47,تكعيبات!D:F,2,0),"") -> 6835 | G47: حسن | H47: =IFERROR(VLOOKUP(توريدات!$D47,تكعيبات!A:G,2,0),"") -> مراد الوكيل | I47: 22 | J47: =IFERROR(VLOOKUP(توريدات!$I47,تكعيبات!L:O,2,0),"") -> كسارة فرج العرمبي | K47: =IFERROR(VLOOKUP(توريدات!$I47,تكعيبات!L:O,4,0),"") -> سن 6بالبودره | L47: 1 | M47: =IFERROR(VLOOKUP(توريدات!$E47,تكعيبات!D:F,3,0),"") -> 49.1 | N47: =IFERROR(توريدات!$L47*توريدات!$M47,"") -> 49.1 | O47: 0 | P47: =IFERROR(توريدات!$N47-توريدات!$O47,"") -> 49.1 | Q47: =IFERROR(VLOOKUP(توريدات!$I47,تكعيبات!L:N,3,0),"") -> 95 | R47: =IFERROR(توريدات!$Q47*توريدات!$P47,"") -> 4664.5 | S47: 0 | T47: =IFERROR(توريدات!$R47-توريدات!$S47,"") -> 4664.5
A48: =IF(AND($H48='كميات مقاول'!$G$1,$B48>='كميات مقاول'!$E$2,$B48<='كميات مقاول'!$H$2),$K48&$J48&$E48,"") ->  | B48: 2020-03-07 | C48: 48846 | D48: 1 | E48: 6791 | F48: =IFERROR(VLOOKUP(توريدات!$E48,تكعيبات!D:F,2,0),"") -> 4389 | G48: رامى | H48: =IFERROR(VLOOKUP(توريدات!$D48,تكعيبات!A:G,2,0),"") -> الحاج عدلي | I48: 2 | J48: =IFERROR(VLOOKUP(توريدات!$I48,تكعيبات!L:O,2,0),"") -> كسارة خليل سعيد | K48: =IFERROR(VLOOKUP(توريدات!$I48,تكعيبات!L:O,4,0),"") -> سن 6بالبودره | L48: 1 | M48: =IFERROR(VLOOKUP(توريدات!$E48,تكعيبات!D:F,3,0),"") -> 58 | N48: =IFERROR(توريدات!$L48*توريدات!$M48,"") -> 58 | O48: 0 | P48: =IFERROR(توريدات!$N48-توريدات!$O48,"") -> 58 | Q48: =IFERROR(VLOOKUP(توريدات!$I48,تكعيبات!L:N,3,0),"") -> 97 | R48: =IFERROR(توريدات!$Q48*توريدات!$P48,"") -> 5626 | S48: 0 | T48: =IFERROR(توريدات!$R48-توريدات!$S48,"") -> 5626
A49: =IF(AND($H49='كميات مقاول'!$G$1,$B49>='كميات مقاول'!$E$2,$B49<='كميات مقاول'!$H$2),$K49&$J49&$E49,"") ->  | B49: 2020-03-07 | C49: 48847 | D49: 1 | E49: 7641 | F49: =IFERROR(VLOOKUP(توريدات!$E49,تكعيبات!D:F,2,0),"") -> 5861 | G49: رضا | H49: =IFERROR(VLOOKUP(توريدات!$D49,تكعيبات!A:G,2,0),"") -> الحاج عدلي | I49: 4 | J49: =IFERROR(VLOOKUP(توريدات!$I49,تكعيبات!L:O,2,0),"") -> كسارة البشير | K49: =IFERROR(VLOOKUP(توريدات!$I49,تكعيبات!L:O,4,0),"") -> سن 6بالبودره | L49: 1 | M49: =IFERROR(VLOOKUP(توريدات!$E49,تكعيبات!D:F,3,0),"") -> 58.6 | N49: =IFERROR(توريدات!$L49*توريدات!$M49,"") -> 58.6 | O49: 0 | P49: =IFERROR(توريدات!$N49-توريدات!$O49,"") -> 58.6 | Q49: =IFERROR(VLOOKUP(توريدات!$I49,تكعيبات!L:N,3,0),"") -> 97 | R49: =IFERROR(توريدات!$Q49*توريدات!$P49,"") -> 5684.2 | S49: 0 | T49: =IFERROR(توريدات!$R49-توريدات!$S49,"") -> 5684.2
A50: =IF(AND($H50='كميات مقاول'!$G$1,$B50>='كميات مقاول'!$E$2,$B50<='كميات مقاول'!$H$2),$K50&$J50&$E50,"") ->  | B50: 2020-03-07 | C50: 48848 | D50: 1 | E50: 8956 | F50: =IFERROR(VLOOKUP(توريدات!$E50,تكعيبات!D:F,2,0),"") -> 14573 | G50: محمد | H50: =IFERROR(VLOOKUP(توريدات!$D50,تكعيبات!A:G,2,0),"") -> الحاج عدلي | I50: 4 | J50: =IFERROR(VLOOKUP(توريدات!$I50,تكعيبات!L:O,2,0),"") -> كسارة البشير | K50: =IFERROR(VLOOKUP(توريدات!$I50,تكعيبات!L:O,4,0),"") -> سن 6بالبودره | L50: 1 | M50: =IFERROR(VLOOKUP(توريدات!$E50,تكعيبات!D:F,3,0),"") -> 54.25 | N50: =IFERROR(توريدات!$L50*توريدات!$M50,"") -> 54.25 | O50: 0 | P50: =IFERROR(توريدات!$N50-توريدات!$O50,"") -> 54.25 | Q50: =IFERROR(VLOOKUP(توريدات!$I50,تكعيبات!L:N,3,0),"") -> 97 | R50: =IFERROR(توريدات!$Q50*توريدات!$P50,"") -> 5262.25 | S50: 0 | T50: =IFERROR(توريدات!$R50-توريدات!$S50,"") -> 5262.25
A51: =IF(AND($H51='كميات مقاول'!$G$1,$B51>='كميات مقاول'!$E$2,$B51<='كميات مقاول'!$H$2),$K51&$J51&$E51,"") ->  | B51: 2020-03-07 | C51: 48849 | D51: 1 | E51: 9346 | F51: =IFERROR(VLOOKUP(توريدات!$E51,تكعيبات!D:F,2,0),"") -> 4536 | G51: مصباح | H51: =IFERROR(VLOOKUP(توريدات!$D51,تكعيبات!A:G,2,0),"") -> الحاج عدلي | I51: 4 | J51: =IFERROR(VLOOKUP(توريدات!$I51,تكعيبات!L:O,2,0),"") -> كسارة البشير | K51: =IFERROR(VLOOKUP(توريدات!$I51,تكعيبات!L:O,4,0),"") -> سن 6بالبودره | L51: 1 | M51: =IFERROR(VLOOKUP(توريدات!$E51,تكعيبات!D:F,3,0),"") -> 58.85 | N51: =IFERROR(توريدات!$L51*توريدات!$M51,"") -> 58.85 | O51: 0 | P51: =IFERROR(توريدات!$N51-توريدات!$O51,"") -> 58.85 | Q51: =IFERROR(VLOOKUP(توريدات!$I51,تكعيبات!L:N,3,0),"") -> 97 | R51: =IFERROR(توريدات!$Q51*توريدات!$P51,"") -> 5708.45 | S51: 0 | T51: =IFERROR(توريدات!$R51-توريدات!$S51,"") -> 5708.45
A52: =IF(AND($H52='كميات مقاول'!$G$1,$B52>='كميات مقاول'!$E$2,$B52<='كميات مقاول'!$H$2),$K52&$J52&$E52,"") ->  | B52: 2020-03-07 | C52: 48850 | D52: 1 | E52: 6215 | F52: =IFERROR(VLOOKUP(توريدات!$E52,تكعيبات!D:F,2,0),"") -> 7623 | G52: محمد | H52: =IFERROR(VLOOKUP(توريدات!$D52,تكعيبات!A:G,2,0),"") -> الحاج عدلي | I52: 2 | J52: =IFERROR(VLOOKUP(توريدات!$I52,تكعيبات!L:O,2,0),"") -> كسارة خليل سعيد | K52: =IFERROR(VLOOKUP(توريدات!$I52,تكعيبات!L:O,4,0),"") -> سن 6بالبودره | L52: 1 | M52: =IFERROR(VLOOKUP(توريدات!$E52,تكعيبات!D:F,3,0),"") -> 61.5 | N52: =IFERROR(توريدات!$L52*توريدات!$M52,"") -> 61.5 | O52: 0 | P52: =IFERROR(توريدات!$N52-توريدات!$O52,"") -> 61.5 | Q52: =IFERROR(VLOOKUP(توريدات!$I52,تكعيبات!L:N,3,0),"") -> 97 | R52: =IFERROR(توريدات!$Q52*توريدات!$P52,"") -> 5965.5 | S52: 0 | T52: =IFERROR(توريدات!$R52-توريدات!$S52,"") -> 5965.5
A53: =IF(AND($H53='كميات مقاول'!$G$1,$B53>='كميات مقاول'!$E$2,$B53<='كميات مقاول'!$H$2),$K53&$J53&$E53,"") ->  | B53: 2020-03-07 | C53: 48851 | D53: 1 | E53: 4968 | F53: =IFERROR(VLOOKUP(توريدات!$E53,تكعيبات!D:F,2,0),"") -> 4378 | G53: ابراهيم | H53: =IFERROR(VLOOKUP(توريدات!$D53,تكعيبات!A:G,2,0),"") -> الحاج عدلي | I53: 4 | J53: =IFERROR(VLOOKUP(توريدات!$I53,تكعيبات!L:O,2,0),"") -> كسارة البشير | K53: =IFERROR(VLOOKUP(توريدات!$I53,تكعيبات!L:O,4,0),"") -> سن 6بالبودره | L53: 1 | M53: =IFERROR(VLOOKUP(توريدات!$E53,تكعيبات!D:F,3,0),"") -> 54 | N53: =IFERROR(توريدات!$L53*توريدات!$M53,"") -> 54 | O53: 0 | P53: =IFERROR(توريدات!$N53-توريدات!$O53,"") -> 54 | Q53: =IFERROR(VLOOKUP(توريدات!$I53,تكعيبات!L:N,3,0),"") -> 97 | R53: =IFERROR(توريدات!$Q53*توريدات!$P53,"") -> 5238 | S53: 0 | T53: =IFERROR(توريدات!$R53-توريدات!$S53,"") -> 5238
A54: =IF(AND($H54='كميات مقاول'!$G$1,$B54>='كميات مقاول'!$E$2,$B54<='كميات مقاول'!$H$2),$K54&$J54&$E54,"") ->  | B54: 2020-03-07 | C54: 48852 | D54: 1 | E54: 5639 | F54: =IFERROR(VLOOKUP(توريدات!$E54,تكعيبات!D:F,2,0),"") -> 4521 | G54: محمود | H54: =IFERROR(VLOOKUP(توريدات!$D54,تكعيبات!A:G,2,0),"") -> الحاج عدلي | I54: 4 | J54: =IFERROR(VLOOKUP(توريدات!$I54,تكعيبات!L:O,2,0),"") -> كسارة البشير | K54: =IFERROR(VLOOKUP(توريدات!$I54,تكعيبات!L:O,4,0),"") -> سن 6بالبودره | L54: 1 | M54: =IFERROR(VLOOKUP(توريدات!$E54,تكعيبات!D:F,3,0),"") -> 55 | N54: =IFERROR(توريدات!$L54*توريدات!$M54,"") -> 55 | O54: 0 | P54: =IFERROR(توريدات!$N54-توريدات!$O54,"") -> 55 | Q54: =IFERROR(VLOOKUP(توريدات!$I54,تكعيبات!L:N,3,0),"") -> 97 | R54: =IFERROR(توريدات!$Q54*توريدات!$P54,"") -> 5335 | S54: 0 | T54: =IFERROR(توريدات!$R54-توريدات!$S54,"") -> 5335
A55: =IF(AND($H55='كميات مقاول'!$G$1,$B55>='كميات مقاول'!$E$2,$B55<='كميات مقاول'!$H$2),$K55&$J55&$E55,"") ->  | B55: 2020-03-07 | C55: 48853 | D55: 1 | E55: 1735 | F55: =IFERROR(VLOOKUP(توريدات!$E55,تكعيبات!D:F,2,0),"") -> 3629 | G55: احمد | H55: =IFERROR(VLOOKUP(توريدات!$D55,تكعيبات!A:G,2,0),"") -> الحاج عدلي | I55: 3 | J55: =IFERROR(VLOOKUP(توريدات!$I55,تكعيبات!L:O,2,0),"") -> كسارة ابناء الشرقية | K55: =IFERROR(VLOOKUP(توريدات!$I55,تكعيبات!L:O,4,0),"") -> سن 6بالبودره | L55: 1 | M55: =IFERROR(VLOOKUP(توريدات!$E55,تكعيبات!D:F,3,0),"") -> 53 | N55: =IFERROR(توريدات!$L55*توريدات!$M55,"") -> 53 | O55: 0 | P55: =IFERROR(توريدات!$N55-توريدات!$O55,"") -> 53 | Q55: =IFERROR(VLOOKUP(توريدات!$I55,تكعيبات!L:N,3,0),"") -> 97 | R55: =IFERROR(توريدات!$Q55*توريدات!$P55,"") -> 5141 | S55: 0 | T55: =IFERROR(توريدات!$R55-توريدات!$S55,"") -> 5141
A56: =IF(AND($H56='كميات مقاول'!$G$1,$B56>='كميات مقاول'!$E$2,$B56<='كميات مقاول'!$H$2),$K56&$J56&$E56,"") ->  | B56: 2020-03-07 | C56: 48854 | D56: 1 | E56: 9321 | F56: =IFERROR(VLOOKUP(توريدات!$E56,تكعيبات!D:F,2,0),"") -> 5489 | G56: محمد | H56: =IFERROR(VLOOKUP(توريدات!$D56,تكعيبات!A:G,2,0),"") -> الحاج عدلي | I56: 7 | J56: =IFERROR(VLOOKUP(توريدات!$I56,تكعيبات!L:O,2,0),"") -> كسارة 6أكتوبــر | K56: =IFERROR(VLOOKUP(توريدات!$I56,تكعيبات!L:O,4,0),"") -> سن 6بالبودره | L56: 1 | M56: =IFERROR(VLOOKUP(توريدات!$E56,تكعيبات!D:F,3,0),"") -> 54 | N56: =IFERROR(توريدات!$L56*توريدات!$M56,"") -> 54 | O56: 0 | P56: =IFERROR(توريدات!$N56-توريدات!$O56,"") -> 54 | Q56: =IFERROR(VLOOKUP(توريدات!$I56,تكعيبات!L:N,3,0),"") -> 97 | R56: =IFERROR(توريدات!$Q56*توريدات!$P56,"") -> 5238 | S56: 0 | T56: =IFERROR(توريدات!$R56-توريدات!$S56,"") -> 5238
A57: =IF(AND($H57='كميات مقاول'!$G$1,$B57>='كميات مقاول'!$E$2,$B57<='كميات مقاول'!$H$2),$K57&$J57&$E57,"") ->  | B57: 2020-03-07 | C57: 48855 | D57: 1 | E57: 3824 | F57: =IFERROR(VLOOKUP(توريدات!$E57,تكعيبات!D:F,2,0),"") -> 4216 | G57: احمد | H57: =IFERROR(VLOOKUP(توريدات!$D57,تكعيبات!A:G,2,0),"") -> الحاج عدلي | I57: 3 | J57: =IFERROR(VLOOKUP(توريدات!$I57,تكعيبات!L:O,2,0),"") -> كسارة ابناء الشرقية | K57: =IFERROR(VLOOKUP(توريدات!$I57,تكعيبات!L:O,4,0),"") -> سن 6بالبودره | L57: 1 | M57: =IFERROR(VLOOKUP(توريدات!$E57,تكعيبات!D:F,3,0),"") -> 53.3 | N57: =IFERROR(توريدات!$L57*توريدات!$M57,"") -> 53.3 | O57: 0 | P57: =IFERROR(توريدات!$N57-توريدات!$O57,"") -> 53.3 | Q57: =IFERROR(VLOOKUP(توريدات!$I57,تكعيبات!L:N,3,0),"") -> 97 | R57: =IFERROR(توريدات!$Q57*توريدات!$P57,"") -> 5170.1 | S57: 0 | T57: =IFERROR(توريدات!$R57-توريدات!$S57,"") -> 5170.1
A58: =IF(AND($H58='كميات مقاول'!$G$1,$B58>='كميات مقاول'!$E$2,$B58<='كميات مقاول'!$H$2),$K58&$J58&$E58,"") ->  | B58: 2020-03-07 | C58: 48856 | D58: 1 | E58: 2478 | F58: =IFERROR(VLOOKUP(توريدات!$E58,تكعيبات!D:F,2,0),"") -> 1378 | G58: مسعد | H58: =IFERROR(VLOOKUP(توريدات!$D58,تكعيبات!A:G,2,0),"") -> الحاج عدلي | I58: 7 | J58: =IFERROR(VLOOKUP(توريدات!$I58,تكعيبات!L:O,2,0),"") -> كسارة 6أكتوبــر | K58: =IFERROR(VLOOKUP(توريدات!$I58,تكعيبات!L:O,4,0),"") -> سن 6بالبودره | L58: 1 | M58: =IFERROR(VLOOKUP(توريدات!$E58,تكعيبات!D:F,3,0),"") -> 54 | N58: =IFERROR(توريدات!$L58*توريدات!$M58,"") -> 54 | O58: 0 | P58: =IFERROR(توريدات!$N58-توريدات!$O58,"") -> 54 | Q58: =IFERROR(VLOOKUP(توريدات!$I58,تكعيبات!L:N,3,0),"") -> 97 | R58: =IFERROR(توريدات!$Q58*توريدات!$P58,"") -> 5238 | S58: 0 | T58: =IFERROR(توريدات!$R58-توريدات!$S58,"") -> 5238
A59: =IF(AND($H59='كميات مقاول'!$G$1,$B59>='كميات مقاول'!$E$2,$B59<='كميات مقاول'!$H$2),$K59&$J59&$E59,"") ->  | B59: 2020-03-07 | C59: 48857 | D59: 2 | E59: 4199 | F59: =IFERROR(VLOOKUP(توريدات!$E59,تكعيبات!D:F,2,0),"") -> 6835 | G59: محمد | H59: =IFERROR(VLOOKUP(توريدات!$D59,تكعيبات!A:G,2,0),"") -> مراد الوكيل | I59: 22 | J59: =IFERROR(VLOOKUP(توريدات!$I59,تكعيبات!L:O,2,0),"") -> كسارة فرج العرمبي | K59: =IFERROR(VLOOKUP(توريدات!$I59,تكعيبات!L:O,4,0),"") -> سن 6بالبودره | L59: 1 | M59: =IFERROR(VLOOKUP(توريدات!$E59,تكعيبات!D:F,3,0),"") -> 49.1 | N59: =IFERROR(توريدات!$L59*توريدات!$M59,"") -> 49.1 | O59: 0 | P59: =IFERROR(توريدات!$N59-توريدات!$O59,"") -> 49.1 | Q59: =IFERROR(VLOOKUP(توريدات!$I59,تكعيبات!L:N,3,0),"") -> 95 | R59: =IFERROR(توريدات!$Q59*توريدات!$P59,"") -> 4664.5 | S59: 0 | T59: =IFERROR(توريدات!$R59-توريدات!$S59,"") -> 4664.5
A60: =IF(AND($H60='كميات مقاول'!$G$1,$B60>='كميات مقاول'!$E$2,$B60<='كميات مقاول'!$H$2),$K60&$J60&$E60,"") ->  | B60: 2020-03-07 | C60: 48858 | D60: 1 | E60: 4634 | F60: =IFERROR(VLOOKUP(توريدات!$E60,تكعيبات!D:F,2,0),"") -> 4399 | G60: السيد | H60: =IFERROR(VLOOKUP(توريدات!$D60,تكعيبات!A:G,2,0),"") -> الحاج عدلي | I60: 4 | J60: =IFERROR(VLOOKUP(توريدات!$I60,تكعيبات!L:O,2,0),"") -> كسارة البشير | K60: =IFERROR(VLOOKUP(توريدات!$I60,تكعيبات!L:O,4,0),"") -> سن 6بالبودره | L60: 1 | M60: =IFERROR(VLOOKUP(توريدات!$E60,تكعيبات!D:F,3,0),"") -> 45.5 | N60: =IFERROR(توريدات!$L60*توريدات!$M60,"") -> 45.5 | O60: 0 | P60: =IFERROR(توريدات!$N60-توريدات!$O60,"") -> 45.5 | Q60: =IFERROR(VLOOKUP(توريدات!$I60,تكعيبات!L:N,3,0),"") -> 97 | R60: =IFERROR(توريدات!$Q60*توريدات!$P60,"") -> 4413.5 | S60: 0 | T60: =IFERROR(توريدات!$R60-توريدات!$S60,"") -> 4413.5
A61: =IF(AND($H61='كميات مقاول'!$G$1,$B61>='كميات مقاول'!$E$2,$B61<='كميات مقاول'!$H$2),$K61&$J61&$E61,"") ->  | B61: 2020-03-07 | C61: 48859 | D61: 1 | E61: 8265 | F61: =IFERROR(VLOOKUP(توريدات!$E61,تكعيبات!D:F,2,0),"") -> 5327 | G61: اكرم | H61: =IFERROR(VLOOKUP(توريدات!$D61,تكعيبات!A:G,2,0),"") -> الحاج عدلي | I61: 3 | J61: =IFERROR(VLOOKUP(توريدات!$I61,تكعيبات!L:O,2,0),"") -> كسارة ابناء الشرقية | K61: =IFERROR(VLOOKUP(توريدات!$I61,تكعيبات!L:O,4,0),"") -> سن 6بالبودره | L61: 1 | M61: =IFERROR(VLOOKUP(توريدات!$E61,تكعيبات!D:F,3,0),"") -> 48 | N61: =IFERROR(توريدات!$L61*توريدات!$M61,"") -> 48 | O61: 0 | P61: =IFERROR(توريدات!$N61-توريدات!$O61,"") -> 48 | Q61: =IFERROR(VLOOKUP(توريدات!$I61,تكعيبات!L:N,3,0),"") -> 97 | R61: =IFERROR(توريدات!$Q61*توريدات!$P61,"") -> 4656 | S61: 0 | T61: =IFERROR(توريدات!$R61-توريدات!$S61,"") -> 4656
A62: =IF(AND($H62='كميات مقاول'!$G$1,$B62>='كميات مقاول'!$E$2,$B62<='كميات مقاول'!$H$2),$K62&$J62&$E62,"") ->  | B62: 2020-03-07 | C62: 48860 | D62: 1 | E62: 6891 | F62: =IFERROR(VLOOKUP(توريدات!$E62,تكعيبات!D:F,2,0),"") -> 4276 | G62: السيد | H62: =IFERROR(VLOOKUP(توريدات!$D62,تكعيبات!A:G,2,0),"") -> الحاج عدلي | I62: 10 | J62: =IFERROR(VLOOKUP(توريدات!$I62,تكعيبات!L:O,2,0),"") -> كسارة الهاشمية - مشال | K62: =IFERROR(VLOOKUP(توريدات!$I62,تكعيبات!L:O,4,0),"") -> سن 6بالبودره - مشال | L62: 1 | M62: =IFERROR(VLOOKUP(توريدات!$E62,تكعيبات!D:F,3,0),"") -> 53.5 | N62: =IFERROR(توريدات!$L62*توريدات!$M62,"") -> 53.5 | O62: 0 | P62: =IFERROR(توريدات!$N62-توريدات!$O62,"") -> 53.5 | Q62: =IFERROR(VLOOKUP(توريدات!$I62,تكعيبات!L:N,3,0),"") -> 67 | R62: =IFERROR(توريدات!$Q62*توريدات!$P62,"") -> 3584.5 | S62: 0 | T62: =IFERROR(توريدات!$R62-توريدات!$S62,"") -> 3584.5
A63: =IF(AND($H63='كميات مقاول'!$G$1,$B63>='كميات مقاول'!$E$2,$B63<='كميات مقاول'!$H$2),$K63&$J63&$E63,"") ->  | B63: 2020-03-07 | C63: 48861 | D63: 1 | E63: 1376 | F63: =IFERROR(VLOOKUP(توريدات!$E63,تكعيبات!D:F,2,0),"") -> 6718 | G63: مجدي | H63: =IFERROR(VLOOKUP(توريدات!$D63,تكعيبات!A:G,2,0),"") -> الحاج عدلي | I63: 2 | J63: =IFERROR(VLOOKUP(توريدات!$I63,تكعيبات!L:O,2,0),"") -> كسارة خليل سعيد | K63: =IFERROR(VLOOKUP(توريدات!$I63,تكعيبات!L:O,4,0),"") -> سن 6بالبودره | L63: 1 | M63: =IFERROR(VLOOKUP(توريدات!$E63,تكعيبات!D:F,3,0),"") -> 57 | N63: =IFERROR(توريدات!$L63*توريدات!$M63,"") -> 57 | O63: 0 | P63: =IFERROR(توريدات!$N63-توريدات!$O63,"") -> 57 | Q63: =IFERROR(VLOOKUP(توريدات!$I63,تكعيبات!L:N,3,0),"") -> 97 | R63: =IFERROR(توريدات!$Q63*توريدات!$P63,"") -> 5529 | S63: 0 | T63: =IFERROR(توريدات!$R63-توريدات!$S63,"") -> 5529
A64: =IF(AND($H64='كميات مقاول'!$G$1,$B64>='كميات مقاول'!$E$2,$B64<='كميات مقاول'!$H$2),$K64&$J64&$E64,"") ->  | B64: 2020-03-07 | C64: 48862 | D64: 1 | E64: 5186 | F64: =IFERROR(VLOOKUP(توريدات!$E64,تكعيبات!D:F,2,0),"") -> 4517 | G64: علي | H64: =IFERROR(VLOOKUP(توريدات!$D64,تكعيبات!A:G,2,0),"") -> الحاج عدلي | I64: 4 | J64: =IFERROR(VLOOKUP(توريدات!$I64,تكعيبات!L:O,2,0),"") -> كسارة البشير | K64: =IFERROR(VLOOKUP(توريدات!$I64,تكعيبات!L:O,4,0),"") -> سن 6بالبودره | L64: 1 | M64: =IFERROR(VLOOKUP(توريدات!$E64,تكعيبات!D:F,3,0),"") -> 53.6 | N64: =IFERROR(توريدات!$L64*توريدات!$M64,"") -> 53.6 | O64: 0 | P64: =IFERROR(توريدات!$N64-توريدات!$O64,"") -> 53.6 | Q64: =IFERROR(VLOOKUP(توريدات!$I64,تكعيبات!L:N,3,0),"") -> 97 | R64: =IFERROR(توريدات!$Q64*توريدات!$P64,"") -> 5199.2 | S64: 0 | T64: =IFERROR(توريدات!$R64-توريدات!$S64,"") -> 5199.2
A65: =IF(AND($H65='كميات مقاول'!$G$1,$B65>='كميات مقاول'!$E$2,$B65<='كميات مقاول'!$H$2),$K65&$J65&$E65,"") ->  | B65: 2020-03-07 | C65: 48863 | D65: 1 | E65: 7967 | F65: =IFERROR(VLOOKUP(توريدات!$E65,تكعيبات!D:F,2,0),"") -> 4895 | G65: ياسر | H65: =IFERROR(VLOOKUP(توريدات!$D65,تكعيبات!A:G,2,0),"") -> الحاج عدلي | I65: 4 | J65: =IFERROR(VLOOKUP(توريدات!$I65,تكعيبات!L:O,2,0),"") -> كسارة البشير | K65: =IFERROR(VLOOKUP(توريدات!$I65,تكعيبات!L:O,4,0),"") -> سن 6بالبودره | L65: 1 | M65: =IFERROR(VLOOKUP(توريدات!$E65,تكعيبات!D:F,3,0),"") -> 60.5 | N65: =IFERROR(توريدات!$L65*توريدات!$M65,"") -> 60.5 | O65: 0 | P65: =IFERROR(توريدات!$N65-توريدات!$O65,"") -> 60.5 | Q65: =IFERROR(VLOOKUP(توريدات!$I65,تكعيبات!L:N,3,0),"") -> 97 | R65: =IFERROR(توريدات!$Q65*توريدات!$P65,"") -> 5868.5 | S65: 0 | T65: =IFERROR(توريدات!$R65-توريدات!$S65,"") -> 5868.5
A66: =IF(AND($H66='كميات مقاول'!$G$1,$B66>='كميات مقاول'!$E$2,$B66<='كميات مقاول'!$H$2),$K66&$J66&$E66,"") ->  | B66: 2020-03-07 | C66: 48864 | D66: 1 | E66: 1685 | F66: =IFERROR(VLOOKUP(توريدات!$E66,تكعيبات!D:F,2,0),"") -> 4897 | G66: محمد | H66: =IFERROR(VLOOKUP(توريدات!$D66,تكعيبات!A:G,2,0),"") -> الحاج عدلي | I66: 4 | J66: =IFERROR(VLOOKUP(توريدات!$I66,تكعيبات!L:O,2,0),"") -> كسارة البشير | K66: =IFERROR(VLOOKUP(توريدات!$I66,تكعيبات!L:O,4,0),"") -> سن 6بالبودره | L66: 1 | M66: =IFERROR(VLOOKUP(توريدات!$E66,تكعيبات!D:F,3,0),"") -> 58.9 | N66: =IFERROR(توريدات!$L66*توريدات!$M66,"") -> 58.9 | O66: 0 | P66: =IFERROR(توريدات!$N66-توريدات!$O66,"") -> 58.9 | Q66: =IFERROR(VLOOKUP(توريدات!$I66,تكعيبات!L:N,3,0),"") -> 97 | R66: =IFERROR(توريدات!$Q66*توريدات!$P66,"") -> 5713.3 | S66: 0 | T66: =IFERROR(توريدات!$R66-توريدات!$S66,"") -> 5713.3
A67: =IF(AND($H67='كميات مقاول'!$G$1,$B67>='كميات مقاول'!$E$2,$B67<='كميات مقاول'!$H$2),$K67&$J67&$E67,"") ->  | B67: 2020-03-07 | C67: 48865 | D67: 1 | E67: 9942 | F67: =IFERROR(VLOOKUP(توريدات!$E67,تكعيبات!D:F,2,0),"") -> 6375 | G67: يسري | H67: =IFERROR(VLOOKUP(توريدات!$D67,تكعيبات!A:G,2,0),"") -> الحاج عدلي | I67: 3 | J67: =IFERROR(VLOOKUP(توريدات!$I67,تكعيبات!L:O,2,0),"") -> كسارة ابناء الشرقية | K67: =IFERROR(VLOOKUP(توريدات!$I67,تكعيبات!L:O,4,0),"") -> سن 6بالبودره | L67: 1 | M67: =IFERROR(VLOOKUP(توريدات!$E67,تكعيبات!D:F,3,0),"") -> 58 | N67: =IFERROR(توريدات!$L67*توريدات!$M67,"") -> 58 | O67: 0 | P67: =IFERROR(توريدات!$N67-توريدات!$O67,"") -> 58 | Q67: =IFERROR(VLOOKUP(توريدات!$I67,تكعيبات!L:N,3,0),"") -> 97 | R67: =IFERROR(توريدات!$Q67*توريدات!$P67,"") -> 5626 | S67: 0 | T67: =IFERROR(توريدات!$R67-توريدات!$S67,"") -> 5626
A68: =IF(AND($H68='كميات مقاول'!$G$1,$B68>='كميات مقاول'!$E$2,$B68<='كميات مقاول'!$H$2),$K68&$J68&$E68,"") ->  | B68: 2020-03-07 | C68: 48866 | D68: 2 | E68: 8786 | F68: =IFERROR(VLOOKUP(توريدات!$E68,تكعيبات!D:F,2,0),"") -> 9137 | G68: شعبان | H68: =IFERROR(VLOOKUP(توريدات!$D68,تكعيبات!A:G,2,0),"") -> مراد الوكيل | I68: 22 | J68: =IFERROR(VLOOKUP(توريدات!$I68,تكعيبات!L:O,2,0),"") -> كسارة فرج العرمبي | K68: =IFERROR(VLOOKUP(توريدات!$I68,تكعيبات!L:O,4,0),"") -> سن 6بالبودره | L68: 1 | M68: =IFERROR(VLOOKUP(توريدات!$E68,تكعيبات!D:F,3,0),"") -> 56.5 | N68: =IFERROR(توريدات!$L68*توريدات!$M68,"") -> 56.5 | O68: 0 | P68: =IFERROR(توريدات!$N68-توريدات!$O68,"") -> 56.5 | Q68: =IFERROR(VLOOKUP(توريدات!$I68,تكعيبات!L:N,3,0),"") -> 95 | R68: =IFERROR(توريدات!$Q68*توريدات!$P68,"") -> 5367.5 | S68: 0 | T68: =IFERROR(توريدات!$R68-توريدات!$S68,"") -> 5367.5
A69: =IF(AND($H69='كميات مقاول'!$G$1,$B69>='كميات مقاول'!$E$2,$B69<='كميات مقاول'!$H$2),$K69&$J69&$E69,"") ->  | B69: 2020-03-07 | C69: 48867 | D69: 2 | E69: 126432 | F69: =IFERROR(VLOOKUP(توريدات!$E69,تكعيبات!D:F,2,0),"") -> 14514 | G69: احمد | H69: =IFERROR(VLOOKUP(توريدات!$D69,تكعيبات!A:G,2,0),"") -> مراد الوكيل | I69: 22 | J69: =IFERROR(VLOOKUP(توريدات!$I69,تكعيبات!L:O,2,0),"") -> كسارة فرج العرمبي | K69: =IFERROR(VLOOKUP(توريدات!$I69,تكعيبات!L:O,4,0),"") -> سن 6بالبودره | L69: 1 | M69: =IFERROR(VLOOKUP(توريدات!$E69,تكعيبات!D:F,3,0),"") -> 55 | N69: =IFERROR(توريدات!$L69*توريدات!$M69,"") -> 55 | O69: 0 | P69: =IFERROR(توريدات!$N69-توريدات!$O69,"") -> 55 | Q69: =IFERROR(VLOOKUP(توريدات!$I69,تكعيبات!L:N,3,0),"") -> 95 | R69: =IFERROR(توريدات!$Q69*توريدات!$P69,"") -> 5225 | S69: 0 | T69: =IFERROR(توريدات!$R69-توريدات!$S69,"") -> 5225
A70: =IF(AND($H70='كميات مقاول'!$G$1,$B70>='كميات مقاول'!$E$2,$B70<='كميات مقاول'!$H$2),$K70&$J70&$E70,"") ->  | B70: 2020-03-07 | C70: 48868 | D70: 1 | E70: 6215 | F70: =IFERROR(VLOOKUP(توريدات!$E70,تكعيبات!D:F,2,0),"") -> 7623 | G70: محمد | H70: =IFERROR(VLOOKUP(توريدات!$D70,تكعيبات!A:G,2,0),"") -> الحاج عدلي | I70: 2 | J70: =IFERROR(VLOOKUP(توريدات!$I70,تكعيبات!L:O,2,0),"") -> كسارة خليل سعيد | K70: =IFERROR(VLOOKUP(توريدات!$I70,تكعيبات!L:O,4,0),"") -> سن 6بالبودره | L70: 1 | M70: =IFERROR(VLOOKUP(توريدات!$E70,تكعيبات!D:F,3,0),"") -> 61.5 | N70: =IFERROR(توريدات!$L70*توريدات!$M70,"") -> 61.5 | O70: 0 | P70: =IFERROR(توريدات!$N70-توريدات!$O70,"") -> 61.5 | Q70: =IFERROR(VLOOKUP(توريدات!$I70,تكعيبات!L:N,3,0),"") -> 97 | R70: =IFERROR(توريدات!$Q70*توريدات!$P70,"") -> 5965.5 | S70: 0 | T70: =IFERROR(توريدات!$R70-توريدات!$S70,"") -> 5965.5
A71: =IF(AND($H71='كميات مقاول'!$G$1,$B71>='كميات مقاول'!$E$2,$B71<='كميات مقاول'!$H$2),$K71&$J71&$E71,"") ->  | B71: 2020-03-07 | C71: 48869 | D71: 4 | E71: 6432 | F71: =IFERROR(VLOOKUP(توريدات!$E71,تكعيبات!D:F,2,0),"") -> 7183 | G71: احمد | H71: =IFERROR(VLOOKUP(توريدات!$D71,تكعيبات!A:G,2,0),"") -> خالد أبو الحمد | I71: 12 | J71: =IFERROR(VLOOKUP(توريدات!$I71,تكعيبات!L:O,2,0),"") -> كسارة ابو نــدا | K71: =IFERROR(VLOOKUP(توريدات!$I71,تكعيبات!L:O,4,0),"") -> سن 6بالبودره | L71: 1 | M71: =IFERROR(VLOOKUP(توريدات!$E71,تكعيبات!D:F,3,0),"") -> 54.7 | N71: =IFERROR(توريدات!$L71*توريدات!$M71,"") -> 54.7 | O71: 0 | P71: =IFERROR(توريدات!$N71-توريدات!$O71,"") -> 54.7 | Q71: =IFERROR(VLOOKUP(توريدات!$I71,تكعيبات!L:N,3,0),"") -> 95 | R71: =IFERROR(توريدات!$Q71*توريدات!$P71,"") -> 5196.5 | S71: 0 | T71: =IFERROR(توريدات!$R71-توريدات!$S71,"") -> 5196.5
A72: =IF(AND($H72='كميات مقاول'!$G$1,$B72>='كميات مقاول'!$E$2,$B72<='كميات مقاول'!$H$2),$K72&$J72&$E72,"") ->  | B72: 2020-03-07 | C72: 48870 | D72: 1 | E72: 4291 | F72: =IFERROR(VLOOKUP(توريدات!$E72,تكعيبات!D:F,2,0),"") -> 5172 | G72: شاهين | H72: =IFERROR(VLOOKUP(توريدات!$D72,تكعيبات!A:G,2,0),"") -> الحاج عدلي | I72: 3 | J72: =IFERROR(VLOOKUP(توريدات!$I72,تكعيبات!L:O,2,0),"") -> كسارة ابناء الشرقية | K72: =IFERROR(VLOOKUP(توريدات!$I72,تكعيبات!L:O,4,0),"") -> سن 6بالبودره | L72: 1 | M72: =IFERROR(VLOOKUP(توريدات!$E72,تكعيبات!D:F,3,0),"") -> 46.3 | N72: =IFERROR(توريدات!$L72*توريدات!$M72,"") -> 46.3 | O72: 0 | P72: =IFERROR(توريدات!$N72-توريدات!$O72,"") -> 46.3 | Q72: =IFERROR(VLOOKUP(توريدات!$I72,تكعيبات!L:N,3,0),"") -> 97 | R72: =IFERROR(توريدات!$Q72*توريدات!$P72,"") -> 4491.1 | S72: 0 | T72: =IFERROR(توريدات!$R72-توريدات!$S72,"") -> 4491.1
A73: =IF(AND($H73='كميات مقاول'!$G$1,$B73>='كميات مقاول'!$E$2,$B73<='كميات مقاول'!$H$2),$K73&$J73&$E73,"") ->  | B73: 2020-03-07 | C73: 48871 | D73: 1 | E73: 5463 | F73: =IFERROR(VLOOKUP(توريدات!$E73,تكعيبات!D:F,2,0),"") -> 6497 | G73: صلاح | H73: =IFERROR(VLOOKUP(توريدات!$D73,تكعيبات!A:G,2,0),"") -> الحاج عدلي | I73: 3 | J73: =IFERROR(VLOOKUP(توريدات!$I73,تكعيبات!L:O,2,0),"") -> كسارة ابناء الشرقية | K73: =IFERROR(VLOOKUP(توريدات!$I73,تكعيبات!L:O,4,0),"") -> سن 6بالبودره | L73: 1 | M73: =IFERROR(VLOOKUP(توريدات!$E73,تكعيبات!D:F,3,0),"") -> 56 | N73: =IFERROR(توريدات!$L73*توريدات!$M73,"") -> 56 | O73: 0 | P73: =IFERROR(توريدات!$N73-توريدات!$O73,"") -> 56 | Q73: =IFERROR(VLOOKUP(توريدات!$I73,تكعيبات!L:N,3,0),"") -> 97 | R73: =IFERROR(توريدات!$Q73*توريدات!$P73,"") -> 5432 | S73: 0 | T73: =IFERROR(توريدات!$R73-توريدات!$S73,"") -> 5432
A74: =IF(AND($H74='كميات مقاول'!$G$1,$B74>='كميات مقاول'!$E$2,$B74<='كميات مقاول'!$H$2),$K74&$J74&$E74,"") ->  | B74: 2020-03-07 | C74: 48872 | D74: 1 | E74: 4789 | F74: =IFERROR(VLOOKUP(توريدات!$E74,تكعيبات!D:F,2,0),"") -> 5284 | G74: هاني | H74: =IFERROR(VLOOKUP(توريدات!$D74,تكعيبات!A:G,2,0),"") -> الحاج عدلي | I74: 3 | J74: =IFERROR(VLOOKUP(توريدات!$I74,تكعيبات!L:O,2,0),"") -> كسارة ابناء الشرقية | K74: =IFERROR(VLOOKUP(توريدات!$I74,تكعيبات!L:O,4,0),"") -> سن 6بالبودره | L74: 1 | M74: =IFERROR(VLOOKUP(توريدات!$E74,تكعيبات!D:F,3,0),"") -> 55.75 | N74: =IFERROR(توريدات!$L74*توريدات!$M74,"") -> 55.75 | O74: 0 | P74: =IFERROR(توريدات!$N74-توريدات!$O74,"") -> 55.75 | Q74: =IFERROR(VLOOKUP(توريدات!$I74,تكعيبات!L:N,3,0),"") -> 97 | R74: =IFERROR(توريدات!$Q74*توريدات!$P74,"") -> 5407.75 | S74: 0 | T74: =IFERROR(توريدات!$R74-توريدات!$S74,"") -> 5407.75
A75: =IF(AND($H75='كميات مقاول'!$G$1,$B75>='كميات مقاول'!$E$2,$B75<='كميات مقاول'!$H$2),$K75&$J75&$E75,"") ->  | B75: 2020-03-07 | C75: 48873 | D75: 1 | E75: 7641 | F75: =IFERROR(VLOOKUP(توريدات!$E75,تكعيبات!D:F,2,0),"") -> 5861 | G75: رضا | H75: =IFERROR(VLOOKUP(توريدات!$D75,تكعيبات!A:G,2,0),"") -> الحاج عدلي | I75: 4 | J75: =IFERROR(VLOOKUP(توريدات!$I75,تكعيبات!L:O,2,0),"") -> كسارة البشير | K75: =IFERROR(VLOOKUP(توريدات!$I75,تكعيبات!L:O,4,0),"") -> سن 6بالبودره | L75: 1 | M75: =IFERROR(VLOOKUP(توريدات!$E75,تكعيبات!D:F,3,0),"") -> 58.6 | N75: =IFERROR(توريدات!$L75*توريدات!$M75,"") -> 58.6 | O75: 0 | P75: =IFERROR(توريدات!$N75-توريدات!$O75,"") -> 58.6 | Q75: =IFERROR(VLOOKUP(توريدات!$I75,تكعيبات!L:N,3,0),"") -> 97 | R75: =IFERROR(توريدات!$Q75*توريدات!$P75,"") -> 5684.2 | S75: 0 | T75: =IFERROR(توريدات!$R75-توريدات!$S75,"") -> 5684.2
A76: =IF(AND($H76='كميات مقاول'!$G$1,$B76>='كميات مقاول'!$E$2,$B76<='كميات مقاول'!$H$2),$K76&$J76&$E76,"") ->  | B76: 2020-03-07 | C76: 48874 | D76: 4 | E76: 9185 | F76: =IFERROR(VLOOKUP(توريدات!$E76,تكعيبات!D:F,2,0),"") -> 2498 | G76: هاني | H76: =IFERROR(VLOOKUP(توريدات!$D76,تكعيبات!A:G,2,0),"") -> خالد أبو الحمد | I76: 11 | J76: =IFERROR(VLOOKUP(توريدات!$I76,تكعيبات!L:O,2,0),"") -> كسارة ام القــري | K76: =IFERROR(VLOOKUP(توريدات!$I76,تكعيبات!L:O,4,0),"") -> سن 6بالبودره | L76: 1 | M76: =IFERROR(VLOOKUP(توريدات!$E76,تكعيبات!D:F,3,0),"") -> 58.75 | N76: =IFERROR(توريدات!$L76*توريدات!$M76,"") -> 58.75 | O76: 0 | P76: =IFERROR(توريدات!$N76-توريدات!$O76,"") -> 58.75 | Q76: =IFERROR(VLOOKUP(توريدات!$I76,تكعيبات!L:N,3,0),"") -> 95 | R76: =IFERROR(توريدات!$Q76*توريدات!$P76,"") -> 5581.25 | S76: 0 | T76: =IFERROR(توريدات!$R76-توريدات!$S76,"") -> 5581.25
A77: =IF(AND($H77='كميات مقاول'!$G$1,$B77>='كميات مقاول'!$E$2,$B77<='كميات مقاول'!$H$2),$K77&$J77&$E77,"") ->  | B77: 2020-03-07 | C77: 48875 | D77: 4 | E77: 7928 | F77: =IFERROR(VLOOKUP(توريدات!$E77,تكعيبات!D:F,2,0),"") -> 9325 | G77: مدحت | H77: =IFERROR(VLOOKUP(توريدات!$D77,تكعيبات!A:G,2,0),"") -> خالد أبو الحمد | I77: 12 | J77: =IFERROR(VLOOKUP(توريدات!$I77,تكعيبات!L:O,2,0),"") -> كسارة ابو نــدا | K77: =IFERROR(VLOOKUP(توريدات!$I77,تكعيبات!L:O,4,0),"") -> سن 6بالبودره | L77: 1 | M77: =IFERROR(VLOOKUP(توريدات!$E77,تكعيبات!D:F,3,0),"") -> 49.5 | N77: =IFERROR(توريدات!$L77*توريدات!$M77,"") -> 49.5 | O77: 0 | P77: =IFERROR(توريدات!$N77-توريدات!$O77,"") -> 49.5 | Q77: =IFERROR(VLOOKUP(توريدات!$I77,تكعيبات!L:N,3,0),"") -> 95 | R77: =IFERROR(توريدات!$Q77*توريدات!$P77,"") -> 4702.5 | S77: 0 | T77: =IFERROR(توريدات!$R77-توريدات!$S77,"") -> 4702.5
A78: =IF(AND($H78='كميات مقاول'!$G$1,$B78>='كميات مقاول'!$E$2,$B78<='كميات مقاول'!$H$2),$K78&$J78&$E78,"") ->  | B78: 2020-03-07 | C78: 48876 | D78: 1 | E78: 9346 | F78: =IFERROR(VLOOKUP(توريدات!$E78,تكعيبات!D:F,2,0),"") -> 4536 | G78: مصباح | H78: =IFERROR(VLOOKUP(توريدات!$D78,تكعيبات!A:G,2,0),"") -> الحاج عدلي | I78: 4 | J78: =IFERROR(VLOOKUP(توريدات!$I78,تكعيبات!L:O,2,0),"") -> كسارة البشير | K78: =IFERROR(VLOOKUP(توريدات!$I78,تكعيبات!L:O,4,0),"") -> سن 6بالبودره | L78: 1 | M78: =IFERROR(VLOOKUP(توريدات!$E78,تكعيبات!D:F,3,0),"") -> 58.85 | N78: =IFERROR(توريدات!$L78*توريدات!$M78,"") -> 58.85 | O78: 0 | P78: =IFERROR(توريدات!$N78-توريدات!$O78,"") -> 58.85 | Q78: =IFERROR(VLOOKUP(توريدات!$I78,تكعيبات!L:N,3,0),"") -> 97 | R78: =IFERROR(توريدات!$Q78*توريدات!$P78,"") -> 5708.45 | S78: 0 | T78: =IFERROR(توريدات!$R78-توريدات!$S78,"") -> 5708.45
A79: =IF(AND($H79='كميات مقاول'!$G$1,$B79>='كميات مقاول'!$E$2,$B79<='كميات مقاول'!$H$2),$K79&$J79&$E79,"") ->  | B79: 2020-03-07 | C79: 48877 | D79: 1 | E79: 8956 | F79: =IFERROR(VLOOKUP(توريدات!$E79,تكعيبات!D:F,2,0),"") -> 14573 | G79: حمادة | H79: =IFERROR(VLOOKUP(توريدات!$D79,تكعيبات!A:G,2,0),"") -> الحاج عدلي | I79: 4 | J79: =IFERROR(VLOOKUP(توريدات!$I79,تكعيبات!L:O,2,0),"") -> كسارة البشير | K79: =IFERROR(VLOOKUP(توريدات!$I79,تكعيبات!L:O,4,0),"") -> سن 6بالبودره | L79: 0 | M79: =IFERROR(VLOOKUP(توريدات!$E79,تكعيبات!D:F,3,0),"") -> 54.25 | N79: =IFERROR(توريدات!$L79*توريدات!$M79,"") -> 0 | O79: 0 | P79: =IFERROR(توريدات!$N79-توريدات!$O79,"") -> 0 | Q79: =IFERROR(VLOOKUP(توريدات!$I79,تكعيبات!L:N,3,0),"") -> 97 | R79: =IFERROR(توريدات!$Q79*توريدات!$P79,"") -> 0 | S79: 0 | T79: =IFERROR(توريدات!$R79-توريدات!$S79,"") -> 0
A80: =IF(AND($H80='كميات مقاول'!$G$1,$B80>='كميات مقاول'!$E$2,$B80<='كميات مقاول'!$H$2),$K80&$J80&$E80,"") ->  | B80: 2020-03-07 | C80: 48878 | D80: 1 | E80: 3579 | F80: =IFERROR(VLOOKUP(توريدات!$E80,تكعيبات!D:F,2,0),"") -> 8437 | G80: رفيق | H80: =IFERROR(VLOOKUP(توريدات!$D80,تكعيبات!A:G,2,0),"") -> الحاج عدلي | I80: 3 | J80: =IFERROR(VLOOKUP(توريدات!$I80,تكعيبات!L:O,2,0),"") -> كسارة ابناء الشرقية | K80: =IFERROR(VLOOKUP(توريدات!$I80,تكعيبات!L:O,4,0),"") -> سن 6بالبودره | L80: 1 | M80: =IFERROR(VLOOKUP(توريدات!$E80,تكعيبات!D:F,3,0),"") -> 55 | N80: =IFERROR(توريدات!$L80*توريدات!$M80,"") -> 55 | O80: 0 | P80: =IFERROR(توريدات!$N80-توريدات!$O80,"") -> 55 | Q80: =IFERROR(VLOOKUP(توريدات!$I80,تكعيبات!L:N,3,0),"") -> 97 | R80: =IFERROR(توريدات!$Q80*توريدات!$P80,"") -> 5335 | S80: 0 | T80: =IFERROR(توريدات!$R80-توريدات!$S80,"") -> 5335
A81: =IF(AND($H81='كميات مقاول'!$G$1,$B81>='كميات مقاول'!$E$2,$B81<='كميات مقاول'!$H$2),$K81&$J81&$E81,"") ->  | B81: 2020-03-07 | C81: 48879 | D81: 1 | E81: 6645 | F81: =IFERROR(VLOOKUP(توريدات!$E81,تكعيبات!D:F,2,0),"") -> 5293 | G81: ناجي | H81: =IFERROR(VLOOKUP(توريدات!$D81,تكعيبات!A:G,2,0),"") -> الحاج عدلي | I81: 3 | J81: =IFERROR(VLOOKUP(توريدات!$I81,تكعيبات!L:O,2,0),"") -> كسارة ابناء الشرقية | K81: =IFERROR(VLOOKUP(توريدات!$I81,تكعيبات!L:O,4,0),"") -> سن 6بالبودره | L81: 1 | M81: =IFERROR(VLOOKUP(توريدات!$E81,تكعيبات!D:F,3,0),"") -> 53 | N81: =IFERROR(توريدات!$L81*توريدات!$M81,"") -> 53 | O81: 0 | P81: =IFERROR(توريدات!$N81-توريدات!$O81,"") -> 53 | Q81: =IFERROR(VLOOKUP(توريدات!$I81,تكعيبات!L:N,3,0),"") -> 97 | R81: =IFERROR(توريدات!$Q81*توريدات!$P81,"") -> 5141 | S81: 0 | T81: =IFERROR(توريدات!$R81-توريدات!$S81,"") -> 5141
A82: =IF(AND($H82='كميات مقاول'!$G$1,$B82>='كميات مقاول'!$E$2,$B82<='كميات مقاول'!$H$2),$K82&$J82&$E82,"") ->  | B82: 2020-03-07 | C82: 48880 | D82: 4 | E82: 8159 | F82: =IFERROR(VLOOKUP(توريدات!$E82,تكعيبات!D:F,2,0),"") -> 31451 | G82: رضا | H82: =IFERROR(VLOOKUP(توريدات!$D82,تكعيبات!A:G,2,0),"") -> خالد أبو الحمد | I82: 13 | J82: =IFERROR(VLOOKUP(توريدات!$I82,تكعيبات!L:O,2,0),"") -> كسارة الرحــاب | K82: =IFERROR(VLOOKUP(توريدات!$I82,تكعيبات!L:O,4,0),"") -> سن 6بالبودره | L82: 1 | M82: =IFERROR(VLOOKUP(توريدات!$E82,تكعيبات!D:F,3,0),"") -> 50.4 | N82: =IFERROR(توريدات!$L82*توريدات!$M82,"") -> 50.4 | O82: 0 | P82: =IFERROR(توريدات!$N82-توريدات!$O82,"") -> 50.4 | Q82: =IFERROR(VLOOKUP(توريدات!$I82,تكعيبات!L:N,3,0),"") -> 95 | R82: =IFERROR(توريدات!$Q82*توريدات!$P82,"") -> 4788 | S82: 0 | T82: =IFERROR(توريدات!$R82-توريدات!$S82,"") -> 4788
A83: =IF(AND($H83='كميات مقاول'!$G$1,$B83>='كميات مقاول'!$E$2,$B83<='كميات مقاول'!$H$2),$K83&$J83&$E83,"") ->  | B83: 2020-03-07 | C83: 48881 | D83: 1 | E83: 4968 | F83: =IFERROR(VLOOKUP(توريدات!$E83,تكعيبات!D:F,2,0),"") -> 4378 | G83: ابراهيم | H83: =IFERROR(VLOOKUP(توريدات!$D83,تكعيبات!A:G,2,0),"") -> الحاج عدلي | I83: 4 | J83: =IFERROR(VLOOKUP(توريدات!$I83,تكعيبات!L:O,2,0),"") -> كسارة البشير | K83: =IFERROR(VLOOKUP(توريدات!$I83,تكعيبات!L:O,4,0),"") -> سن 6بالبودره | L83: 1 | M83: =IFERROR(VLOOKUP(توريدات!$E83,تكعيبات!D:F,3,0),"") -> 54 | N83: =IFERROR(توريدات!$L83*توريدات!$M83,"") -> 54 | O83: 0 | P83: =IFERROR(توريدات!$N83-توريدات!$O83,"") -> 54 | Q83: =IFERROR(VLOOKUP(توريدات!$I83,تكعيبات!L:N,3,0),"") -> 97 | R83: =IFERROR(توريدات!$Q83*توريدات!$P83,"") -> 5238 | S83: 0 | T83: =IFERROR(توريدات!$R83-توريدات!$S83,"") -> 5238
A84: =IF(AND($H84='كميات مقاول'!$G$1,$B84>='كميات مقاول'!$E$2,$B84<='كميات مقاول'!$H$2),$K84&$J84&$E84,"") ->  | B84: 2020-03-07 | C84: 48882 | D84: 1 | E84: 5639 | F84: =IFERROR(VLOOKUP(توريدات!$E84,تكعيبات!D:F,2,0),"") -> 4521 | G84: محمود | H84: =IFERROR(VLOOKUP(توريدات!$D84,تكعيبات!A:G,2,0),"") -> الحاج عدلي | I84: 4 | J84: =IFERROR(VLOOKUP(توريدات!$I84,تكعيبات!L:O,2,0),"") -> كسارة البشير | K84: =IFERROR(VLOOKUP(توريدات!$I84,تكعيبات!L:O,4,0),"") -> سن 6بالبودره | L84: 1 | M84: =IFERROR(VLOOKUP(توريدات!$E84,تكعيبات!D:F,3,0),"") -> 55 | N84: =IFERROR(توريدات!$L84*توريدات!$M84,"") -> 55 | O84: 0 | P84: =IFERROR(توريدات!$N84-توريدات!$O84,"") -> 55 | Q84: =IFERROR(VLOOKUP(توريدات!$I84,تكعيبات!L:N,3,0),"") -> 97 | R84: =IFERROR(توريدات!$Q84*توريدات!$P84,"") -> 5335 | S84: 0 | T84: =IFERROR(توريدات!$R84-توريدات!$S84,"") -> 5335
A85: =IF(AND($H85='كميات مقاول'!$G$1,$B85>='كميات مقاول'!$E$2,$B85<='كميات مقاول'!$H$2),$K85&$J85&$E85,"") ->  | B85: 2020-03-07 | C85: 48883 | D85: 1 | E85: 8265 | F85: =IFERROR(VLOOKUP(توريدات!$E85,تكعيبات!D:F,2,0),"") -> 5327 | G85: اكرم | H85: =IFERROR(VLOOKUP(توريدات!$D85,تكعيبات!A:G,2,0),"") -> الحاج عدلي | I85: 3 | J85: =IFERROR(VLOOKUP(توريدات!$I85,تكعيبات!L:O,2,0),"") -> كسارة ابناء الشرقية | K85: =IFERROR(VLOOKUP(توريدات!$I85,تكعيبات!L:O,4,0),"") -> سن 6بالبودره | L85: 1 | M85: =IFERROR(VLOOKUP(توريدات!$E85,تكعيبات!D:F,3,0),"") -> 48 | N85: =IFERROR(توريدات!$L85*توريدات!$M85,"") -> 48 | O85: 0 | P85: =IFERROR(توريدات!$N85-توريدات!$O85,"") -> 48 | Q85: =IFERROR(VLOOKUP(توريدات!$I85,تكعيبات!L:N,3,0),"") -> 97 | R85: =IFERROR(توريدات!$Q85*توريدات!$P85,"") -> 4656 | S85: 0 | T85: =IFERROR(توريدات!$R85-توريدات!$S85,"") -> 4656
A86: =IF(AND($H86='كميات مقاول'!$G$1,$B86>='كميات مقاول'!$E$2,$B86<='كميات مقاول'!$H$2),$K86&$J86&$E86,"") ->  | B86: 2020-03-07 | C86: 48884 | D86: 2 | E86: 2986 | F86: =IFERROR(VLOOKUP(توريدات!$E86,تكعيبات!D:F,2,0),"") -> 1453 | G86: جمال | H86: =IFERROR(VLOOKUP(توريدات!$D86,تكعيبات!A:G,2,0),"") -> مراد الوكيل | I86: 22 | J86: =IFERROR(VLOOKUP(توريدات!$I86,تكعيبات!L:O,2,0),"") -> كسارة فرج العرمبي | K86: =IFERROR(VLOOKUP(توريدات!$I86,تكعيبات!L:O,4,0),"") -> سن 6بالبودره | L86: 1 | M86: =IFERROR(VLOOKUP(توريدات!$E86,تكعيبات!D:F,3,0),"") -> 58.8 | N86: =IFERROR(توريدات!$L86*توريدات!$M86,"") -> 58.8 | O86: 0 | P86: =IFERROR(توريدات!$N86-توريدات!$O86,"") -> 58.8 | Q86: =IFERROR(VLOOKUP(توريدات!$I86,تكعيبات!L:N,3,0),"") -> 95 | R86: =IFERROR(توريدات!$Q86*توريدات!$P86,"") -> 5586 | S86: 0 | T86: =IFERROR(توريدات!$R86-توريدات!$S86,"") -> 5586
A87: =IF(AND($H87='كميات مقاول'!$G$1,$B87>='كميات مقاول'!$E$2,$B87<='كميات مقاول'!$H$2),$K87&$J87&$E87,"") ->  | B87: 2020-03-07 | C87: 48885 | D87: 1 | E87: 9942 | F87: =IFERROR(VLOOKUP(توريدات!$E87,تكعيبات!D:F,2,0),"") -> 6375 | G87: يسري | H87: =IFERROR(VLOOKUP(توريدات!$D87,تكعيبات!A:G,2,0),"") -> الحاج عدلي | I87: 3 | J87: =IFERROR(VLOOKUP(توريدات!$I87,تكعيبات!L:O,2,0),"") -> كسارة ابناء الشرقية | K87: =IFERROR(VLOOKUP(توريدات!$I87,تكعيبات!L:O,4,0),"") -> سن 6بالبودره | L87: 1 | M87: =IFERROR(VLOOKUP(توريدات!$E87,تكعيبات!D:F,3,0),"") -> 58 | N87: =IFERROR(توريدات!$L87*توريدات!$M87,"") -> 58 | O87: 0 | P87: =IFERROR(توريدات!$N87-توريدات!$O87,"") -> 58 | Q87: =IFERROR(VLOOKUP(توريدات!$I87,تكعيبات!L:N,3,0),"") -> 97 | R87: =IFERROR(توريدات!$Q87*توريدات!$P87,"") -> 5626 | S87: 0 | T87: =IFERROR(توريدات!$R87-توريدات!$S87,"") -> 5626
A88: =IF(AND($H88='كميات مقاول'!$G$1,$B88>='كميات مقاول'!$E$2,$B88<='كميات مقاول'!$H$2),$K88&$J88&$E88,"") ->  | B88: 2020-03-07 | C88: 48886 | D88: 2 | E88: 9832 | F88: =IFERROR(VLOOKUP(توريدات!$E88,تكعيبات!D:F,2,0),"") -> 13171 | G88: احمد | H88: =IFERROR(VLOOKUP(توريدات!$D88,تكعيبات!A:G,2,0),"") -> مراد الوكيل | I88: 22 | J88: =IFERROR(VLOOKUP(توريدات!$I88,تكعيبات!L:O,2,0),"") -> كسارة فرج العرمبي | K88: =IFERROR(VLOOKUP(توريدات!$I88,تكعيبات!L:O,4,0),"") -> سن 6بالبودره | L88: 1 | M88: =IFERROR(VLOOKUP(توريدات!$E88,تكعيبات!D:F,3,0),"") -> 59.7 | N88: =IFERROR(توريدات!$L88*توريدات!$M88,"") -> 59.7 | O88: 0 | P88: =IFERROR(توريدات!$N88-توريدات!$O88,"") -> 59.7 | Q88: =IFERROR(VLOOKUP(توريدات!$I88,تكعيبات!L:N,3,0),"") -> 95 | R88: =IFERROR(توريدات!$Q88*توريدات!$P88,"") -> 5671.5 | S88: 0 | T88: =IFERROR(توريدات!$R88-توريدات!$S88,"") -> 5671.5
A89: =IF(AND($H89='كميات مقاول'!$G$1,$B89>='كميات مقاول'!$E$2,$B89<='كميات مقاول'!$H$2),$K89&$J89&$E89,"") ->  | B89: 2020-03-07 | C89: 48887 | D89: 1 | E89: 2914 | F89: =IFERROR(VLOOKUP(توريدات!$E89,تكعيبات!D:F,2,0),"") -> 14505 | G89: محمد | H89: =IFERROR(VLOOKUP(توريدات!$D89,تكعيبات!A:G,2,0),"") -> الحاج عدلي | I89: 4 | J89: =IFERROR(VLOOKUP(توريدات!$I89,تكعيبات!L:O,2,0),"") -> كسارة البشير | K89: =IFERROR(VLOOKUP(توريدات!$I89,تكعيبات!L:O,4,0),"") -> سن 6بالبودره | L89: 1 | M89: =IFERROR(VLOOKUP(توريدات!$E89,تكعيبات!D:F,3,0),"") -> 56.55 | N89: =IFERROR(توريدات!$L89*توريدات!$M89,"") -> 56.55 | O89: 0 | P89: =IFERROR(توريدات!$N89-توريدات!$O89,"") -> 56.55 | Q89: =IFERROR(VLOOKUP(توريدات!$I89,تكعيبات!L:N,3,0),"") -> 97 | R89: =IFERROR(توريدات!$Q89*توريدات!$P89,"") -> 5485.35 | S89: 0 | T89: =IFERROR(توريدات!$R89-توريدات!$S89,"") -> 5485.35
A90: =IF(AND($H90='كميات مقاول'!$G$1,$B90>='كميات مقاول'!$E$2,$B90<='كميات مقاول'!$H$2),$K90&$J90&$E90,"") ->  | B90: 2020-03-07 | C90: 48888 | D90: 1 | E90: 6287 | F90: =IFERROR(VLOOKUP(توريدات!$E90,تكعيبات!D:F,2,0),"") -> 8364 | G90: رامي | H90: =IFERROR(VLOOKUP(توريدات!$D90,تكعيبات!A:G,2,0),"") -> الحاج عدلي | I90: 4 | J90: =IFERROR(VLOOKUP(توريدات!$I90,تكعيبات!L:O,2,0),"") -> كسارة البشير | K90: =IFERROR(VLOOKUP(توريدات!$I90,تكعيبات!L:O,4,0),"") -> سن 6بالبودره | L90: 1 | M90: =IFERROR(VLOOKUP(توريدات!$E90,تكعيبات!D:F,3,0),"") -> 0 | N90: =IFERROR(توريدات!$L90*توريدات!$M90,"") -> 0 | O90: 0 | P90: =IFERROR(توريدات!$N90-توريدات!$O90,"") -> 0 | Q90: =IFERROR(VLOOKUP(توريدات!$I90,تكعيبات!L:N,3,0),"") -> 97 | R90: =IFERROR(توريدات!$Q90*توريدات!$P90,"") -> 0 | S90: 0 | T90: =IFERROR(توريدات!$R90-توريدات!$S90,"") -> 0
A91: =IF(AND($H91='كميات مقاول'!$G$1,$B91>='كميات مقاول'!$E$2,$B91<='كميات مقاول'!$H$2),$K91&$J91&$E91,"") ->  | B91: 2020-03-07 | C91: 48889 | D91: 2 | E91: 4639 | F91: =IFERROR(VLOOKUP(توريدات!$E91,تكعيبات!D:F,2,0),"") -> 14066 | G91: وليد | H91: =IFERROR(VLOOKUP(توريدات!$D91,تكعيبات!A:G,2,0),"") -> مراد الوكيل | I91: 22 | J91: =IFERROR(VLOOKUP(توريدات!$I91,تكعيبات!L:O,2,0),"") -> كسارة فرج العرمبي | K91: =IFERROR(VLOOKUP(توريدات!$I91,تكعيبات!L:O,4,0),"") -> سن 6بالبودره | L91: 1 | M91: =IFERROR(VLOOKUP(توريدات!$E91,تكعيبات!D:F,3,0),"") -> 60.9 | N91: =IFERROR(توريدات!$L91*توريدات!$M91,"") -> 60.9 | O91: 0 | P91: =IFERROR(توريدات!$N91-توريدات!$O91,"") -> 60.9 | Q91: =IFERROR(VLOOKUP(توريدات!$I91,تكعيبات!L:N,3,0),"") -> 95 | R91: =IFERROR(توريدات!$Q91*توريدات!$P91,"") -> 5785.5 | S91: 0 | T91: =IFERROR(توريدات!$R91-توريدات!$S91,"") -> 5785.5
A92: =IF(AND($H92='كميات مقاول'!$G$1,$B92>='كميات مقاول'!$E$2,$B92<='كميات مقاول'!$H$2),$K92&$J92&$E92,"") ->  | B92: 2020-03-07 | C92: 48890 | D92: 2 | E92: 4199 | F92: =IFERROR(VLOOKUP(توريدات!$E92,تكعيبات!D:F,2,0),"") -> 6835 | G92: محمد | H92: =IFERROR(VLOOKUP(توريدات!$D92,تكعيبات!A:G,2,0),"") -> مراد الوكيل | I92: 22 | J92: =IFERROR(VLOOKUP(توريدات!$I92,تكعيبات!L:O,2,0),"") -> كسارة فرج العرمبي | K92: =IFERROR(VLOOKUP(توريدات!$I92,تكعيبات!L:O,4,0),"") -> سن 6بالبودره | L92: 1 | M92: =IFERROR(VLOOKUP(توريدات!$E92,تكعيبات!D:F,3,0),"") -> 49.1 | N92: =IFERROR(توريدات!$L92*توريدات!$M92,"") -> 49.1 | O92: 0 | P92: =IFERROR(توريدات!$N92-توريدات!$O92,"") -> 49.1 | Q92: =IFERROR(VLOOKUP(توريدات!$I92,تكعيبات!L:N,3,0),"") -> 95 | R92: =IFERROR(توريدات!$Q92*توريدات!$P92,"") -> 4664.5 | S92: 0 | T92: =IFERROR(توريدات!$R92-توريدات!$S92,"") -> 4664.5
A93: =IF(AND($H93='كميات مقاول'!$G$1,$B93>='كميات مقاول'!$E$2,$B93<='كميات مقاول'!$H$2),$K93&$J93&$E93,"") ->  | B93: 2020-03-07 | C93: 48891 | D93: 1 | E93: 6594 | F93: =IFERROR(VLOOKUP(توريدات!$E93,تكعيبات!D:F,2,0),"") -> 9266 | G93: محمود | H93: =IFERROR(VLOOKUP(توريدات!$D93,تكعيبات!A:G,2,0),"") -> الحاج عدلي | I93: 4 | J93: =IFERROR(VLOOKUP(توريدات!$I93,تكعيبات!L:O,2,0),"") -> كسارة البشير | K93: =IFERROR(VLOOKUP(توريدات!$I93,تكعيبات!L:O,4,0),"") -> سن 6بالبودره | L93: 1 | M93: =IFERROR(VLOOKUP(توريدات!$E93,تكعيبات!D:F,3,0),"") -> 0 | N93: =IFERROR(توريدات!$L93*توريدات!$M93,"") -> 0 | O93: 0 | P93: =IFERROR(توريدات!$N93-توريدات!$O93,"") -> 0 | Q93: =IFERROR(VLOOKUP(توريدات!$I93,تكعيبات!L:N,3,0),"") -> 97 | R93: =IFERROR(توريدات!$Q93*توريدات!$P93,"") -> 0 | S93: 0 | T93: =IFERROR(توريدات!$R93-توريدات!$S93,"") -> 0
A94: =IF(AND($H94='كميات مقاول'!$G$1,$B94>='كميات مقاول'!$E$2,$B94<='كميات مقاول'!$H$2),$K94&$J94&$E94,"") ->  | B94: 2020-03-07 | C94: 48892 | D94: 1 | E94: 8616 | F94: =IFERROR(VLOOKUP(توريدات!$E94,تكعيبات!D:F,2,0),"") -> 418 | G94: محمد | H94: =IFERROR(VLOOKUP(توريدات!$D94,تكعيبات!A:G,2,0),"") -> الحاج عدلي | I94: 4 | J94: =IFERROR(VLOOKUP(توريدات!$I94,تكعيبات!L:O,2,0),"") -> كسارة البشير | K94: =IFERROR(VLOOKUP(توريدات!$I94,تكعيبات!L:O,4,0),"") -> سن 6بالبودره | L94: 1 | M94: =IFERROR(VLOOKUP(توريدات!$E94,تكعيبات!D:F,3,0),"") -> 0 | N94: =IFERROR(توريدات!$L94*توريدات!$M94,"") -> 0 | O94: 0 | P94: =IFERROR(توريدات!$N94-توريدات!$O94,"") -> 0 | Q94: =IFERROR(VLOOKUP(توريدات!$I94,تكعيبات!L:N,3,0),"") -> 97 | R94: =IFERROR(توريدات!$Q94*توريدات!$P94,"") -> 0 | S94: 0 | T94: =IFERROR(توريدات!$R94-توريدات!$S94,"") -> 0
A95: =IF(AND($H95='كميات مقاول'!$G$1,$B95>='كميات مقاول'!$E$2,$B95<='كميات مقاول'!$H$2),$K95&$J95&$E95,"") ->  | B95: 2020-03-07 | C95: 48893 | D95: 1 | E95: 6198 | F95: =IFERROR(VLOOKUP(توريدات!$E95,تكعيبات!D:F,2,0),"") -> 1542 | G95: عبدالعزيز | H95: =IFERROR(VLOOKUP(توريدات!$D95,تكعيبات!A:G,2,0),"") -> الحاج عدلي | I95: 4 | J95: =IFERROR(VLOOKUP(توريدات!$I95,تكعيبات!L:O,2,0),"") -> كسارة البشير | K95: =IFERROR(VLOOKUP(توريدات!$I95,تكعيبات!L:O,4,0),"") -> سن 6بالبودره | L95: 1 | M95: =IFERROR(VLOOKUP(توريدات!$E95,تكعيبات!D:F,3,0),"") -> 0 | N95: =IFERROR(توريدات!$L95*توريدات!$M95,"") -> 0 | O95: 0 | P95: =IFERROR(توريدات!$N95-توريدات!$O95,"") -> 0 | Q95: =IFERROR(VLOOKUP(توريدات!$I95,تكعيبات!L:N,3,0),"") -> 97 | R95: =IFERROR(توريدات!$Q95*توريدات!$P95,"") -> 0 | S95: 0 | T95: =IFERROR(توريدات!$R95-توريدات!$S95,"") -> 0
A96: =IF(AND($H96='كميات مقاول'!$G$1,$B96>='كميات مقاول'!$E$2,$B96<='كميات مقاول'!$H$2),$K96&$J96&$E96,"") ->  | B96: 2020-03-07 | C96: 48894 | D96: 1 | E96: 4634 | F96: =IFERROR(VLOOKUP(توريدات!$E96,تكعيبات!D:F,2,0),"") -> 4399 | G96: سيد | H96: =IFERROR(VLOOKUP(توريدات!$D96,تكعيبات!A:G,2,0),"") -> الحاج عدلي | I96: 4 | J96: =IFERROR(VLOOKUP(توريدات!$I96,تكعيبات!L:O,2,0),"") -> كسارة البشير | K96: =IFERROR(VLOOKUP(توريدات!$I96,تكعيبات!L:O,4,0),"") -> سن 6بالبودره | L96: 1 | M96: =IFERROR(VLOOKUP(توريدات!$E96,تكعيبات!D:F,3,0),"") -> 45.5 | N96: =IFERROR(توريدات!$L96*توريدات!$M96,"") -> 45.5 | O96: 0 | P96: =IFERROR(توريدات!$N96-توريدات!$O96,"") -> 45.5 | Q96: =IFERROR(VLOOKUP(توريدات!$I96,تكعيبات!L:N,3,0),"") -> 97 | R96: =IFERROR(توريدات!$Q96*توريدات!$P96,"") -> 4413.5 | S96: 0 | T96: =IFERROR(توريدات!$R96-توريدات!$S96,"") -> 4413.5
A97: =IF(AND($H97='كميات مقاول'!$G$1,$B97>='كميات مقاول'!$E$2,$B97<='كميات مقاول'!$H$2),$K97&$J97&$E97,"") ->  | B97: 2020-03-07 | C97: 48895 | D97: 1 | E97: 5821 | F97: =IFERROR(VLOOKUP(توريدات!$E97,تكعيبات!D:F,2,0),"") -> 14047 | G97: عماد | H97: =IFERROR(VLOOKUP(توريدات!$D97,تكعيبات!A:G,2,0),"") -> الحاج عدلي | I97: 4 | J97: =IFERROR(VLOOKUP(توريدات!$I97,تكعيبات!L:O,2,0),"") -> كسارة البشير | K97: =IFERROR(VLOOKUP(توريدات!$I97,تكعيبات!L:O,4,0),"") -> سن 6بالبودره | L97: 1 | M97: =IFERROR(VLOOKUP(توريدات!$E97,تكعيبات!D:F,3,0),"") -> 58.35 | N97: =IFERROR(توريدات!$L97*توريدات!$M97,"") -> 58.35 | O97: 0 | P97: =IFERROR(توريدات!$N97-توريدات!$O97,"") -> 58.35 | Q97: =IFERROR(VLOOKUP(توريدات!$I97,تكعيبات!L:N,3,0),"") -> 97 | R97: =IFERROR(توريدات!$Q97*توريدات!$P97,"") -> 5659.95 | S97: 0 | T97: =IFERROR(توريدات!$R97-توريدات!$S97,"") -> 5659.95
A98: =IF(AND($H98='كميات مقاول'!$G$1,$B98>='كميات مقاول'!$E$2,$B98<='كميات مقاول'!$H$2),$K98&$J98&$E98,"") ->  | B98: 2020-03-07 | C98: 48896 | D98: 1 | E98: 9266 | F98: =IFERROR(VLOOKUP(توريدات!$E98,تكعيبات!D:F,2,0),"") -> 14732 | G98: عبود | H98: =IFERROR(VLOOKUP(توريدات!$D98,تكعيبات!A:G,2,0),"") -> الحاج عدلي | I98: 10 | J98: =IFERROR(VLOOKUP(توريدات!$I98,تكعيبات!L:O,2,0),"") -> كسارة الهاشمية - مشال | K98: =IFERROR(VLOOKUP(توريدات!$I98,تكعيبات!L:O,4,0),"") -> سن 6بالبودره - مشال | L98: 1 | M98: =IFERROR(VLOOKUP(توريدات!$E98,تكعيبات!D:F,3,0),"") -> 53.3 | N98: =IFERROR(توريدات!$L98*توريدات!$M98,"") -> 53.3 | O98: 0 | P98: =IFERROR(توريدات!$N98-توريدات!$O98,"") -> 53.3 | Q98: =IFERROR(VLOOKUP(توريدات!$I98,تكعيبات!L:N,3,0),"") -> 67 | R98: =IFERROR(توريدات!$Q98*توريدات!$P98,"") -> 3571.1 | S98: 0 | T98: =IFERROR(توريدات!$R98-توريدات!$S98,"") -> 3571.1
A99: =IF(AND($H99='كميات مقاول'!$G$1,$B99>='كميات مقاول'!$E$2,$B99<='كميات مقاول'!$H$2),$K99&$J99&$E99,"") ->  | B99: 2020-03-07 | C99: 48897 | D99: 1 | E99: 6519 | F99: =IFERROR(VLOOKUP(توريدات!$E99,تكعيبات!D:F,2,0),"") -> 6534 | G99: تامر | H99: =IFERROR(VLOOKUP(توريدات!$D99,تكعيبات!A:G,2,0),"") -> الحاج عدلي | I99: 10 | J99: =IFERROR(VLOOKUP(توريدات!$I99,تكعيبات!L:O,2,0),"") -> كسارة الهاشمية - مشال | K99: =IFERROR(VLOOKUP(توريدات!$I99,تكعيبات!L:O,4,0),"") -> سن 6بالبودره - مشال | L99: 1 | M99: =IFERROR(VLOOKUP(توريدات!$E99,تكعيبات!D:F,3,0),"") -> 0 | N99: =IFERROR(توريدات!$L99*توريدات!$M99,"") -> 0 | O99: 0 | P99: =IFERROR(توريدات!$N99-توريدات!$O99,"") -> 0 | Q99: =IFERROR(VLOOKUP(توريدات!$I99,تكعيبات!L:N,3,0),"") -> 67 | R99: =IFERROR(توريدات!$Q99*توريدات!$P99,"") -> 0 | S99: 0 | T99: =IFERROR(توريدات!$R99-توريدات!$S99,"") -> 0
A100: =IF(AND($H100='كميات مقاول'!$G$1,$B100>='كميات مقاول'!$E$2,$B100<='كميات مقاول'!$H$2),$K100&$J100&$E100,"") ->  | B100: 2020-03-07 | C100: 48898 | D100: 1 | E100: 3127 | F100: =IFERROR(VLOOKUP(توريدات!$E100,تكعيبات!D:F,2,0),"") -> 13871 | G100: هاني | H100: =IFERROR(VLOOKUP(توريدات!$D100,تكعيبات!A:G,2,0),"") -> الحاج عدلي | I100: 4 | J100: =IFERROR(VLOOKUP(توريدات!$I100,تكعيبات!L:O,2,0),"") -> كسارة البشير | K100: =IFERROR(VLOOKUP(توريدات!$I100,تكعيبات!L:O,4,0),"") -> سن 6بالبودره | L100: 1 | M100: =IFERROR(VLOOKUP(توريدات!$E100,تكعيبات!D:F,3,0),"") -> 52.8 | N100: =IFERROR(توريدات!$L100*توريدات!$M100,"") -> 52.8 | O100: 0 | P100: =IFERROR(توريدات!$N100-توريدات!$O100,"") -> 52.8 | Q100: =IFERROR(VLOOKUP(توريدات!$I100,تكعيبات!L:N,3,0),"") -> 97 | R100: =IFERROR(توريدات!$Q100*توريدات!$P100,"") -> 5121.6 | S100: 0 | T100: =IFERROR(توريدات!$R100-توريدات!$S100,"") -> 5121.6
A101: =IF(AND($H101='كميات مقاول'!$G$1,$B101>='كميات مقاول'!$E$2,$B101<='كميات مقاول'!$H$2),$K101&$J101&$E101,"") ->  | B101: 2020-03-07 | C101: 48899 | D101: 4 | E101: 7928 | F101: =IFERROR(VLOOKUP(توريدات!$E101,تكعيبات!D:F,2,0),"") -> 9325 | G101: هاني | H101: =IFERROR(VLOOKUP(توريدات!$D101,تكعيبات!A:G,2,0),"") -> خالد أبو الحمد | I101: 12 | J101: =IFERROR(VLOOKUP(توريدات!$I101,تكعيبات!L:O,2,0),"") -> كسارة ابو نــدا | K101: =IFERROR(VLOOKUP(توريدات!$I101,تكعيبات!L:O,4,0),"") -> سن 6بالبودره | L101: 1 | M101: =IFERROR(VLOOKUP(توريدات!$E101,تكعيبات!D:F,3,0),"") -> 49.5 | N101: =IFERROR(توريدات!$L101*توريدات!$M101,"") -> 49.5 | O101: 0 | P101: =IFERROR(توريدات!$N101-توريدات!$O101,"") -> 49.5 | Q101: =IFERROR(VLOOKUP(توريدات!$I101,تكعيبات!L:N,3,0),"") -> 95 | R101: =IFERROR(توريدات!$Q101*توريدات!$P101,"") -> 4702.5 | S101: 0 | T101: =IFERROR(توريدات!$R101-توريدات!$S101,"") -> 4702.5
A102: =IF(AND($H102='كميات مقاول'!$G$1,$B102>='كميات مقاول'!$E$2,$B102<='كميات مقاول'!$H$2),$K102&$J102&$E102,"") ->  | B102: 2020-03-08 | C102: 48900 | D102: 1 | E102: 4291 | F102: =IFERROR(VLOOKUP(توريدات!$E102,تكعيبات!D:F,2,0),"") -> 5172 | G102: شهين | H102: =IFERROR(VLOOKUP(توريدات!$D102,تكعيبات!A:G,2,0),"") -> الحاج عدلي | I102: 3 | J102: =IFERROR(VLOOKUP(توريدات!$I102,تكعيبات!L:O,2,0),"") -> كسارة ابناء الشرقية | K102: =IFERROR(VLOOKUP(توريدات!$I102,تكعيبات!L:O,4,0),"") -> سن 6بالبودره | L102: 1 | M102: =IFERROR(VLOOKUP(توريدات!$E102,تكعيبات!D:F,3,0),"") -> 46.3 | N102: =IFERROR(توريدات!$L102*توريدات!$M102,"") -> 46.3 | O102: 0 | P102: =IFERROR(توريدات!$N102-توريدات!$O102,"") -> 46.3 | Q102: =IFERROR(VLOOKUP(توريدات!$I102,تكعيبات!L:N,3,0),"") -> 97 | R102: =IFERROR(توريدات!$Q102*توريدات!$P102,"") -> 4491.1 | S102: 0 | T102: =IFERROR(توريدات!$R102-توريدات!$S102,"") -> 4491.1
A103: =IF(AND($H103='كميات مقاول'!$G$1,$B103>='كميات مقاول'!$E$2,$B103<='كميات مقاول'!$H$2),$K103&$J103&$E103,"") ->  | B103: 2020-03-08 | C103: 48901 | D103: 2 | E103: 8786 | F103: =IFERROR(VLOOKUP(توريدات!$E103,تكعيبات!D:F,2,0),"") -> 9137 | G103: شعبان | H103: =IFERROR(VLOOKUP(توريدات!$D103,تكعيبات!A:G,2,0),"") -> مراد الوكيل | I103: 22 | J103: =IFERROR(VLOOKUP(توريدات!$I103,تكعيبات!L:O,2,0),"") -> كسارة فرج العرمبي | K103: =IFERROR(VLOOKUP(توريدات!$I103,تكعيبات!L:O,4,0),"") -> سن 6بالبودره | L103: 1 | M103: =IFERROR(VLOOKUP(توريدات!$E103,تكعيبات!D:F,3,0),"") -> 56.5 | N103: =IFERROR(توريدات!$L103*توريدات!$M103,"") -> 56.5 | O103: 0 | P103: =IFERROR(توريدات!$N103-توريدات!$O103,"") -> 56.5 | Q103: =IFERROR(VLOOKUP(توريدات!$I103,تكعيبات!L:N,3,0),"") -> 95 | R103: =IFERROR(توريدات!$Q103*توريدات!$P103,"") -> 5367.5 | S103: 0 | T103: =IFERROR(توريدات!$R103-توريدات!$S103,"") -> 5367.5
A104: =IF(AND($H104='كميات مقاول'!$G$1,$B104>='كميات مقاول'!$E$2,$B104<='كميات مقاول'!$H$2),$K104&$J104&$E104,"") ->  | B104: 2020-03-08 | C104: 48902 | D104: 2 | E104: 126432 | F104: =IFERROR(VLOOKUP(توريدات!$E104,تكعيبات!D:F,2,0),"") -> 14514 | G104: احمد | H104: =IFERROR(VLOOKUP(توريدات!$D104,تكعيبات!A:G,2,0),"") -> مراد الوكيل | I104: 22 | J104: =IFERROR(VLOOKUP(توريدات!$I104,تكعيبات!L:O,2,0),"") -> كسارة فرج العرمبي | K104: =IFERROR(VLOOKUP(توريدات!$I104,تكعيبات!L:O,4,0),"") -> سن 6بالبودره | L104: 1 | M104: =IFERROR(VLOOKUP(توريدات!$E104,تكعيبات!D:F,3,0),"") -> 55 | N104: =IFERROR(توريدات!$L104*توريدات!$M104,"") -> 55 | O104: 0 | P104: =IFERROR(توريدات!$N104-توريدات!$O104,"") -> 55 | Q104: =IFERROR(VLOOKUP(توريدات!$I104,تكعيبات!L:N,3,0),"") -> 95 | R104: =IFERROR(توريدات!$Q104*توريدات!$P104,"") -> 5225 | S104: 0 | T104: =IFERROR(توريدات!$R104-توريدات!$S104,"") -> 5225
A105: =IF(AND($H105='كميات مقاول'!$G$1,$B105>='كميات مقاول'!$E$2,$B105<='كميات مقاول'!$H$2),$K105&$J105&$E105,"") ->  | B105: 2020-03-08 | C105: 48903 | D105: 1 | E105: 1284 | F105: =IFERROR(VLOOKUP(توريدات!$E105,تكعيبات!D:F,2,0),"") -> 1476 | G105: اسلام | H105: =IFERROR(VLOOKUP(توريدات!$D105,تكعيبات!A:G,2,0),"") -> الحاج عدلي | I105: 10 | J105: =IFERROR(VLOOKUP(توريدات!$I105,تكعيبات!L:O,2,0),"") -> كسارة الهاشمية - مشال | K105: =IFERROR(VLOOKUP(توريدات!$I105,تكعيبات!L:O,4,0),"") -> سن 6بالبودره - مشال | L105: 1 | M105: =IFERROR(VLOOKUP(توريدات!$E105,تكعيبات!D:F,3,0),"") -> 0 | N105: =IFERROR(توريدات!$L105*توريدات!$M105,"") -> 0 | O105: 0 | P105: =IFERROR(توريدات!$N105-توريدات!$O105,"") -> 0 | Q105: =IFERROR(VLOOKUP(توريدات!$I105,تكعيبات!L:N,3,0),"") -> 67 | R105: =IFERROR(توريدات!$Q105*توريدات!$P105,"") -> 0 | S105: 0 | T105: =IFERROR(توريدات!$R105-توريدات!$S105,"") -> 0
A106: =IF(AND($H106='كميات مقاول'!$G$1,$B106>='كميات مقاول'!$E$2,$B106<='كميات مقاول'!$H$2),$K106&$J106&$E106,"") ->  | B106: 2020-03-08 | C106: 48904 | D106: 1 | E106: 1685 | F106: =IFERROR(VLOOKUP(توريدات!$E106,تكعيبات!D:F,2,0),"") -> 4897 | G106: محمد | H106: =IFERROR(VLOOKUP(توريدات!$D106,تكعيبات!A:G,2,0),"") -> الحاج عدلي | I106: 4 | J106: =IFERROR(VLOOKUP(توريدات!$I106,تكعيبات!L:O,2,0),"") -> كسارة البشير | K106: =IFERROR(VLOOKUP(توريدات!$I106,تكعيبات!L:O,4,0),"") -> سن 6بالبودره | L106: 1 | M106: =IFERROR(VLOOKUP(توريدات!$E106,تكعيبات!D:F,3,0),"") -> 58.9 | N106: =IFERROR(توريدات!$L106*توريدات!$M106,"") -> 58.9 | O106: 0 | P106: =IFERROR(توريدات!$N106-توريدات!$O106,"") -> 58.9 | Q106: =IFERROR(VLOOKUP(توريدات!$I106,تكعيبات!L:N,3,0),"") -> 97 | R106: =IFERROR(توريدات!$Q106*توريدات!$P106,"") -> 5713.3 | S106: 0 | T106: =IFERROR(توريدات!$R106-توريدات!$S106,"") -> 5713.3
A107: =IF(AND($H107='كميات مقاول'!$G$1,$B107>='كميات مقاول'!$E$2,$B107<='كميات مقاول'!$H$2),$K107&$J107&$E107,"") ->  | B107: 2020-03-08 | C107: 48905 | D107: 4 | E107: 8159 | F107: =IFERROR(VLOOKUP(توريدات!$E107,تكعيبات!D:F,2,0),"") -> 31451 | G107: رضا | H107: =IFERROR(VLOOKUP(توريدات!$D107,تكعيبات!A:G,2,0),"") -> خالد أبو الحمد | I107: 11 | J107: =IFERROR(VLOOKUP(توريدات!$I107,تكعيبات!L:O,2,0),"") -> كسارة ام القــري | K107: =IFERROR(VLOOKUP(توريدات!$I107,تكعيبات!L:O,4,0),"") -> سن 6بالبودره | L107: 1 | M107: =IFERROR(VLOOKUP(توريدات!$E107,تكعيبات!D:F,3,0),"") -> 50.4 | N107: =IFERROR(توريدات!$L107*توريدات!$M107,"") -> 50.4 | O107: 0 | P107: =IFERROR(توريدات!$N107-توريدات!$O107,"") -> 50.4 | Q107: =IFERROR(VLOOKUP(توريدات!$I107,تكعيبات!L:N,3,0),"") -> 95 | R107: =IFERROR(توريدات!$Q107*توريدات!$P107,"") -> 4788 | S107: 0 | T107: =IFERROR(توريدات!$R107-توريدات!$S107,"") -> 4788
A108: =IF(AND($H108='كميات مقاول'!$G$1,$B108>='كميات مقاول'!$E$2,$B108<='كميات مقاول'!$H$2),$K108&$J108&$E108,"") ->  | B108: 2020-03-08 | C108: 48906 | D108: 1 | E108: 8372 | F108: =IFERROR(VLOOKUP(توريدات!$E108,تكعيبات!D:F,2,0),"") -> 9387 | G108: احمد | H108: =IFERROR(VLOOKUP(توريدات!$D108,تكعيبات!A:G,2,0),"") -> الحاج عدلي | I108: 4 | J108: =IFERROR(VLOOKUP(توريدات!$I108,تكعيبات!L:O,2,0),"") -> كسارة البشير | K108: =IFERROR(VLOOKUP(توريدات!$I108,تكعيبات!L:O,4,0),"") -> سن 6بالبودره | L108: 1 | M108: =IFERROR(VLOOKUP(توريدات!$E108,تكعيبات!D:F,3,0),"") -> 49.25 | N108: =IFERROR(توريدات!$L108*توريدات!$M108,"") -> 49.25 | O108: 0 | P108: =IFERROR(توريدات!$N108-توريدات!$O108,"") -> 49.25 | Q108: =IFERROR(VLOOKUP(توريدات!$I108,تكعيبات!L:N,3,0),"") -> 97 | R108: =IFERROR(توريدات!$Q108*توريدات!$P108,"") -> 4777.25 | S108: 0 | T108: =IFERROR(توريدات!$R108-توريدات!$S108,"") -> 4777.25
A109: =IF(AND($H109='كميات مقاول'!$G$1,$B109>='كميات مقاول'!$E$2,$B109<='كميات مقاول'!$H$2),$K109&$J109&$E109,"") ->  | B109: 2020-03-08 | C109: 48907 | D109: 1 | E109: 1376 | F109: =IFERROR(VLOOKUP(توريدات!$E109,تكعيبات!D:F,2,0),"") -> 6718 | G109: مجدي | H109: =IFERROR(VLOOKUP(توريدات!$D109,تكعيبات!A:G,2,0),"") -> الحاج عدلي | I109: 2 | J109: =IFERROR(VLOOKUP(توريدات!$I109,تكعيبات!L:O,2,0),"") -> كسارة خليل سعيد | K109: =IFERROR(VLOOKUP(توريدات!$I109,تكعيبات!L:O,4,0),"") -> سن 6بالبودره | L109: 1 | M109: =IFERROR(VLOOKUP(توريدات!$E109,تكعيبات!D:F,3,0),"") -> 57 | N109: =IFERROR(توريدات!$L109*توريدات!$M109,"") -> 57 | O109: 0 | P109: =IFERROR(توريدات!$N109-توريدات!$O109,"") -> 57 | Q109: =IFERROR(VLOOKUP(توريدات!$I109,تكعيبات!L:N,3,0),"") -> 97 | R109: =IFERROR(توريدات!$Q109*توريدات!$P109,"") -> 5529 | S109: 0 | T109: =IFERROR(توريدات!$R109-توريدات!$S109,"") -> 5529
A110: =IF(AND($H110='كميات مقاول'!$G$1,$B110>='كميات مقاول'!$E$2,$B110<='كميات مقاول'!$H$2),$K110&$J110&$E110,"") ->  | B110: 2020-03-08 | C110: 48908 | D110: 4 | E110: 9185 | F110: =IFERROR(VLOOKUP(توريدات!$E110,تكعيبات!D:F,2,0),"") -> 2498 | G110: هاني | H110: =IFERROR(VLOOKUP(توريدات!$D110,تكعيبات!A:G,2,0),"") -> خالد أبو الحمد | I110: 17 | J110: =IFERROR(VLOOKUP(توريدات!$I110,تكعيبات!L:O,2,0),"") -> كسارة البركــة | K110: =IFERROR(VLOOKUP(توريدات!$I110,تكعيبات!L:O,4,0),"") -> سن 6بالبودره | L110: 1 | M110: =IFERROR(VLOOKUP(توريدات!$E110,تكعيبات!D:F,3,0),"") -> 58.75 | N110: =IFERROR(توريدات!$L110*توريدات!$M110,"") -> 58.75 | O110: 0 | P110: =IFERROR(توريدات!$N110-توريدات!$O110,"") -> 58.75 | Q110: =IFERROR(VLOOKUP(توريدات!$I110,تكعيبات!L:N,3,0),"") -> 95 | R110: =IFERROR(توريدات!$Q110*توريدات!$P110,"") -> 5581.25 | S110: 0 | T110: =IFERROR(توريدات!$R110-توريدات!$S110,"") -> 5581.25
A111: =IF(AND($H111='كميات مقاول'!$G$1,$B111>='كميات مقاول'!$E$2,$B111<='كميات مقاول'!$H$2),$K111&$J111&$E111,"") ->  | B111: 2020-03-08 | C111: 48909 | D111: 1 | E111: 6215 | F111: =IFERROR(VLOOKUP(توريدات!$E111,تكعيبات!D:F,2,0),"") -> 7623 | G111: محمد | H111: =IFERROR(VLOOKUP(توريدات!$D111,تكعيبات!A:G,2,0),"") -> الحاج عدلي | I111: 2 | J111: =IFERROR(VLOOKUP(توريدات!$I111,تكعيبات!L:O,2,0),"") -> كسارة خليل سعيد | K111: =IFERROR(VLOOKUP(توريدات!$I111,تكعيبات!L:O,4,0),"") -> سن 6بالبودره | L111: 1 | M111: =IFERROR(VLOOKUP(توريدات!$E111,تكعيبات!D:F,3,0),"") -> 61.5 | N111: =IFERROR(توريدات!$L111*توريدات!$M111,"") -> 61.5 | O111: 0 | P111: =IFERROR(توريدات!$N111-توريدات!$O111,"") -> 61.5 | Q111: =IFERROR(VLOOKUP(توريدات!$I111,تكعيبات!L:N,3,0),"") -> 97 | R111: =IFERROR(توريدات!$Q111*توريدات!$P111,"") -> 5965.5 | S111: 0 | T111: =IFERROR(توريدات!$R111-توريدات!$S111,"") -> 5965.5
A112: =IF(AND($H112='كميات مقاول'!$G$1,$B112>='كميات مقاول'!$E$2,$B112<='كميات مقاول'!$H$2),$K112&$J112&$E112,"") ->  | B112: 2020-03-08 | C112: 48910 | D112: 1 | E112: 1246 | F112: =IFERROR(VLOOKUP(توريدات!$E112,تكعيبات!D:F,2,0),"") -> 8952 | G112: محمد | H112: =IFERROR(VLOOKUP(توريدات!$D112,تكعيبات!A:G,2,0),"") -> الحاج عدلي | I112: 10 | J112: =IFERROR(VLOOKUP(توريدات!$I112,تكعيبات!L:O,2,0),"") -> كسارة الهاشمية - مشال | K112: =IFERROR(VLOOKUP(توريدات!$I112,تكعيبات!L:O,4,0),"") -> سن 6بالبودره - مشال | L112: 1 | M112: =IFERROR(VLOOKUP(توريدات!$E112,تكعيبات!D:F,3,0),"") -> 51.3 | N112: =IFERROR(توريدات!$L112*توريدات!$M112,"") -> 51.3 | O112: 0 | P112: =IFERROR(توريدات!$N112-توريدات!$O112,"") -> 51.3 | Q112: =IFERROR(VLOOKUP(توريدات!$I112,تكعيبات!L:N,3,0),"") -> 67 | R112: =IFERROR(توريدات!$Q112*توريدات!$P112,"") -> 3437.1 | S112: 0 | T112: =IFERROR(توريدات!$R112-توريدات!$S112,"") -> 3437.1
A113: =IF(AND($H113='كميات مقاول'!$G$1,$B113>='كميات مقاول'!$E$2,$B113<='كميات مقاول'!$H$2),$K113&$J113&$E113,"") ->  | B113: 2020-03-08 | C113: 48911 | D113: 1 | E113: 3579 | F113: =IFERROR(VLOOKUP(توريدات!$E113,تكعيبات!D:F,2,0),"") -> 8437 | G113: رفيق | H113: =IFERROR(VLOOKUP(توريدات!$D113,تكعيبات!A:G,2,0),"") -> الحاج عدلي | I113: 4 | J113: =IFERROR(VLOOKUP(توريدات!$I113,تكعيبات!L:O,2,0),"") -> كسارة البشير | K113: =IFERROR(VLOOKUP(توريدات!$I113,تكعيبات!L:O,4,0),"") -> سن 6بالبودره | L113: 1 | M113: =IFERROR(VLOOKUP(توريدات!$E113,تكعيبات!D:F,3,0),"") -> 55 | N113: =IFERROR(توريدات!$L113*توريدات!$M113,"") -> 55 | O113: 0 | P113: =IFERROR(توريدات!$N113-توريدات!$O113,"") -> 55 | Q113: =IFERROR(VLOOKUP(توريدات!$I113,تكعيبات!L:N,3,0),"") -> 97 | R113: =IFERROR(توريدات!$Q113*توريدات!$P113,"") -> 5335 | S113: 0 | T113: =IFERROR(توريدات!$R113-توريدات!$S113,"") -> 5335
A114: =IF(AND($H114='كميات مقاول'!$G$1,$B114>='كميات مقاول'!$E$2,$B114<='كميات مقاول'!$H$2),$K114&$J114&$E114,"") ->  | B114: 2020-03-08 | C114: 48912 | D114: 3 | E114: 5142 | F114: =IFERROR(VLOOKUP(توريدات!$E114,تكعيبات!D:F,2,0),"") -> 4382 | G114: محمد | H114: =IFERROR(VLOOKUP(توريدات!$D114,تكعيبات!A:G,2,0),"") -> طارق مراد | I114: 9 | J114: =IFERROR(VLOOKUP(توريدات!$I114,تكعيبات!L:O,2,0),"") -> كسارة الفيــروز- مشــال | K114: =IFERROR(VLOOKUP(توريدات!$I114,تكعيبات!L:O,4,0),"") -> سن 6بالبودره - مشال | L114: 1 | M114: =IFERROR(VLOOKUP(توريدات!$E114,تكعيبات!D:F,3,0),"") -> 52 | N114: =IFERROR(توريدات!$L114*توريدات!$M114,"") -> 52 | O114: 0 | P114: =IFERROR(توريدات!$N114-توريدات!$O114,"") -> 52 | Q114: =IFERROR(VLOOKUP(توريدات!$I114,تكعيبات!L:N,3,0),"") -> 66 | R114: =IFERROR(توريدات!$Q114*توريدات!$P114,"") -> 3432 | S114: 0 | T114: =IFERROR(توريدات!$R114-توريدات!$S114,"") -> 3432
A115: =IF(AND($H115='كميات مقاول'!$G$1,$B115>='كميات مقاول'!$E$2,$B115<='كميات مقاول'!$H$2),$K115&$J115&$E115,"") ->  | B115: 2020-03-08 | C115: 48913 | D115: 1 | E115: 4968 | F115: =IFERROR(VLOOKUP(توريدات!$E115,تكعيبات!D:F,2,0),"") -> 4378 | G115: ابراهيم | H115: =IFERROR(VLOOKUP(توريدات!$D115,تكعيبات!A:G,2,0),"") -> الحاج عدلي | I115: 4 | J115: =IFERROR(VLOOKUP(توريدات!$I115,تكعيبات!L:O,2,0),"") -> كسارة البشير | K115: =IFERROR(VLOOKUP(توريدات!$I115,تكعيبات!L:O,4,0),"") -> سن 6بالبودره | L115: 1 | M115: =IFERROR(VLOOKUP(توريدات!$E115,تكعيبات!D:F,3,0),"") -> 54 | N115: =IFERROR(توريدات!$L115*توريدات!$M115,"") -> 54 | O115: 0 | P115: =IFERROR(توريدات!$N115-توريدات!$O115,"") -> 54 | Q115: =IFERROR(VLOOKUP(توريدات!$I115,تكعيبات!L:N,3,0),"") -> 97 | R115: =IFERROR(توريدات!$Q115*توريدات!$P115,"") -> 5238 | S115: 0 | T115: =IFERROR(توريدات!$R115-توريدات!$S115,"") -> 5238
A116: =IF(AND($H116='كميات مقاول'!$G$1,$B116>='كميات مقاول'!$E$2,$B116<='كميات مقاول'!$H$2),$K116&$J116&$E116,"") ->  | B116: 2020-03-08 | C116: 48914 | D116: 1 | E116: 5639 | F116: =IFERROR(VLOOKUP(توريدات!$E116,تكعيبات!D:F,2,0),"") -> 4521 | G116: محمود | H116: =IFERROR(VLOOKUP(توريدات!$D116,تكعيبات!A:G,2,0),"") -> الحاج عدلي | I116: 4 | J116: =IFERROR(VLOOKUP(توريدات!$I116,تكعيبات!L:O,2,0),"") -> كسارة البشير | K116: =IFERROR(VLOOKUP(توريدات!$I116,تكعيبات!L:O,4,0),"") -> سن 6بالبودره | L116: 1 | M116: =IFERROR(VLOOKUP(توريدات!$E116,تكعيبات!D:F,3,0),"") -> 55 | N116: =IFERROR(توريدات!$L116*توريدات!$M116,"") -> 55 | O116: 0 | P116: =IFERROR(توريدات!$N116-توريدات!$O116,"") -> 55 | Q116: =IFERROR(VLOOKUP(توريدات!$I116,تكعيبات!L:N,3,0),"") -> 97 | R116: =IFERROR(توريدات!$Q116*توريدات!$P116,"") -> 5335 | S116: 0 | T116: =IFERROR(توريدات!$R116-توريدات!$S116,"") -> 5335
A117: =IF(AND($H117='كميات مقاول'!$G$1,$B117>='كميات مقاول'!$E$2,$B117<='كميات مقاول'!$H$2),$K117&$J117&$E117,"") ->  | B117: 2020-03-08 | C117: 48915 | D117: 2 | E117: 4639 | F117: =IFERROR(VLOOKUP(توريدات!$E117,تكعيبات!D:F,2,0),"") -> 14066 | G117: وليد | H117: =IFERROR(VLOOKUP(توريدات!$D117,تكعيبات!A:G,2,0),"") -> مراد الوكيل | I117: 22 | J117: =IFERROR(VLOOKUP(توريدات!$I117,تكعيبات!L:O,2,0),"") -> كسارة فرج العرمبي | K117: =IFERROR(VLOOKUP(توريدات!$I117,تكعيبات!L:O,4,0),"") -> سن 6بالبودره | L117: 1 | M117: =IFERROR(VLOOKUP(توريدات!$E117,تكعيبات!D:F,3,0),"") -> 60.9 | N117: =IFERROR(توريدات!$L117*توريدات!$M117,"") -> 60.9 | O117: 0 | P117: =IFERROR(توريدات!$N117-توريدات!$O117,"") -> 60.9 | Q117: =IFERROR(VLOOKUP(توريدات!$I117,تكعيبات!L:N,3,0),"") -> 95 | R117: =IFERROR(توريدات!$Q117*توريدات!$P117,"") -> 5785.5 | S117: 0 | T117: =IFERROR(توريدات!$R117-توريدات!$S117,"") -> 5785.5
A118: =IF(AND($H118='كميات مقاول'!$G$1,$B118>='كميات مقاول'!$E$2,$B118<='كميات مقاول'!$H$2),$K118&$J118&$E118,"") ->  | B118: 2020-03-08 | C118: 48916 | D118: 2 | E118: 9832 | F118: =IFERROR(VLOOKUP(توريدات!$E118,تكعيبات!D:F,2,0),"") -> 13171 | G118: احمد | H118: =IFERROR(VLOOKUP(توريدات!$D118,تكعيبات!A:G,2,0),"") -> مراد الوكيل | I118: 22 | J118: =IFERROR(VLOOKUP(توريدات!$I118,تكعيبات!L:O,2,0),"") -> كسارة فرج العرمبي | K118: =IFERROR(VLOOKUP(توريدات!$I118,تكعيبات!L:O,4,0),"") -> سن 6بالبودره | L118: 1 | M118: =IFERROR(VLOOKUP(توريدات!$E118,تكعيبات!D:F,3,0),"") -> 59.7 | N118: =IFERROR(توريدات!$L118*توريدات!$M118,"") -> 59.7 | O118: 0 | P118: =IFERROR(توريدات!$N118-توريدات!$O118,"") -> 59.7 | Q118: =IFERROR(VLOOKUP(توريدات!$I118,تكعيبات!L:N,3,0),"") -> 95 | R118: =IFERROR(توريدات!$Q118*توريدات!$P118,"") -> 5671.5 | S118: 0 | T118: =IFERROR(توريدات!$R118-توريدات!$S118,"") -> 5671.5
A119: =IF(AND($H119='كميات مقاول'!$G$1,$B119>='كميات مقاول'!$E$2,$B119<='كميات مقاول'!$H$2),$K119&$J119&$E119,"") ->  | B119: 2020-03-08 | C119: 48917 | D119: 2 | E119: 2986 | F119: =IFERROR(VLOOKUP(توريدات!$E119,تكعيبات!D:F,2,0),"") -> 1453 | G119: جمال | H119: =IFERROR(VLOOKUP(توريدات!$D119,تكعيبات!A:G,2,0),"") -> مراد الوكيل | I119: 22 | J119: =IFERROR(VLOOKUP(توريدات!$I119,تكعيبات!L:O,2,0),"") -> كسارة فرج العرمبي | K119: =IFERROR(VLOOKUP(توريدات!$I119,تكعيبات!L:O,4,0),"") -> سن 6بالبودره | L119: 1 | M119: =IFERROR(VLOOKUP(توريدات!$E119,تكعيبات!D:F,3,0),"") -> 58.8 | N119: =IFERROR(توريدات!$L119*توريدات!$M119,"") -> 58.8 | O119: 0 | P119: =IFERROR(توريدات!$N119-توريدات!$O119,"") -> 58.8 | Q119: =IFERROR(VLOOKUP(توريدات!$I119,تكعيبات!L:N,3,0),"") -> 95 | R119: =IFERROR(توريدات!$Q119*توريدات!$P119,"") -> 5586 | S119: 0 | T119: =IFERROR(توريدات!$R119-توريدات!$S119,"") -> 5586
A120: =IF(AND($H120='كميات مقاول'!$G$1,$B120>='كميات مقاول'!$E$2,$B120<='كميات مقاول'!$H$2),$K120&$J120&$E120,"") ->  | B120: 2020-03-08 | C120: 48918 | D120: 1 | E120: 6198 | F120: =IFERROR(VLOOKUP(توريدات!$E120,تكعيبات!D:F,2,0),"") -> 1542 | G120: عبدالعزيز | H120: =IFERROR(VLOOKUP(توريدات!$D120,تكعيبات!A:G,2,0),"") -> الحاج عدلي | I120: 4 | J120: =IFERROR(VLOOKUP(توريدات!$I120,تكعيبات!L:O,2,0),"") -> كسارة البشير | K120: =IFERROR(VLOOKUP(توريدات!$I120,تكعيبات!L:O,4,0),"") -> سن 6بالبودره | L120: 1 | M120: =IFERROR(VLOOKUP(توريدات!$E120,تكعيبات!D:F,3,0),"") -> 0 | N120: =IFERROR(توريدات!$L120*توريدات!$M120,"") -> 0 | O120: 0 | P120: =IFERROR(توريدات!$N120-توريدات!$O120,"") -> 0 | Q120: =IFERROR(VLOOKUP(توريدات!$I120,تكعيبات!L:N,3,0),"") -> 97 | R120: =IFERROR(توريدات!$Q120*توريدات!$P120,"") -> 0 | S120: 0 | T120: =IFERROR(توريدات!$R120-توريدات!$S120,"") -> 0
A121: =IF(AND($H121='كميات مقاول'!$G$1,$B121>='كميات مقاول'!$E$2,$B121<='كميات مقاول'!$H$2),$K121&$J121&$E121,"") ->  | B121: 2020-03-08 | C121: 48919 | D121: 4 | E121: 7928 | F121: =IFERROR(VLOOKUP(توريدات!$E121,تكعيبات!D:F,2,0),"") -> 9325 | G121: مدحت | H121: =IFERROR(VLOOKUP(توريدات!$D121,تكعيبات!A:G,2,0),"") -> خالد أبو الحمد | I121: 12 | J121: =IFERROR(VLOOKUP(توريدات!$I121,تكعيبات!L:O,2,0),"") -> كسارة ابو نــدا | K121: =IFERROR(VLOOKUP(توريدات!$I121,تكعيبات!L:O,4,0),"") -> سن 6بالبودره | L121: 1 | M121: =IFERROR(VLOOKUP(توريدات!$E121,تكعيبات!D:F,3,0),"") -> 49.5 | N121: =IFERROR(توريدات!$L121*توريدات!$M121,"") -> 49.5 | O121: 0 | P121: =IFERROR(توريدات!$N121-توريدات!$O121,"") -> 49.5 | Q121: =IFERROR(VLOOKUP(توريدات!$I121,تكعيبات!L:N,3,0),"") -> 95 | R121: =IFERROR(توريدات!$Q121*توريدات!$P121,"") -> 4702.5 | S121: 0 | T121: =IFERROR(توريدات!$R121-توريدات!$S121,"") -> 4702.5
A122: =IF(AND($H122='كميات مقاول'!$G$1,$B122>='كميات مقاول'!$E$2,$B122<='كميات مقاول'!$H$2),$K122&$J122&$E122,"") ->  | B122: 2020-03-08 | C122: 48920 | D122: 1 | E122: 9286 | F122: =IFERROR(VLOOKUP(توريدات!$E122,تكعيبات!D:F,2,0),"") -> 6912 | G122: محمد | H122: =IFERROR(VLOOKUP(توريدات!$D122,تكعيبات!A:G,2,0),"") -> الحاج عدلي | I122: 3 | J122: =IFERROR(VLOOKUP(توريدات!$I122,تكعيبات!L:O,2,0),"") -> كسارة ابناء الشرقية | K122: =IFERROR(VLOOKUP(توريدات!$I122,تكعيبات!L:O,4,0),"") -> سن 6بالبودره | L122: 1 | M122: =IFERROR(VLOOKUP(توريدات!$E122,تكعيبات!D:F,3,0),"") -> 56.6 | N122: =IFERROR(توريدات!$L122*توريدات!$M122,"") -> 56.6 | O122: 0 | P122: =IFERROR(توريدات!$N122-توريدات!$O122,"") -> 56.6 | Q122: =IFERROR(VLOOKUP(توريدات!$I122,تكعيبات!L:N,3,0),"") -> 97 | R122: =IFERROR(توريدات!$Q122*توريدات!$P122,"") -> 5490.2 | S122: 0 | T122: =IFERROR(توريدات!$R122-توريدات!$S122,"") -> 5490.2
A123: =IF(AND($H123='كميات مقاول'!$G$1,$B123>='كميات مقاول'!$E$2,$B123<='كميات مقاول'!$H$2),$K123&$J123&$E123,"") ->  | B123: 2020-03-08 | C123: 48921 | D123: 1 | E123: 2914 | F123: =IFERROR(VLOOKUP(توريدات!$E123,تكعيبات!D:F,2,0),"") -> 14505 | G123: محمد | H123: =IFERROR(VLOOKUP(توريدات!$D123,تكعيبات!A:G,2,0),"") -> الحاج عدلي | I123: 3 | J123: =IFERROR(VLOOKUP(توريدات!$I123,تكعيبات!L:O,2,0),"") -> كسارة ابناء الشرقية | K123: =IFERROR(VLOOKUP(توريدات!$I123,تكعيبات!L:O,4,0),"") -> سن 6بالبودره | L123: 1 | M123: =IFERROR(VLOOKUP(توريدات!$E123,تكعيبات!D:F,3,0),"") -> 56.55 | N123: =IFERROR(توريدات!$L123*توريدات!$M123,"") -> 56.55 | O123: 0 | P123: =IFERROR(توريدات!$N123-توريدات!$O123,"") -> 56.55 | Q123: =IFERROR(VLOOKUP(توريدات!$I123,تكعيبات!L:N,3,0),"") -> 97 | R123: =IFERROR(توريدات!$Q123*توريدات!$P123,"") -> 5485.35 | S123: 0 | T123: =IFERROR(توريدات!$R123-توريدات!$S123,"") -> 5485.35
A124: =IF(AND($H124='كميات مقاول'!$G$1,$B124>='كميات مقاول'!$E$2,$B124<='كميات مقاول'!$H$2),$K124&$J124&$E124,"") ->  | B124: 2020-03-08 | C124: 48922 | D124: 1 | E124: 6287 | F124: =IFERROR(VLOOKUP(توريدات!$E124,تكعيبات!D:F,2,0),"") -> 8364 | G124: رامي | H124: =IFERROR(VLOOKUP(توريدات!$D124,تكعيبات!A:G,2,0),"") -> الحاج عدلي | I124: 3 | J124: =IFERROR(VLOOKUP(توريدات!$I124,تكعيبات!L:O,2,0),"") -> كسارة ابناء الشرقية | K124: =IFERROR(VLOOKUP(توريدات!$I124,تكعيبات!L:O,4,0),"") -> سن 6بالبودره | L124: 1 | M124: =IFERROR(VLOOKUP(توريدات!$E124,تكعيبات!D:F,3,0),"") -> 0 | N124: =IFERROR(توريدات!$L124*توريدات!$M124,"") -> 0 | O124: 0 | P124: =IFERROR(توريدات!$N124-توريدات!$O124,"") -> 0 | Q124: =IFERROR(VLOOKUP(توريدات!$I124,تكعيبات!L:N,3,0),"") -> 97 | R124: =IFERROR(توريدات!$Q124*توريدات!$P124,"") -> 0 | S124: 0 | T124: =IFERROR(توريدات!$R124-توريدات!$S124,"") -> 0
A125: =IF(AND($H125='كميات مقاول'!$G$1,$B125>='كميات مقاول'!$E$2,$B125<='كميات مقاول'!$H$2),$K125&$J125&$E125,"") ->  | B125: 2020-03-08 | C125: 48923 | D125: 2 | E125: 8786 | F125: =IFERROR(VLOOKUP(توريدات!$E125,تكعيبات!D:F,2,0),"") -> 9137 | G125: شعبان | H125: =IFERROR(VLOOKUP(توريدات!$D125,تكعيبات!A:G,2,0),"") -> مراد الوكيل | I125: 22 | J125: =IFERROR(VLOOKUP(توريدات!$I125,تكعيبات!L:O,2,0),"") -> كسارة فرج العرمبي | K125: =IFERROR(VLOOKUP(توريدات!$I125,تكعيبات!L:O,4,0),"") -> سن 6بالبودره | L125: 1 | M125: =IFERROR(VLOOKUP(توريدات!$E125,تكعيبات!D:F,3,0),"") -> 56.5 | N125: =IFERROR(توريدات!$L125*توريدات!$M125,"") -> 56.5 | O125: 0 | P125: =IFERROR(توريدات!$N125-توريدات!$O125,"") -> 56.5 | Q125: =IFERROR(VLOOKUP(توريدات!$I125,تكعيبات!L:N,3,0),"") -> 95 | R125: =IFERROR(توريدات!$Q125*توريدات!$P125,"") -> 5367.5 | S125: 0 | T125: =IFERROR(توريدات!$R125-توريدات!$S125,"") -> 5367.5
A126: =IF(AND($H126='كميات مقاول'!$G$1,$B126>='كميات مقاول'!$E$2,$B126<='كميات مقاول'!$H$2),$K126&$J126&$E126,"") ->  | B126: 2020-03-08 | C126: 48924 | D126: 2 | E126: 126432 | F126: =IFERROR(VLOOKUP(توريدات!$E126,تكعيبات!D:F,2,0),"") -> 14514 | G126: احمد | H126: =IFERROR(VLOOKUP(توريدات!$D126,تكعيبات!A:G,2,0),"") -> مراد الوكيل | I126: 22 | J126: =IFERROR(VLOOKUP(توريدات!$I126,تكعيبات!L:O,2,0),"") -> كسارة فرج العرمبي | K126: =IFERROR(VLOOKUP(توريدات!$I126,تكعيبات!L:O,4,0),"") -> سن 6بالبودره | L126: 1 | M126: =IFERROR(VLOOKUP(توريدات!$E126,تكعيبات!D:F,3,0),"") -> 55 | N126: =IFERROR(توريدات!$L126*توريدات!$M126,"") -> 55 | O126: 0 | P126: =IFERROR(توريدات!$N126-توريدات!$O126,"") -> 55 | Q126: =IFERROR(VLOOKUP(توريدات!$I126,تكعيبات!L:N,3,0),"") -> 95 | R126: =IFERROR(توريدات!$Q126*توريدات!$P126,"") -> 5225 | S126: 0 | T126: =IFERROR(توريدات!$R126-توريدات!$S126,"") -> 5225
A127: =IF(AND($H127='كميات مقاول'!$G$1,$B127>='كميات مقاول'!$E$2,$B127<='كميات مقاول'!$H$2),$K127&$J127&$E127,"") ->  | B127: 2020-03-08 | C127: 48925 | D127: 1 | E127: 1376 | F127: =IFERROR(VLOOKUP(توريدات!$E127,تكعيبات!D:F,2,0),"") -> 6718 | G127: مجدي | H127: =IFERROR(VLOOKUP(توريدات!$D127,تكعيبات!A:G,2,0),"") -> الحاج عدلي | I127: 2 | J127: =IFERROR(VLOOKUP(توريدات!$I127,تكعيبات!L:O,2,0),"") -> كسارة خليل سعيد | K127: =IFERROR(VLOOKUP(توريدات!$I127,تكعيبات!L:O,4,0),"") -> سن 6بالبودره | L127: 1 | M127: =IFERROR(VLOOKUP(توريدات!$E127,تكعيبات!D:F,3,0),"") -> 57 | N127: =IFERROR(توريدات!$L127*توريدات!$M127,"") -> 57 | O127: 0 | P127: =IFERROR(توريدات!$N127-توريدات!$O127,"") -> 57 | Q127: =IFERROR(VLOOKUP(توريدات!$I127,تكعيبات!L:N,3,0),"") -> 97 | R127: =IFERROR(توريدات!$Q127*توريدات!$P127,"") -> 5529 | S127: 0 | T127: =IFERROR(توريدات!$R127-توريدات!$S127,"") -> 5529
A128: =IF(AND($H128='كميات مقاول'!$G$1,$B128>='كميات مقاول'!$E$2,$B128<='كميات مقاول'!$H$2),$K128&$J128&$E128,"") ->  | B128: 2020-03-08 | C128: 48926 | D128: 1 | E128: 8372 | F128: =IFERROR(VLOOKUP(توريدات!$E128,تكعيبات!D:F,2,0),"") -> 9387 | G128: احمد | H128: =IFERROR(VLOOKUP(توريدات!$D128,تكعيبات!A:G,2,0),"") -> الحاج عدلي | I128: 4 | J128: =IFERROR(VLOOKUP(توريدات!$I128,تكعيبات!L:O,2,0),"") -> كسارة البشير | K128: =IFERROR(VLOOKUP(توريدات!$I128,تكعيبات!L:O,4,0),"") -> سن 6بالبودره | L128: 1 | M128: =IFERROR(VLOOKUP(توريدات!$E128,تكعيبات!D:F,3,0),"") -> 49.25 | N128: =IFERROR(توريدات!$L128*توريدات!$M128,"") -> 49.25 | O128: 0 | P128: =IFERROR(توريدات!$N128-توريدات!$O128,"") -> 49.25 | Q128: =IFERROR(VLOOKUP(توريدات!$I128,تكعيبات!L:N,3,0),"") -> 97 | R128: =IFERROR(توريدات!$Q128*توريدات!$P128,"") -> 4777.25 | S128: 0 | T128: =IFERROR(توريدات!$R128-توريدات!$S128,"") -> 4777.25
A129: =IF(AND($H129='كميات مقاول'!$G$1,$B129>='كميات مقاول'!$E$2,$B129<='كميات مقاول'!$H$2),$K129&$J129&$E129,"") ->  | B129: 2020-03-08 | C129: 48927 | D129: 1 | E129: 1246 | F129: =IFERROR(VLOOKUP(توريدات!$E129,تكعيبات!D:F,2,0),"") -> 8952 | G129: هاشم | H129: =IFERROR(VLOOKUP(توريدات!$D129,تكعيبات!A:G,2,0),"") -> الحاج عدلي | I129: 10 | J129: =IFERROR(VLOOKUP(توريدات!$I129,تكعيبات!L:O,2,0),"") -> كسارة الهاشمية - مشال | K129: =IFERROR(VLOOKUP(توريدات!$I129,تكعيبات!L:O,4,0),"") -> سن 6بالبودره - مشال | L129: 1 | M129: =IFERROR(VLOOKUP(توريدات!$E129,تكعيبات!D:F,3,0),"") -> 51.3 | N129: =IFERROR(توريدات!$L129*توريدات!$M129,"") -> 51.3 | O129: 0 | P129: =IFERROR(توريدات!$N129-توريدات!$O129,"") -> 51.3 | Q129: =IFERROR(VLOOKUP(توريدات!$I129,تكعيبات!L:N,3,0),"") -> 67 | R129: =IFERROR(توريدات!$Q129*توريدات!$P129,"") -> 3437.1 | S129: 0 | T129: =IFERROR(توريدات!$R129-توريدات!$S129,"") -> 3437.1
A130: =IF(AND($H130='كميات مقاول'!$G$1,$B130>='كميات مقاول'!$E$2,$B130<='كميات مقاول'!$H$2),$K130&$J130&$E130,"") ->  | B130: 2020-03-08 | C130: 48928 | D130: 1 | E130: 5821 | F130: =IFERROR(VLOOKUP(توريدات!$E130,تكعيبات!D:F,2,0),"") -> 14047 | G130: عماد | H130: =IFERROR(VLOOKUP(توريدات!$D130,تكعيبات!A:G,2,0),"") -> الحاج عدلي | I130: 3 | J130: =IFERROR(VLOOKUP(توريدات!$I130,تكعيبات!L:O,2,0),"") -> كسارة ابناء الشرقية | K130: =IFERROR(VLOOKUP(توريدات!$I130,تكعيبات!L:O,4,0),"") -> سن 6بالبودره | L130: 1 | M130: =IFERROR(VLOOKUP(توريدات!$E130,تكعيبات!D:F,3,0),"") -> 58.35 | N130: =IFERROR(توريدات!$L130*توريدات!$M130,"") -> 58.35 | O130: 0 | P130: =IFERROR(توريدات!$N130-توريدات!$O130,"") -> 58.35 | Q130: =IFERROR(VLOOKUP(توريدات!$I130,تكعيبات!L:N,3,0),"") -> 97 | R130: =IFERROR(توريدات!$Q130*توريدات!$P130,"") -> 5659.95 | S130: 0 | T130: =IFERROR(توريدات!$R130-توريدات!$S130,"") -> 5659.95
A131: =IF(AND($H131='كميات مقاول'!$G$1,$B131>='كميات مقاول'!$E$2,$B131<='كميات مقاول'!$H$2),$K131&$J131&$E131,"") ->  | B131: 2020-03-08 | C131: 48929 | D131: 2 | E131: 4199 | F131: =IFERROR(VLOOKUP(توريدات!$E131,تكعيبات!D:F,2,0),"") -> 6835 | G131: محمد | H131: =IFERROR(VLOOKUP(توريدات!$D131,تكعيبات!A:G,2,0),"") -> مراد الوكيل | I131: 22 | J131: =IFERROR(VLOOKUP(توريدات!$I131,تكعيبات!L:O,2,0),"") -> كسارة فرج العرمبي | K131: =IFERROR(VLOOKUP(توريدات!$I131,تكعيبات!L:O,4,0),"") -> سن 6بالبودره | L131: 1 | M131: =IFERROR(VLOOKUP(توريدات!$E131,تكعيبات!D:F,3,0),"") -> 49.1 | N131: =IFERROR(توريدات!$L131*توريدات!$M131,"") -> 49.1 | O131: 0 | P131: =IFERROR(توريدات!$N131-توريدات!$O131,"") -> 49.1 | Q131: =IFERROR(VLOOKUP(توريدات!$I131,تكعيبات!L:N,3,0),"") -> 95 | R131: =IFERROR(توريدات!$Q131*توريدات!$P131,"") -> 4664.5 | S131: 0 | T131: =IFERROR(توريدات!$R131-توريدات!$S131,"") -> 4664.5
A132: =IF(AND($H132='كميات مقاول'!$G$1,$B132>='كميات مقاول'!$E$2,$B132<='كميات مقاول'!$H$2),$K132&$J132&$E132,"") ->  | B132: 2020-03-08 | C132: 48930 | D132: 1 | E132: 3127 | F132: =IFERROR(VLOOKUP(توريدات!$E132,تكعيبات!D:F,2,0),"") -> 13871 | G132: هاني | H132: =IFERROR(VLOOKUP(توريدات!$D132,تكعيبات!A:G,2,0),"") -> الحاج عدلي | I132: 3 | J132: =IFERROR(VLOOKUP(توريدات!$I132,تكعيبات!L:O,2,0),"") -> كسارة ابناء الشرقية | K132: =IFERROR(VLOOKUP(توريدات!$I132,تكعيبات!L:O,4,0),"") -> سن 6بالبودره | L132: 1 | M132: =IFERROR(VLOOKUP(توريدات!$E132,تكعيبات!D:F,3,0),"") -> 52.8 | N132: =IFERROR(توريدات!$L132*توريدات!$M132,"") -> 52.8 | O132: 0 | P132: =IFERROR(توريدات!$N132-توريدات!$O132,"") -> 52.8 | Q132: =IFERROR(VLOOKUP(توريدات!$I132,تكعيبات!L:N,3,0),"") -> 97 | R132: =IFERROR(توريدات!$Q132*توريدات!$P132,"") -> 5121.6 | S132: 0 | T132: =IFERROR(توريدات!$R132-توريدات!$S132,"") -> 5121.6
A133: =IF(AND($H133='كميات مقاول'!$G$1,$B133>='كميات مقاول'!$E$2,$B133<='كميات مقاول'!$H$2),$K133&$J133&$E133,"") ->  | B133: 2020-03-08 | C133: 48931 | D133: 1 | E133: 4789 | F133: =IFERROR(VLOOKUP(توريدات!$E133,تكعيبات!D:F,2,0),"") -> 5284 | G133: هاني | H133: =IFERROR(VLOOKUP(توريدات!$D133,تكعيبات!A:G,2,0),"") -> الحاج عدلي | I133: 3 | J133: =IFERROR(VLOOKUP(توريدات!$I133,تكعيبات!L:O,2,0),"") -> كسارة ابناء الشرقية | K133: =IFERROR(VLOOKUP(توريدات!$I133,تكعيبات!L:O,4,0),"") -> سن 6بالبودره | L133: 1 | M133: =IFERROR(VLOOKUP(توريدات!$E133,تكعيبات!D:F,3,0),"") -> 55.75 | N133: =IFERROR(توريدات!$L133*توريدات!$M133,"") -> 55.75 | O133: 0 | P133: =IFERROR(توريدات!$N133-توريدات!$O133,"") -> 55.75 | Q133: =IFERROR(VLOOKUP(توريدات!$I133,تكعيبات!L:N,3,0),"") -> 97 | R133: =IFERROR(توريدات!$Q133*توريدات!$P133,"") -> 5407.75 | S133: 0 | T133: =IFERROR(توريدات!$R133-توريدات!$S133,"") -> 5407.75
A134: =IF(AND($H134='كميات مقاول'!$G$1,$B134>='كميات مقاول'!$E$2,$B134<='كميات مقاول'!$H$2),$K134&$J134&$E134,"") ->  | B134: 2020-03-08 | C134: 48932 | D134: 4 | E134: 9185 | F134: =IFERROR(VLOOKUP(توريدات!$E134,تكعيبات!D:F,2,0),"") -> 2498 | G134: هاني | H134: =IFERROR(VLOOKUP(توريدات!$D134,تكعيبات!A:G,2,0),"") -> خالد أبو الحمد | I134: 11 | J134: =IFERROR(VLOOKUP(توريدات!$I134,تكعيبات!L:O,2,0),"") -> كسارة ام القــري | K134: =IFERROR(VLOOKUP(توريدات!$I134,تكعيبات!L:O,4,0),"") -> سن 6بالبودره | L134: 1 | M134: =IFERROR(VLOOKUP(توريدات!$E134,تكعيبات!D:F,3,0),"") -> 58.75 | N134: =IFERROR(توريدات!$L134*توريدات!$M134,"") -> 58.75 | O134: 0 | P134: =IFERROR(توريدات!$N134-توريدات!$O134,"") -> 58.75 | Q134: =IFERROR(VLOOKUP(توريدات!$I134,تكعيبات!L:N,3,0),"") -> 95 | R134: =IFERROR(توريدات!$Q134*توريدات!$P134,"") -> 5581.25 | S134: 0 | T134: =IFERROR(توريدات!$R134-توريدات!$S134,"") -> 5581.25
A135: =IF(AND($H135='كميات مقاول'!$G$1,$B135>='كميات مقاول'!$E$2,$B135<='كميات مقاول'!$H$2),$K135&$J135&$E135,"") ->  | B135: 2020-03-08 | C135: 48933 | D135: 1 | E135: 6791 | F135: =IFERROR(VLOOKUP(توريدات!$E135,تكعيبات!D:F,2,0),"") -> 4389 | G135: احمد | H135: =IFERROR(VLOOKUP(توريدات!$D135,تكعيبات!A:G,2,0),"") -> الحاج عدلي | I135: 2 | J135: =IFERROR(VLOOKUP(توريدات!$I135,تكعيبات!L:O,2,0),"") -> كسارة خليل سعيد | K135: =IFERROR(VLOOKUP(توريدات!$I135,تكعيبات!L:O,4,0),"") -> سن 6بالبودره | L135: 1 | M135: =IFERROR(VLOOKUP(توريدات!$E135,تكعيبات!D:F,3,0),"") -> 58 | N135: =IFERROR(توريدات!$L135*توريدات!$M135,"") -> 58 | O135: 0 | P135: =IFERROR(توريدات!$N135-توريدات!$O135,"") -> 58 | Q135: =IFERROR(VLOOKUP(توريدات!$I135,تكعيبات!L:N,3,0),"") -> 97 | R135: =IFERROR(توريدات!$Q135*توريدات!$P135,"") -> 5626 | S135: 0 | T135: =IFERROR(توريدات!$R135-توريدات!$S135,"") -> 5626
A136: =IF(AND($H136='كميات مقاول'!$G$1,$B136>='كميات مقاول'!$E$2,$B136<='كميات مقاول'!$H$2),$K136&$J136&$E136,"") ->  | B136: 2020-03-08 | C136: 48934 | D136: 4 | E136: 8159 | F136: =IFERROR(VLOOKUP(توريدات!$E136,تكعيبات!D:F,2,0),"") -> 31451 | G136: رضا | H136: =IFERROR(VLOOKUP(توريدات!$D136,تكعيبات!A:G,2,0),"") -> خالد أبو الحمد | I136: 11 | J136: =IFERROR(VLOOKUP(توريدات!$I136,تكعيبات!L:O,2,0),"") -> كسارة ام القــري | K136: =IFERROR(VLOOKUP(توريدات!$I136,تكعيبات!L:O,4,0),"") -> سن 6بالبودره | L136: 1 | M136: =IFERROR(VLOOKUP(توريدات!$E136,تكعيبات!D:F,3,0),"") -> 50.4 | N136: =IFERROR(توريدات!$L136*توريدات!$M136,"") -> 50.4 | O136: 0 | P136: =IFERROR(توريدات!$N136-توريدات!$O136,"") -> 50.4 | Q136: =IFERROR(VLOOKUP(توريدات!$I136,تكعيبات!L:N,3,0),"") -> 95 | R136: =IFERROR(توريدات!$Q136*توريدات!$P136,"") -> 4788 | S136: 0 | T136: =IFERROR(توريدات!$R136-توريدات!$S136,"") -> 4788
A137: =IF(AND($H137='كميات مقاول'!$G$1,$B137>='كميات مقاول'!$E$2,$B137<='كميات مقاول'!$H$2),$K137&$J137&$E137,"") ->  | B137: 2020-03-08 | C137: 48935 | D137: 1 | E137: 6215 | F137: =IFERROR(VLOOKUP(توريدات!$E137,تكعيبات!D:F,2,0),"") -> 7623 | G137: محمد | H137: =IFERROR(VLOOKUP(توريدات!$D137,تكعيبات!A:G,2,0),"") -> الحاج عدلي | I137: 2 | J137: =IFERROR(VLOOKUP(توريدات!$I137,تكعيبات!L:O,2,0),"") -> كسارة خليل سعيد | K137: =IFERROR(VLOOKUP(توريدات!$I137,تكعيبات!L:O,4,0),"") -> سن 6بالبودره | L137: 1 | M137: =IFERROR(VLOOKUP(توريدات!$E137,تكعيبات!D:F,3,0),"") -> 61.5 | N137: =IFERROR(توريدات!$L137*توريدات!$M137,"") -> 61.5 | O137: 0 | P137: =IFERROR(توريدات!$N137-توريدات!$O137,"") -> 61.5 | Q137: =IFERROR(VLOOKUP(توريدات!$I137,تكعيبات!L:N,3,0),"") -> 97 | R137: =IFERROR(توريدات!$Q137*توريدات!$P137,"") -> 5965.5 | S137: 0 | T137: =IFERROR(توريدات!$R137-توريدات!$S137,"") -> 5965.5
A138: =IF(AND($H138='كميات مقاول'!$G$1,$B138>='كميات مقاول'!$E$2,$B138<='كميات مقاول'!$H$2),$K138&$J138&$E138,"") ->  | B138: 2020-03-08 | C138: 48936 | D138: 1 | E138: 9286 | F138: =IFERROR(VLOOKUP(توريدات!$E138,تكعيبات!D:F,2,0),"") -> 6912 | G138: محمد | H138: =IFERROR(VLOOKUP(توريدات!$D138,تكعيبات!A:G,2,0),"") -> الحاج عدلي | I138: 3 | J138: =IFERROR(VLOOKUP(توريدات!$I138,تكعيبات!L:O,2,0),"") -> كسارة ابناء الشرقية | K138: =IFERROR(VLOOKUP(توريدات!$I138,تكعيبات!L:O,4,0),"") -> سن 6بالبودره | L138: 1 | M138: =IFERROR(VLOOKUP(توريدات!$E138,تكعيبات!D:F,3,0),"") -> 56.6 | N138: =IFERROR(توريدات!$L138*توريدات!$M138,"") -> 56.6 | O138: 0 | P138: =IFERROR(توريدات!$N138-توريدات!$O138,"") -> 56.6 | Q138: =IFERROR(VLOOKUP(توريدات!$I138,تكعيبات!L:N,3,0),"") -> 97 | R138: =IFERROR(توريدات!$Q138*توريدات!$P138,"") -> 5490.2 | S138: 0 | T138: =IFERROR(توريدات!$R138-توريدات!$S138,"") -> 5490.2
A139: =IF(AND($H139='كميات مقاول'!$G$1,$B139>='كميات مقاول'!$E$2,$B139<='كميات مقاول'!$H$2),$K139&$J139&$E139,"") ->  | B139: 2020-03-08 | C139: 48937 | D139: 2 | E139: 2986 | F139: =IFERROR(VLOOKUP(توريدات!$E139,تكعيبات!D:F,2,0),"") -> 1453 | G139: جمال | H139: =IFERROR(VLOOKUP(توريدات!$D139,تكعيبات!A:G,2,0),"") -> مراد الوكيل | I139: 22 | J139: =IFERROR(VLOOKUP(توريدات!$I139,تكعيبات!L:O,2,0),"") -> كسارة فرج العرمبي | K139: =IFERROR(VLOOKUP(توريدات!$I139,تكعيبات!L:O,4,0),"") -> سن 6بالبودره | L139: 1 | M139: =IFERROR(VLOOKUP(توريدات!$E139,تكعيبات!D:F,3,0),"") -> 58.8 | N139: =IFERROR(توريدات!$L139*توريدات!$M139,"") -> 58.8 | O139: 0 | P139: =IFERROR(توريدات!$N139-توريدات!$O139,"") -> 58.8 | Q139: =IFERROR(VLOOKUP(توريدات!$I139,تكعيبات!L:N,3,0),"") -> 95 | R139: =IFERROR(توريدات!$Q139*توريدات!$P139,"") -> 5586 | S139: 0 | T139: =IFERROR(توريدات!$R139-توريدات!$S139,"") -> 5586
A140: =IF(AND($H140='كميات مقاول'!$G$1,$B140>='كميات مقاول'!$E$2,$B140<='كميات مقاول'!$H$2),$K140&$J140&$E140,"") ->  | B140: 2020-03-08 | C140: 48938 | D140: 2 | E140: 4639 | F140: =IFERROR(VLOOKUP(توريدات!$E140,تكعيبات!D:F,2,0),"") -> 14066 | G140: وليد | H140: =IFERROR(VLOOKUP(توريدات!$D140,تكعيبات!A:G,2,0),"") -> مراد الوكيل | I140: 22 | J140: =IFERROR(VLOOKUP(توريدات!$I140,تكعيبات!L:O,2,0),"") -> كسارة فرج العرمبي | K140: =IFERROR(VLOOKUP(توريدات!$I140,تكعيبات!L:O,4,0),"") -> سن 6بالبودره | L140: 1 | M140: =IFERROR(VLOOKUP(توريدات!$E140,تكعيبات!D:F,3,0),"") -> 60.9 | N140: =IFERROR(توريدات!$L140*توريدات!$M140,"") -> 60.9 | O140: 0 | P140: =IFERROR(توريدات!$N140-توريدات!$O140,"") -> 60.9 | Q140: =IFERROR(VLOOKUP(توريدات!$I140,تكعيبات!L:N,3,0),"") -> 95 | R140: =IFERROR(توريدات!$Q140*توريدات!$P140,"") -> 5785.5 | S140: 0 | T140: =IFERROR(توريدات!$R140-توريدات!$S140,"") -> 5785.5
A141: =IF(AND($H141='كميات مقاول'!$G$1,$B141>='كميات مقاول'!$E$2,$B141<='كميات مقاول'!$H$2),$K141&$J141&$E141,"") ->  | B141: 2020-03-08 | C141: 48939 | D141: 2 | E141: 9832 | F141: =IFERROR(VLOOKUP(توريدات!$E141,تكعيبات!D:F,2,0),"") -> 13171 | G141: احمد | H141: =IFERROR(VLOOKUP(توريدات!$D141,تكعيبات!A:G,2,0),"") -> مراد الوكيل | I141: 22 | J141: =IFERROR(VLOOKUP(توريدات!$I141,تكعيبات!L:O,2,0),"") -> كسارة فرج العرمبي | K141: =IFERROR(VLOOKUP(توريدات!$I141,تكعيبات!L:O,4,0),"") -> سن 6بالبودره | L141: 1 | M141: =IFERROR(VLOOKUP(توريدات!$E141,تكعيبات!D:F,3,0),"") -> 59.7 | N141: =IFERROR(توريدات!$L141*توريدات!$M141,"") -> 59.7 | O141: 2 | P141: =IFERROR(توريدات!$N141-توريدات!$O141,"") -> 57.7 | Q141: =IFERROR(VLOOKUP(توريدات!$I141,تكعيبات!L:N,3,0),"") -> 95 | R141: =IFERROR(توريدات!$Q141*توريدات!$P141,"") -> 5481.5 | S141: 0 | T141: =IFERROR(توريدات!$R141-توريدات!$S141,"") -> 5481.5
A142: =IF(AND($H142='كميات مقاول'!$G$1,$B142>='كميات مقاول'!$E$2,$B142<='كميات مقاول'!$H$2),$K142&$J142&$E142,"") ->  | B142: 2020-03-08 | C142: 48940 | D142: 4 | E142: 7842 | F142: =IFERROR(VLOOKUP(توريدات!$E142,تكعيبات!D:F,2,0),"") -> 1389 | G142: حمادة | H142: =IFERROR(VLOOKUP(توريدات!$D142,تكعيبات!A:G,2,0),"") -> خالد أبو الحمد | I142: 5 | J142: =IFERROR(VLOOKUP(توريدات!$I142,تكعيبات!L:O,2,0),"") -> كسارة التيسير | K142: =IFERROR(VLOOKUP(توريدات!$I142,تكعيبات!L:O,4,0),"") -> سن 6بالبودره | L142: 1 | M142: =IFERROR(VLOOKUP(توريدات!$E142,تكعيبات!D:F,3,0),"") -> 50.45 | N142: =IFERROR(توريدات!$L142*توريدات!$M142,"") -> 50.45 | O142: 0 | P142: =IFERROR(توريدات!$N142-توريدات!$O142,"") -> 50.45 | Q142: =IFERROR(VLOOKUP(توريدات!$I142,تكعيبات!L:N,3,0),"") -> 97 | R142: =IFERROR(توريدات!$Q142*توريدات!$P142,"") -> 4893.65 | S142: 0 | T142: =IFERROR(توريدات!$R142-توريدات!$S142,"") -> 4893.65
A143: =IF(AND($H143='كميات مقاول'!$G$1,$B143>='كميات مقاول'!$E$2,$B143<='كميات مقاول'!$H$2),$K143&$J143&$E143,"") ->  | B143: 2020-03-08 | C143: 48941 | D143: 1 | E143: 2914 | F143: =IFERROR(VLOOKUP(توريدات!$E143,تكعيبات!D:F,2,0),"") -> 14505 | G143: محمد | H143: =IFERROR(VLOOKUP(توريدات!$D143,تكعيبات!A:G,2,0),"") -> الحاج عدلي | I143: 3 | J143: =IFERROR(VLOOKUP(توريدات!$I143,تكعيبات!L:O,2,0),"") -> كسارة ابناء الشرقية | K143: =IFERROR(VLOOKUP(توريدات!$I143,تكعيبات!L:O,4,0),"") -> سن 6بالبودره | L143: 1 | M143: =IFERROR(VLOOKUP(توريدات!$E143,تكعيبات!D:F,3,0),"") -> 56.55 | N143: =IFERROR(توريدات!$L143*توريدات!$M143,"") -> 56.55 | O143: 1 | P143: =IFERROR(توريدات!$N143-توريدات!$O143,"") -> 55.55 | Q143: =IFERROR(VLOOKUP(توريدات!$I143,تكعيبات!L:N,3,0),"") -> 97 | R143: =IFERROR(توريدات!$Q143*توريدات!$P143,"") -> 5388.35 | S143: 0 | T143: =IFERROR(توريدات!$R143-توريدات!$S143,"") -> 5388.35
A144: =IF(AND($H144='كميات مقاول'!$G$1,$B144>='كميات مقاول'!$E$2,$B144<='كميات مقاول'!$H$2),$K144&$J144&$E144,"") ->  | B144: 2020-03-08 | C144: 48942 | D144: 1 | E144: 6287 | F144: =IFERROR(VLOOKUP(توريدات!$E144,تكعيبات!D:F,2,0),"") -> 8364 | G144: رامي | H144: =IFERROR(VLOOKUP(توريدات!$D144,تكعيبات!A:G,2,0),"") -> الحاج عدلي | I144: 3 | J144: =IFERROR(VLOOKUP(توريدات!$I144,تكعيبات!L:O,2,0),"") -> كسارة ابناء الشرقية | K144: =IFERROR(VLOOKUP(توريدات!$I144,تكعيبات!L:O,4,0),"") -> سن 6بالبودره | L144: 1 | M144: =IFERROR(VLOOKUP(توريدات!$E144,تكعيبات!D:F,3,0),"") -> 0 | N144: =IFERROR(توريدات!$L144*توريدات!$M144,"") -> 0 | O144: 0 | P144: =IFERROR(توريدات!$N144-توريدات!$O144,"") -> 0 | Q144: =IFERROR(VLOOKUP(توريدات!$I144,تكعيبات!L:N,3,0),"") -> 97 | R144: =IFERROR(توريدات!$Q144*توريدات!$P144,"") -> 0 | S144: 0 | T144: =IFERROR(توريدات!$R144-توريدات!$S144,"") -> 0
A145: =IF(AND($H145='كميات مقاول'!$G$1,$B145>='كميات مقاول'!$E$2,$B145<='كميات مقاول'!$H$2),$K145&$J145&$E145,"") ->  | B145: 2020-03-08 | C145: 48943 | D145: 4 | E145: 8159 | F145: =IFERROR(VLOOKUP(توريدات!$E145,تكعيبات!D:F,2,0),"") -> 31451 | G145: رضا | H145: =IFERROR(VLOOKUP(توريدات!$D145,تكعيبات!A:G,2,0),"") -> خالد أبو الحمد | I145: 11 | J145: =IFERROR(VLOOKUP(توريدات!$I145,تكعيبات!L:O,2,0),"") -> كسارة ام القــري | K145: =IFERROR(VLOOKUP(توريدات!$I145,تكعيبات!L:O,4,0),"") -> سن 6بالبودره | L145: 1 | M145: =IFERROR(VLOOKUP(توريدات!$E145,تكعيبات!D:F,3,0),"") -> 50.4 | N145: =IFERROR(توريدات!$L145*توريدات!$M145,"") -> 50.4 | O145: 0 | P145: =IFERROR(توريدات!$N145-توريدات!$O145,"") -> 50.4 | Q145: =IFERROR(VLOOKUP(توريدات!$I145,تكعيبات!L:N,3,0),"") -> 95 | R145: =IFERROR(توريدات!$Q145*توريدات!$P145,"") -> 4788 | S145: 0 | T145: =IFERROR(توريدات!$R145-توريدات!$S145,"") -> 4788
A146: =IF(AND($H146='كميات مقاول'!$G$1,$B146>='كميات مقاول'!$E$2,$B146<='كميات مقاول'!$H$2),$K146&$J146&$E146,"") ->  | B146: 2020-03-08 | C146: 48944 | D146: 2 | E146: 8786 | F146: =IFERROR(VLOOKUP(توريدات!$E146,تكعيبات!D:F,2,0),"") -> 9137 | G146: شعبان | H146: =IFERROR(VLOOKUP(توريدات!$D146,تكعيبات!A:G,2,0),"") -> مراد الوكيل | I146: 22 | J146: =IFERROR(VLOOKUP(توريدات!$I146,تكعيبات!L:O,2,0),"") -> كسارة فرج العرمبي | K146: =IFERROR(VLOOKUP(توريدات!$I146,تكعيبات!L:O,4,0),"") -> سن 6بالبودره | L146: 1 | M146: =IFERROR(VLOOKUP(توريدات!$E146,تكعيبات!D:F,3,0),"") -> 56.5 | N146: =IFERROR(توريدات!$L146*توريدات!$M146,"") -> 56.5 | O146: 0 | P146: =IFERROR(توريدات!$N146-توريدات!$O146,"") -> 56.5 | Q146: =IFERROR(VLOOKUP(توريدات!$I146,تكعيبات!L:N,3,0),"") -> 95 | R146: =IFERROR(توريدات!$Q146*توريدات!$P146,"") -> 5367.5 | S146: 0 | T146: =IFERROR(توريدات!$R146-توريدات!$S146,"") -> 5367.5
A147: =IF(AND($H147='كميات مقاول'!$G$1,$B147>='كميات مقاول'!$E$2,$B147<='كميات مقاول'!$H$2),$K147&$J147&$E147,"") ->  | B147: 2020-03-08 | C147: 48945 | D147: 2 | E147: 126432 | F147: =IFERROR(VLOOKUP(توريدات!$E147,تكعيبات!D:F,2,0),"") -> 14514 | G147: احمد | H147: =IFERROR(VLOOKUP(توريدات!$D147,تكعيبات!A:G,2,0),"") -> مراد الوكيل | I147: 22 | J147: =IFERROR(VLOOKUP(توريدات!$I147,تكعيبات!L:O,2,0),"") -> كسارة فرج العرمبي | K147: =IFERROR(VLOOKUP(توريدات!$I147,تكعيبات!L:O,4,0),"") -> سن 6بالبودره | L147: 1 | M147: =IFERROR(VLOOKUP(توريدات!$E147,تكعيبات!D:F,3,0),"") -> 55 | N147: =IFERROR(توريدات!$L147*توريدات!$M147,"") -> 55 | O147: 1 | P147: =IFERROR(توريدات!$N147-توريدات!$O147,"") -> 54 | Q147: =IFERROR(VLOOKUP(توريدات!$I147,تكعيبات!L:N,3,0),"") -> 95 | R147: =IFERROR(توريدات!$Q147*توريدات!$P147,"") -> 5130 | S147: 0 | T147: =IFERROR(توريدات!$R147-توريدات!$S147,"") -> 5130
A148: =IF(AND($H148='كميات مقاول'!$G$1,$B148>='كميات مقاول'!$E$2,$B148<='كميات مقاول'!$H$2),$K148&$J148&$E148,"") ->  | B148: 2020-03-08 | C148: 48946 | D148: 1 | E148: 4789 | F148: =IFERROR(VLOOKUP(توريدات!$E148,تكعيبات!D:F,2,0),"") -> 5284 | G148: هاني | H148: =IFERROR(VLOOKUP(توريدات!$D148,تكعيبات!A:G,2,0),"") -> الحاج عدلي | I148: 3 | J148: =IFERROR(VLOOKUP(توريدات!$I148,تكعيبات!L:O,2,0),"") -> كسارة ابناء الشرقية | K148: =IFERROR(VLOOKUP(توريدات!$I148,تكعيبات!L:O,4,0),"") -> سن 6بالبودره | L148: 1 | M148: =IFERROR(VLOOKUP(توريدات!$E148,تكعيبات!D:F,3,0),"") -> 55.75 | N148: =IFERROR(توريدات!$L148*توريدات!$M148,"") -> 55.75 | O148: 0 | P148: =IFERROR(توريدات!$N148-توريدات!$O148,"") -> 55.75 | Q148: =IFERROR(VLOOKUP(توريدات!$I148,تكعيبات!L:N,3,0),"") -> 97 | R148: =IFERROR(توريدات!$Q148*توريدات!$P148,"") -> 5407.75 | S148: 0 | T148: =IFERROR(توريدات!$R148-توريدات!$S148,"") -> 5407.75
A149: =IF(AND($H149='كميات مقاول'!$G$1,$B149>='كميات مقاول'!$E$2,$B149<='كميات مقاول'!$H$2),$K149&$J149&$E149,"") ->  | B149: 2020-03-08 | C149: 48947 | D149: 1 | E149: 6645 | F149: =IFERROR(VLOOKUP(توريدات!$E149,تكعيبات!D:F,2,0),"") -> 5293 | G149: خالد | H149: =IFERROR(VLOOKUP(توريدات!$D149,تكعيبات!A:G,2,0),"") -> الحاج عدلي | I149: 3 | J149: =IFERROR(VLOOKUP(توريدات!$I149,تكعيبات!L:O,2,0),"") -> كسارة ابناء الشرقية | K149: =IFERROR(VLOOKUP(توريدات!$I149,تكعيبات!L:O,4,0),"") -> سن 6بالبودره | L149: 1 | M149: =IFERROR(VLOOKUP(توريدات!$E149,تكعيبات!D:F,3,0),"") -> 53 | N149: =IFERROR(توريدات!$L149*توريدات!$M149,"") -> 53 | O149: 0 | P149: =IFERROR(توريدات!$N149-توريدات!$O149,"") -> 53 | Q149: =IFERROR(VLOOKUP(توريدات!$I149,تكعيبات!L:N,3,0),"") -> 97 | R149: =IFERROR(توريدات!$Q149*توريدات!$P149,"") -> 5141 | S149: 0 | T149: =IFERROR(توريدات!$R149-توريدات!$S149,"") -> 5141
A150: =IF(AND($H150='كميات مقاول'!$G$1,$B150>='كميات مقاول'!$E$2,$B150<='كميات مقاول'!$H$2),$K150&$J150&$E150,"") ->  | B150: 2020-03-08 | C150: 48948 | D150: 1 | E150: 8372 | F150: =IFERROR(VLOOKUP(توريدات!$E150,تكعيبات!D:F,2,0),"") -> 9387 | G150: رضا | H150: =IFERROR(VLOOKUP(توريدات!$D150,تكعيبات!A:G,2,0),"") -> الحاج عدلي | I150: 4 | J150: =IFERROR(VLOOKUP(توريدات!$I150,تكعيبات!L:O,2,0),"") -> كسارة البشير | K150: =IFERROR(VLOOKUP(توريدات!$I150,تكعيبات!L:O,4,0),"") -> سن 6بالبودره | L150: 1 | M150: =IFERROR(VLOOKUP(توريدات!$E150,تكعيبات!D:F,3,0),"") -> 49.25 | N150: =IFERROR(توريدات!$L150*توريدات!$M150,"") -> 49.25 | O150: 0 | P150: =IFERROR(توريدات!$N150-توريدات!$O150,"") -> 49.25 | Q150: =IFERROR(VLOOKUP(توريدات!$I150,تكعيبات!L:N,3,0),"") -> 97 | R150: =IFERROR(توريدات!$Q150*توريدات!$P150,"") -> 4777.25 | S150: 0 | T150: =IFERROR(توريدات!$R150-توريدات!$S150,"") -> 4777.25
A151: =IF(AND($H151='كميات مقاول'!$G$1,$B151>='كميات مقاول'!$E$2,$B151<='كميات مقاول'!$H$2),$K151&$J151&$E151,"") ->  | B151: 2020-03-08 | C151: 48949 | D151: 1 | E151: 1763 | F151: =IFERROR(VLOOKUP(توريدات!$E151,تكعيبات!D:F,2,0),"") -> 800178 | G151: محمد | H151: =IFERROR(VLOOKUP(توريدات!$D151,تكعيبات!A:G,2,0),"") -> الحاج عدلي | I151: 16 | J151: =IFERROR(VLOOKUP(توريدات!$I151,تكعيبات!L:O,2,0),"") -> كسارة الفهد العرمبي | K151: =IFERROR(VLOOKUP(توريدات!$I151,تكعيبات!L:O,4,0),"") -> سن 6بالبودره | L151: 1 | M151: =IFERROR(VLOOKUP(توريدات!$E151,تكعيبات!D:F,3,0),"") -> 47.3 | N151: =IFERROR(توريدات!$L151*توريدات!$M151,"") -> 47.3 | O151: 0 | P151: =IFERROR(توريدات!$N151-توريدات!$O151,"") -> 47.3 | Q151: =IFERROR(VLOOKUP(توريدات!$I151,تكعيبات!L:N,3,0),"") -> 95 | R151: =IFERROR(توريدات!$Q151*توريدات!$P151,"") -> 4493.5 | S151: 0 | T151: =IFERROR(توريدات!$R151-توريدات!$S151,"") -> 4493.5
A152: =IF(AND($H152='كميات مقاول'!$G$1,$B152>='كميات مقاول'!$E$2,$B152<='كميات مقاول'!$H$2),$K152&$J152&$E152,"") ->  | B152: 2020-03-08 | C152: 48950 | D152: 1 | E152: 3127 | F152: =IFERROR(VLOOKUP(توريدات!$E152,تكعيبات!D:F,2,0),"") -> 13871 | G152: هاني | H152: =IFERROR(VLOOKUP(توريدات!$D152,تكعيبات!A:G,2,0),"") -> الحاج عدلي | I152: 4 | J152: =IFERROR(VLOOKUP(توريدات!$I152,تكعيبات!L:O,2,0),"") -> كسارة البشير | K152: =IFERROR(VLOOKUP(توريدات!$I152,تكعيبات!L:O,4,0),"") -> سن 6بالبودره | L152: 1 | M152: =IFERROR(VLOOKUP(توريدات!$E152,تكعيبات!D:F,3,0),"") -> 52.8 | N152: =IFERROR(توريدات!$L152*توريدات!$M152,"") -> 52.8 | O152: 0 | P152: =IFERROR(توريدات!$N152-توريدات!$O152,"") -> 52.8 | Q152: =IFERROR(VLOOKUP(توريدات!$I152,تكعيبات!L:N,3,0),"") -> 97 | R152: =IFERROR(توريدات!$Q152*توريدات!$P152,"") -> 5121.6 | S152: 0 | T152: =IFERROR(توريدات!$R152-توريدات!$S152,"") -> 5121.6
A153: =IF(AND($H153='كميات مقاول'!$G$1,$B153>='كميات مقاول'!$E$2,$B153<='كميات مقاول'!$H$2),$K153&$J153&$E153,"") ->  | B153: 2020-03-08 | C153: 48951 | D153: 1 | E153: 4368 | F153: =IFERROR(VLOOKUP(توريدات!$E153,تكعيبات!D:F,2,0),"") -> 2358 | G153: عبدالعزيز | H153: =IFERROR(VLOOKUP(توريدات!$D153,تكعيبات!A:G,2,0),"") -> الحاج عدلي | I153: 16 | J153: =IFERROR(VLOOKUP(توريدات!$I153,تكعيبات!L:O,2,0),"") -> كسارة الفهد العرمبي | K153: =IFERROR(VLOOKUP(توريدات!$I153,تكعيبات!L:O,4,0),"") -> سن 6بالبودره | L153: 1 | M153: =IFERROR(VLOOKUP(توريدات!$E153,تكعيبات!D:F,3,0),"") -> 44.75 | N153: =IFERROR(توريدات!$L153*توريدات!$M153,"") -> 44.75 | O153: 0 | P153: =IFERROR(توريدات!$N153-توريدات!$O153,"") -> 44.75 | Q153: =IFERROR(VLOOKUP(توريدات!$I153,تكعيبات!L:N,3,0),"") -> 95 | R153: =IFERROR(توريدات!$Q153*توريدات!$P153,"") -> 4251.25 | S153: 0 | T153: =IFERROR(توريدات!$R153-توريدات!$S153,"") -> 4251.25
A154: =IF(AND($H154='كميات مقاول'!$G$1,$B154>='كميات مقاول'!$E$2,$B154<='كميات مقاول'!$H$2),$K154&$J154&$E154,"") ->  | B154: 2020-03-08 | C154: 48952 | D154: 1 | E154: 5821 | F154: =IFERROR(VLOOKUP(توريدات!$E154,تكعيبات!D:F,2,0),"") -> 14047 | G154: عماد | H154: =IFERROR(VLOOKUP(توريدات!$D154,تكعيبات!A:G,2,0),"") -> الحاج عدلي | I154: 4 | J154: =IFERROR(VLOOKUP(توريدات!$I154,تكعيبات!L:O,2,0),"") -> كسارة البشير | K154: =IFERROR(VLOOKUP(توريدات!$I154,تكعيبات!L:O,4,0),"") -> سن 6بالبودره | L154: 1 | M154: =IFERROR(VLOOKUP(توريدات!$E154,تكعيبات!D:F,3,0),"") -> 58.35 | N154: =IFERROR(توريدات!$L154*توريدات!$M154,"") -> 58.35 | O154: 0 | P154: =IFERROR(توريدات!$N154-توريدات!$O154,"") -> 58.35 | Q154: =IFERROR(VLOOKUP(توريدات!$I154,تكعيبات!L:N,3,0),"") -> 97 | R154: =IFERROR(توريدات!$Q154*توريدات!$P154,"") -> 5659.95 | S154: 0 | T154: =IFERROR(توريدات!$R154-توريدات!$S154,"") -> 5659.95
A155: =IF(AND($H155='كميات مقاول'!$G$1,$B155>='كميات مقاول'!$E$2,$B155<='كميات مقاول'!$H$2),$K155&$J155&$E155,"") ->  | B155: 2020-03-08 | C155: 48953 | D155: 1 | E155: 8425 | F155: =IFERROR(VLOOKUP(توريدات!$E155,تكعيبات!D:F,2,0),"") -> 6124 | G155: احمد | H155: =IFERROR(VLOOKUP(توريدات!$D155,تكعيبات!A:G,2,0),"") -> الحاج عدلي | I155: 16 | J155: =IFERROR(VLOOKUP(توريدات!$I155,تكعيبات!L:O,2,0),"") -> كسارة الفهد العرمبي | K155: =IFERROR(VLOOKUP(توريدات!$I155,تكعيبات!L:O,4,0),"") -> سن 6بالبودره | L155: 1 | M155: =IFERROR(VLOOKUP(توريدات!$E155,تكعيبات!D:F,3,0),"") -> 44 | N155: =IFERROR(توريدات!$L155*توريدات!$M155,"") -> 44 | O155: 0 | P155: =IFERROR(توريدات!$N155-توريدات!$O155,"") -> 44 | Q155: =IFERROR(VLOOKUP(توريدات!$I155,تكعيبات!L:N,3,0),"") -> 95 | R155: =IFERROR(توريدات!$Q155*توريدات!$P155,"") -> 4180 | S155: 0 | T155: =IFERROR(توريدات!$R155-توريدات!$S155,"") -> 4180
A156: =IF(AND($H156='كميات مقاول'!$G$1,$B156>='كميات مقاول'!$E$2,$B156<='كميات مقاول'!$H$2),$K156&$J156&$E156,"") ->  | B156: 2020-03-08 | C156: 48954 | D156: 2 | E156: 4199 | F156: =IFERROR(VLOOKUP(توريدات!$E156,تكعيبات!D:F,2,0),"") -> 6835 | G156: محمد | H156: =IFERROR(VLOOKUP(توريدات!$D156,تكعيبات!A:G,2,0),"") -> مراد الوكيل | I156: 22 | J156: =IFERROR(VLOOKUP(توريدات!$I156,تكعيبات!L:O,2,0),"") -> كسارة فرج العرمبي | K156: =IFERROR(VLOOKUP(توريدات!$I156,تكعيبات!L:O,4,0),"") -> سن 6بالبودره | L156: 1 | M156: =IFERROR(VLOOKUP(توريدات!$E156,تكعيبات!D:F,3,0),"") -> 49.1 | N156: =IFERROR(توريدات!$L156*توريدات!$M156,"") -> 49.1 | O156: 0 | P156: =IFERROR(توريدات!$N156-توريدات!$O156,"") -> 49.1 | Q156: =IFERROR(VLOOKUP(توريدات!$I156,تكعيبات!L:N,3,0),"") -> 95 | R156: =IFERROR(توريدات!$Q156*توريدات!$P156,"") -> 4664.5 | S156: 0 | T156: =IFERROR(توريدات!$R156-توريدات!$S156,"") -> 4664.5
A157: =IF(AND($H157='كميات مقاول'!$G$1,$B157>='كميات مقاول'!$E$2,$B157<='كميات مقاول'!$H$2),$K157&$J157&$E157,"") ->  | B157: 2020-03-08 | C157: 48955 | D157: 1 | E157: 8265 | F157: =IFERROR(VLOOKUP(توريدات!$E157,تكعيبات!D:F,2,0),"") -> 5327 | G157: عصام | H157: =IFERROR(VLOOKUP(توريدات!$D157,تكعيبات!A:G,2,0),"") -> الحاج عدلي | I157: 3 | J157: =IFERROR(VLOOKUP(توريدات!$I157,تكعيبات!L:O,2,0),"") -> كسارة ابناء الشرقية | K157: =IFERROR(VLOOKUP(توريدات!$I157,تكعيبات!L:O,4,0),"") -> سن 6بالبودره | L157: 1 | M157: =IFERROR(VLOOKUP(توريدات!$E157,تكعيبات!D:F,3,0),"") -> 48 | N157: =IFERROR(توريدات!$L157*توريدات!$M157,"") -> 48 | O157: 0 | P157: =IFERROR(توريدات!$N157-توريدات!$O157,"") -> 48 | Q157: =IFERROR(VLOOKUP(توريدات!$I157,تكعيبات!L:N,3,0),"") -> 97 | R157: =IFERROR(توريدات!$Q157*توريدات!$P157,"") -> 4656 | S157: 0 | T157: =IFERROR(توريدات!$R157-توريدات!$S157,"") -> 4656
A158: =IF(AND($H158='كميات مقاول'!$G$1,$B158>='كميات مقاول'!$E$2,$B158<='كميات مقاول'!$H$2),$K158&$J158&$E158,"") ->  | B158: 2020-03-08 | C158: 48956 | D158: 1 | E158: 4291 | F158: =IFERROR(VLOOKUP(توريدات!$E158,تكعيبات!D:F,2,0),"") -> 5172 | G158: عادل | H158: =IFERROR(VLOOKUP(توريدات!$D158,تكعيبات!A:G,2,0),"") -> الحاج عدلي | I158: 3 | J158: =IFERROR(VLOOKUP(توريدات!$I158,تكعيبات!L:O,2,0),"") -> كسارة ابناء الشرقية | K158: =IFERROR(VLOOKUP(توريدات!$I158,تكعيبات!L:O,4,0),"") -> سن 6بالبودره | L158: 1 | M158: =IFERROR(VLOOKUP(توريدات!$E158,تكعيبات!D:F,3,0),"") -> 46.3 | N158: =IFERROR(توريدات!$L158*توريدات!$M158,"") -> 46.3 | O158: 0 | P158: =IFERROR(توريدات!$N158-توريدات!$O158,"") -> 46.3 | Q158: =IFERROR(VLOOKUP(توريدات!$I158,تكعيبات!L:N,3,0),"") -> 97 | R158: =IFERROR(توريدات!$Q158*توريدات!$P158,"") -> 4491.1 | S158: 0 | T158: =IFERROR(توريدات!$R158-توريدات!$S158,"") -> 4491.1
A159: =IF(AND($H159='كميات مقاول'!$G$1,$B159>='كميات مقاول'!$E$2,$B159<='كميات مقاول'!$H$2),$K159&$J159&$E159,"") ->  | B159: 2020-03-08 | C159: 48957 | D159: 1 | E159: 6791 | F159: =IFERROR(VLOOKUP(توريدات!$E159,تكعيبات!D:F,2,0),"") -> 4389 | G159: احمد | H159: =IFERROR(VLOOKUP(توريدات!$D159,تكعيبات!A:G,2,0),"") -> الحاج عدلي | I159: 2 | J159: =IFERROR(VLOOKUP(توريدات!$I159,تكعيبات!L:O,2,0),"") -> كسارة خليل سعيد | K159: =IFERROR(VLOOKUP(توريدات!$I159,تكعيبات!L:O,4,0),"") -> سن 6بالبودره | L159: 1 | M159: =IFERROR(VLOOKUP(توريدات!$E159,تكعيبات!D:F,3,0),"") -> 58 | N159: =IFERROR(توريدات!$L159*توريدات!$M159,"") -> 58 | O159: 0 | P159: =IFERROR(توريدات!$N159-توريدات!$O159,"") -> 58 | Q159: =IFERROR(VLOOKUP(توريدات!$I159,تكعيبات!L:N,3,0),"") -> 97 | R159: =IFERROR(توريدات!$Q159*توريدات!$P159,"") -> 5626 | S159: 0 | T159: =IFERROR(توريدات!$R159-توريدات!$S159,"") -> 5626
A160: =IF(AND($H160='كميات مقاول'!$G$1,$B160>='كميات مقاول'!$E$2,$B160<='كميات مقاول'!$H$2),$K160&$J160&$E160,"") ->  | B160: 2020-03-08 | C160: 48958 | D160: 1 | E160: 4397 | F160: =IFERROR(VLOOKUP(توريدات!$E160,تكعيبات!D:F,2,0),"") -> 14068 | G160: وليد | H160: =IFERROR(VLOOKUP(توريدات!$D160,تكعيبات!A:G,2,0),"") -> الحاج عدلي | I160: 2 | J160: =IFERROR(VLOOKUP(توريدات!$I160,تكعيبات!L:O,2,0),"") -> كسارة خليل سعيد | K160: =IFERROR(VLOOKUP(توريدات!$I160,تكعيبات!L:O,4,0),"") -> سن 6بالبودره | L160: 1 | M160: =IFERROR(VLOOKUP(توريدات!$E160,تكعيبات!D:F,3,0),"") -> 56 | N160: =IFERROR(توريدات!$L160*توريدات!$M160,"") -> 56 | O160: 0 | P160: =IFERROR(توريدات!$N160-توريدات!$O160,"") -> 56 | Q160: =IFERROR(VLOOKUP(توريدات!$I160,تكعيبات!L:N,3,0),"") -> 97 | R160: =IFERROR(توريدات!$Q160*توريدات!$P160,"") -> 5432 | S160: 0 | T160: =IFERROR(توريدات!$R160-توريدات!$S160,"") -> 5432
A161: =IF(AND($H161='كميات مقاول'!$G$1,$B161>='كميات مقاول'!$E$2,$B161<='كميات مقاول'!$H$2),$K161&$J161&$E161,"") ->  | B161: 2020-03-08 | C161: 48959 | D161: 1 | E161: 5463 | F161: =IFERROR(VLOOKUP(توريدات!$E161,تكعيبات!D:F,2,0),"") -> 6497 | G161: محمد | H161: =IFERROR(VLOOKUP(توريدات!$D161,تكعيبات!A:G,2,0),"") -> الحاج عدلي | I161: 3 | J161: =IFERROR(VLOOKUP(توريدات!$I161,تكعيبات!L:O,2,0),"") -> كسارة ابناء الشرقية | K161: =IFERROR(VLOOKUP(توريدات!$I161,تكعيبات!L:O,4,0),"") -> سن 6بالبودره | L161: 1 | M161: =IFERROR(VLOOKUP(توريدات!$E161,تكعيبات!D:F,3,0),"") -> 56 | N161: =IFERROR(توريدات!$L161*توريدات!$M161,"") -> 56 | O161: 0 | P161: =IFERROR(توريدات!$N161-توريدات!$O161,"") -> 56 | Q161: =IFERROR(VLOOKUP(توريدات!$I161,تكعيبات!L:N,3,0),"") -> 97 | R161: =IFERROR(توريدات!$Q161*توريدات!$P161,"") -> 5432 | S161: 0 | T161: =IFERROR(توريدات!$R161-توريدات!$S161,"") -> 5432
A162: =IF(AND($H162='كميات مقاول'!$G$1,$B162>='كميات مقاول'!$E$2,$B162<='كميات مقاول'!$H$2),$K162&$J162&$E162,"") ->  | B162: 2020-03-08 | C162: 48960 | D162: 4 | E162: 9185 | F162: =IFERROR(VLOOKUP(توريدات!$E162,تكعيبات!D:F,2,0),"") -> 2498 | G162: هاني | H162: =IFERROR(VLOOKUP(توريدات!$D162,تكعيبات!A:G,2,0),"") -> خالد أبو الحمد | I162: 3 | J162: =IFERROR(VLOOKUP(توريدات!$I162,تكعيبات!L:O,2,0),"") -> كسارة ابناء الشرقية | K162: =IFERROR(VLOOKUP(توريدات!$I162,تكعيبات!L:O,4,0),"") -> سن 6بالبودره | L162: 1 | M162: =IFERROR(VLOOKUP(توريدات!$E162,تكعيبات!D:F,3,0),"") -> 58.75 | N162: =IFERROR(توريدات!$L162*توريدات!$M162,"") -> 58.75 | O162: 0 | P162: =IFERROR(توريدات!$N162-توريدات!$O162,"") -> 58.75 | Q162: =IFERROR(VLOOKUP(توريدات!$I162,تكعيبات!L:N,3,0),"") -> 97 | R162: =IFERROR(توريدات!$Q162*توريدات!$P162,"") -> 5698.75 | S162: 0 | T162: =IFERROR(توريدات!$R162-توريدات!$S162,"") -> 5698.75
A163: =IF(AND($H163='كميات مقاول'!$G$1,$B163>='كميات مقاول'!$E$2,$B163<='كميات مقاول'!$H$2),$K163&$J163&$E163,"") ->  | B163: 2020-03-08 | C163: 48961 | D163: 2 | E163: 8256 | F163: =IFERROR(VLOOKUP(توريدات!$E163,تكعيبات!D:F,2,0),"") -> 92132 | G163: رضا | H163: =IFERROR(VLOOKUP(توريدات!$D163,تكعيبات!A:G,2,0),"") -> مراد الوكيل | I163: 22 | J163: =IFERROR(VLOOKUP(توريدات!$I163,تكعيبات!L:O,2,0),"") -> كسارة فرج العرمبي | K163: =IFERROR(VLOOKUP(توريدات!$I163,تكعيبات!L:O,4,0),"") -> سن 6بالبودره | L163: 1 | M163: =IFERROR(VLOOKUP(توريدات!$E163,تكعيبات!D:F,3,0),"") -> 53 | N163: =IFERROR(توريدات!$L163*توريدات!$M163,"") -> 53 | O163: 0 | P163: =IFERROR(توريدات!$N163-توريدات!$O163,"") -> 53 | Q163: =IFERROR(VLOOKUP(توريدات!$I163,تكعيبات!L:N,3,0),"") -> 95 | R163: =IFERROR(توريدات!$Q163*توريدات!$P163,"") -> 5035 | S163: 0 | T163: =IFERROR(توريدات!$R163-توريدات!$S163,"") -> 5035
A164: =IF(AND($H164='كميات مقاول'!$G$1,$B164>='كميات مقاول'!$E$2,$B164<='كميات مقاول'!$H$2),$K164&$J164&$E164,"") ->  | B164: 2020-03-08 | C164: 48962 | D164: 1 | E164: 4789 | F164: =IFERROR(VLOOKUP(توريدات!$E164,تكعيبات!D:F,2,0),"") -> 5284 | G164: هاني | H164: =IFERROR(VLOOKUP(توريدات!$D164,تكعيبات!A:G,2,0),"") -> الحاج عدلي | I164: 3 | J164: =IFERROR(VLOOKUP(توريدات!$I164,تكعيبات!L:O,2,0),"") -> كسارة ابناء الشرقية | K164: =IFERROR(VLOOKUP(توريدات!$I164,تكعيبات!L:O,4,0),"") -> سن 6بالبودره | L164: 1 | M164: =IFERROR(VLOOKUP(توريدات!$E164,تكعيبات!D:F,3,0),"") -> 55.75 | N164: =IFERROR(توريدات!$L164*توريدات!$M164,"") -> 55.75 | O164: 0 | P164: =IFERROR(توريدات!$N164-توريدات!$O164,"") -> 55.75 | Q164: =IFERROR(VLOOKUP(توريدات!$I164,تكعيبات!L:N,3,0),"") -> 97 | R164: =IFERROR(توريدات!$Q164*توريدات!$P164,"") -> 5407.75 | S164: 0 | T164: =IFERROR(توريدات!$R164-توريدات!$S164,"") -> 5407.75
A165: =IF(AND($H165='كميات مقاول'!$G$1,$B165>='كميات مقاول'!$E$2,$B165<='كميات مقاول'!$H$2),$K165&$J165&$E165,"") ->  | B165: 2020-03-08 | C165: 48963 | D165: 1 | E165: 6459 | F165: =IFERROR(VLOOKUP(توريدات!$E165,تكعيبات!D:F,2,0),"") -> 4752 | G165: علي | H165: =IFERROR(VLOOKUP(توريدات!$D165,تكعيبات!A:G,2,0),"") -> الحاج عدلي | I165: 6 | J165: =IFERROR(VLOOKUP(توريدات!$I165,تكعيبات!L:O,2,0),"") -> كسارة القادسية | K165: =IFERROR(VLOOKUP(توريدات!$I165,تكعيبات!L:O,4,0),"") -> سن 6بالبودره | L165: 1 | M165: =IFERROR(VLOOKUP(توريدات!$E165,تكعيبات!D:F,3,0),"") -> 55 | N165: =IFERROR(توريدات!$L165*توريدات!$M165,"") -> 55 | O165: 0 | P165: =IFERROR(توريدات!$N165-توريدات!$O165,"") -> 55 | Q165: =IFERROR(VLOOKUP(توريدات!$I165,تكعيبات!L:N,3,0),"") -> 95 | R165: =IFERROR(توريدات!$Q165*توريدات!$P165,"") -> 5225 | S165: 0 | T165: =IFERROR(توريدات!$R165-توريدات!$S165,"") -> 5225
A166: =IF(AND($H166='كميات مقاول'!$G$1,$B166>='كميات مقاول'!$E$2,$B166<='كميات مقاول'!$H$2),$K166&$J166&$E166,"") ->  | B166: 2020-03-08 | C166: 48964 | D166: 2 | E166: 9286 | F166: =IFERROR(VLOOKUP(توريدات!$E166,تكعيبات!D:F,2,0),"") -> 6912 | G166: محمد | H166: =IFERROR(VLOOKUP(توريدات!$D166,تكعيبات!A:G,2,0),"") -> مراد الوكيل | I166: 22 | J166: =IFERROR(VLOOKUP(توريدات!$I166,تكعيبات!L:O,2,0),"") -> كسارة فرج العرمبي | K166: =IFERROR(VLOOKUP(توريدات!$I166,تكعيبات!L:O,4,0),"") -> سن 6بالبودره | L166: 1 | M166: =IFERROR(VLOOKUP(توريدات!$E166,تكعيبات!D:F,3,0),"") -> 56.6 | N166: =IFERROR(توريدات!$L166*توريدات!$M166,"") -> 56.6 | O166: 0 | P166: =IFERROR(توريدات!$N166-توريدات!$O166,"") -> 56.6 | Q166: =IFERROR(VLOOKUP(توريدات!$I166,تكعيبات!L:N,3,0),"") -> 95 | R166: =IFERROR(توريدات!$Q166*توريدات!$P166,"") -> 5377 | S166: 0 | T166: =IFERROR(توريدات!$R166-توريدات!$S166,"") -> 5377
A167: =IF(AND($H167='كميات مقاول'!$G$1,$B167>='كميات مقاول'!$E$2,$B167<='كميات مقاول'!$H$2),$K167&$J167&$E167,"") ->  | B167: 2020-03-08 | C167: 48965 | D167: 1 | E167: 6645 | F167: =IFERROR(VLOOKUP(توريدات!$E167,تكعيبات!D:F,2,0),"") -> 5293 | G167: خالد | H167: =IFERROR(VLOOKUP(توريدات!$D167,تكعيبات!A:G,2,0),"") -> الحاج عدلي | I167: 3 | J167: =IFERROR(VLOOKUP(توريدات!$I167,تكعيبات!L:O,2,0),"") -> كسارة ابناء الشرقية | K167: =IFERROR(VLOOKUP(توريدات!$I167,تكعيبات!L:O,4,0),"") -> سن 6بالبودره | L167: 1 | M167: =IFERROR(VLOOKUP(توريدات!$E167,تكعيبات!D:F,3,0),"") -> 53 | N167: =IFERROR(توريدات!$L167*توريدات!$M167,"") -> 53 | O167: 0 | P167: =IFERROR(توريدات!$N167-توريدات!$O167,"") -> 53 | Q167: =IFERROR(VLOOKUP(توريدات!$I167,تكعيبات!L:N,3,0),"") -> 97 | R167: =IFERROR(توريدات!$Q167*توريدات!$P167,"") -> 5141 | S167: 0 | T167: =IFERROR(توريدات!$R167-توريدات!$S167,"") -> 5141
A168: =IF(AND($H168='كميات مقاول'!$G$1,$B168>='كميات مقاول'!$E$2,$B168<='كميات مقاول'!$H$2),$K168&$J168&$E168,"") ->  | B168: 2020-03-08 | C168: 48966 | D168: 4 | E168: 6751 | F168: =IFERROR(VLOOKUP(توريدات!$E168,تكعيبات!D:F,2,0),"") -> 2786 | G168: احمد | H168: =IFERROR(VLOOKUP(توريدات!$D168,تكعيبات!A:G,2,0),"") -> خالد أبو الحمد | I168: 5 | J168: =IFERROR(VLOOKUP(توريدات!$I168,تكعيبات!L:O,2,0),"") -> كسارة التيسير | K168: =IFERROR(VLOOKUP(توريدات!$I168,تكعيبات!L:O,4,0),"") -> سن 6بالبودره | L168: 1 | M168: =IFERROR(VLOOKUP(توريدات!$E168,تكعيبات!D:F,3,0),"") -> 56.4 | N168: =IFERROR(توريدات!$L168*توريدات!$M168,"") -> 56.4 | O168: 0 | P168: =IFERROR(توريدات!$N168-توريدات!$O168,"") -> 56.4 | Q168: =IFERROR(VLOOKUP(توريدات!$I168,تكعيبات!L:N,3,0),"") -> 97 | R168: =IFERROR(توريدات!$Q168*توريدات!$P168,"") -> 5470.8 | S168: 0 | T168: =IFERROR(توريدات!$R168-توريدات!$S168,"") -> 5470.8
A169: =IF(AND($H169='كميات مقاول'!$G$1,$B169>='كميات مقاول'!$E$2,$B169<='كميات مقاول'!$H$2),$K169&$J169&$E169,"") ->  | B169: 2020-03-08 | C169: 48967 | D169: 2 | E169: 126432 | F169: =IFERROR(VLOOKUP(توريدات!$E169,تكعيبات!D:F,2,0),"") -> 14514 | G169: احمد | H169: =IFERROR(VLOOKUP(توريدات!$D169,تكعيبات!A:G,2,0),"") -> مراد الوكيل | I169: 22 | J169: =IFERROR(VLOOKUP(توريدات!$I169,تكعيبات!L:O,2,0),"") -> كسارة فرج العرمبي | K169: =IFERROR(VLOOKUP(توريدات!$I169,تكعيبات!L:O,4,0),"") -> سن 6بالبودره | L169: 1 | M169: =IFERROR(VLOOKUP(توريدات!$E169,تكعيبات!D:F,3,0),"") -> 55 | N169: =IFERROR(توريدات!$L169*توريدات!$M169,"") -> 55 | O169: 0 | P169: =IFERROR(توريدات!$N169-توريدات!$O169,"") -> 55 | Q169: =IFERROR(VLOOKUP(توريدات!$I169,تكعيبات!L:N,3,0),"") -> 95 | R169: =IFERROR(توريدات!$Q169*توريدات!$P169,"") -> 5225 | S169: 0 | T169: =IFERROR(توريدات!$R169-توريدات!$S169,"") -> 5225
A170: =IF(AND($H170='كميات مقاول'!$G$1,$B170>='كميات مقاول'!$E$2,$B170<='كميات مقاول'!$H$2),$K170&$J170&$E170,"") ->  | B170: 2020-03-08 | C170: 48968 | D170: 1 | E170: 9645 | F170: =IFERROR(VLOOKUP(توريدات!$E170,تكعيبات!D:F,2,0),"") -> 13423 | G170: عصام | H170: =IFERROR(VLOOKUP(توريدات!$D170,تكعيبات!A:G,2,0),"") -> الحاج عدلي | I170: 4 | J170: =IFERROR(VLOOKUP(توريدات!$I170,تكعيبات!L:O,2,0),"") -> كسارة البشير | K170: =IFERROR(VLOOKUP(توريدات!$I170,تكعيبات!L:O,4,0),"") -> سن 6بالبودره | L170: 1 | M170: =IFERROR(VLOOKUP(توريدات!$E170,تكعيبات!D:F,3,0),"") -> 50.6 | N170: =IFERROR(توريدات!$L170*توريدات!$M170,"") -> 50.6 | O170: 0 | P170: =IFERROR(توريدات!$N170-توريدات!$O170,"") -> 50.6 | Q170: =IFERROR(VLOOKUP(توريدات!$I170,تكعيبات!L:N,3,0),"") -> 97 | R170: =IFERROR(توريدات!$Q170*توريدات!$P170,"") -> 4908.2 | S170: 0 | T170: =IFERROR(توريدات!$R170-توريدات!$S170,"") -> 4908.2
A171: =IF(AND($H171='كميات مقاول'!$G$1,$B171>='كميات مقاول'!$E$2,$B171<='كميات مقاول'!$H$2),$K171&$J171&$E171,"") ->  | B171: 2020-03-08 | C171: 48969 | D171: 2 | E171: 8786 | F171: =IFERROR(VLOOKUP(توريدات!$E171,تكعيبات!D:F,2,0),"") -> 9137 | G171: شعبان | H171: =IFERROR(VLOOKUP(توريدات!$D171,تكعيبات!A:G,2,0),"") -> مراد الوكيل | I171: 22 | J171: =IFERROR(VLOOKUP(توريدات!$I171,تكعيبات!L:O,2,0),"") -> كسارة فرج العرمبي | K171: =IFERROR(VLOOKUP(توريدات!$I171,تكعيبات!L:O,4,0),"") -> سن 6بالبودره | L171: 1 | M171: =IFERROR(VLOOKUP(توريدات!$E171,تكعيبات!D:F,3,0),"") -> 56.5 | N171: =IFERROR(توريدات!$L171*توريدات!$M171,"") -> 56.5 | O171: 0 | P171: =IFERROR(توريدات!$N171-توريدات!$O171,"") -> 56.5 | Q171: =IFERROR(VLOOKUP(توريدات!$I171,تكعيبات!L:N,3,0),"") -> 95 | R171: =IFERROR(توريدات!$Q171*توريدات!$P171,"") -> 5367.5 | S171: 0 | T171: =IFERROR(توريدات!$R171-توريدات!$S171,"") -> 5367.5
A172: =IF(AND($H172='كميات مقاول'!$G$1,$B172>='كميات مقاول'!$E$2,$B172<='كميات مقاول'!$H$2),$K172&$J172&$E172,"") ->  | B172: 2020-03-08 | C172: 48970 | D172: 4 | E172: 2917 | F172: =IFERROR(VLOOKUP(توريدات!$E172,تكعيبات!D:F,2,0),"") -> 8617 | G172: اسلام | H172: =IFERROR(VLOOKUP(توريدات!$D172,تكعيبات!A:G,2,0),"") -> خالد أبو الحمد | I172: 3 | J172: =IFERROR(VLOOKUP(توريدات!$I172,تكعيبات!L:O,2,0),"") -> كسارة ابناء الشرقية | K172: =IFERROR(VLOOKUP(توريدات!$I172,تكعيبات!L:O,4,0),"") -> سن 6بالبودره | L172: 1 | M172: =IFERROR(VLOOKUP(توريدات!$E172,تكعيبات!D:F,3,0),"") -> 56.2 | N172: =IFERROR(توريدات!$L172*توريدات!$M172,"") -> 56.2 | O172: 0 | P172: =IFERROR(توريدات!$N172-توريدات!$O172,"") -> 56.2 | Q172: =IFERROR(VLOOKUP(توريدات!$I172,تكعيبات!L:N,3,0),"") -> 97 | R172: =IFERROR(توريدات!$Q172*توريدات!$P172,"") -> 5451.4 | S172: 0 | T172: =IFERROR(توريدات!$R172-توريدات!$S172,"") -> 5451.4
A173: =IF(AND($H173='كميات مقاول'!$G$1,$B173>='كميات مقاول'!$E$2,$B173<='كميات مقاول'!$H$2),$K173&$J173&$E173,"") ->  | B173: 2020-03-08 | C173: 48971 | D173: 1 | E173: 8372 | F173: =IFERROR(VLOOKUP(توريدات!$E173,تكعيبات!D:F,2,0),"") -> 9387 | G173: احمد | H173: =IFERROR(VLOOKUP(توريدات!$D173,تكعيبات!A:G,2,0),"") -> الحاج عدلي | I173: 4 | J173: =IFERROR(VLOOKUP(توريدات!$I173,تكعيبات!L:O,2,0),"") -> كسارة البشير | K173: =IFERROR(VLOOKUP(توريدات!$I173,تكعيبات!L:O,4,0),"") -> سن 6بالبودره | L173: 1 | M173: =IFERROR(VLOOKUP(توريدات!$E173,تكعيبات!D:F,3,0),"") -> 49.25 | N173: =IFERROR(توريدات!$L173*توريدات!$M173,"") -> 49.25 | O173: 0 | P173: =IFERROR(توريدات!$N173-توريدات!$O173,"") -> 49.25 | Q173: =IFERROR(VLOOKUP(توريدات!$I173,تكعيبات!L:N,3,0),"") -> 97 | R173: =IFERROR(توريدات!$Q173*توريدات!$P173,"") -> 4777.25 | S173: 0 | T173: =IFERROR(توريدات!$R173-توريدات!$S173,"") -> 4777.25
A174: =IF(AND($H174='كميات مقاول'!$G$1,$B174>='كميات مقاول'!$E$2,$B174<='كميات مقاول'!$H$2),$K174&$J174&$E174,"") ->  | B174: 2020-03-08 | C174: 48972 | D174: 1 | E174: 6791 | F174: =IFERROR(VLOOKUP(توريدات!$E174,تكعيبات!D:F,2,0),"") -> 4389 | G174: رامي | H174: =IFERROR(VLOOKUP(توريدات!$D174,تكعيبات!A:G,2,0),"") -> الحاج عدلي | I174: 2 | J174: =IFERROR(VLOOKUP(توريدات!$I174,تكعيبات!L:O,2,0),"") -> كسارة خليل سعيد | K174: =IFERROR(VLOOKUP(توريدات!$I174,تكعيبات!L:O,4,0),"") -> سن 6بالبودره | L174: 1 | M174: =IFERROR(VLOOKUP(توريدات!$E174,تكعيبات!D:F,3,0),"") -> 58 | N174: =IFERROR(توريدات!$L174*توريدات!$M174,"") -> 58 | O174: 0 | P174: =IFERROR(توريدات!$N174-توريدات!$O174,"") -> 58 | Q174: =IFERROR(VLOOKUP(توريدات!$I174,تكعيبات!L:N,3,0),"") -> 97 | R174: =IFERROR(توريدات!$Q174*توريدات!$P174,"") -> 5626 | S174: 0 | T174: =IFERROR(توريدات!$R174-توريدات!$S174,"") -> 5626
A175: =IF(AND($H175='كميات مقاول'!$G$1,$B175>='كميات مقاول'!$E$2,$B175<='كميات مقاول'!$H$2),$K175&$J175&$E175,"") ->  | B175: 2020-03-08 | C175: 48973 | D175: 1 | E175: 1376 | F175: =IFERROR(VLOOKUP(توريدات!$E175,تكعيبات!D:F,2,0),"") -> 6718 | G175: مجدي | H175: =IFERROR(VLOOKUP(توريدات!$D175,تكعيبات!A:G,2,0),"") -> الحاج عدلي | I175: 2 | J175: =IFERROR(VLOOKUP(توريدات!$I175,تكعيبات!L:O,2,0),"") -> كسارة خليل سعيد | K175: =IFERROR(VLOOKUP(توريدات!$I175,تكعيبات!L:O,4,0),"") -> سن 6بالبودره | L175: 1 | M175: =IFERROR(VLOOKUP(توريدات!$E175,تكعيبات!D:F,3,0),"") -> 57 | N175: =IFERROR(توريدات!$L175*توريدات!$M175,"") -> 57 | O175: 0 | P175: =IFERROR(توريدات!$N175-توريدات!$O175,"") -> 57 | Q175: =IFERROR(VLOOKUP(توريدات!$I175,تكعيبات!L:N,3,0),"") -> 97 | R175: =IFERROR(توريدات!$Q175*توريدات!$P175,"") -> 5529 | S175: 0 | T175: =IFERROR(توريدات!$R175-توريدات!$S175,"") -> 5529
A176: =IF(AND($H176='كميات مقاول'!$G$1,$B176>='كميات مقاول'!$E$2,$B176<='كميات مقاول'!$H$2),$K176&$J176&$E176,"") ->  | B176: 2020-03-08 | C176: 48974 | D176: 4 | E176: 8159 | F176: =IFERROR(VLOOKUP(توريدات!$E176,تكعيبات!D:F,2,0),"") -> 31451 | G176: رضا | H176: =IFERROR(VLOOKUP(توريدات!$D176,تكعيبات!A:G,2,0),"") -> خالد أبو الحمد | I176: 7 | J176: =IFERROR(VLOOKUP(توريدات!$I176,تكعيبات!L:O,2,0),"") -> كسارة 6أكتوبــر | K176: =IFERROR(VLOOKUP(توريدات!$I176,تكعيبات!L:O,4,0),"") -> سن 6بالبودره | L176: 1 | M176: =IFERROR(VLOOKUP(توريدات!$E176,تكعيبات!D:F,3,0),"") -> 50.4 | N176: =IFERROR(توريدات!$L176*توريدات!$M176,"") -> 50.4 | O176: 0 | P176: =IFERROR(توريدات!$N176-توريدات!$O176,"") -> 50.4 | Q176: =IFERROR(VLOOKUP(توريدات!$I176,تكعيبات!L:N,3,0),"") -> 97 | R176: =IFERROR(توريدات!$Q176*توريدات!$P176,"") -> 4888.8 | S176: 0 | T176: =IFERROR(توريدات!$R176-توريدات!$S176,"") -> 4888.8
A177: =IF(AND($H177='كميات مقاول'!$G$1,$B177>='كميات مقاول'!$E$2,$B177<='كميات مقاول'!$H$2),$K177&$J177&$E177,"") ->  | B177: 2020-03-09 | C177: 48975 | D177: 2 | E177: 2986 | F177: =IFERROR(VLOOKUP(توريدات!$E177,تكعيبات!D:F,2,0),"") -> 1453 | G177: جمال | H177: =IFERROR(VLOOKUP(توريدات!$D177,تكعيبات!A:G,2,0),"") -> مراد الوكيل | I177: 22 | J177: =IFERROR(VLOOKUP(توريدات!$I177,تكعيبات!L:O,2,0),"") -> كسارة فرج العرمبي | K177: =IFERROR(VLOOKUP(توريدات!$I177,تكعيبات!L:O,4,0),"") -> سن 6بالبودره | L177: 1 | M177: =IFERROR(VLOOKUP(توريدات!$E177,تكعيبات!D:F,3,0),"") -> 58.8 | N177: =IFERROR(توريدات!$L177*توريدات!$M177,"") -> 58.8 | O177: 0 | P177: =IFERROR(توريدات!$N177-توريدات!$O177,"") -> 58.8 | Q177: =IFERROR(VLOOKUP(توريدات!$I177,تكعيبات!L:N,3,0),"") -> 95 | R177: =IFERROR(توريدات!$Q177*توريدات!$P177,"") -> 5586 | S177: 0 | T177: =IFERROR(توريدات!$R177-توريدات!$S177,"") -> 5586
A178: =IF(AND($H178='كميات مقاول'!$G$1,$B178>='كميات مقاول'!$E$2,$B178<='كميات مقاول'!$H$2),$K178&$J178&$E178,"") ->  | B178: 2020-03-09 | C178: 48976 | D178: 2 | E178: 9832 | F178: =IFERROR(VLOOKUP(توريدات!$E178,تكعيبات!D:F,2,0),"") -> 13171 | G178: احمد | H178: =IFERROR(VLOOKUP(توريدات!$D178,تكعيبات!A:G,2,0),"") -> مراد الوكيل | I178: 22 | J178: =IFERROR(VLOOKUP(توريدات!$I178,تكعيبات!L:O,2,0),"") -> كسارة فرج العرمبي | K178: =IFERROR(VLOOKUP(توريدات!$I178,تكعيبات!L:O,4,0),"") -> سن 6بالبودره | L178: 1 | M178: =IFERROR(VLOOKUP(توريدات!$E178,تكعيبات!D:F,3,0),"") -> 59.7 | N178: =IFERROR(توريدات!$L178*توريدات!$M178,"") -> 59.7 | O178: 0 | P178: =IFERROR(توريدات!$N178-توريدات!$O178,"") -> 59.7 | Q178: =IFERROR(VLOOKUP(توريدات!$I178,تكعيبات!L:N,3,0),"") -> 95 | R178: =IFERROR(توريدات!$Q178*توريدات!$P178,"") -> 5671.5 | S178: 0 | T178: =IFERROR(توريدات!$R178-توريدات!$S178,"") -> 5671.5
A179: =IF(AND($H179='كميات مقاول'!$G$1,$B179>='كميات مقاول'!$E$2,$B179<='كميات مقاول'!$H$2),$K179&$J179&$E179,"") ->  | B179: 2020-03-09 | C179: 48977 | D179: 2 | E179: 4639 | F179: =IFERROR(VLOOKUP(توريدات!$E179,تكعيبات!D:F,2,0),"") -> 14066 | G179: وليد | H179: =IFERROR(VLOOKUP(توريدات!$D179,تكعيبات!A:G,2,0),"") -> مراد الوكيل | I179: 22 | J179: =IFERROR(VLOOKUP(توريدات!$I179,تكعيبات!L:O,2,0),"") -> كسارة فرج العرمبي | K179: =IFERROR(VLOOKUP(توريدات!$I179,تكعيبات!L:O,4,0),"") -> سن 6بالبودره | L179: 1 | M179: =IFERROR(VLOOKUP(توريدات!$E179,تكعيبات!D:F,3,0),"") -> 60.9 | N179: =IFERROR(توريدات!$L179*توريدات!$M179,"") -> 60.9 | O179: 0 | P179: =IFERROR(توريدات!$N179-توريدات!$O179,"") -> 60.9 | Q179: =IFERROR(VLOOKUP(توريدات!$I179,تكعيبات!L:N,3,0),"") -> 95 | R179: =IFERROR(توريدات!$Q179*توريدات!$P179,"") -> 5785.5 | S179: 0 | T179: =IFERROR(توريدات!$R179-توريدات!$S179,"") -> 5785.5
A180: =IF(AND($H180='كميات مقاول'!$G$1,$B180>='كميات مقاول'!$E$2,$B180<='كميات مقاول'!$H$2),$K180&$J180&$E180,"") ->  | B180: 2020-03-09 | C180: 48978 | D180: 2 | E180: 4199 | F180: =IFERROR(VLOOKUP(توريدات!$E180,تكعيبات!D:F,2,0),"") -> 6835 | G180: محمد | H180: =IFERROR(VLOOKUP(توريدات!$D180,تكعيبات!A:G,2,0),"") -> مراد الوكيل | I180: 22 | J180: =IFERROR(VLOOKUP(توريدات!$I180,تكعيبات!L:O,2,0),"") -> كسارة فرج العرمبي | K180: =IFERROR(VLOOKUP(توريدات!$I180,تكعيبات!L:O,4,0),"") -> سن 6بالبودره | L180: 1 | M180: =IFERROR(VLOOKUP(توريدات!$E180,تكعيبات!D:F,3,0),"") -> 49.1 | N180: =IFERROR(توريدات!$L180*توريدات!$M180,"") -> 49.1 | O180: 0 | P180: =IFERROR(توريدات!$N180-توريدات!$O180,"") -> 49.1 | Q180: =IFERROR(VLOOKUP(توريدات!$I180,تكعيبات!L:N,3,0),"") -> 95 | R180: =IFERROR(توريدات!$Q180*توريدات!$P180,"") -> 4664.5 | S180: 0 | T180: =IFERROR(توريدات!$R180-توريدات!$S180,"") -> 4664.5
A181: =IF(AND($H181='كميات مقاول'!$G$1,$B181>='كميات مقاول'!$E$2,$B181<='كميات مقاول'!$H$2),$K181&$J181&$E181,"") ->  | B181: 2020-03-09 | C181: 48979 | D181: 1 | E181: 6459 | F181: =IFERROR(VLOOKUP(توريدات!$E181,تكعيبات!D:F,2,0),"") -> 4752 | G181: علي | H181: =IFERROR(VLOOKUP(توريدات!$D181,تكعيبات!A:G,2,0),"") -> الحاج عدلي | I181: 6 | J181: =IFERROR(VLOOKUP(توريدات!$I181,تكعيبات!L:O,2,0),"") -> كسارة القادسية | K181: =IFERROR(VLOOKUP(توريدات!$I181,تكعيبات!L:O,4,0),"") -> سن 6بالبودره | L181: 1 | M181: =IFERROR(VLOOKUP(توريدات!$E181,تكعيبات!D:F,3,0),"") -> 55 | N181: =IFERROR(توريدات!$L181*توريدات!$M181,"") -> 55 | O181: 0 | P181: =IFERROR(توريدات!$N181-توريدات!$O181,"") -> 55 | Q181: =IFERROR(VLOOKUP(توريدات!$I181,تكعيبات!L:N,3,0),"") -> 95 | R181: =IFERROR(توريدات!$Q181*توريدات!$P181,"") -> 5225 | S181: 0 | T181: =IFERROR(توريدات!$R181-توريدات!$S181,"") -> 5225
A182: =IF(AND($H182='كميات مقاول'!$G$1,$B182>='كميات مقاول'!$E$2,$B182<='كميات مقاول'!$H$2),$K182&$J182&$E182,"") ->  | B182: 2020-03-09 | C182: 48980 | D182: 1 | E182: 3819 | F182: =IFERROR(VLOOKUP(توريدات!$E182,تكعيبات!D:F,2,0),"") -> 1864 | G182: صبحي | H182: =IFERROR(VLOOKUP(توريدات!$D182,تكعيبات!A:G,2,0),"") -> الحاج عدلي | I182: 6 | J182: =IFERROR(VLOOKUP(توريدات!$I182,تكعيبات!L:O,2,0),"") -> كسارة القادسية | K182: =IFERROR(VLOOKUP(توريدات!$I182,تكعيبات!L:O,4,0),"") -> سن 6بالبودره | L182: 1 | M182: =IFERROR(VLOOKUP(توريدات!$E182,تكعيبات!D:F,3,0),"") -> 55.3 | N182: =IFERROR(توريدات!$L182*توريدات!$M182,"") -> 55.3 | O182: 0 | P182: =IFERROR(توريدات!$N182-توريدات!$O182,"") -> 55.3 | Q182: =IFERROR(VLOOKUP(توريدات!$I182,تكعيبات!L:N,3,0),"") -> 95 | R182: =IFERROR(توريدات!$Q182*توريدات!$P182,"") -> 5253.5 | S182: 0 | T182: =IFERROR(توريدات!$R182-توريدات!$S182,"") -> 5253.5
A183: =IF(AND($H183='كميات مقاول'!$G$1,$B183>='كميات مقاول'!$E$2,$B183<='كميات مقاول'!$H$2),$K183&$J183&$E183,"") ->  | B183: 2020-03-09 | C183: 48981 | D183: 2 | E183: 4159 | F183: =IFERROR(VLOOKUP(توريدات!$E183,تكعيبات!D:F,2,0),"") -> 14285 | G183: مصطفي | H183: =IFERROR(VLOOKUP(توريدات!$D183,تكعيبات!A:G,2,0),"") -> مراد الوكيل | I183: 22 | J183: =IFERROR(VLOOKUP(توريدات!$I183,تكعيبات!L:O,2,0),"") -> كسارة فرج العرمبي | K183: =IFERROR(VLOOKUP(توريدات!$I183,تكعيبات!L:O,4,0),"") -> سن 6بالبودره | L183: 1 | M183: =IFERROR(VLOOKUP(توريدات!$E183,تكعيبات!D:F,3,0),"") -> 51.6 | N183: =IFERROR(توريدات!$L183*توريدات!$M183,"") -> 51.6 | O183: 0 | P183: =IFERROR(توريدات!$N183-توريدات!$O183,"") -> 51.6 | Q183: =IFERROR(VLOOKUP(توريدات!$I183,تكعيبات!L:N,3,0),"") -> 95 | R183: =IFERROR(توريدات!$Q183*توريدات!$P183,"") -> 4902 | S183: 0 | T183: =IFERROR(توريدات!$R183-توريدات!$S183,"") -> 4902
A184: =IF(AND($H184='كميات مقاول'!$G$1,$B184>='كميات مقاول'!$E$2,$B184<='كميات مقاول'!$H$2),$K184&$J184&$E184,"") ->  | B184: 2020-03-09 | C184: 48982 | D184: 5 | E184: 124051 | F184: =IFERROR(VLOOKUP(توريدات!$E184,تكعيبات!D:F,2,0),"") -> 14111 | G184: محمود | H184: =IFERROR(VLOOKUP(توريدات!$D184,تكعيبات!A:G,2,0),"") -> عمرسيد | I184: 9 | J184: =IFERROR(VLOOKUP(توريدات!$I184,تكعيبات!L:O,2,0),"") -> كسارة الفيــروز- مشــال | K184: =IFERROR(VLOOKUP(توريدات!$I184,تكعيبات!L:O,4,0),"") -> سن 6بالبودره - مشال | L184: 1 | M184: =IFERROR(VLOOKUP(توريدات!$E184,تكعيبات!D:F,3,0),"") -> 58.8 | N184: =IFERROR(توريدات!$L184*توريدات!$M184,"") -> 58.8 | O184: 0 | P184: =IFERROR(توريدات!$N184-توريدات!$O184,"") -> 58.8 | Q184: =IFERROR(VLOOKUP(توريدات!$I184,تكعيبات!L:N,3,0),"") -> 66 | R184: =IFERROR(توريدات!$Q184*توريدات!$P184,"") -> 3880.8 | S184: 0 | T184: =IFERROR(توريدات!$R184-توريدات!$S184,"") -> 3880.8
A185: =IF(AND($H185='كميات مقاول'!$G$1,$B185>='كميات مقاول'!$E$2,$B185<='كميات مقاول'!$H$2),$K185&$J185&$E185,"") ->  | B185: 2020-03-09 | C185: 48983 | D185: 1 | E185: 6215 | F185: =IFERROR(VLOOKUP(توريدات!$E185,تكعيبات!D:F,2,0),"") -> 7623 | G185: محمد | H185: =IFERROR(VLOOKUP(توريدات!$D185,تكعيبات!A:G,2,0),"") -> الحاج عدلي | I185: 2 | J185: =IFERROR(VLOOKUP(توريدات!$I185,تكعيبات!L:O,2,0),"") -> كسارة خليل سعيد | K185: =IFERROR(VLOOKUP(توريدات!$I185,تكعيبات!L:O,4,0),"") -> سن 6بالبودره | L185: 1 | M185: =IFERROR(VLOOKUP(توريدات!$E185,تكعيبات!D:F,3,0),"") -> 61.5 | N185: =IFERROR(توريدات!$L185*توريدات!$M185,"") -> 61.5 | O185: 0 | P185: =IFERROR(توريدات!$N185-توريدات!$O185,"") -> 61.5 | Q185: =IFERROR(VLOOKUP(توريدات!$I185,تكعيبات!L:N,3,0),"") -> 97 | R185: =IFERROR(توريدات!$Q185*توريدات!$P185,"") -> 5965.5 | S185: 0 | T185: =IFERROR(توريدات!$R185-توريدات!$S185,"") -> 5965.5
A186: =IF(AND($H186='كميات مقاول'!$G$1,$B186>='كميات مقاول'!$E$2,$B186<='كميات مقاول'!$H$2),$K186&$J186&$E186,"") ->  | B186: 2020-03-09 | C186: 48984 | D186: 1 | E186: 8146 | F186: =IFERROR(VLOOKUP(توريدات!$E186,تكعيبات!D:F,2,0),"") -> 8974 | G186: محمد | H186: =IFERROR(VLOOKUP(توريدات!$D186,تكعيبات!A:G,2,0),"") -> الحاج عدلي | I186: 2 | J186: =IFERROR(VLOOKUP(توريدات!$I186,تكعيبات!L:O,2,0),"") -> كسارة خليل سعيد | K186: =IFERROR(VLOOKUP(توريدات!$I186,تكعيبات!L:O,4,0),"") -> سن 6بالبودره | L186: 1 | M186: =IFERROR(VLOOKUP(توريدات!$E186,تكعيبات!D:F,3,0),"") -> 59 | N186: =IFERROR(توريدات!$L186*توريدات!$M186,"") -> 59 | O186: 0 | P186: =IFERROR(توريدات!$N186-توريدات!$O186,"") -> 59 | Q186: =IFERROR(VLOOKUP(توريدات!$I186,تكعيبات!L:N,3,0),"") -> 97 | R186: =IFERROR(توريدات!$Q186*توريدات!$P186,"") -> 5723 | S186: 0 | T186: =IFERROR(توريدات!$R186-توريدات!$S186,"") -> 5723
A187: =IF(AND($H187='كميات مقاول'!$G$1,$B187>='كميات مقاول'!$E$2,$B187<='كميات مقاول'!$H$2),$K187&$J187&$E187,"") ->  | B187: 2020-03-09 | C187: 48985 | D187: 2 | E187: 8786 | F187: =IFERROR(VLOOKUP(توريدات!$E187,تكعيبات!D:F,2,0),"") -> 9137 | G187: شعبان | H187: =IFERROR(VLOOKUP(توريدات!$D187,تكعيبات!A:G,2,0),"") -> مراد الوكيل | I187: 22 | J187: =IFERROR(VLOOKUP(توريدات!$I187,تكعيبات!L:O,2,0),"") -> كسارة فرج العرمبي | K187: =IFERROR(VLOOKUP(توريدات!$I187,تكعيبات!L:O,4,0),"") -> سن 6بالبودره | L187: 1 | M187: =IFERROR(VLOOKUP(توريدات!$E187,تكعيبات!D:F,3,0),"") -> 56.5 | N187: =IFERROR(توريدات!$L187*توريدات!$M187,"") -> 56.5 | O187: 0 | P187: =IFERROR(توريدات!$N187-توريدات!$O187,"") -> 56.5 | Q187: =IFERROR(VLOOKUP(توريدات!$I187,تكعيبات!L:N,3,0),"") -> 95 | R187: =IFERROR(توريدات!$Q187*توريدات!$P187,"") -> 5367.5 | S187: 0 | T187: =IFERROR(توريدات!$R187-توريدات!$S187,"") -> 5367.5
A188: =IF(AND($H188='كميات مقاول'!$G$1,$B188>='كميات مقاول'!$E$2,$B188<='كميات مقاول'!$H$2),$K188&$J188&$E188,"") ->  | B188: 2020-03-09 | C188: 48986 | D188: 2 | E188: 126432 | F188: =IFERROR(VLOOKUP(توريدات!$E188,تكعيبات!D:F,2,0),"") -> 14514 | G188: احمد | H188: =IFERROR(VLOOKUP(توريدات!$D188,تكعيبات!A:G,2,0),"") -> مراد الوكيل | I188: 22 | J188: =IFERROR(VLOOKUP(توريدات!$I188,تكعيبات!L:O,2,0),"") -> كسارة فرج العرمبي | K188: =IFERROR(VLOOKUP(توريدات!$I188,تكعيبات!L:O,4,0),"") -> سن 6بالبودره | L188: 1 | M188: =IFERROR(VLOOKUP(توريدات!$E188,تكعيبات!D:F,3,0),"") -> 55 | N188: =IFERROR(توريدات!$L188*توريدات!$M188,"") -> 55 | O188: 0 | P188: =IFERROR(توريدات!$N188-توريدات!$O188,"") -> 55 | Q188: =IFERROR(VLOOKUP(توريدات!$I188,تكعيبات!L:N,3,0),"") -> 95 | R188: =IFERROR(توريدات!$Q188*توريدات!$P188,"") -> 5225 | S188: 0 | T188: =IFERROR(توريدات!$R188-توريدات!$S188,"") -> 5225
A189: =IF(AND($H189='كميات مقاول'!$G$1,$B189>='كميات مقاول'!$E$2,$B189<='كميات مقاول'!$H$2),$K189&$J189&$E189,"") ->  | B189: 2020-03-09 | C189: 48987 | D189: 1 | E189: 3145 | F189: =IFERROR(VLOOKUP(توريدات!$E189,تكعيبات!D:F,2,0),"") -> 8324 | G189: عبده | H189: =IFERROR(VLOOKUP(توريدات!$D189,تكعيبات!A:G,2,0),"") -> الحاج عدلي | I189: 6 | J189: =IFERROR(VLOOKUP(توريدات!$I189,تكعيبات!L:O,2,0),"") -> كسارة القادسية | K189: =IFERROR(VLOOKUP(توريدات!$I189,تكعيبات!L:O,4,0),"") -> سن 6بالبودره | L189: 1 | M189: =IFERROR(VLOOKUP(توريدات!$E189,تكعيبات!D:F,3,0),"") -> 54.5 | N189: =IFERROR(توريدات!$L189*توريدات!$M189,"") -> 54.5 | O189: 0 | P189: =IFERROR(توريدات!$N189-توريدات!$O189,"") -> 54.5 | Q189: =IFERROR(VLOOKUP(توريدات!$I189,تكعيبات!L:N,3,0),"") -> 95 | R189: =IFERROR(توريدات!$Q189*توريدات!$P189,"") -> 5177.5 | S189: 0 | T189: =IFERROR(توريدات!$R189-توريدات!$S189,"") -> 5177.5
A190: =IF(AND($H190='كميات مقاول'!$G$1,$B190>='كميات مقاول'!$E$2,$B190<='كميات مقاول'!$H$2),$K190&$J190&$E190,"") ->  | B190: 2020-03-09 | C190: 48988 | D190: 4 | E190: 9185 | F190: =IFERROR(VLOOKUP(توريدات!$E190,تكعيبات!D:F,2,0),"") -> 2498 | G190: هاني | H190: =IFERROR(VLOOKUP(توريدات!$D190,تكعيبات!A:G,2,0),"") -> خالد أبو الحمد | I190: 1 | J190: =IFERROR(VLOOKUP(توريدات!$I190,تكعيبات!L:O,2,0),"") -> كسارة العرمبي | K190: =IFERROR(VLOOKUP(توريدات!$I190,تكعيبات!L:O,4,0),"") -> سن 6بالبودره | L190: 1 | M190: =IFERROR(VLOOKUP(توريدات!$E190,تكعيبات!D:F,3,0),"") -> 58.75 | N190: =IFERROR(توريدات!$L190*توريدات!$M190,"") -> 58.75 | O190: 0 | P190: =IFERROR(توريدات!$N190-توريدات!$O190,"") -> 58.75 | Q190: =IFERROR(VLOOKUP(توريدات!$I190,تكعيبات!L:N,3,0),"") -> 97 | R190: =IFERROR(توريدات!$Q190*توريدات!$P190,"") -> 5698.75 | S190: 0 | T190: =IFERROR(توريدات!$R190-توريدات!$S190,"") -> 5698.75
A191: =IF(AND($H191='كميات مقاول'!$G$1,$B191>='كميات مقاول'!$E$2,$B191<='كميات مقاول'!$H$2),$K191&$J191&$E191,"") ->  | B191: 2020-03-09 | C191: 48989 | D191: 1 | E191: 8372 | F191: =IFERROR(VLOOKUP(توريدات!$E191,تكعيبات!D:F,2,0),"") -> 9387 | G191: احمد | H191: =IFERROR(VLOOKUP(توريدات!$D191,تكعيبات!A:G,2,0),"") -> الحاج عدلي | I191: 4 | J191: =IFERROR(VLOOKUP(توريدات!$I191,تكعيبات!L:O,2,0),"") -> كسارة البشير | K191: =IFERROR(VLOOKUP(توريدات!$I191,تكعيبات!L:O,4,0),"") -> سن 6بالبودره | L191: 1 | M191: =IFERROR(VLOOKUP(توريدات!$E191,تكعيبات!D:F,3,0),"") -> 49.25 | N191: =IFERROR(توريدات!$L191*توريدات!$M191,"") -> 49.25 | O191: 0 | P191: =IFERROR(توريدات!$N191-توريدات!$O191,"") -> 49.25 | Q191: =IFERROR(VLOOKUP(توريدات!$I191,تكعيبات!L:N,3,0),"") -> 97 | R191: =IFERROR(توريدات!$Q191*توريدات!$P191,"") -> 4777.25 | S191: 0 | T191: =IFERROR(توريدات!$R191-توريدات!$S191,"") -> 4777.25
A192: =IF(AND($H192='كميات مقاول'!$G$1,$B192>='كميات مقاول'!$E$2,$B192<='كميات مقاول'!$H$2),$K192&$J192&$E192,"") ->  | B192: 2020-03-09 | C192: 48990 | D192: 1 | E192: 4397 | F192: =IFERROR(VLOOKUP(توريدات!$E192,تكعيبات!D:F,2,0),"") -> 14068 | G192: وليد | H192: =IFERROR(VLOOKUP(توريدات!$D192,تكعيبات!A:G,2,0),"") -> الحاج عدلي | I192: 4 | J192: =IFERROR(VLOOKUP(توريدات!$I192,تكعيبات!L:O,2,0),"") -> كسارة البشير | K192: =IFERROR(VLOOKUP(توريدات!$I192,تكعيبات!L:O,4,0),"") -> سن 6بالبودره | L192: 1 | M192: =IFERROR(VLOOKUP(توريدات!$E192,تكعيبات!D:F,3,0),"") -> 56 | N192: =IFERROR(توريدات!$L192*توريدات!$M192,"") -> 56 | O192: 0 | P192: =IFERROR(توريدات!$N192-توريدات!$O192,"") -> 56 | Q192: =IFERROR(VLOOKUP(توريدات!$I192,تكعيبات!L:N,3,0),"") -> 97 | R192: =IFERROR(توريدات!$Q192*توريدات!$P192,"") -> 5432 | S192: 0 | T192: =IFERROR(توريدات!$R192-توريدات!$S192,"") -> 5432
A193: =IF(AND($H193='كميات مقاول'!$G$1,$B193>='كميات مقاول'!$E$2,$B193<='كميات مقاول'!$H$2),$K193&$J193&$E193,"") ->  | B193: 2020-03-09 | C193: 48991 | D193: 1 | E193: 6791 | F193: =IFERROR(VLOOKUP(توريدات!$E193,تكعيبات!D:F,2,0),"") -> 4389 | G193: احمد | H193: =IFERROR(VLOOKUP(توريدات!$D193,تكعيبات!A:G,2,0),"") -> الحاج عدلي | I193: 2 | J193: =IFERROR(VLOOKUP(توريدات!$I193,تكعيبات!L:O,2,0),"") -> كسارة خليل سعيد | K193: =IFERROR(VLOOKUP(توريدات!$I193,تكعيبات!L:O,4,0),"") -> سن 6بالبودره | L193: 1 | M193: =IFERROR(VLOOKUP(توريدات!$E193,تكعيبات!D:F,3,0),"") -> 58 | N193: =IFERROR(توريدات!$L193*توريدات!$M193,"") -> 58 | O193: 0 | P193: =IFERROR(توريدات!$N193-توريدات!$O193,"") -> 58 | Q193: =IFERROR(VLOOKUP(توريدات!$I193,تكعيبات!L:N,3,0),"") -> 97 | R193: =IFERROR(توريدات!$Q193*توريدات!$P193,"") -> 5626 | S193: 0 | T193: =IFERROR(توريدات!$R193-توريدات!$S193,"") -> 5626
A194: =IF(AND($H194='كميات مقاول'!$G$1,$B194>='كميات مقاول'!$E$2,$B194<='كميات مقاول'!$H$2),$K194&$J194&$E194,"") ->  | B194: 2020-03-09 | C194: 48992 | D194: 1 | E194: 9286 | F194: =IFERROR(VLOOKUP(توريدات!$E194,تكعيبات!D:F,2,0),"") -> 6912 | G194: محمد | H194: =IFERROR(VLOOKUP(توريدات!$D194,تكعيبات!A:G,2,0),"") -> الحاج عدلي | I194: 3 | J194: =IFERROR(VLOOKUP(توريدات!$I194,تكعيبات!L:O,2,0),"") -> كسارة ابناء الشرقية | K194: =IFERROR(VLOOKUP(توريدات!$I194,تكعيبات!L:O,4,0),"") -> سن 6بالبودره | L194: 1 | M194: =IFERROR(VLOOKUP(توريدات!$E194,تكعيبات!D:F,3,0),"") -> 56.6 | N194: =IFERROR(توريدات!$L194*توريدات!$M194,"") -> 56.6 | O194: 0 | P194: =IFERROR(توريدات!$N194-توريدات!$O194,"") -> 56.6 | Q194: =IFERROR(VLOOKUP(توريدات!$I194,تكعيبات!L:N,3,0),"") -> 97 | R194: =IFERROR(توريدات!$Q194*توريدات!$P194,"") -> 5490.2 | S194: 0 | T194: =IFERROR(توريدات!$R194-توريدات!$S194,"") -> 5490.2
A195: =IF(AND($H195='كميات مقاول'!$G$1,$B195>='كميات مقاول'!$E$2,$B195<='كميات مقاول'!$H$2),$K195&$J195&$E195,"") ->  | B195: 2020-03-09 | C195: 48993 | D195: 1 | E195: 3819 | F195: =IFERROR(VLOOKUP(توريدات!$E195,تكعيبات!D:F,2,0),"") -> 1864 | G195: صبحي | H195: =IFERROR(VLOOKUP(توريدات!$D195,تكعيبات!A:G,2,0),"") -> الحاج عدلي | I195: 6 | J195: =IFERROR(VLOOKUP(توريدات!$I195,تكعيبات!L:O,2,0),"") -> كسارة القادسية | K195: =IFERROR(VLOOKUP(توريدات!$I195,تكعيبات!L:O,4,0),"") -> سن 6بالبودره | L195: 1 | M195: =IFERROR(VLOOKUP(توريدات!$E195,تكعيبات!D:F,3,0),"") -> 55.3 | N195: =IFERROR(توريدات!$L195*توريدات!$M195,"") -> 55.3 | O195: 0 | P195: =IFERROR(توريدات!$N195-توريدات!$O195,"") -> 55.3 | Q195: =IFERROR(VLOOKUP(توريدات!$I195,تكعيبات!L:N,3,0),"") -> 95 | R195: =IFERROR(توريدات!$Q195*توريدات!$P195,"") -> 5253.5 | S195: 0 | T195: =IFERROR(توريدات!$R195-توريدات!$S195,"") -> 5253.5
A196: =IF(AND($H196='كميات مقاول'!$G$1,$B196>='كميات مقاول'!$E$2,$B196<='كميات مقاول'!$H$2),$K196&$J196&$E196,"") ->  | B196: 2020-03-09 | C196: 48994 | D196: 1 | E196: 2914 | F196: =IFERROR(VLOOKUP(توريدات!$E196,تكعيبات!D:F,2,0),"") -> 14505 | G196: مصطفي | H196: =IFERROR(VLOOKUP(توريدات!$D196,تكعيبات!A:G,2,0),"") -> الحاج عدلي | I196: 3 | J196: =IFERROR(VLOOKUP(توريدات!$I196,تكعيبات!L:O,2,0),"") -> كسارة ابناء الشرقية | K196: =IFERROR(VLOOKUP(توريدات!$I196,تكعيبات!L:O,4,0),"") -> سن 6بالبودره | L196: 1 | M196: =IFERROR(VLOOKUP(توريدات!$E196,تكعيبات!D:F,3,0),"") -> 56.55 | N196: =IFERROR(توريدات!$L196*توريدات!$M196,"") -> 56.55 | O196: 0 | P196: =IFERROR(توريدات!$N196-توريدات!$O196,"") -> 56.55 | Q196: =IFERROR(VLOOKUP(توريدات!$I196,تكعيبات!L:N,3,0),"") -> 97 | R196: =IFERROR(توريدات!$Q196*توريدات!$P196,"") -> 5485.35 | S196: 0 | T196: =IFERROR(توريدات!$R196-توريدات!$S196,"") -> 5485.35
A197: =IF(AND($H197='كميات مقاول'!$G$1,$B197>='كميات مقاول'!$E$2,$B197<='كميات مقاول'!$H$2),$K197&$J197&$E197,"") ->  | B197: 2020-03-09 | C197: 48995 | D197: 2 | E197: 4159 | F197: =IFERROR(VLOOKUP(توريدات!$E197,تكعيبات!D:F,2,0),"") -> 14285 | G197: حمادة | H197: =IFERROR(VLOOKUP(توريدات!$D197,تكعيبات!A:G,2,0),"") -> مراد الوكيل | I197: 22 | J197: =IFERROR(VLOOKUP(توريدات!$I197,تكعيبات!L:O,2,0),"") -> كسارة فرج العرمبي | K197: =IFERROR(VLOOKUP(توريدات!$I197,تكعيبات!L:O,4,0),"") -> سن 6بالبودره | L197: 1 | M197: =IFERROR(VLOOKUP(توريدات!$E197,تكعيبات!D:F,3,0),"") -> 51.6 | N197: =IFERROR(توريدات!$L197*توريدات!$M197,"") -> 51.6 | O197: 0 | P197: =IFERROR(توريدات!$N197-توريدات!$O197,"") -> 51.6 | Q197: =IFERROR(VLOOKUP(توريدات!$I197,تكعيبات!L:N,3,0),"") -> 95 | R197: =IFERROR(توريدات!$Q197*توريدات!$P197,"") -> 4902 | S197: 0 | T197: =IFERROR(توريدات!$R197-توريدات!$S197,"") -> 4902
A198: =IF(AND($H198='كميات مقاول'!$G$1,$B198>='كميات مقاول'!$E$2,$B198<='كميات مقاول'!$H$2),$K198&$J198&$E198,"") ->  | B198: 2020-03-09 | C198: 48996 | D198: 2 | E198: 8357 | F198: =IFERROR(VLOOKUP(توريدات!$E198,تكعيبات!D:F,2,0),"") -> 1372 | G198: راشد | H198: =IFERROR(VLOOKUP(توريدات!$D198,تكعيبات!A:G,2,0),"") -> مراد الوكيل | I198: 22 | J198: =IFERROR(VLOOKUP(توريدات!$I198,تكعيبات!L:O,2,0),"") -> كسارة فرج العرمبي | K198: =IFERROR(VLOOKUP(توريدات!$I198,تكعيبات!L:O,4,0),"") -> سن 6بالبودره | L198: 1 | M198: =IFERROR(VLOOKUP(توريدات!$E198,تكعيبات!D:F,3,0),"") -> 55.75 | N198: =IFERROR(توريدات!$L198*توريدات!$M198,"") -> 55.75 | O198: 0 | P198: =IFERROR(توريدات!$N198-توريدات!$O198,"") -> 55.75 | Q198: =IFERROR(VLOOKUP(توريدات!$I198,تكعيبات!L:N,3,0),"") -> 95 | R198: =IFERROR(توريدات!$Q198*توريدات!$P198,"") -> 5296.25 | S198: 0 | T198: =IFERROR(توريدات!$R198-توريدات!$S198,"") -> 5296.25
A199: =IF(AND($H199='كميات مقاول'!$G$1,$B199>='كميات مقاول'!$E$2,$B199<='كميات مقاول'!$H$2),$K199&$J199&$E199,"") ->  | B199: 2020-03-09 | C199: 48997 | D199: 2 | E199: 8269 | F199: =IFERROR(VLOOKUP(توريدات!$E199,تكعيبات!D:F,2,0),"") -> 1362 | G199: رمضان | H199: =IFERROR(VLOOKUP(توريدات!$D199,تكعيبات!A:G,2,0),"") -> مراد الوكيل | I199: 22 | J199: =IFERROR(VLOOKUP(توريدات!$I199,تكعيبات!L:O,2,0),"") -> كسارة فرج العرمبي | K199: =IFERROR(VLOOKUP(توريدات!$I199,تكعيبات!L:O,4,0),"") -> سن 6بالبودره | L199: 1 | M199: =IFERROR(VLOOKUP(توريدات!$E199,تكعيبات!D:F,3,0),"") -> 55.35 | N199: =IFERROR(توريدات!$L199*توريدات!$M199,"") -> 55.35 | O199: 0 | P199: =IFERROR(توريدات!$N199-توريدات!$O199,"") -> 55.35 | Q199: =IFERROR(VLOOKUP(توريدات!$I199,تكعيبات!L:N,3,0),"") -> 95 | R199: =IFERROR(توريدات!$Q199*توريدات!$P199,"") -> 5258.25 | S199: 0 | T199: =IFERROR(توريدات!$R199-توريدات!$S199,"") -> 5258.25
A200: =IF(AND($H200='كميات مقاول'!$G$1,$B200>='كميات مقاول'!$E$2,$B200<='كميات مقاول'!$H$2),$K200&$J200&$E200,"") ->  | B200: 2020-03-09 | C200: 48998 | D200: 1 | E200: 4368 | F200: =IFERROR(VLOOKUP(توريدات!$E200,تكعيبات!D:F,2,0),"") -> 2358 | G200: عبدالعزيز | H200: =IFERROR(VLOOKUP(توريدات!$D200,تكعيبات!A:G,2,0),"") -> الحاج عدلي | I200: 16 | J200: =IFERROR(VLOOKUP(توريدات!$I200,تكعيبات!L:O,2,0),"") -> كسارة الفهد العرمبي | K200: =IFERROR(VLOOKUP(توريدات!$I200,تكعيبات!L:O,4,0),"") -> سن 6بالبودره | L200: 1 | M200: =IFERROR(VLOOKUP(توريدات!$E200,تكعيبات!D:F,3,0),"") -> 44.75 | N200: =IFERROR(توريدات!$L200*توريدات!$M200,"") -> 44.75 | O200: 0 | P200: =IFERROR(توريدات!$N200-توريدات!$O200,"") -> 44.75 | Q200: =IFERROR(VLOOKUP(توريدات!$I200,تكعيبات!L:N,3,0),"") -> 95 | R200: =IFERROR(توريدات!$Q200*توريدات!$P200,"") -> 4251.25 | S200: 0 | T200: =IFERROR(توريدات!$R200-توريدات!$S200,"") -> 4251.25
... 1999 more rows

Sheet تكعيبات
A1: كود المقاول | B1: اسم المقاول | D1: رقم السياره | E1: رقم المقطورة | F1: صافي التكعيب | G1: المقاول | I1: تعكيب مقطورة | J1: تعكيب الوش | K1: الصافي بعد الخصم | L1: كود الكسارة | M1: اسم الكسارة | N1: السعر | O1: النوع
A2: 1 | B2: الحاج عدلي | E2: 7423 | F2: 57.55 | G2: الحاج عدلي | L2: 1 | M2: كسارة العرمبي | N2: 97 | O2: سن 6بالبودره
A3: 2 | B3: مراد الوكيل | D3: 5639 | E3: 4521 | F3: 55 | G3: الحاج عدلي | L3: 2 | M3: كسارة خليل سعيد | N3: 97 | O3: سن 6بالبودره
A4: 3 | B4: طارق مراد | D4: 4968 | E4: 4378 | F4: 54 | G4: الحاج عدلي | L4: 3 | M4: كسارة ابناء الشرقية | N4: 97 | O4: سن 6بالبودره
A5: 4 | B5: خالد أبو الحمد | D5: 1735 | E5: 3629 | F5: 53 | G5: الحاج عدلي | L5: 4 | M5: كسارة البشير | N5: 97 | O5: سن 6بالبودره
A6: 5 | B6: عمرسيد | D6: 9321 | E6: 5489 | F6: 54 | G6: الحاج عدلي | L6: 5 | M6: كسارة التيسير | N6: 97 | O6: سن 6بالبودره
A7: 6 | B7: شاهين عبدالسلام | D7: 2478 | E7: 1378 | F7: 54 | G7: الحاج عدلي | L7: 6 | M7: كسارة القادسية | N7: 95 | O7: سن 6بالبودره
A8: 7 | B8: الشرقاوي | D8: 3824 | E8: 4216 | F8: 53.3 | G8: الحاج عدلي | I8: =8.32*1.31*1.85 -> 20.16352 | L8: 7 | M8: كسارة 6أكتوبــر | N8: 97 | O8: سن 6بالبودره
A9: 8 | B9: حسين ابوهاشم | D9: 7928 | E9: 9325 | F9: 49.5 | G9: الحاج عدلي | L9: 8 | M9: كسارة غزالة البشير | N9: 97 | O9: سن 6بالبودره
A10: 9 | B10: العسيلي | D10: 3579 | E10: 8437 | F10: 55 | G10: الحاج عدلي | L10: 9 | M10: كسارة الفيــروز- مشــال | N10: 66 | O10: سن 6بالبودره - مشال
A11: 10 | B11: بسيوني | D11: 1376 | E11: 6718 | F11: 57 | G11: الحاج عدلي | L11: 10 | M11: كسارة الهاشمية - مشال | N11: 67 | O11: سن 6بالبودره - مشال
A12: 11 | B12: السعيد | D12: 1246 | E12: 8952 | F12: 51.3 | G12: الحاج عدلي | L12: 11 | M12: كسارة ام القــري | N12: 95 | O12: سن 6بالبودره
A13: 100 | B13: لاغي | D13: 4789 | E13: 5284 | F13: 55.75 | G13: الحاج عدلي | L13: 12 | M13: كسارة ابو نــدا | N13: 95 | O13: سن 6بالبودره
A14: 12 | B14: محمد ورداني | D14: 9185 | E14: 2498 | F14: 58.75 | G14: خالد أبو الحمد | L14: 13 | M14: كسارة الرحــاب | N14: 95 | O14: سن 6بالبودره
A15: 13 | B15: محمد محروس | D15: 9286 | E15: 6912 | F15: 56.6 | G15: الحاج عدلي | L15: 14 | M15: كسارة الراشــد | N15: 95 | O15: سن 6بالبودره
D16: 9832 | E16: 13171 | F16: 59.7 | G16: مراد الوكيل | L16: 15 | M16: كسارة مكــة | N16: 95 | O16: سن 6بالبودره
D17: 2986 | E17: 1453 | F17: 58.8 | G17: مراد الوكيل | I17: =8.01*2.29*2.01 -> 36.869229 | J17: =5.39*2.29*1.8 -> 22.21758 | K17: =SUM(I17:J17)-0.29 -> 58.796809 | L17: 16 | M17: كسارة الفهد العرمبي | N17: 95 | O17: سن 6بالبودره
D18: 8159 | E18: 31451 | F18: 50.4 | G18: خالد أبو الحمد | I18: =6.24*2.4*1.92 -> 28.75392 | J18: =4.84*2.395*1.89 -> 21.908502 | K18: =SUM(I18:J18)-0.26 -> 50.402422 | L18: 17 | M18: كسارة البركــة | N18: 95 | O18: سن 6بالبودره
D19: 7842 | E19: 1389 | F19: 50.45 | G19: خالد أبو الحمد | H19: بدون كوريك | I19: =8.52*2.33*1.87 -> 37.122492 | J19: =5.82*2.41*0.95 -> 13.32489 | K19: =SUM(I19:J19) -> 50.447382 | L19: 18 | M19: كسارة ميد ستريت | N19: 95 | O19: سن 6بالبودره
D20: 2914 | E20: 14505 | F20: 56.55 | G20: مراد الوكيل | I20: =8.01*2.31*1.92 -> 35.525952 | J20: =5.47*2.295*1.695 -> 21.27843675 | K20: =SUM(I20:J20)-0.25 -> 56.55438875 | L20: 19 | M20: كسارة المبروك | N20: 95 | O20: سن 6بالبودره
D21: 4639 | E21: 14066 | F21: 60.9 | G21: مراد الوكيل | I21: =8.3*2.32*2.045 -> 39.37852 | J21: =5.41*2.305*1.745 -> 21.76023725 | K21: =SUM(I21:J21)-0.24 -> 60.89875725 | L21: 20 | M21: كسارة العاصمة | N21: 95 | O21: سن 6بالبودره
D22: 6645 | E22: 5293 | F22: 53 | G22: الحاج عدلي | I22: =5.26*2.41*2.24 -> 28.395584 | J22: =4.57*2.43*2.24 -> 24.875424 | K22: =SUM(I22:J22)-0.27 -> 53.001008 | L22: 21 | M22: كسارة السويس | N22: 95 | O22: سن 6بالبودره
D23: 8372 | E23: 9387 | F23: 49.25 | G23: الحاج عدلي | I23: =8.17*2.31*1.655 -> 31.2343185 | J23: =5.26*2.28*1.52 -> 18.229056 | K23: =SUM(I23:J23)-0.21 -> 49.2533745 | L23: 22 | M23: كسارة فرج العرمبي | N23: 95 | O23: سن 6بالبودره
D24: 1763 | E24: 800178 | F24: 47.3 | G24: مراد الوكيل | I24: =4.83*2.42*1.78 -> 20.805708 | J24: =6.24*2.41*1.78 -> 26.768352 | K24: =SUM(I24:J24)-0.27 -> 47.30406 | L24: 25 | M24: كسارة اجى استون | N24: 97 | O24: سن 6بالبودره
D25: 8425 | E25: 6124 | F25: 44 | G25: الحاج عدلي | I25: =6.25*2.41*1.66 -> 25.00375 | J25: =4.84*2.41*1.65 -> 19.24626 | K25: =SUM(I25:J25)-0.25 -> 44.00001 | L25: 26 | M25: كســارة النــدا | N25: 95 | O25: سن 6بالبودره
D26: 4368 | E26: 2358 | F26: 44.75 | G26: الحاج عدلي | I26: =6.24*2.42*1.68 -> 25.369344 | J26: =4.81*2.4*1.7 -> 19.6248 | K26: =SUM(I26:J26)-0.24 -> 44.754144 | L26: 27 | M26: نور الاسلام عتاقه | N26: 97 | O26: سن 6بالبودره
D27: 5821 | E27: 14047 | F27: 58.35 | G27: الحاج عدلي | I27: =8.38*2.28*1.97 -> 37.639608 | J27: =5.29*2.29*1.73 -> 20.957393 | K27: =SUM(I27:J27)-0.25 -> 58.347001 | L27: 24 | M27: ك الفيروز - حجر ومشال | N27: 95 | O27: سن 6بالبودره
D28: 3127 | E28: 13871 | F28: 52.8 | G28: الحاج عدلي | I28: =8*2.31*1.83 -> 33.8184 | J28: =5.01*2.33*1.65 -> 19.260945 | K28: =SUM(I28:J28)-0.28 -> 52.799345 | N28: 97 | O28: سن 6بالبودره
D29: 8357 | E29: 1372 | F29: 55.75 | G29: مراد الوكيل | I29: =8.27*2.31*1.9 -> 36.29703 | J29: =5*2.33*1.69 -> 19.6885 | K29: =SUM(I29:J29)-0.24 -> 55.74553 | L29: 28 | O29: سن 6بالبودره
D30: 8269 | E30: 1362 | F30: 55.35 | G30: مراد الوكيل | I30: =7.95*2.29*1.86 -> 33.86223 | J30: =5.49*2.33*1.7 -> 21.74589 | K30: =SUM(I30:J30)-0.26 -> 55.34812 | L30: 29 | O30: سن 6بالبودره
D31: 6751 | E31: 2786 | F31: 56.4 | G31: خالد أبو الحمد | H31: وجود زوايا وكوريك | I31: =8.18*2.29*1.885 -> 35.310197 | J31: =5.51*2.3*1.745 -> 22.114385 | K31: =SUM(I31:J31)-1.02 -> 56.404582 | L31: 30 | O31: سن 6بالبودره
D32: 14000 | E32: 12400 | F32: 58.8 | G32: الحاج عدلي | I32: =8*2.32*2.04 -> 37.8624 | J32: =5.29*2.28*1.76 -> 21.227712 | K32: =SUM(I32:J32)-0.29 -> 58.800112 | L32: 31 | O32: سن 6بالبودره
D33: 6728 | E33: 3918 | F33: 57.3 | G33: الحاج عدلي | I33: =8.22*2.32*1.92 -> 36.615168 | J33: =5.4*2.38*1.63 -> 20.94876 | K33: =SUM(I33:J33)-0.26 -> 57.303928 | L33: 32 | O33: سن 6بالبودره
D34: 9467 | E34: 9517 | F34: 0 | G34: الحاج عدلي | L34: 33 | O34: سن 6بالبودره
D35: 6891 | E35: 4276 | F35: 53.5 | G35: الحاج عدلي | I35: =8.25*2.31*1.81 -> 34.494075 | J35: =5.33*2.3*1.58 -> 19.36922 | K35: =SUBTOTAL(9,I35:J35)-0.36 -> 53.503295 | L35: 34 | O35: سن 6بالبودره
D36: 9286 | E36: 6912 | F36: 56.5 | G36: مراد الوكيل
D37: 5782 | E37: 4516 | F37: 44.5 | G37: الحاج عدلي | H37: بدون كوريك | I37: =6.25*2.42*1.665 -> 25.183125 | J37: =4.85*2.415*1.65 -> 19.3260375 | K37: =SUM(I37:J37) -> 44.5091625
D38: 5917 | E38: 1239 | F38: 59.25 | G38: الحاج عدلي | I38: =8.55*2.3*1.9 -> 37.3635 | J38: =5.4*2.29*1.79 -> 22.13514 | K38: =SUM(I38:J38)-0.25 -> 59.24864
D39: ع 5917 | E39: 5341 | F39: 59.65 | G39: الحاج عدلي | I39: =8.16*2.3*2.095 -> 39.31896 | J39: =5.29*2.29*1.7 -> 20.59397 | K39: =SUBTOTAL(9,I39:J39)-0.26 -> 59.65293
D40: 4328 | E40: 713 | F40: 0 | G40: الحاج عدلي
D41: 6459 | E41: 4752 | F41: 55 | G41: الحاج عدلي
D42: 7594 | E42: 5163 | F42: 49.4 | G42: الحاج عدلي | I42: =7.95*2.34*1.885 -> 35.066655 | J42: =4.9*2.32*1.26 -> 14.32368 | K42: =SUM(I42:J42) -> 49.390335
D43: 5982 | E43: 3186 | F43: 0 | G43: الحاج عدلي
D44: 9167 | E44: 8917 | F44: 55.25 | G44: الحاج عدلي | I44: =8.03*2.34*1.94 -> 36.452988 | J44: =5.3*2.3*1.56 -> 19.0164 | K44: =J44+I44-0.22 -> 55.249388
D45: 4192 | E45: 9516 | F45: 0 | G45: الحاج عدلي
D46: 2458 | E46: 4629 | F46: 0 | G46: الحاج عدلي
D47: 8753 | E47: 14065 | F47: 51.6 | G47: الحاج عدلي | H47: شاهين | I47: =7.86*2.33*1.71 -> 31.316598 | J47: =5.44*2.3*1.64 -> 20.51968 | K47: =J47+I47-0.24 -> 51.596278
D48: 9443 | E48: 1379 | F48: 58.25 | G48: مراد الوكيل | I48: =8.26*2.32*2.07 -> 39.667824 | J48: =5.3*2.28*1.56 -> 18.85104 | K48: =SUM(I48:J48)-0.27 -> 58.248864
D49: 8786 | E49: 9137 | F49: 56.5 | G49: مراد الوكيل | H49: تكعيب الهايكستب
D50: 2371 | E50: 12674 | F50: 55 | G50: مراد الوكيل | H50: تكعيب الهايكستب
D51: 4875 | E51: 14326 | F51: 59 | G51: مراد الوكيل | I51: =8.34*2.3*2.04 -> 39.13128 | J51: =5.3*2.28*1.66 -> 20.05944 | K51: =J51+I51-0.19 -> 59.00072
D52: 1894 | E52: 13328 | F52: 57 | G52: مراد الوكيل | H52: تكعيب الهايكستب
D53: 6791 | E53: 4389 | F53: 58 | G53: احمد عادل | I53: =8.17*2.24*1.95 -> 35.68656 | J53: =5.47*2.34*1.77 -> 22.655646 | K53: =SUM(I53:J53)-0.34 -> 58.002206
D54: 126432 | E54: 14514 | F54: 55 | G54: مراد الوكيل
D55: 5142 | E55: 4382 | F55: 52 | G55: طارق مراد | H55: تكعيب الهايكستب
D56: 6573 | E56: 3819 | F56: 0 | G56: الحاج عدلي
D57: 1863 | E57: 526 | F57: 52 | G57: الحاج عدلي | I57: =8.27*2.3*1.67 -> 31.76507 | J57: =5.29*2.3*1.68 -> 20.44056 | K57: =SUM(I57:J57)-0.21 -> 51.99563
D58: 4199 | E58: 6835 | F58: 49.1 | G58: مراد الوكيل | I58: =5.97*2.43*1.98 -> 28.724058 | J58: =4.78*2.4*1.8 -> 20.6496 | K58: =SUM(I58:J58)-0.27 -> 49.103658
D59: 7641 | E59: 5861 | F59: 58.6 | G59: احمد عادل | I59: =8.26*2.3*2.02 -> 38.37596 | J59: =5.46*2.3*1.63 -> 20.46954 | K59: =SUM(I59:J59)-0.25 -> 58.5955
D60: 3468 | E60: 4358 | F60: 52 | G60: الحاج عدلي | I60: =8.15*2.3*1.71 -> 32.05395 | J60: =5.33*2.29*1.66 -> 20.261462 | K60: =SUM(I60:J60)-0.32 -> 51.995412
D61: 8956 | E61: 14573 | F61: 54.25 | G61: الحاج عدلي
D62: 9346 | E62: 4536 | F62: 58.85 | G62: الحاج عدلي
D63: 6215 | E63: 7623 | F63: 61.5 | G63: الحاج عدلي | I63: =8.46*2.29*2.095 -> 40.587273 | J63: =5.37*2.29*1.72 -> 21.151356 | K63: =SUM(I63:J63)-0.24 -> 61.498629
D64: 4634 | E64: 4399 | F64: 45.5 | G64: الحاج عدلي | I64: =8.05*2.32*1.77 -> 33.05652 | J64: =4.83*2.29*1.15 -> 12.719805 | K64: =SUM(I64:J64) -> 45.776325
D65: 8265 | E65: 5327 | F65: 48 | G65: الحاج عدلي | I65: =5.11*2.32*1.3 -> 15.41176 | J65: =8.04*2.35*1.74 -> 32.87556 | K65: =SUM(I65:J65)-0.29 -> 47.99732
D66: 5186 | E66: 4517 | F66: 53.6 | G66: الحاج عدلي | I66: =8.25*2.31*1.81 -> 34.494075 | J66: =5.33*2.3*1.58 -> 19.36922 | K66: =SUBTOTAL(9,I66:J66)-0.26 -> 53.603295
D67: 7967 | E67: 4895 | F67: 60.5 | G67: الحاج عدلي | I67: =8.16*2.3*2.12 -> 39.78816 | J67: =5.35*2.32*1.7 -> 21.1004 | K67: =SUM(I67:J67)-0.39 -> 60.49856
D68: 1685 | E68: 4897 | F68: 58.9 | G68: الحاج عدلي | I68: =8.15*2.3*2.05 -> 38.42725 | J68: =5.3*2.3*1.7 -> 20.723 | K68: =SUM(I68:J68)-0.25 -> 58.90025
D69: 9942 | E69: 6375 | F69: 58 | G69: الحاج عدلي | I69: =8.27*2.365*1.955 -> 38.23696525 | J69: =5.29*2.29*1.65 -> 19.988265 | K69: =SUM(I69:J69)-0.23 -> 57.99523025
D70: 6432 | E70: 7183 | F70: 54.7 | G70: مراد الوكيل | I70: =8.16*2.3*1.86 -> 34.90848 | J70: =5.45*2.28*1.61 -> 20.00586 | K70: =SUM(I70:J70)-0.21 -> 54.70434
D71: 4291 | E71: 5172 | F71: 46.3 | G71: الحاج عدلي | I71: =4.76*2.415*2.01 -> 23.105754 | J71: =4.84*2.42*2 -> 23.4256 | K71: =SUM(I71:J71)-0.23 -> 46.301354
D72: 5463 | E72: 6497 | F72: 56 | G72: الحاج عدلي | I72: =8.16*2.26*1.93 -> 35.592288 | J72: =5.41*2.3*1.66 -> 20.65538 | K72: =SUM(I72:J72)-0.25 -> 55.997668
D73: 6287 | E73: 8364 | F73: 0
D74: 6594 | E74: 9266 | F74: 0
D75: 8616 | E75: 418 | F75: 0
D76: 6198 | E76: 1542 | F76: 0
D77: 9266 | E77: 14732 | F77: 53.3 | G77: الحاج عدلي
D78: 6519 | E78: 6534 | F78: 0
D79: 1284 | E79: 1476 | F79: 0
D80: 122726 | E80: 12829 | F80: 59 | G80: الحاج عدلي | I80: =8.29*2.325*2.015 -> 38.83761375 | J80: =5.46*2.27*1.64 -> 20.326488 | K80: =SUM(I80:J80)-0.16 -> 59.00410175
D81: 4397 | E81: 14068 | F81: 56 | G81: الحاج عدلي
D82: 8256 | E82: 92132 | F82: 53 | G82: مراد الوكيل | H82: ابو الحمد | I82: =8.24*2.32*1.685 -> 32.211808 | J82: =5.44*2.32*1.68 -> 21.202944 | K82: =SUM(I82:J82)-0.41 -> 53.004752
D83: 9645 | E83: 13423 | F83: 50.6 | G83: الشرقاوي | I83: =8.3*2.32*1.85 -> 35.6236 | J83: =4.97*2.29*1.34 -> 15.250942 | K83: =SUM(I83:J83)-0.27 -> 50.604542
D84: 2917 | E84: 8617 | F84: 56.2 | G84: خالد أبو الحمد | I84: =8.16*2.26*1.94 -> 35.776704 | J84: =5.41*2.3*1.66 -> 20.65538 | K84: =SUM(I84:J84)-0.23 -> 56.202084
D85: 8146 | E85: 8974 | F85: 59 | G85: الحاج عدلي | I85: =5.3*2.29*1.7 -> 20.6329 | J85: =8.37*2.3*2.01 -> 38.69451 | K85: =SUM(I85:J85)-0.33 -> 58.99741
D86: 4159 | E86: 14285 | F86: 51.6 | G86: الحاج عدلي | I86: =8*2.32*1.735 -> 32.2016 | J86: =5.18*2.3*1.65 -> 19.6581 | K86: =SUM(I86:J86)-0.26 -> 51.5997
D87: 6792 | E87: 6953 | F87: 57.8 | G87: الحاج عدلي | I87: =8.51*2.31*1.9 -> 37.35039 | J87: =5.5*2.285*1.65 -> 20.736375 | K87: =SUM(I87:J87)-0.29 -> 57.796765
D88: 124051 | E88: 14111 | F88: 58.8 | G88: الحاج عدلي | I88: =8.08*2.34*2.04 -> 38.570688 | J88: =5.15*2.34*1.7 -> 20.4867 | K88: =SUM(I88:J88)-0.26 -> 58.797388
D89: 8542 | E89: 14203 | F89: 57.6 | G89: الحاج عدلي | I89: =8.15*2.315*1.96 -> 36.97981 | J89: =5.43*2.3*1.67 -> 20.85663 | K89: =SUM(I89:J89)-0.24 -> 57.59644
D90: 3819 | E90: 1864 | F90: 55.3 | G90: الحاج عدلي | I90: =7.87*2.3*1.945 -> 35.206445 | J90: =5.31*2.27*1.69 -> 20.370753 | K90: =SUM(I90:J90)-0.28 -> 55.297198
D91: 3145 | E91: 8324 | F91: 54.5 | G91: الحاج عدلي | I91: =8.32*2.31*1.85 -> 35.55552 | J91: =5.3*2.29*1.58 -> 19.17646 | K91: =SUM(I91:J91)-0.23 -> 54.50198
D92: 4625 | E92: 8761 | F92: 50.3 | G92: الحاج عدلي | I92: =8.14*2.28*1.685 -> 31.272252 | J92: =5.28*2.28*1.6 -> 19.26144 | K92: =SUM(I92:J92)-0.23 -> 50.303692
D93: 5312 | E93: 14254 | F93: 57.15 | G93: الحاج عدلي | I93: =8.01*2.33*1.92 -> 35.833536 | J93: =5.42*2.3*1.73 -> 21.56618 | K93: =SUM(I93:J93)-0.25 -> 57.149716
D94: 6324 | E94: 8965 | F94: 52.6 | G94: الحاج عدلي | H94: بدون كوريك | I94: =8.01*2.28*1.895 -> 34.608006 | J94: =5.07*2.35*1.51 -> 17.990895 | K94: =SUM(I94:J94) -> 52.598901
D95: 8795 | E95: 2875 | F95: 60.25 | G95: الحاج عدلي | I95: =5.39*2.3*1.65 -> 20.45505 | J95: =8.9*2.37*1.9 -> 40.0767 | K95: =SUM(I95:J95)-0.28 -> 60.25175
D96: 6458 | E96: 13536 | F96: 59.75 | G96: عمرسيد | I96: =4.86*2.425*2.2 -> 25.9281 | J96: =6.35*2.4*2.235 -> 34.0614 | K96: =SUM(I96:J96)-0.24 -> 59.7495
D97: 2481 | E97: 22247 | F97: 73.2 | G97: الحاج عدلي | I97: =8.72*2.35*2.32 -> 47.54144 | J97: =5.51*2.35*2 -> 25.897 | K97: =SUM(I97:J97)-0.24 -> 73.19844
D98: 4582 | E98: 8576 | F98: 54.8 | G98: الحاج عدلي | I98: =7.97*2.305*1.86 -> 34.169781 | J98: =5.42*2.3*1.675 -> 20.88055 | K98: =SUM(I98:J98)-0.25 -> 54.800331
D99: 9374 | E99: 4892 | F99: 53.1 | G99: الحاج عدلي | I99: =8.02*2.29*1.73 -> 31.772834 | J99: =5.45*2.29*1.73 -> 21.591265 | K99: =SUM(I99:J99)-0.26 -> 53.104099
D100: 2497 | E100: 3412 | F100: 52.45 | G100: الحاج عدلي | I100: =8.04*2.28*1.73 -> 31.712976 | J100: =5.36*2.275*1.72 -> 20.97368 | K100: =SUM(I100:J100)-0.24 -> 52.446656
D101: 5586 | E101: 7549 | F101: 56.6 | G101: الحاج عدلي | I101: =8.5*2.31*1.865 -> 36.619275 | J101: =5.37*2.3*1.64 -> 20.25564 | K101: =SUM(I101:J101)-0.27 -> 56.604915
D102: 4572 | E102: 8762 | F102: 50.15 | G102: الحاج عدلي | I102: =8.29*2.305*1.84 -> 35.159548 | J102: =4.84*2.3*1.37 -> 15.25084 | K102: =SUM(I102:J102)-0.26 -> 50.150388
D103: 9864 | E103: 14314 | F103: 57.5 | G103: عمرسيد | I103: =8.5*2.3*1.86 -> 36.363 | J103: =5.4*2.28*1.74 -> 21.42288 | K103: =SUM(I103:J103)-0.29 -> 57.49588
D104: 5738 | E104: 12621 | F104: 56.5 | G104: عمرسيد | H104: بدون كوريك | I104: =8.01*2.315*1.96 -> 36.344574 | J104: =4.98*2.38*1.7 -> 20.14908 | K104: =SUM(I104:J104)+0.01 -> 56.503654
D105: 1238 | E105: 4162 | F105: 50.65 | G105: الحاج عدلي | I105: =8.17*2.29*1.68 -> 31.431624 | J105: =5.31*2.29*1.6 -> 19.45584 | K105: =SUM(I105:J105)-0.24 -> 50.647464
D106: 5387 | E106: 4783 | F106: 44.25 | G106: الحاج عدلي | H106: بدون كوريك | I106: =7.92*2.33*1.66 -> 30.632976 | J106: =5.35*2.34*1.09 -> 13.64571 | K106: =SUM(I106:J106) -> 44.278686
D107: 4813 | E107: 14287 | F107: 54.95 | G107: الحاج عدلي | H107: بدون كوريك | I107: =8.12*2.28*1.87 -> 34.620432 | J107: =5.74*2.3*1.54 -> 20.33108 | K107: =SUM(I107:J107) -> 54.951512
D108: 8493 | E108: 6974 | F108: 53.3 | G108: عمرسيد | I108: =8*2.31*1.72 -> 31.7856 | J108: =5.61*2.31*1.69 -> 21.900879 | K108: =SUM(I108:J108)-0.39 -> 53.296479
D109: 126587 | E109: 14803 | F109: 52.2 | G109: محمد شاهين | I109: =8.41*2.27*1.76 -> 33.599632 | J109: =5.3*2.28*1.56 -> 18.85104 | K109: =SUM(I109:J109)-0.25 -> 52.200672
D110: 9427 | E110: 14586 | F110: 52.7 | G110: محمد شاهين | I110: =7.97*2.32*1.82 -> 33.652528 | J110: =5*2.28*1.69 -> 19.266 | K110: =SUM(I110:J110)-0.22 -> 52.698528
D111: 6124 | E111: 9749 | F111: 0 | G111: الحاج عدلي
D112: 5274 | E112: 5698 | F112: 0 | G112: الحاج عدلي
D113: 7125 | E113: 1573 | F113: 51.6 | G113: حسين ابوهاشم | I113: =8.13*2.3*1.79 -> 33.47121 | J113: =5.28*2.29*1.52 -> 18.378624 | K113: =SUM(I113:J113)-0.24 -> 51.609834
D114: 2946 | E114: 9173 | F114: 56.25 | G114: مراد الوكيل | I114: =8.26*2.32*1.925 -> 36.88916 | J114: =5.34*2.3*1.595 -> 19.58979 | K114: =SUM(I114:J114)-0.23 -> 56.24895
D115: 3618 | E115: 1769 | F115: 49.35 | G115: الشرقاوي | H115: بدون كوريك | I115: =8*2.3*1.73 -> 31.832 | J115: =4.85*2.3*1.57 -> 17.51335 | K115: =SUBTOTAL(9,I115:J115) -> 49.34535
D116: 1295 | E116: 8739 | F116: 48.35 | G116: الشرقاوي | H116: بدون كوريك | I116: =7.98*2.31*1.68 -> 30.968784 | J116: =4.85*2.33*1.54 -> 17.40277 | K116: =SUBTOTAL(9,I116:J116) -> 48.371554
D117: 2875 | E117: 8715 | F117: 0
D118: 9265 | E118: 7318 | F118: 58
D119: 8214 | E119: 4817 | F119: 52 | G119: العسيلي | I119: =8.06*2.33*1.65 -> 30.98667 | J119: =5.69*2.28*1.63 -> 21.146316 | K119: =SUM(I119:J119)-0.13 -> 52.002986
D120: 6285 | E120: 4725 | F120: 50.6 | G120: العسيلي | I120: =8.1*2.27*1.69 -> 31.07403 | J120: =5.43*2.28*1.6 -> 19.80864 | K120: =SUM(I120:J120)-0.28 -> 50.60267
D121: 3641 | E121: 8247 | F121: 56.8 | G121: الحاج عدلي | I121: =8*2.3*1.985 -> 36.524 | J121: =5.42*2.3*1.65 -> 20.5689 | K121: =SUM(I121:J121)-0.29 -> 56.8029
D122: 1947 | E122: 1457 | F122: 57.25 | G122: عمرسيد | I122: =8*2.275*1.99 -> 36.218 | J122: =5.47*2.31*1.685 -> 21.2911545 | K122: =SUM(I122:J122)-0.26 -> 57.2491545
D123: 1729 | E123: 14722 | F123: 51.85 | G123: عمرسيد | I123: =8.14*2.32*1.71 -> 32.293008 | J123: =5.52*2.3*1.56 -> 19.80576 | K123: =SUM(I123:J123)-0.25 -> 51.848768
D124: 5926 | E124: 1891 | F124: 54 | G124: الحاج عدلي | I124: =8.32*2.34*1.76 -> 34.265088 | J124: =5.47*2.29*1.6 -> 20.04208 | K124: =SUM(I124:J124)-0.31 -> 53.997168
A125: =6.16*1.98*0.39 -> 4.756752 | D125: 3162 | E125: 7325 | F125: 59.8 | G125: الحاج عدلي | I125: =8.01*2.29*1.83 -> 33.567507 | J125: =6.16*2.35*1.83 -> 26.49108 | K125: =SUM(I125:J125)-0.26 -> 59.798587
D126: 6212 | E126: 1218 | F126: 0 | G126: العسيلي
D127: 6148 | E127: 13030 | F127: 56 | G127: مراد الوكيل | H127: تكعيب الهايكستب
D128: 4872 | E128: 4795 | F128: 0 | G128: العسيلي
D129: 8719 | E129: 4789 | F129: 0 | G129: العسيلي
D130: 1647 | E130: 709 | F130: 47.45 | G130: خالد أبو الحمد | H130: بدون كوريك | I130: =8.15*2.31*1.82 -> 34.26423 | J130: =5.25*2.38*1.05 -> 13.11975 | K130: =SUM(I130:J130)-0.03 -> 47.35398
D131: 429 | E131: 1763 | F131: 56.8 | G131: حسين ابوهاشم | I131: =8.17*2.32*1.87 -> 35.444728 | J131: =5.42*2.32*1.72 -> 21.627968 | K131: =SUM(I131:J131)-0.27 -> 56.802696
D132: 467 | E132: 851 | F132: 56.2 | G132: حسين ابوهاشم | I132: =8.15*2.34*1.87 -> 35.66277 | J132: =5.29*2.28*1.72 -> 20.745264 | K132: =SUM(I132:J132)-0.21 -> 56.198034
D133: 5149 | E133: 7453 | F133: 61.5 | G133: احمد عادل | I133: =8.37*2.34*1.98 -> 38.779884 | J133: =5.6*2.34*1.75 -> 22.932 | K133: =SUM(I133:J133)-0.21 -> 61.501884
D134: 6854 | E134: 8265 | F134: 56.25 | G134: عمرسيد | I134: =5.61*2.29*1.6 -> 20.55504 | J134: =8.71*2.32*1.78 -> 35.968816 | K134: =SUBTOTAL(9,I134:J134)-0.27 -> 56.253856
D135: 9736 | E135: 2012 | F135: 57.5 | G135: حسين ابوهاشم | I135: =8.18*2.3*1.98 -> 37.25172 | J135: =5.3*2.29*1.7 -> 20.6329 | K135: =SUM(I135:J135)-0.38 -> 57.50462
D136: 8514 | E136: 7285 | F136: 55.5 | G136: الحاج عدلي | I136: =5.32*2.3*1.68 -> 20.55648 | J136: =7.88*2.3*1.94 -> 35.16056 | K136: =SUM(I136:J136)-0.22 -> 55.49704
D137: 122333 | E137: 13560 | F137: 60.4 | G137: الحاج عدلي | I137: =8.26*2.29*2.05 -> 38.77657 | J137: =5.42*2.28*1.77 -> 21.872952 | K137: =SUM(I137:J137)-0.25 -> 60.399522
D138: 1736 | E138: 4512 | F138: 56.15 | G138: طارق مراد | H138: تكعيب الهايكستب
D139: 5247 | E139: 5982 | F139: 51.55 | G139: خالد أبو الحمد | H139: بدون كوريك | I139: =8*2.3*1.88 -> 34.592 | J139: =5.82*2.47*1.18 -> 16.962972 | K139: =SUM(I139:J139) -> 51.554972
D140: 9651 | E140: 1736 | F140: 0 | G140: خالد أبو الحمد
D141: 7986 | E141: 3615 | F141: 56 | G141: خالد أبو الحمد | H141: عبدالعال الشرقاوي | I141: =8.49*2.385*1.82 -> 36.852543 | J141: =5.43*2.29*1.56 -> 19.398132 | K141: =SUM(I141:J141)-0.25 -> 56.000675
D142: 7234 | E142: 5368 | F142: 60.7 | G142: الحاج عدلي | I142: =8.51*2.31*2.02 -> 39.709362 | J142: =5.5*2.3*1.68 -> 21.252 | K142: =SUM(I142:J142)-0.26 -> 60.701362
D143: 8526 | E143: 4675 | F143: 0 | G143: الحاج عدلي
D144: 7432 | E144: 5146 | F144: 52.1 | G144: الحاج عدلي | I144: =8.48*2.3*1.715 -> 33.44936 | J144: =5.3*2.28*1.565 -> 18.91146 | K144: =SUM(I144:J144)-0.26 -> 52.10082
D145: 4869 | E145: 7235 | F145: 0 | G145: خالد أبو الحمد
D146: 4936 | E146: 14319 | F146: 59.25 | G146: الحاج عدلي | I146: =8.33*2.285*2.05 -> 39.0198025 | J146: =5.31*2.28*1.69 -> 20.460492 | K146: =SUM(I146:J146)-0.23 -> 59.2502945
D147: 8869 | E147: 1732 | F147: 60 | G147: مراد الوكيل
D148: 2453 | E148: 14640 | F148: 52 | G148: الحاج عدلي | I148: =8.27*2.3*1.67 -> 31.76507 | J148: =5.29*2.3*1.68 -> 20.44056 | K148: =SUM(I148:J148)-0.21 -> 51.99563
D149: 6789 | E149: 6592 | F149: 53.7 | G149: عمرسيد | I149: =8.14*2.3*1.83 -> 34.26126 | J149: =5.15*2.3*1.665 -> 19.721925 | K149: =SUBTOTAL(9,I149:J149)-0.28 -> 53.703185
D150: 2871 | E150: 3189 | F150: 53.5 | G150: الحاج عدلي | I150: =7.94*2.31*1.78 -> 32.647692 | J150: =5.48*2.31*1.67 -> 21.140196 | K150: =SUM(I150:J150)-0.29 -> 53.497888
B151: فرداني عبدالناصر جمال | D151: 64395 | F151: 19.7
D152: 7268 | E152: 13666 | F152: 54.75 | G152: الحاج عدلي | I152: =5.29*2.29*1.64 -> 19.867124 | J152: =8.16*2.27*1.9 -> 35.19408 | K152: =SUBTOTAL(9,I152:J152)-0.31 -> 54.751204
D153: 3952 | E153: 14648 | F153: 57 | G153: مراد الوكيل
D154: 9824 | E154: 12802 | F154: 59 | G154: الحاج عدلي | I154: =5.3*2.29*1.7 -> 20.6329 | J154: =8.37*2.3*2.01 -> 38.69451 | K154: =SUM(I154:J154)-0.33 -> 58.99741
D155: 8796 | E155: 13967 | F155: 54.65 | G155: الحاج عدلي | I155: =8.01*2.29*1.965 -> 36.0437985 | J155: =4.83*2.31*1.69 -> 18.855837 | K155: =SUM(I155:J155)-0.25 -> 54.6496355
D156: 3251 | E156: 8159 | F156: 52.6 | G156: الحاج عدلي | I156: =8.1*2.33*1.75 -> 33.02775 | J156: =5.31*2.28*1.64 -> 19.855152 | K156: =SUM(I156:J156)-0.28 -> 52.602902
D157: 9275 | E157: 14272 | F157: 58 | G157: الحاج عدلي | I157: =8.15*2.28*2.12 -> 39.39384 | J157: =5.3*2.26*1.58 -> 18.92524 | K157: =SUM(I157:J157)-0.32 -> 57.99908
D158: 8457 | E158: 5398 | F158: 54.4 | G158: الحاج عدلي | I158: =8.39*2.29*1.855 -> 35.6403005 | J158: =5.39*2.29*1.54 -> 19.008374 | K158: =SUM(I158:J158)-0.25 -> 54.3986745
D159: 15049 | E159: 12359 | F159: 51.1 | G159: الحاج عدلي | I159: =6.23*2.38*1.87 -> 27.727238 | J159: =4.95*2.45*1.95 -> 23.648625 | K159: =SUM(I159:J159)-0.28 -> 51.095863
D160: 1487 | E160: 7843 | F160: 52.8 | G160: الحاج عدلي | I160: =8.14*2.29*1.83 -> 34.112298 | J160: =5.37*2.28*1.55 -> 18.97758 | K160: =SUM(I160:J160)-0.29 -> 52.799878
D161: 9378 | E161: 1437 | F161: 54 | G161: الحاج عدلي | I161: =8.32*2.29*1.84 -> 35.057152 | J161: =5.32*2.29*1.57 -> 19.126996 | K161: =SUM(I161:J161)-0.18 -> 54.004148
D162: 51678 | E162: 5639 | F162: 51.6 | G162: الحاج عدلي | I162: =6.24*2.45*1.89 -> 28.89432 | J162: =4.93*2.44*1.91 -> 22.975772 | K162: =SUM(I162:J162)-0.27 -> 51.600092
D163: 5692 | E163: 8476 | F163: 54.55 | G163: الحاج عدلي | I163: =7.98*2.32*1.86 -> 34.435296 | J163: =5.49*2.32*1.6 -> 20.37888 | K163: =SUM(I163:J163)-0.26 -> 54.554176
D164: 2675 | E164: 7836 | F164: 52.6 | G164: الحاج عدلي | I164: =8.31*2.31*1.7 -> 32.63337 | J164: =5.5*2.33*1.58 -> 20.2477 | K164: =SUM(I164:J164)-0.28 -> 52.60107
D165: 4598 | E165: 2618 | F165: 59.5 | G165: الحاج عدلي | I165: =5.3*2.29*1.7 -> 20.6329 | J165: =8.37*2.3*2.01 -> 38.69451 | K165: =SUM(I165:J165)-0.33 -> 58.99741
D166: 122598 | E166: 1673 | F166: 57 | G166: الحاج عدلي | I166: =5.44*2.28*1.76 -> 21.829632 | J166: =8.08*2.31*1.9 -> 35.46312 | K166: =SUM(I166:J166)-0.29 -> 57.002752
D167: 4387 | E167: 7934 | F167: 0 | G167: الحاج عدلي
D168: 8316 | E168: 1586 | F168: 0 | G168: حسين ابوهاشم
D169: 4381 | E169: 7815 | F169: 0 | G169: الحاج عدلي
D170: 4729 | E170: 7214 | F170: 0 | G170: الحاج عدلي
D171: 7813 | E171: 5986 | F171: 56 | G171: الحاج عدلي | I171: =8.49*2.385*1.82 -> 36.852543 | J171: =5.43*2.29*1.56 -> 19.398132 | K171: =SUM(I171:J171)-0.25 -> 56.000675
D172: 5384 | E172: 7747 | F172: 0 | G172: الحاج عدلي
D173: 3692 | E173: 9521 | F173: 57 | G173: الحاج عدلي | I173: =5.44*2.28*1.75 -> 21.7056 | J173: =8.08*2.31*1.9 -> 35.46312 | K173: =SUM(I173:J173)-0.17 -> 56.99872
D174: 125753 | E174: 13978 | F174: 57 | G174: الحاج عدلي | H174: بدون كوريك | I174: =8.24*2.32*1.85 -> 35.36608 | J174: =5.36*2.32*1.74 -> 21.637248 | K174: =SUM(I174:J174) -> 57.003328
D175: 4386 | E175: 8051 | F175: 0 | G175: الحاج عدلي
D176: 121099 | E176: 13599 | F176: 55 | G176: الحاج عدلي | I176: =5.5*2.3*1.64 -> 20.746 | J176: =7.98*2.34*1.85 -> 34.54542 | K176: =SUM(I176:J176)-0.29 -> 55.00142
D177: 2356 | E177: 14797 | F177: 56 | G177: الحاج عدلي | I177: =8.49*2.385*1.82 -> 36.852543 | J177: =5.43*2.29*1.56 -> 19.398132 | K177: =SUM(I177:J177)-0.25 -> 56.000675
D178: 7326 | E178: 1628 | F178: 61 | G178: الحاج عدلي | I178: =8.48*2.29*2.12 -> 41.168704 | J178: =5.43*2.28*1.625 -> 20.11815 | K178: =SUM(I178:J178)-0.29 -> 60.996854
D179: 1394 | E179: 5738 | F179: 0 | G179: الحاج عدلي
D180: 3291 | E180: 8263 | F180: 54.85 | G180: الحاج عدلي | I180: =4.93*2.27*1.66 -> 18.577226 | J180: =7.94*2.29*2.01 -> 36.547026 | K180: =SUM(I180:J180)-0.27 -> 54.854252
D181: 2637 | E181: 3682 | F181: 52.8 | G181: الحاج عدلي | I181: =5.5*2.3*1.5 -> 18.975 | J181: =8.03*2.32*1.83 -> 34.092168 | K181: =SUM(I181:J181)-0.27 -> 52.797168
D182: 9837 | E182: 14697 | F182: 56 | G182: الحاج عدلي | H182: ابو الحمد | I182: =8.49*2.39*1.82 -> 36.929802 | J182: =5.44*2.28*1.56 -> 19.348992 | K182: =SUM(I182:J182)-0.28 -> 55.998794
D183: 9537 | E183: 3296 | F183: 56.2 | G183: خالد أبو الحمد | H183: عبدالعال الشرقاوي | I183: =8.25*2.29*1.88 -> 35.5179 | J183: =5.49*2.3*1.66 -> 20.96082 | K183: =SUM(I183:J183)-0.28 -> 56.19872
D184: 8297 | E184: 7291 | F184: 52.75 | G184: الحاج عدلي | H184: بدون كوريك | I184: =8.93*2.4*1.8 -> 38.5776 | J184: =6.07*2.43*0.96 -> 14.160096 | K184: =SUM(I184:J184) -> 52.737696
D185: 87363 | E185: 8124 | F185: 56.2 | G185: الحاج عدلي | I185: =8.71*2.34*1.75 -> 35.66745 | J185: =5.3*2.3*1.7 -> 20.723 | K185: =SUM(I185:J185)-0.19 -> 56.20045
D186: 9621 | E186: 9723 | F186: 71.5 | G186: الحاج عدلي | I186: =5.78*2.32*1.9 -> 25.47824 | J186: =8.64*2.35*2.28 -> 46.29312 | K186: =SUBTOTAL(9,I186:J186)-0.27 -> 71.50136
D187: 7812 | E187: 2635 | F187: 59.5 | G187: الحاج عدلي | I187: =8.34*2.32*2.01 -> 38.891088 | J187: =5.35*2.31*1.69 -> 20.885865 | K187: =SUM(I187:J187)-0.28 -> 59.496953
D188: 7614 | E188: 1269 | F188: 50.6 | G188: مراد الوكيل | H188: شاهين | I188: =8*2.36*1.72 -> 32.4736 | J188: =5.15*2.3*1.555 -> 18.418975 | K188: =SUM(I188:J188)-0.29 -> 50.602575
D189: 40704 | E189: 31902 | F189: 0 | G189: خالد أبو الحمد
D190: 4827 | E190: 13471 | F190: 61.85 | G190: مراد الوكيل | I190: =8.22*2.29*2.08 -> 39.153504 | J190: =5.3*2.34*1.85 -> 22.9437 | K190: =SUM(I190:J190)-0.25 -> 61.847204
D191: 5869 | E191: 1782 | F191: 60.2 | G191: الحاج عدلي | I191: =8.44*2.33*1.94 -> 38.150488 | J191: =5.37*2.31*1.8 -> 22.32846 | K191: =SUBTOTAL(9,I191:J191)-0.28 -> 60.198948
D192: 5754 | E192: 8097 | F192: 52 | G192: الحاج عدلي | H192: بدون كوريك | I192: =8.82*2.42*1.8 -> 38.41992 | J192: =5.68*2.41*1 -> 13.6888 | K192: =SUM(I192:J192) -> 52.10872
D193: 5344 | E193: 8379 | F193: 58.3 | G193: الحاج عدلي | I193: =8*2.3*2.03 -> 37.352 | J193: =5.29*2.29*1.75 -> 21.199675 | K193: =SUM(I193:J193)-0.25 -> 58.301675
D194: 4196 | E194: 6529 | F194: 58.25 | G194: مراد الوكيل | I194: =8.31*2.3*2 -> 38.226 | J194: =5.31*2.29*1.67 -> 20.307033 | K194: =J194+I194-0.28 -> 58.253033
D195: 1539 | E195: 14331 | F195: 56.2 | G195: مراد الوكيل | I195: =8.17*2.3*1.92 -> 36.07872 | J195: =5.31*2.3*1.67 -> 20.39571 | K195: =SUBTOTAL(9,I195:J195)-0.27 -> 56.20443
D196: 4967 | E196: 9184 | F196: 60.25 | G196: مراد الوكيل | I196: =8.37*2.3*2.07 -> 39.84957 | J196: =5.33*2.31*1.68 -> 20.684664 | K196: =SUBTOTAL(9,I196:J196)-0.28 -> 60.254234
D197: 1943 | E197: 13620 | F197: 56.25 | G197: مراد الوكيل | I197: =8.15*2.31*1.95 -> 36.711675 | J197: =5.43*2.31*1.58 -> 19.818414 | K197: =SUBTOTAL(9,I197:J197)-0.28 -> 56.250089
D198: ف4681 | F198: 20.25 | H198: فرداني | J198: =5.38*2.31*1.65-0.25 -> 20.25587
D199: 9172 | F199: 19.75 | H199: فرداني | J199: =5.39*2.29*1.625 -> 20.0575375
D200: 7143 | E200: 4291 | F200: 50.2 | G200: الحاج عدلي | H200: بدون كوريك | I200: =8.42*2.31*1.89 -> 36.760878 | J200: =6.13*2.44*0.9 -> 13.46148 | K200: =SUM(I200:J200) -> 50.222358
... 194 more rows

Sheet كميات مقاول
E1: اسم المقاول | G1: محمد ورداني
C2: خلال الفترة من تاريخ | E2: 2020-02-26 | G2: حتي تاريخ | H2: 2020-03-24
B3: نوع النقل | C3: موقع التحميل | D3: رقم السياره | E3: رقم المقطورة | F3: عدد النقل | G3: تكعيب السيارة | H3: الخصومات | I3: الكمية بالمتر | J3: سعر المتر | K3: الصافى بالجنيه | L3: ملاحظات
A4: =IFERROR(IF(INDEX(توريدات!$A$3:$A$3000,MATCH(0,INDEX(COUNTIF($A$3:A3,توريدات!$A$3:$A$3000),),0))=0,"",INDEX(توريدات!$A$3:$A$3000,MATCH(0,INDEX(COUNTIF($A$3:A3,توريدات!$A$3:$A$3000),),0))),"") -> سن 6بالبودرهك الفيروز - حجر ومشال165698 | B4: =IF($A4="","",VLOOKUP($A4,توريدات!$A$3:$U$3000,11,0)) -> سن 6بالبودره | C4: =IF($A4="","",VLOOKUP($A4,توريدات!$A$3:$U$3000,10,0)) -> ك الفيروز - حجر ومشال | D4: =IF($A4="","",VLOOKUP($A4,توريدات!$A$3:$U$3000,5,0)) -> 165698 | E4: =IF($A4="","",VLOOKUP($A4,توريدات!$A$3:$U$3000,6,0)) -> 8712 | F4: =IF($A4="","",SUMIF(توريدات!$A$3:$A$3000,$A4,توريدات!$L$3:$L$3000)) -> 1 | G4: =IF($A4="","",VLOOKUP($A4,توريدات!$A$3:$U$3000,13,0)) -> 0 | H4: =IF($A4="","",SUMIF(توريدات!$A$3:$A$3000,$A4,توريدات!$O$3:$O$3000)) -> 0 | I4: =IF($A4="","",SUMIF(توريدات!$A$3:$A$3000,$A4,توريدات!$P$3:$P$3000)) -> 0 | J4: =IF($A4="","",VLOOKUP($A4,توريدات!$A$3:$U$3000,17,0)) -> 95 | K4: =IF($A4="","",SUMIF(توريدات!$A$3:$A$3000,$A4,توريدات!$T$3:$T$3000)) -> 0 | L4: =IFERROR(IF(VLOOKUP($A4,توريدات!$A$3:$U$3000,21,0)=0,"",VLOOKUP($A4,توريدات!$A$3:$U$3000,21,0)),"") -> 
A5: =IFERROR(IF(INDEX(توريدات!$A$3:$A$3000,MATCH(0,INDEX(COUNTIF($A$3:A4,توريدات!$A$3:$A$3000),),0))=0,"",INDEX(توريدات!$A$3:$A$3000,MATCH(0,INDEX(COUNTIF($A$3:A4,توريدات!$A$3:$A$3000),),0))),"") -> سن 6بالبودرهك الفيروز - حجر ومشال9681 | B5: =IF($A5="","",VLOOKUP($A5,توريدات!$A$3:$U$3000,11,0)) -> سن 6بالبودره | C5: =IF($A5="","",VLOOKUP($A5,توريدات!$A$3:$U$3000,10,0)) -> ك الفيروز - حجر ومشال | D5: =IF($A5="","",VLOOKUP($A5,توريدات!$A$3:$U$3000,5,0)) -> 9681 | E5: =IF($A5="","",VLOOKUP($A5,توريدات!$A$3:$U$3000,6,0)) -> 9543 | F5: =IF($A5="","",SUMIF(توريدات!$A$3:$A$3000,$A5,توريدات!$L$3:$L$3000)) -> 6 | G5: =IF($A5="","",VLOOKUP($A5,توريدات!$A$3:$U$3000,13,0)) -> 46.75 | H5: =IF($A5="","",SUMIF(توريدات!$A$3:$A$3000,$A5,توريدات!$O$3:$O$3000)) -> 5 | I5: =IF($A5="","",SUMIF(توريدات!$A$3:$A$3000,$A5,توريدات!$P$3:$P$3000)) -> 275.5 | J5: =IF($A5="","",VLOOKUP($A5,توريدات!$A$3:$U$3000,17,0)) -> 95 | K5: =IF($A5="","",SUMIF(توريدات!$A$3:$A$3000,$A5,توريدات!$T$3:$T$3000)) -> 26172.5 | L5: =IFERROR(IF(VLOOKUP($A5,توريدات!$A$3:$U$3000,21,0)=0,"",VLOOKUP($A5,توريدات!$A$3:$U$3000,21,0)),"") -> 
A6: =IFERROR(IF(INDEX(توريدات!$A$3:$A$3000,MATCH(0,INDEX(COUNTIF($A$3:A5,توريدات!$A$3:$A$3000),),0))=0,"",INDEX(توريدات!$A$3:$A$3000,MATCH(0,INDEX(COUNTIF($A$3:A5,توريدات!$A$3:$A$3000),),0))),"") -> سن 6بالبودرهكسارة ابو نــدا162809 | B6: =IF($A6="","",VLOOKUP($A6,توريدات!$A$3:$U$3000,11,0)) -> سن 6بالبودره | C6: =IF($A6="","",VLOOKUP($A6,توريدات!$A$3:$U$3000,10,0)) -> كسارة ابو نــدا | D6: =IF($A6="","",VLOOKUP($A6,توريدات!$A$3:$U$3000,5,0)) -> 162809 | E6: =IF($A6="","",VLOOKUP($A6,توريدات!$A$3:$U$3000,6,0)) -> 60394 | F6: =IF($A6="","",SUMIF(توريدات!$A$3:$A$3000,$A6,توريدات!$L$3:$L$3000)) -> 1 | G6: =IF($A6="","",VLOOKUP($A6,توريدات!$A$3:$U$3000,13,0)) -> 0 | H6: =IF($A6="","",SUMIF(توريدات!$A$3:$A$3000,$A6,توريدات!$O$3:$O$3000)) -> 0 | I6: =IF($A6="","",SUMIF(توريدات!$A$3:$A$3000,$A6,توريدات!$P$3:$P$3000)) -> 0 | J6: =IF($A6="","",VLOOKUP($A6,توريدات!$A$3:$U$3000,17,0)) -> 95 | K6: =IF($A6="","",SUMIF(توريدات!$A$3:$A$3000,$A6,توريدات!$T$3:$T$3000)) -> 0 | L6: =IFERROR(IF(VLOOKUP($A6,توريدات!$A$3:$U$3000,21,0)=0,"",VLOOKUP($A6,توريدات!$A$3:$U$3000,21,0)),"") -> مرفوضة
A7: =IFERROR(IF(INDEX(توريدات!$A$3:$A$3000,MATCH(0,INDEX(COUNTIF($A$3:A6,توريدات!$A$3:$A$3000),),0))=0,"",INDEX(توريدات!$A$3:$A$3000,MATCH(0,INDEX(COUNTIF($A$3:A6,توريدات!$A$3:$A$3000),),0))),"") -> سن 6بالبودرهكسارة ابو نــدا5418 | B7: =IF($A7="","",VLOOKUP($A7,توريدات!$A$3:$U$3000,11,0)) -> سن 6بالبودره | C7: =IF($A7="","",VLOOKUP($A7,توريدات!$A$3:$U$3000,10,0)) -> كسارة ابو نــدا | D7: =IF($A7="","",VLOOKUP($A7,توريدات!$A$3:$U$3000,5,0)) -> 5418 | E7: =IF($A7="","",VLOOKUP($A7,توريدات!$A$3:$U$3000,6,0)) -> 5193 | F7: =IF($A7="","",SUMIF(توريدات!$A$3:$A$3000,$A7,توريدات!$L$3:$L$3000)) -> 1 | G7: =IF($A7="","",VLOOKUP($A7,توريدات!$A$3:$U$3000,13,0)) -> 46.2 | H7: =IF($A7="","",SUMIF(توريدات!$A$3:$A$3000,$A7,توريدات!$O$3:$O$3000)) -> 5 | I7: =IF($A7="","",SUMIF(توريدات!$A$3:$A$3000,$A7,توريدات!$P$3:$P$3000)) -> 41.2 | J7: =IF($A7="","",VLOOKUP($A7,توريدات!$A$3:$U$3000,17,0)) -> 95 | K7: =IF($A7="","",SUMIF(توريدات!$A$3:$A$3000,$A7,توريدات!$T$3:$T$3000)) -> 3914 | L7: =IFERROR(IF(VLOOKUP($A7,توريدات!$A$3:$U$3000,21,0)=0,"",VLOOKUP($A7,توريدات!$A$3:$U$3000,21,0)),"") -> مرفوضة
A8: =IFERROR(IF(INDEX(توريدات!$A$3:$A$3000,MATCH(0,INDEX(COUNTIF($A$3:A7,توريدات!$A$3:$A$3000),),0))=0,"",INDEX(توريدات!$A$3:$A$3000,MATCH(0,INDEX(COUNTIF($A$3:A7,توريدات!$A$3:$A$3000),),0))),"") -> سن 6بالبودرهكسارة ابو نــدا8356 | B8: =IF($A8="","",VLOOKUP($A8,توريدات!$A$3:$U$3000,11,0)) -> سن 6بالبودره | C8: =IF($A8="","",VLOOKUP($A8,توريدات!$A$3:$U$3000,10,0)) -> كسارة ابو نــدا | D8: =IF($A8="","",VLOOKUP($A8,توريدات!$A$3:$U$3000,5,0)) -> 8356 | E8: =IF($A8="","",VLOOKUP($A8,توريدات!$A$3:$U$3000,6,0)) -> 60157 | F8: =IF($A8="","",SUMIF(توريدات!$A$3:$A$3000,$A8,توريدات!$L$3:$L$3000)) -> 1 | G8: =IF($A8="","",VLOOKUP($A8,توريدات!$A$3:$U$3000,13,0)) -> 0 | H8: =IF($A8="","",SUMIF(توريدات!$A$3:$A$3000,$A8,توريدات!$O$3:$O$3000)) -> 0 | I8: =IF($A8="","",SUMIF(توريدات!$A$3:$A$3000,$A8,توريدات!$P$3:$P$3000)) -> 0 | J8: =IF($A8="","",VLOOKUP($A8,توريدات!$A$3:$U$3000,17,0)) -> 95 | K8: =IF($A8="","",SUMIF(توريدات!$A$3:$A$3000,$A8,توريدات!$T$3:$T$3000)) -> 0 | L8: =IFERROR(IF(VLOOKUP($A8,توريدات!$A$3:$U$3000,21,0)=0,"",VLOOKUP($A8,توريدات!$A$3:$U$3000,21,0)),"") -> مرفوضة
A9: =IFERROR(IF(INDEX(توريدات!$A$3:$A$3000,MATCH(0,INDEX(COUNTIF($A$3:A8,توريدات!$A$3:$A$3000),),0))=0,"",INDEX(توريدات!$A$3:$A$3000,MATCH(0,INDEX(COUNTIF($A$3:A8,توريدات!$A$3:$A$3000),),0))),"") -> سن 6بالبودرهكسارة ابناء الشرقية 8531 | B9: =IF($A9="","",VLOOKUP($A9,توريدات!$A$3:$U$3000,11,0)) -> سن 6بالبودره | C9: =IF($A9="","",VLOOKUP($A9,توريدات!$A$3:$U$3000,10,0)) -> كسارة ابناء الشرقية | D9: =IF($A9="","",VLOOKUP($A9,توريدات!$A$3:$U$3000,5,0)) -> 8531 | E9: =IF($A9="","",VLOOKUP($A9,توريدات!$A$3:$U$3000,6,0)) -> 60296 | F9: =IF($A9="","",SUMIF(توريدات!$A$3:$A$3000,$A9,توريدات!$L$3:$L$3000)) -> 1 | G9: =IF($A9="","",VLOOKUP($A9,توريدات!$A$3:$U$3000,13,0)) -> 51.9 | H9: =IF($A9="","",SUMIF(توريدات!$A$3:$A$3000,$A9,توريدات!$O$3:$O$3000)) -> 0 | I9: =IF($A9="","",SUMIF(توريدات!$A$3:$A$3000,$A9,توريدات!$P$3:$P$3000)) -> 51.9 | J9: =IF($A9="","",VLOOKUP($A9,توريدات!$A$3:$U$3000,17,0)) -> 97 | K9: =IF($A9="","",SUMIF(توريدات!$A$3:$A$3000,$A9,توريدات!$T$3:$T$3000)) -> 5034.3 | L9: =IFERROR(IF(VLOOKUP($A9,توريدات!$A$3:$U$3000,21,0)=0,"",VLOOKUP($A9,توريدات!$A$3:$U$3000,21,0)),"") -> 
A10: =IFERROR(IF(INDEX(توريدات!$A$3:$A$3000,MATCH(0,INDEX(COUNTIF($A$3:A9,توريدات!$A$3:$A$3000),),0))=0,"",INDEX(توريدات!$A$3:$A$3000,MATCH(0,INDEX(COUNTIF($A$3:A9,توريدات!$A$3:$A$3000),),0))),"") -> سن 6بالبودرهكسارة ابناء الشرقية 5418 | B10: =IF($A10="","",VLOOKUP($A10,توريدات!$A$3:$U$3000,11,0)) -> سن 6بالبودره | C10: =IF($A10="","",VLOOKUP($A10,توريدات!$A$3:$U$3000,10,0)) -> كسارة ابناء الشرقية | D10: =IF($A10="","",VLOOKUP($A10,توريدات!$A$3:$U$3000,5,0)) -> 5418 | E10: =IF($A10="","",VLOOKUP($A10,توريدات!$A$3:$U$3000,6,0)) -> 5193 | F10: =IF($A10="","",SUMIF(توريدات!$A$3:$A$3000,$A10,توريدات!$L$3:$L$3000)) -> 1 | G10: =IF($A10="","",VLOOKUP($A10,توريدات!$A$3:$U$3000,13,0)) -> 46.2 | H10: =IF($A10="","",SUMIF(توريدات!$A$3:$A$3000,$A10,توريدات!$O$3:$O$3000)) -> 0 | I10: =IF($A10="","",SUMIF(توريدات!$A$3:$A$3000,$A10,توريدات!$P$3:$P$3000)) -> 46.2 | J10: =IF($A10="","",VLOOKUP($A10,توريدات!$A$3:$U$3000,17,0)) -> 97 | K10: =IF($A10="","",SUMIF(توريدات!$A$3:$A$3000,$A10,توريدات!$T$3:$T$3000)) -> 4481.4 | L10: =IFERROR(IF(VLOOKUP($A10,توريدات!$A$3:$U$3000,21,0)=0,"",VLOOKUP($A10,توريدات!$A$3:$U$3000,21,0)),"") -> 
A11: =IFERROR(IF(INDEX(توريدات!$A$3:$A$3000,MATCH(0,INDEX(COUNTIF($A$3:A10,توريدات!$A$3:$A$3000),),0))=0,"",INDEX(توريدات!$A$3:$A$3000,MATCH(0,INDEX(COUNTIF($A$3:A10,توريدات!$A$3:$A$3000),),0))),"") -> سن 6بالبودرهكسارة ابناء الشرقية ع9378 | B11: =IF($A11="","",VLOOKUP($A11,توريدات!$A$3:$U$3000,11,0)) -> سن 6بالبودره | C11: =IF($A11="","",VLOOKUP($A11,توريدات!$A$3:$U$3000,10,0)) -> كسارة ابناء الشرقية | D11: =IF($A11="","",VLOOKUP($A11,توريدات!$A$3:$U$3000,5,0)) -> ع9378 | E11: =IF($A11="","",VLOOKUP($A11,توريدات!$A$3:$U$3000,6,0)) -> 9158 | F11: =IF($A11="","",SUMIF(توريدات!$A$3:$A$3000,$A11,توريدات!$L$3:$L$3000)) -> 1 | G11: =IF($A11="","",VLOOKUP($A11,توريدات!$A$3:$U$3000,13,0)) -> 47 | H11: =IF($A11="","",SUMIF(توريدات!$A$3:$A$3000,$A11,توريدات!$O$3:$O$3000)) -> 0 | I11: =IF($A11="","",SUMIF(توريدات!$A$3:$A$3000,$A11,توريدات!$P$3:$P$3000)) -> 47 | J11: =IF($A11="","",VLOOKUP($A11,توريدات!$A$3:$U$3000,17,0)) -> 97 | K11: =IF($A11="","",SUMIF(توريدات!$A$3:$A$3000,$A11,توريدات!$T$3:$T$3000)) -> 4559 | L11: =IFERROR(IF(VLOOKUP($A11,توريدات!$A$3:$U$3000,21,0)=0,"",VLOOKUP($A11,توريدات!$A$3:$U$3000,21,0)),"") -> 
A12: =IFERROR(IF(INDEX(توريدات!$A$3:$A$3000,MATCH(0,INDEX(COUNTIF($A$3:A11,توريدات!$A$3:$A$3000),),0))=0,"",INDEX(توريدات!$A$3:$A$3000,MATCH(0,INDEX(COUNTIF($A$3:A11,توريدات!$A$3:$A$3000),),0))),"") -> سن 6بالبودرهكســارة النــدا5413 | B12: =IF($A12="","",VLOOKUP($A12,توريدات!$A$3:$U$3000,11,0)) -> سن 6بالبودره | C12: =IF($A12="","",VLOOKUP($A12,توريدات!$A$3:$U$3000,10,0)) -> كســارة النــدا | D12: =IF($A12="","",VLOOKUP($A12,توريدات!$A$3:$U$3000,5,0)) -> 5413 | E12: =IF($A12="","",VLOOKUP($A12,توريدات!$A$3:$U$3000,6,0)) -> 9652 | F12: =IF($A12="","",SUMIF(توريدات!$A$3:$A$3000,$A12,توريدات!$L$3:$L$3000)) -> 2 | G12: =IF($A12="","",VLOOKUP($A12,توريدات!$A$3:$U$3000,13,0)) -> 0 | H12: =IF($A12="","",SUMIF(توريدات!$A$3:$A$3000,$A12,توريدات!$O$3:$O$3000)) -> 0 | I12: =IF($A12="","",SUMIF(توريدات!$A$3:$A$3000,$A12,توريدات!$P$3:$P$3000)) -> 0 | J12: =IF($A12="","",VLOOKUP($A12,توريدات!$A$3:$U$3000,17,0)) -> 95 | K12: =IF($A12="","",SUMIF(توريدات!$A$3:$A$3000,$A12,توريدات!$T$3:$T$3000)) -> 0 | L12: =IFERROR(IF(VLOOKUP($A12,توريدات!$A$3:$U$3000,21,0)=0,"",VLOOKUP($A12,توريدات!$A$3:$U$3000,21,0)),"") -> 
A13: =IFERROR(IF(INDEX(توريدات!$A$3:$A$3000,MATCH(0,INDEX(COUNTIF($A$3:A12,توريدات!$A$3:$A$3000),),0))=0,"",INDEX(توريدات!$A$3:$A$3000,MATCH(0,INDEX(COUNTIF($A$3:A12,توريدات!$A$3:$A$3000),),0))),"") -> سن 6بالبودرهكسارة العاصمة 9681 | B13: =IF($A13="","",VLOOKUP($A13,توريدات!$A$3:$U$3000,11,0)) -> سن 6بالبودره | C13: =IF($A13="","",VLOOKUP($A13,توريدات!$A$3:$U$3000,10,0)) -> كسارة العاصمة | D13: =IF($A13="","",VLOOKUP($A13,توريدات!$A$3:$U$3000,5,0)) -> 9681 | E13: =IF($A13="","",VLOOKUP($A13,توريدات!$A$3:$U$3000,6,0)) -> 9543 | F13: =IF($A13="","",SUMIF(توريدات!$A$3:$A$3000,$A13,توريدات!$L$3:$L$3000)) -> 1 | G13: =IF($A13="","",VLOOKUP($A13,توريدات!$A$3:$U$3000,13,0)) -> 46.75 | H13: =IF($A13="","",SUMIF(توريدات!$A$3:$A$3000,$A13,توريدات!$O$3:$O$3000)) -> 5 | I13: =IF($A13="","",SUMIF(توريدات!$A$3:$A$3000,$A13,توريدات!$P$3:$P$3000)) -> 41.75 | J13: =IF($A13="","",VLOOKUP($A13,توريدات!$A$3:$U$3000,17,0)) -> 95 | K13: =IF($A13="","",SUMIF(توريدات!$A$3:$A$3000,$A13,توريدات!$T$3:$T$3000)) -> 3966.25 | L13: =IFERROR(IF(VLOOKUP($A13,توريدات!$A$3:$U$3000,21,0)=0,"",VLOOKUP($A13,توريدات!$A$3:$U$3000,21,0)),"") -> مرفوضه
A14: =IFERROR(IF(INDEX(توريدات!$A$3:$A$3000,MATCH(0,INDEX(COUNTIF($A$3:A13,توريدات!$A$3:$A$3000),),0))=0,"",INDEX(توريدات!$A$3:$A$3000,MATCH(0,INDEX(COUNTIF($A$3:A13,توريدات!$A$3:$A$3000),),0))),"") -> سن 6بالبودرهك الفيروز - حجر ومشال8714 | B14: =IF($A14="","",VLOOKUP($A14,توريدات!$A$3:$U$3000,11,0)) -> سن 6بالبودره | C14: =IF($A14="","",VLOOKUP($A14,توريدات!$A$3:$U$3000,10,0)) -> ك الفيروز - حجر ومشال | D14: =IF($A14="","",VLOOKUP($A14,توريدات!$A$3:$U$3000,5,0)) -> 8714 | E14: =IF($A14="","",VLOOKUP($A14,توريدات!$A$3:$U$3000,6,0)) -> 6528 | F14: =IF($A14="","",SUMIF(توريدات!$A$3:$A$3000,$A14,توريدات!$L$3:$L$3000)) -> 1 | G14: =IF($A14="","",VLOOKUP($A14,توريدات!$A$3:$U$3000,13,0)) -> 49.15 | H14: =IF($A14="","",SUMIF(توريدات!$A$3:$A$3000,$A14,توريدات!$O$3:$O$3000)) -> 0 | I14: =IF($A14="","",SUMIF(توريدات!$A$3:$A$3000,$A14,توريدات!$P$3:$P$3000)) -> 49.15 | J14: =IF($A14="","",VLOOKUP($A14,توريدات!$A$3:$U$3000,17,0)) -> 95 | K14: =IF($A14="","",SUMIF(توريدات!$A$3:$A$3000,$A14,توريدات!$T$3:$T$3000)) -> 4669.25 | L14: =IFERROR(IF(VLOOKUP($A14,توريدات!$A$3:$U$3000,21,0)=0,"",VLOOKUP($A14,توريدات!$A$3:$U$3000,21,0)),"") -> 
A15: =IFERROR(IF(INDEX(توريدات!$A$3:$A$3000,MATCH(0,INDEX(COUNTIF($A$3:A14,توريدات!$A$3:$A$3000),),0))=0,"",INDEX(توريدات!$A$3:$A$3000,MATCH(0,INDEX(COUNTIF($A$3:A14,توريدات!$A$3:$A$3000),),0))),"") ->  | B15: =IF($A15="","",VLOOKUP($A15,توريدات!$A$3:$U$3000,11,0)) ->  | C15: =IF($A15="","",VLOOKUP($A15,توريدات!$A$3:$U$3000,10,0)) ->  | D15: =IF($A15="","",VLOOKUP($A15,توريدات!$A$3:$U$3000,5,0)) ->  | E15: =IF($A15="","",VLOOKUP($A15,توريدات!$A$3:$U$3000,6,0)) ->  | F15: =IF($A15="","",SUMIF(توريدات!$A$3:$A$3000,$A15,توريدات!$L$3:$L$3000)) ->  | G15: =IF($A15="","",VLOOKUP($A15,توريدات!$A$3:$U$3000,13,0)) ->  | H15: =IF($A15="","",SUMIF(توريدات!$A$3:$A$3000,$A15,توريدات!$O$3:$O$3000)) ->  | I15: =IF($A15="","",SUMIF(توريدات!$A$3:$A$3000,$A15,توريدات!$P$3:$P$3000)) ->  | J15: =IF($A15="","",VLOOKUP($A15,توريدات!$A$3:$U$3000,17,0)) ->  | K15: =IF($A15="","",SUMIF(توريدات!$A$3:$A$3000,$A15,توريدات!$T$3:$T$3000)) ->  | L15: =IFERROR(IF(VLOOKUP($A15,توريدات!$A$3:$U$3000,21,0)=0,"",VLOOKUP($A15,توريدات!$A$3:$U$3000,21,0)),"") -> 
A16: =IFERROR(IF(INDEX(توريدات!$A$3:$A$3000,MATCH(0,INDEX(COUNTIF($A$3:A15,توريدات!$A$3:$A$3000),),0))=0,"",INDEX(توريدات!$A$3:$A$3000,MATCH(0,INDEX(COUNTIF($A$3:A15,توريدات!$A$3:$A$3000),),0))),"") ->  | B16: =IF($A16="","",VLOOKUP($A16,توريدات!$A$3:$U$3000,11,0)) ->  | C16: =IF($A16="","",VLOOKUP($A16,توريدات!$A$3:$U$3000,10,0)) ->  | D16: =IF($A16="","",VLOOKUP($A16,توريدات!$A$3:$U$3000,5,0)) ->  | E16: =IF($A16="","",VLOOKUP($A16,توريدات!$A$3:$U$3000,6,0)) ->  | F16: =IF($A16="","",SUMIF(توريدات!$A$3:$A$3000,$A16,توريدات!$L$3:$L$3000)) ->  | G16: =IF($A16="","",VLOOKUP($A16,توريدات!$A$3:$U$3000,13,0)) ->  | H16: =IF($A16="","",SUMIF(توريدات!$A$3:$A$3000,$A16,توريدات!$O$3:$O$3000)) ->  | I16: =IF($A16="","",SUMIF(توريدات!$A$3:$A$3000,$A16,توريدات!$P$3:$P$3000)) ->  | J16: =IF($A16="","",VLOOKUP($A16,توريدات!$A$3:$U$3000,17,0)) ->  | K16: =IF($A16="","",SUMIF(توريدات!$A$3:$A$3000,$A16,توريدات!$T$3:$T$3000)) ->  | L16: =IFERROR(IF(VLOOKUP($A16,توريدات!$A$3:$U$3000,21,0)=0,"",VLOOKUP($A16,توريدات!$A$3:$U$3000,21,0)),"") -> 
A17: =IFERROR(IF(INDEX(توريدات!$A$3:$A$3000,MATCH(0,INDEX(COUNTIF($A$3:A16,توريدات!$A$3:$A$3000),),0))=0,"",INDEX(توريدات!$A$3:$A$3000,MATCH(0,INDEX(COUNTIF($A$3:A16,توريدات!$A$3:$A$3000),),0))),"") ->  | B17: =IF($A17="","",VLOOKUP($A17,توريدات!$A$3:$U$3000,11,0)) ->  | C17: =IF($A17="","",VLOOKUP($A17,توريدات!$A$3:$U$3000,10,0)) ->  | D17: =IF($A17="","",VLOOKUP($A17,توريدات!$A$3:$U$3000,5,0)) ->  | E17: =IF($A17="","",VLOOKUP($A17,توريدات!$A$3:$U$3000,6,0)) ->  | F17: =IF($A17="","",SUMIF(توريدات!$A$3:$A$3000,$A17,توريدات!$L$3:$L$3000)) ->  | G17: =IF($A17="","",VLOOKUP($A17,توريدات!$A$3:$U$3000,13,0)) ->  | H17: =IF($A17="","",SUMIF(توريدات!$A$3:$A$3000,$A17,توريدات!$O$3:$O$3000)) ->  | I17: =IF($A17="","",SUMIF(توريدات!$A$3:$A$3000,$A17,توريدات!$P$3:$P$3000)) ->  | J17: =IF($A17="","",VLOOKUP($A17,توريدات!$A$3:$U$3000,17,0)) ->  | K17: =IF($A17="","",SUMIF(توريدات!$A$3:$A$3000,$A17,توريدات!$T$3:$T$3000)) ->  | L17: =IFERROR(IF(VLOOKUP($A17,توريدات!$A$3:$U$3000,21,0)=0,"",VLOOKUP($A17,توريدات!$A$3:$U$3000,21,0)),"") -> 
A18: =IFERROR(IF(INDEX(توريدات!$A$3:$A$3000,MATCH(0,INDEX(COUNTIF($A$3:A17,توريدات!$A$3:$A$3000),),0))=0,"",INDEX(توريدات!$A$3:$A$3000,MATCH(0,INDEX(COUNTIF($A$3:A17,توريدات!$A$3:$A$3000),),0))),"") ->  | B18: =IF($A18="","",VLOOKUP($A18,توريدات!$A$3:$U$3000,11,0)) ->  | C18: =IF($A18="","",VLOOKUP($A18,توريدات!$A$3:$U$3000,10,0)) ->  | D18: =IF($A18="","",VLOOKUP($A18,توريدات!$A$3:$U$3000,5,0)) ->  | E18: =IF($A18="","",VLOOKUP($A18,توريدات!$A$3:$U$3000,6,0)) ->  | F18: =IF($A18="","",SUMIF(توريدات!$A$3:$A$3000,$A18,توريدات!$L$3:$L$3000)) ->  | G18: =IF($A18="","",VLOOKUP($A18,توريدات!$A$3:$U$3000,13,0)) ->  | H18: =IF($A18="","",SUMIF(توريدات!$A$3:$A$3000,$A18,توريدات!$O$3:$O$3000)) ->  | I18: =IF($A18="","",SUMIF(توريدات!$A$3:$A$3000,$A18,توريدات!$P$3:$P$3000)) ->  | J18: =IF($A18="","",VLOOKUP($A18,توريدات!$A$3:$U$3000,17,0)) ->  | K18: =IF($A18="","",SUMIF(توريدات!$A$3:$A$3000,$A18,توريدات!$T$3:$T$3000)) ->  | L18: =IFERROR(IF(VLOOKUP($A18,توريدات!$A$3:$U$3000,21,0)=0,"",VLOOKUP($A18,توريدات!$A$3:$U$3000,21,0)),"") -> 
A19: =IFERROR(IF(INDEX(توريدات!$A$3:$A$3000,MATCH(0,INDEX(COUNTIF($A$3:A18,توريدات!$A$3:$A$3000),),0))=0,"",INDEX(توريدات!$A$3:$A$3000,MATCH(0,INDEX(COUNTIF($A$3:A18,توريدات!$A$3:$A$3000),),0))),"") ->  | B19: =IF($A19="","",VLOOKUP($A19,توريدات!$A$3:$U$3000,11,0)) ->  | C19: =IF($A19="","",VLOOKUP($A19,توريدات!$A$3:$U$3000,10,0)) ->  | D19: =IF($A19="","",VLOOKUP($A19,توريدات!$A$3:$U$3000,5,0)) ->  | E19: =IF($A19="","",VLOOKUP($A19,توريدات!$A$3:$U$3000,6,0)) ->  | F19: =IF($A19="","",SUMIF(توريدات!$A$3:$A$3000,$A19,توريدات!$L$3:$L$3000)) ->  | G19: =IF($A19="","",VLOOKUP($A19,توريدات!$A$3:$U$3000,13,0)) ->  | H19: =IF($A19="","",SUMIF(توريدات!$A$3:$A$3000,$A19,توريدات!$O$3:$O$3000)) ->  | I19: =IF($A19="","",SUMIF(توريدات!$A$3:$A$3000,$A19,توريدات!$P$3:$P$3000)) ->  | J19: =IF($A19="","",VLOOKUP($A19,توريدات!$A$3:$U$3000,17,0)) ->  | K19: =IF($A19="","",SUMIF(توريدات!$A$3:$A$3000,$A19,توريدات!$T$3:$T$3000)) ->  | L19: =IFERROR(IF(VLOOKUP($A19,توريدات!$A$3:$U$3000,21,0)=0,"",VLOOKUP($A19,توريدات!$A$3:$U$3000,21,0)),"") -> 
A20: =IFERROR(IF(INDEX(توريدات!$A$3:$A$3000,MATCH(0,INDEX(COUNTIF($A$3:A19,توريدات!$A$3:$A$3000),),0))=0,"",INDEX(توريدات!$A$3:$A$3000,MATCH(0,INDEX(COUNTIF($A$3:A19,توريدات!$A$3:$A$3000),),0))),"") ->  | B20: =IF($A20="","",VLOOKUP($A20,توريدات!$A$3:$U$3000,11,0)) ->  | C20: =IF($A20="","",VLOOKUP($A20,توريدات!$A$3:$U$3000,10,0)) ->  | D20: =IF($A20="","",VLOOKUP($A20,توريدات!$A$3:$U$3000,5,0)) ->  | E20: =IF($A20="","",VLOOKUP($A20,توريدات!$A$3:$U$3000,6,0)) ->  | F20: =IF($A20="","",SUMIF(توريدات!$A$3:$A$3000,$A20,توريدات!$L$3:$L$3000)) ->  | G20: =IF($A20="","",VLOOKUP($A20,توريدات!$A$3:$U$3000,13,0)) ->  | H20: =IF($A20="","",SUMIF(توريدات!$A$3:$A$3000,$A20,توريدات!$O$3:$O$3000)) ->  | I20: =IF($A20="","",SUMIF(توريدات!$A$3:$A$3000,$A20,توريدات!$P$3:$P$3000)) ->  | J20: =IF($A20="","",VLOOKUP($A20,توريدات!$A$3:$U$3000,17,0)) ->  | K20: =IF($A20="","",SUMIF(توريدات!$A$3:$A$3000,$A20,توريدات!$T$3:$T$3000)) ->  | L20: =IFERROR(IF(VLOOKUP($A20,توريدات!$A$3:$U$3000,21,0)=0,"",VLOOKUP($A20,توريدات!$A$3:$U$3000,21,0)),"") -> 
A21: =IFERROR(IF(INDEX(توريدات!$A$3:$A$3000,MATCH(0,INDEX(COUNTIF($A$3:A20,توريدات!$A$3:$A$3000),),0))=0,"",INDEX(توريدات!$A$3:$A$3000,MATCH(0,INDEX(COUNTIF($A$3:A20,توريدات!$A$3:$A$3000),),0))),"") ->  | B21: =IF($A21="","",VLOOKUP($A21,توريدات!$A$3:$U$3000,11,0)) ->  | C21: =IF($A21="","",VLOOKUP($A21,توريدات!$A$3:$U$3000,10,0)) ->  | D21: =IF($A21="","",VLOOKUP($A21,توريدات!$A$3:$U$3000,5,0)) ->  | E21: =IF($A21="","",VLOOKUP($A21,توريدات!$A$3:$U$3000,6,0)) ->  | F21: =IF($A21="","",SUMIF(توريدات!$A$3:$A$3000,$A21,توريدات!$L$3:$L$3000)) ->  | G21: =IF($A21="","",VLOOKUP($A21,توريدات!$A$3:$U$3000,13,0)) ->  | H21: =IF($A21="","",SUMIF(توريدات!$A$3:$A$3000,$A21,توريدات!$O$3:$O$3000)) ->  | I21: =IF($A21="","",SUMIF(توريدات!$A$3:$A$3000,$A21,توريدات!$P$3:$P$3000)) ->  | J21: =IF($A21="","",VLOOKUP($A21,توريدات!$A$3:$U$3000,17,0)) ->  | K21: =IF($A21="","",SUMIF(توريدات!$A$3:$A$3000,$A21,توريدات!$T$3:$T$3000)) ->  | L21: =IFERROR(IF(VLOOKUP($A21,توريدات!$A$3:$U$3000,21,0)=0,"",VLOOKUP($A21,توريدات!$A$3:$U$3000,21,0)),"") -> 
A22: =IFERROR(IF(INDEX(توريدات!$A$3:$A$3000,MATCH(0,INDEX(COUNTIF($A$3:A21,توريدات!$A$3:$A$3000),),0))=0,"",INDEX(توريدات!$A$3:$A$3000,MATCH(0,INDEX(COUNTIF($A$3:A21,توريدات!$A$3:$A$3000),),0))),"") ->  | B22: =IF($A22="","",VLOOKUP($A22,توريدات!$A$3:$U$3000,11,0)) ->  | C22: =IF($A22="","",VLOOKUP($A22,توريدات!$A$3:$U$3000,10,0)) ->  | D22: =IF($A22="","",VLOOKUP($A22,توريدات!$A$3:$U$3000,5,0)) ->  | E22: =IF($A22="","",VLOOKUP($A22,توريدات!$A$3:$U$3000,6,0)) ->  | F22: =IF($A22="","",SUMIF(توريدات!$A$3:$A$3000,$A22,توريدات!$L$3:$L$3000)) ->  | G22: =IF($A22="","",VLOOKUP($A22,توريدات!$A$3:$U$3000,13,0)) ->  | H22: =IF($A22="","",SUMIF(توريدات!$A$3:$A$3000,$A22,توريدات!$O$3:$O$3000)) ->  | I22: =IF($A22="","",SUMIF(توريدات!$A$3:$A$3000,$A22,توريدات!$P$3:$P$3000)) ->  | J22: =IF($A22="","",VLOOKUP($A22,توريدات!$A$3:$U$3000,17,0)) ->  | K22: =IF($A22="","",SUMIF(توريدات!$A$3:$A$3000,$A22,توريدات!$T$3:$T$3000)) ->  | L22: =IFERROR(IF(VLOOKUP($A22,توريدات!$A$3:$U$3000,21,0)=0,"",VLOOKUP($A22,توريدات!$A$3:$U$3000,21,0)),"") -> 
A23: =IFERROR(IF(INDEX(توريدات!$A$3:$A$3000,MATCH(0,INDEX(COUNTIF($A$3:A22,توريدات!$A$3:$A$3000),),0))=0,"",INDEX(توريدات!$A$3:$A$3000,MATCH(0,INDEX(COUNTIF($A$3:A22,توريدات!$A$3:$A$3000),),0))),"") ->  | B23: =IF($A23="","",VLOOKUP($A23,توريدات!$A$3:$U$3000,11,0)) ->  | C23: =IF($A23="","",VLOOKUP($A23,توريدات!$A$3:$U$3000,10,0)) ->  | D23: =IF($A23="","",VLOOKUP($A23,توريدات!$A$3:$U$3000,5,0)) ->  | E23: =IF($A23="","",VLOOKUP($A23,توريدات!$A$3:$U$3000,6,0)) ->  | F23: =IF($A23="","",SUMIF(توريدات!$A$3:$A$3000,$A23,توريدات!$L$3:$L$3000)) ->  | G23: =IF($A23="","",VLOOKUP($A23,توريدات!$A$3:$U$3000,13,0)) ->  | H23: =IF($A23="","",SUMIF(توريدات!$A$3:$A$3000,$A23,توريدات!$O$3:$O$3000)) ->  | I23: =IF($A23="","",SUMIF(توريدات!$A$3:$A$3000,$A23,توريدات!$P$3:$P$3000)) ->  | J23: =IF($A23="","",VLOOKUP($A23,توريدات!$A$3:$U$3000,17,0)) ->  | K23: =IF($A23="","",SUMIF(توريدات!$A$3:$A$3000,$A23,توريدات!$T$3:$T$3000)) ->  | L23: =IFERROR(IF(VLOOKUP($A23,توريدات!$A$3:$U$3000,21,0)=0,"",VLOOKUP($A23,توريدات!$A$3:$U$3000,21,0)),"") -> 
A24: =IFERROR(IF(INDEX(توريدات!$A$3:$A$3000,MATCH(0,INDEX(COUNTIF($A$3:A23,توريدات!$A$3:$A$3000),),0))=0,"",INDEX(توريدات!$A$3:$A$3000,MATCH(0,INDEX(COUNTIF($A$3:A23,توريدات!$A$3:$A$3000),),0))),"") ->  | B24: =IF($A24="","",VLOOKUP($A24,توريدات!$A$3:$U$3000,11,0)) ->  | C24: =IF($A24="","",VLOOKUP($A24,توريدات!$A$3:$U$3000,10,0)) ->  | D24: =IF($A24="","",VLOOKUP($A24,توريدات!$A$3:$U$3000,5,0)) ->  | E24: =IF($A24="","",VLOOKUP($A24,توريدات!$A$3:$U$3000,6,0)) ->  | F24: =IF($A24="","",SUMIF(توريدات!$A$3:$A$3000,$A24,توريدات!$L$3:$L$3000)) ->  | G24: =IF($A24="","",VLOOKUP($A24,توريدات!$A$3:$U$3000,13,0)) ->  | H24: =IF($A24="","",SUMIF(توريدات!$A$3:$A$3000,$A24,توريدات!$O$3:$O$3000)) ->  | I24: =IF($A24="","",SUMIF(توريدات!$A$3:$A$3000,$A24,توريدات!$P$3:$P$3000)) ->  | J24: =IF($A24="","",VLOOKUP($A24,توريدات!$A$3:$U$3000,17,0)) ->  | K24: =IF($A24="","",SUMIF(توريدات!$A$3:$A$3000,$A24,توريدات!$T$3:$T$3000)) ->  | L24: =IFERROR(IF(VLOOKUP($A24,توريدات!$A$3:$U$3000,21,0)=0,"",VLOOKUP($A24,توريدات!$A$3:$U$3000,21,0)),"") -> 
A25: =IFERROR(IF(INDEX(توريدات!$A$3:$A$3000,MATCH(0,INDEX(COUNTIF($A$3:A24,توريدات!$A$3:$A$3000),),0))=0,"",INDEX(توريدات!$A$3:$A$3000,MATCH(0,INDEX(COUNTIF($A$3:A24,توريدات!$A$3:$A$3000),),0))),"") ->  | B25: =IF($A25="","",VLOOKUP($A25,توريدات!$A$3:$U$3000,11,0)) ->  | C25: =IF($A25="","",VLOOKUP($A25,توريدات!$A$3:$U$3000,10,0)) ->  | D25: =IF($A25="","",VLOOKUP($A25,توريدات!$A$3:$U$3000,5,0)) ->  | E25: =IF($A25="","",VLOOKUP($A25,توريدات!$A$3:$U$3000,6,0)) ->  | F25: =IF($A25="","",SUMIF(توريدات!$A$3:$A$3000,$A25,توريدات!$L$3:$L$3000)) ->  | G25: =IF($A25="","",VLOOKUP($A25,توريدات!$A$3:$U$3000,13,0)) ->  | H25: =IF($A25="","",SUMIF(توريدات!$A$3:$A$3000,$A25,توريدات!$O$3:$O$3000)) ->  | I25: =IF($A25="","",SUMIF(توريدات!$A$3:$A$3000,$A25,توريدات!$P$3:$P$3000)) ->  | J25: =IF($A25="","",VLOOKUP($A25,توريدات!$A$3:$U$3000,17,0)) ->  | K25: =IF($A25="","",SUMIF(توريدات!$A$3:$A$3000,$A25,توريدات!$T$3:$T$3000)) ->  | L25: =IFERROR(IF(VLOOKUP($A25,توريدات!$A$3:$U$3000,21,0)=0,"",VLOOKUP($A25,توريدات!$A$3:$U$3000,21,0)),"") -> 
A26: =IFERROR(IF(INDEX(توريدات!$A$3:$A$3000,MATCH(0,INDEX(COUNTIF($A$3:A25,توريدات!$A$3:$A$3000),),0))=0,"",INDEX(توريدات!$A$3:$A$3000,MATCH(0,INDEX(COUNTIF($A$3:A25,توريدات!$A$3:$A$3000),),0))),"") ->  | B26: =IF($A26="","",VLOOKUP($A26,توريدات!$A$3:$U$3000,11,0)) ->  | C26: =IF($A26="","",VLOOKUP($A26,توريدات!$A$3:$U$3000,10,0)) ->  | D26: =IF($A26="","",VLOOKUP($A26,توريدات!$A$3:$U$3000,5,0)) ->  | E26: =IF($A26="","",VLOOKUP($A26,توريدات!$A$3:$U$3000,6,0)) ->  | F26: =IF($A26="","",SUMIF(توريدات!$A$3:$A$3000,$A26,توريدات!$L$3:$L$3000)) ->  | G26: =IF($A26="","",VLOOKUP($A26,توريدات!$A$3:$U$3000,13,0)) ->  | H26: =IF($A26="","",SUMIF(توريدات!$A$3:$A$3000,$A26,توريدات!$O$3:$O$3000)) ->  | I26: =IF($A26="","",SUMIF(توريدات!$A$3:$A$3000,$A26,توريدات!$P$3:$P$3000)) ->  | J26: =IF($A26="","",VLOOKUP($A26,توريدات!$A$3:$U$3000,17,0)) ->  | K26: =IF($A26="","",SUMIF(توريدات!$A$3:$A$3000,$A26,توريدات!$T$3:$T$3000)) ->  | L26: =IFERROR(IF(VLOOKUP($A26,توريدات!$A$3:$U$3000,21,0)=0,"",VLOOKUP($A26,توريدات!$A$3:$U$3000,21,0)),"") -> 
A27: =IFERROR(IF(INDEX(توريدات!$A$3:$A$3000,MATCH(0,INDEX(COUNTIF($A$3:A26,توريدات!$A$3:$A$3000),),0))=0,"",INDEX(توريدات!$A$3:$A$3000,MATCH(0,INDEX(COUNTIF($A$3:A26,توريدات!$A$3:$A$3000),),0))),"") ->  | B27: =IF($A27="","",VLOOKUP($A27,توريدات!$A$3:$U$3000,11,0)) ->  | C27: =IF($A27="","",VLOOKUP($A27,توريدات!$A$3:$U$3000,10,0)) ->  | D27: =IF($A27="","",VLOOKUP($A27,توريدات!$A$3:$U$3000,5,0)) ->  | E27: =IF($A27="","",VLOOKUP($A27,توريدات!$A$3:$U$3000,6,0)) ->  | F27: =IF($A27="","",SUMIF(توريدات!$A$3:$A$3000,$A27,توريدات!$L$3:$L$3000)) ->  | G27: =IF($A27="","",VLOOKUP($A27,توريدات!$A$3:$U$3000,13,0)) ->  | H27: =IF($A27="","",SUMIF(توريدات!$A$3:$A$3000,$A27,توريدات!$O$3:$O$3000)) ->  | I27: =IF($A27="","",SUMIF(توريدات!$A$3:$A$3000,$A27,توريدات!$P$3:$P$3000)) ->  | J27: =IF($A27="","",VLOOKUP($A27,توريدات!$A$3:$U$3000,17,0)) ->  | K27: =IF($A27="","",SUMIF(توريدات!$A$3:$A$3000,$A27,توريدات!$T$3:$T$3000)) ->  | L27: =IFERROR(IF(VLOOKUP($A27,توريدات!$A$3:$U$3000,21,0)=0,"",VLOOKUP($A27,توريدات!$A$3:$U$3000,21,0)),"") -> 
A28: =IFERROR(IF(INDEX(توريدات!$A$3:$A$3000,MATCH(0,INDEX(COUNTIF($A$3:A27,توريدات!$A$3:$A$3000),),0))=0,"",INDEX(توريدات!$A$3:$A$3000,MATCH(0,INDEX(COUNTIF($A$3:A27,توريدات!$A$3:$A$3000),),0))),"") ->  | B28: =IF($A28="","",VLOOKUP($A28,توريدات!$A$3:$U$3000,11,0)) ->  | C28: =IF($A28="","",VLOOKUP($A28,توريدات!$A$3:$U$3000,10,0)) ->  | D28: =IF($A28="","",VLOOKUP($A28,توريدات!$A$3:$U$3000,5,0)) ->  | E28: =IF($A28="","",VLOOKUP($A28,توريدات!$A$3:$U$3000,6,0)) ->  | F28: =IF($A28="","",SUMIF(توريدات!$A$3:$A$3000,$A28,توريدات!$L$3:$L$3000)) ->  | G28: =IF($A28="","",VLOOKUP($A28,توريدات!$A$3:$U$3000,13,0)) ->  | H28: =IF($A28="","",SUMIF(توريدات!$A$3:$A$3000,$A28,توريدات!$O$3:$O$3000)) ->  | I28: =IF($A28="","",SUMIF(توريدات!$A$3:$A$3000,$A28,توريدات!$P$3:$P$3000)) ->  | J28: =IF($A28="","",VLOOKUP($A28,توريدات!$A$3:$U$3000,17,0)) ->  | K28: =IF($A28="","",SUMIF(توريدات!$A$3:$A$3000,$A28,توريدات!$T$3:$T$3000)) ->  | L28: =IFERROR(IF(VLOOKUP($A28,توريدات!$A$3:$U$3000,21,0)=0,"",VLOOKUP($A28,توريدات!$A$3:$U$3000,21,0)),"") -> 
A29: =IFERROR(IF(INDEX(توريدات!$A$3:$A$3000,MATCH(0,INDEX(COUNTIF($A$3:A28,توريدات!$A$3:$A$3000),),0))=0,"",INDEX(توريدات!$A$3:$A$3000,MATCH(0,INDEX(COUNTIF($A$3:A28,توريدات!$A$3:$A$3000),),0))),"") ->  | B29: =IF($A29="","",VLOOKUP($A29,توريدات!$A$3:$U$3000,11,0)) ->  | C29: =IF($A29="","",VLOOKUP($A29,توريدات!$A$3:$U$3000,10,0)) ->  | D29: =IF($A29="","",VLOOKUP($A29,توريدات!$A$3:$U$3000,5,0)) ->  | E29: =IF($A29="","",VLOOKUP($A29,توريدات!$A$3:$U$3000,6,0)) ->  | F29: =IF($A29="","",SUMIF(توريدات!$A$3:$A$3000,$A29,توريدات!$L$3:$L$3000)) ->  | G29: =IF($A29="","",VLOOKUP($A29,توريدات!$A$3:$U$3000,13,0)) ->  | H29: =IF($A29="","",SUMIF(توريدات!$A$3:$A$3000,$A29,توريدات!$O$3:$O$3000)) ->  | I29: =IF($A29="","",SUMIF(توريدات!$A$3:$A$3000,$A29,توريدات!$P$3:$P$3000)) ->  | J29: =IF($A29="","",VLOOKUP($A29,توريدات!$A$3:$U$3000,17,0)) ->  | K29: =IF($A29="","",SUMIF(توريدات!$A$3:$A$3000,$A29,توريدات!$T$3:$T$3000)) ->  | L29: =IFERROR(IF(VLOOKUP($A29,توريدات!$A$3:$U$3000,21,0)=0,"",VLOOKUP($A29,توريدات!$A$3:$U$3000,21,0)),"") -> 
A30: =IFERROR(IF(INDEX(توريدات!$A$3:$A$3000,MATCH(0,INDEX(COUNTIF($A$3:A29,توريدات!$A$3:$A$3000),),0))=0,"",INDEX(توريدات!$A$3:$A$3000,MATCH(0,INDEX(COUNTIF($A$3:A29,توريدات!$A$3:$A$3000),),0))),"") ->  | B30: =IF($A30="","",VLOOKUP($A30,توريدات!$A$3:$U$3000,11,0)) ->  | C30: =IF($A30="","",VLOOKUP($A30,توريدات!$A$3:$U$3000,10,0)) ->  | D30: =IF($A30="","",VLOOKUP($A30,توريدات!$A$3:$U$3000,5,0)) ->  | E30: =IF($A30="","",VLOOKUP($A30,توريدات!$A$3:$U$3000,6,0)) ->  | F30: =IF($A30="","",SUMIF(توريدات!$A$3:$A$3000,$A30,توريدات!$L$3:$L$3000)) ->  | G30: =IF($A30="","",VLOOKUP($A30,توريدات!$A$3:$U$3000,13,0)) ->  | H30: =IF($A30="","",SUMIF(توريدات!$A$3:$A$3000,$A30,توريدات!$O$3:$O$3000)) ->  | I30: =IF($A30="","",SUMIF(توريدات!$A$3:$A$3000,$A30,توريدات!$P$3:$P$3000)) ->  | J30: =IF($A30="","",VLOOKUP($A30,توريدات!$A$3:$U$3000,17,0)) ->  | K30: =IF($A30="","",SUMIF(توريدات!$A$3:$A$3000,$A30,توريدات!$T$3:$T$3000)) ->  | L30: =IFERROR(IF(VLOOKUP($A30,توريدات!$A$3:$U$3000,21,0)=0,"",VLOOKUP($A30,توريدات!$A$3:$U$3000,21,0)),"") -> 
A31: =IFERROR(IF(INDEX(توريدات!$A$3:$A$3000,MATCH(0,INDEX(COUNTIF($A$3:A30,توريدات!$A$3:$A$3000),),0))=0,"",INDEX(توريدات!$A$3:$A$3000,MATCH(0,INDEX(COUNTIF($A$3:A30,توريدات!$A$3:$A$3000),),0))),"") ->  | B31: =IF($A31="","",VLOOKUP($A31,توريدات!$A$3:$U$3000,11,0)) ->  | C31: =IF($A31="","",VLOOKUP($A31,توريدات!$A$3:$U$3000,10,0)) ->  | D31: =IF($A31="","",VLOOKUP($A31,توريدات!$A$3:$U$3000,5,0)) ->  | E31: =IF($A31="","",VLOOKUP($A31,توريدات!$A$3:$U$3000,6,0)) ->  | F31: =IF($A31="","",SUMIF(توريدات!$A$3:$A$3000,$A31,توريدات!$L$3:$L$3000)) ->  | G31: =IF($A31="","",VLOOKUP($A31,توريدات!$A$3:$U$3000,13,0)) ->  | H31: =IF($A31="","",SUMIF(توريدات!$A$3:$A$3000,$A31,توريدات!$O$3:$O$3000)) ->  | I31: =IF($A31="","",SUMIF(توريدات!$A$3:$A$3000,$A31,توريدات!$P$3:$P$3000)) ->  | J31: =IF($A31="","",VLOOKUP($A31,توريدات!$A$3:$U$3000,17,0)) ->  | K31: =IF($A31="","",SUMIF(توريدات!$A$3:$A$3000,$A31,توريدات!$T$3:$T$3000)) ->  | L31: =IFERROR(IF(VLOOKUP($A31,توريدات!$A$3:$U$3000,21,0)=0,"",VLOOKUP($A31,توريدات!$A$3:$U$3000,21,0)),"") -> 
A32: =IFERROR(IF(INDEX(توريدات!$A$3:$A$3000,MATCH(0,INDEX(COUNTIF($A$3:A31,توريدات!$A$3:$A$3000),),0))=0,"",INDEX(توريدات!$A$3:$A$3000,MATCH(0,INDEX(COUNTIF($A$3:A31,توريدات!$A$3:$A$3000),),0))),"") ->  | B32: =IF($A32="","",VLOOKUP($A32,توريدات!$A$3:$U$3000,11,0)) ->  | C32: =IF($A32="","",VLOOKUP($A32,توريدات!$A$3:$U$3000,10,0)) ->  | D32: =IF($A32="","",VLOOKUP($A32,توريدات!$A$3:$U$3000,5,0)) ->  | E32: =IF($A32="","",VLOOKUP($A32,توريدات!$A$3:$U$3000,6,0)) ->  | F32: =IF($A32="","",SUMIF(توريدات!$A$3:$A$3000,$A32,توريدات!$L$3:$L$3000)) ->  | G32: =IF($A32="","",VLOOKUP($A32,توريدات!$A$3:$U$3000,13,0)) ->  | H32: =IF($A32="","",SUMIF(توريدات!$A$3:$A$3000,$A32,توريدات!$O$3:$O$3000)) ->  | I32: =IF($A32="","",SUMIF(توريدات!$A$3:$A$3000,$A32,توريدات!$P$3:$P$3000)) ->  | J32: =IF($A32="","",VLOOKUP($A32,توريدات!$A$3:$U$3000,17,0)) ->  | K32: =IF($A32="","",SUMIF(توريدات!$A$3:$A$3000,$A32,توريدات!$T$3:$T$3000)) ->  | L32: =IFERROR(IF(VLOOKUP($A32,توريدات!$A$3:$U$3000,21,0)=0,"",VLOOKUP($A32,توريدات!$A$3:$U$3000,21,0)),"") -> 
A33: =IFERROR(IF(INDEX(توريدات!$A$3:$A$3000,MATCH(0,INDEX(COUNTIF($A$3:A32,توريدات!$A$3:$A$3000),),0))=0,"",INDEX(توريدات!$A$3:$A$3000,MATCH(0,INDEX(COUNTIF($A$3:A32,توريدات!$A$3:$A$3000),),0))),"") ->  | B33: =IF($A33="","",VLOOKUP($A33,توريدات!$A$3:$U$3000,11,0)) ->  | C33: =IF($A33="","",VLOOKUP($A33,توريدات!$A$3:$U$3000,10,0)) ->  | D33: =IF($A33="","",VLOOKUP($A33,توريدات!$A$3:$U$3000,5,0)) ->  | E33: =IF($A33="","",VLOOKUP($A33,توريدات!$A$3:$U$3000,6,0)) ->  | F33: =IF($A33="","",SUMIF(توريدات!$A$3:$A$3000,$A33,توريدات!$L$3:$L$3000)) ->  | G33: =IF($A33="","",VLOOKUP($A33,توريدات!$A$3:$U$3000,13,0)) ->  | H33: =IF($A33="","",SUMIF(توريدات!$A$3:$A$3000,$A33,توريدات!$O$3:$O$3000)) ->  | I33: =IF($A33="","",SUMIF(توريدات!$A$3:$A$3000,$A33,توريدات!$P$3:$P$3000)) ->  | J33: =IF($A33="","",VLOOKUP($A33,توريدات!$A$3:$U$3000,17,0)) ->  | K33: =IF($A33="","",SUMIF(توريدات!$A$3:$A$3000,$A33,توريدات!$T$3:$T$3000)) ->  | L33: =IFERROR(IF(VLOOKUP($A33,توريدات!$A$3:$U$3000,21,0)=0,"",VLOOKUP($A33,توريدات!$A$3:$U$3000,21,0)),"") -> 
A34: =IFERROR(IF(INDEX(توريدات!$A$3:$A$3000,MATCH(0,INDEX(COUNTIF($A$3:A33,توريدات!$A$3:$A$3000),),0))=0,"",INDEX(توريدات!$A$3:$A$3000,MATCH(0,INDEX(COUNTIF($A$3:A33,توريدات!$A$3:$A$3000),),0))),"") ->  | B34: =IF($A34="","",VLOOKUP($A34,توريدات!$A$3:$U$3000,11,0)) ->  | C34: =IF($A34="","",VLOOKUP($A34,توريدات!$A$3:$U$3000,10,0)) ->  | D34: =IF($A34="","",VLOOKUP($A34,توريدات!$A$3:$U$3000,5,0)) ->  | E34: =IF($A34="","",VLOOKUP($A34,توريدات!$A$3:$U$3000,6,0)) ->  | F34: =IF($A34="","",SUMIF(توريدات!$A$3:$A$3000,$A34,توريدات!$L$3:$L$3000)) ->  | G34: =IF($A34="","",VLOOKUP($A34,توريدات!$A$3:$U$3000,13,0)) ->  | H34: =IF($A34="","",SUMIF(توريدات!$A$3:$A$3000,$A34,توريدات!$O$3:$O$3000)) ->  | I34: =IF($A34="","",SUMIF(توريدات!$A$3:$A$3000,$A34,توريدات!$P$3:$P$3000)) ->  | J34: =IF($A34="","",VLOOKUP($A34,توريدات!$A$3:$U$3000,17,0)) ->  | K34: =IF($A34="","",SUMIF(توريدات!$A$3:$A$3000,$A34,توريدات!$T$3:$T$3000)) ->  | L34: =IFERROR(IF(VLOOKUP($A34,توريدات!$A$3:$U$3000,21,0)=0,"",VLOOKUP($A34,توريدات!$A$3:$U$3000,21,0)),"") -> 
A35: =IFERROR(IF(INDEX(توريدات!$A$3:$A$3000,MATCH(0,INDEX(COUNTIF($A$3:A34,توريدات!$A$3:$A$3000),),0))=0,"",INDEX(توريدات!$A$3:$A$3000,MATCH(0,INDEX(COUNTIF($A$3:A34,توريدات!$A$3:$A$3000),),0))),"") ->  | B35: =IF($A35="","",VLOOKUP($A35,توريدات!$A$3:$U$3000,11,0)) ->  | C35: =IF($A35="","",VLOOKUP($A35,توريدات!$A$3:$U$3000,10,0)) ->  | D35: =IF($A35="","",VLOOKUP($A35,توريدات!$A$3:$U$3000,5,0)) ->  | E35: =IF($A35="","",VLOOKUP($A35,توريدات!$A$3:$U$3000,6,0)) ->  | F35: =IF($A35="","",SUMIF(توريدات!$A$3:$A$3000,$A35,توريدات!$L$3:$L$3000)) ->  | G35: =IF($A35="","",VLOOKUP($A35,توريدات!$A$3:$U$3000,13,0)) ->  | H35: =IF($A35="","",SUMIF(توريدات!$A$3:$A$3000,$A35,توريدات!$O$3:$O$3000)) ->  | I35: =IF($A35="","",SUMIF(توريدات!$A$3:$A$3000,$A35,توريدات!$P$3:$P$3000)) ->  | J35: =IF($A35="","",VLOOKUP($A35,توريدات!$A$3:$U$3000,17,0)) ->  | K35: =IF($A35="","",SUMIF(توريدات!$A$3:$A$3000,$A35,توريدات!$T$3:$T$3000)) ->  | L35: =IFERROR(IF(VLOOKUP($A35,توريدات!$A$3:$U$3000,21,0)=0,"",VLOOKUP($A35,توريدات!$A$3:$U$3000,21,0)),"") -> 
A36: =IFERROR(IF(INDEX(توريدات!$A$3:$A$3000,MATCH(0,INDEX(COUNTIF($A$3:A35,توريدات!$A$3:$A$3000),),0))=0,"",INDEX(توريدات!$A$3:$A$3000,MATCH(0,INDEX(COUNTIF($A$3:A35,توريدات!$A$3:$A$3000),),0))),"") ->  | B36: =IF($A36="","",VLOOKUP($A36,توريدات!$A$3:$U$3000,11,0)) ->  | C36: =IF($A36="","",VLOOKUP($A36,توريدات!$A$3:$U$3000,10,0)) ->  | D36: =IF($A36="","",VLOOKUP($A36,توريدات!$A$3:$U$3000,5,0)) ->  | E36: =IF($A36="","",VLOOKUP($A36,توريدات!$A$3:$U$3000,6,0)) ->  | F36: =IF($A36="","",SUMIF(توريدات!$A$3:$A$3000,$A36,توريدات!$L$3:$L$3000)) ->  | G36: =IF($A36="","",VLOOKUP($A36,توريدات!$A$3:$U$3000,13,0)) ->  | H36: =IF($A36="","",SUMIF(توريدات!$A$3:$A$3000,$A36,توريدات!$O$3:$O$3000)) ->  | I36: =IF($A36="","",SUMIF(توريدات!$A$3:$A$3000,$A36,توريدات!$P$3:$P$3000)) ->  | J36: =IF($A36="","",VLOOKUP($A36,توريدات!$A$3:$U$3000,17,0)) ->  | K36: =IF($A36="","",SUMIF(توريدات!$A$3:$A$3000,$A36,توريدات!$T$3:$T$3000)) ->  | L36: =IFERROR(IF(VLOOKUP($A36,توريدات!$A$3:$U$3000,21,0)=0,"",VLOOKUP($A36,توريدات!$A$3:$U$3000,21,0)),"") -> 
A37: =IFERROR(IF(INDEX(توريدات!$A$3:$A$3000,MATCH(0,INDEX(COUNTIF($A$3:A36,توريدات!$A$3:$A$3000),),0))=0,"",INDEX(توريدات!$A$3:$A$3000,MATCH(0,INDEX(COUNTIF($A$3:A36,توريدات!$A$3:$A$3000),),0))),"") ->  | B37: =IF($A37="","",VLOOKUP($A37,توريدات!$A$3:$U$3000,11,0)) ->  | C37: =IF($A37="","",VLOOKUP($A37,توريدات!$A$3:$U$3000,10,0)) ->  | D37: =IF($A37="","",VLOOKUP($A37,توريدات!$A$3:$U$3000,5,0)) ->  | E37: =IF($A37="","",VLOOKUP($A37,توريدات!$A$3:$U$3000,6,0)) ->  | F37: =IF($A37="","",SUMIF(توريدات!$A$3:$A$3000,$A37,توريدات!$L$3:$L$3000)) ->  | G37: =IF($A37="","",VLOOKUP($A37,توريدات!$A$3:$U$3000,13,0)) ->  | H37: =IF($A37="","",SUMIF(توريدات!$A$3:$A$3000,$A37,توريدات!$O$3:$O$3000)) ->  | I37: =IF($A37="","",SUMIF(توريدات!$A$3:$A$3000,$A37,توريدات!$P$3:$P$3000)) ->  | J37: =IF($A37="","",VLOOKUP($A37,توريدات!$A$3:$U$3000,17,0)) ->  | K37: =IF($A37="","",SUMIF(توريدات!$A$3:$A$3000,$A37,توريدات!$T$3:$T$3000)) ->  | L37: =IFERROR(IF(VLOOKUP($A37,توريدات!$A$3:$U$3000,21,0)=0,"",VLOOKUP($A37,توريدات!$A$3:$U$3000,21,0)),"") -> 
A38: =IFERROR(IF(INDEX(توريدات!$A$3:$A$3000,MATCH(0,INDEX(COUNTIF($A$3:A37,توريدات!$A$3:$A$3000),),0))=0,"",INDEX(توريدات!$A$3:$A$3000,MATCH(0,INDEX(COUNTIF($A$3:A37,توريدات!$A$3:$A$3000),),0))),"") ->  | B38: =IF($A38="","",VLOOKUP($A38,توريدات!$A$3:$U$3000,11,0)) ->  | C38: =IF($A38="","",VLOOKUP($A38,توريدات!$A$3:$U$3000,10,0)) ->  | D38: =IF($A38="","",VLOOKUP($A38,توريدات!$A$3:$U$3000,5,0)) ->  | E38: =IF($A38="","",VLOOKUP($A38,توريدات!$A$3:$U$3000,6,0)) ->  | F38: =IF($A38="","",SUMIF(توريدات!$A$3:$A$3000,$A38,توريدات!$L$3:$L$3000)) ->  | G38: =IF($A38="","",VLOOKUP($A38,توريدات!$A$3:$U$3000,13,0)) ->  | H38: =IF($A38="","",SUMIF(توريدات!$A$3:$A$3000,$A38,توريدات!$O$3:$O$3000)) ->  | I38: =IF($A38="","",SUMIF(توريدات!$A$3:$A$3000,$A38,توريدات!$P$3:$P$3000)) ->  | J38: =IF($A38="","",VLOOKUP($A38,توريدات!$A$3:$U$3000,17,0)) ->  | K38: =IF($A38="","",SUMIF(توريدات!$A$3:$A$3000,$A38,توريدات!$T$3:$T$3000)) ->  | L38: =IFERROR(IF(VLOOKUP($A38,توريدات!$A$3:$U$3000,21,0)=0,"",VLOOKUP($A38,توريدات!$A$3:$U$3000,21,0)),"") -> 
A39: =IFERROR(IF(INDEX(توريدات!$A$3:$A$3000,MATCH(0,INDEX(COUNTIF($A$3:A38,توريدات!$A$3:$A$3000),),0))=0,"",INDEX(توريدات!$A$3:$A$3000,MATCH(0,INDEX(COUNTIF($A$3:A38,توريدات!$A$3:$A$3000),),0))),"") ->  | B39: =IF($A39="","",VLOOKUP($A39,توريدات!$A$3:$U$3000,11,0)) ->  | C39: =IF($A39="","",VLOOKUP($A39,توريدات!$A$3:$U$3000,10,0)) ->  | D39: =IF($A39="","",VLOOKUP($A39,توريدات!$A$3:$U$3000,5,0)) ->  | E39: =IF($A39="","",VLOOKUP($A39,توريدات!$A$3:$U$3000,6,0)) ->  | F39: =IF($A39="","",SUMIF(توريدات!$A$3:$A$3000,$A39,توريدات!$L$3:$L$3000)) ->  | G39: =IF($A39="","",VLOOKUP($A39,توريدات!$A$3:$U$3000,13,0)) ->  | H39: =IF($A39="","",SUMIF(توريدات!$A$3:$A$3000,$A39,توريدات!$O$3:$O$3000)) ->  | I39: =IF($A39="","",SUMIF(توريدات!$A$3:$A$3000,$A39,توريدات!$P$3:$P$3000)) ->  | J39: =IF($A39="","",VLOOKUP($A39,توريدات!$A$3:$U$3000,17,0)) ->  | K39: =IF($A39="","",SUMIF(توريدات!$A$3:$A$3000,$A39,توريدات!$T$3:$T$3000)) ->  | L39: =IFERROR(IF(VLOOKUP($A39,توريدات!$A$3:$U$3000,21,0)=0,"",VLOOKUP($A39,توريدات!$A$3:$U$3000,21,0)),"") -> 
A40: =IFERROR(IF(INDEX(توريدات!$A$3:$A$3000,MATCH(0,INDEX(COUNTIF($A$3:A39,توريدات!$A$3:$A$3000),),0))=0,"",INDEX(توريدات!$A$3:$A$3000,MATCH(0,INDEX(COUNTIF($A$3:A39,توريدات!$A$3:$A$3000),),0))),"") ->  | B40: =IF($A40="","",VLOOKUP($A40,توريدات!$A$3:$U$3000,11,0)) ->  | C40: =IF($A40="","",VLOOKUP($A40,توريدات!$A$3:$U$3000,10,0)) ->  | D40: =IF($A40="","",VLOOKUP($A40,توريدات!$A$3:$U$3000,5,0)) ->  | E40: =IF($A40="","",VLOOKUP($A40,توريدات!$A$3:$U$3000,6,0)) ->  | F40: =IF($A40="","",SUMIF(توريدات!$A$3:$A$3000,$A40,توريدات!$L$3:$L$3000)) ->  | G40: =IF($A40="","",VLOOKUP($A40,توريدات!$A$3:$U$3000,13,0)) ->  | H40: =IF($A40="","",SUMIF(توريدات!$A$3:$A$3000,$A40,توريدات!$O$3:$O$3000)) ->  | I40: =IF($A40="","",SUMIF(توريدات!$A$3:$A$3000,$A40,توريدات!$P$3:$P$3000)) ->  | J40: =IF($A40="","",VLOOKUP($A40,توريدات!$A$3:$U$3000,17,0)) ->  | K40: =IF($A40="","",SUMIF(توريدات!$A$3:$A$3000,$A40,توريدات!$T$3:$T$3000)) ->  | L40: =IFERROR(IF(VLOOKUP($A40,توريدات!$A$3:$U$3000,21,0)=0,"",VLOOKUP($A40,توريدات!$A$3:$U$3000,21,0)),"") -> 
A41: =IFERROR(IF(INDEX(توريدات!$A$3:$A$3000,MATCH(0,INDEX(COUNTIF($A$3:A40,توريدات!$A$3:$A$3000),),0))=0,"",INDEX(توريدات!$A$3:$A$3000,MATCH(0,INDEX(COUNTIF($A$3:A40,توريدات!$A$3:$A$3000),),0))),"") ->  | B41: =IF($A41="","",VLOOKUP($A41,توريدات!$A$3:$U$3000,11,0)) ->  | C41: =IF($A41="","",VLOOKUP($A41,توريدات!$A$3:$U$3000,10,0)) ->  | D41: =IF($A41="","",VLOOKUP($A41,توريدات!$A$3:$U$3000,5,0)) ->  | E41: =IF($A41="","",VLOOKUP($A41,توريدات!$A$3:$U$3000,6,0)) ->  | F41: =IF($A41="","",SUMIF(توريدات!$A$3:$A$3000,$A41,توريدات!$L$3:$L$3000)) ->  | G41: =IF($A41="","",VLOOKUP($A41,توريدات!$A$3:$U$3000,13,0)) ->  | H41: =IF($A41="","",SUMIF(توريدات!$A$3:$A$3000,$A41,توريدات!$O$3:$O$3000)) ->  | I41: =IF($A41="","",SUMIF(توريدات!$A$3:$A$3000,$A41,توريدات!$P$3:$P$3000)) ->  | J41: =IF($A41="","",VLOOKUP($A41,توريدات!$A$3:$U$3000,17,0)) ->  | K41: =IF($A41="","",SUMIF(توريدات!$A$3:$A$3000,$A41,توريدات!$T$3:$T$3000)) ->  | L41: =IFERROR(IF(VLOOKUP($A41,توريدات!$A$3:$U$3000,21,0)=0,"",VLOOKUP($A41,توريدات!$A$3:$U$3000,21,0)),"") -> 
A42: =IFERROR(IF(INDEX(توريدات!$A$3:$A$3000,MATCH(0,INDEX(COUNTIF($A$3:A41,توريدات!$A$3:$A$3000),),0))=0,"",INDEX(توريدات!$A$3:$A$3000,MATCH(0,INDEX(COUNTIF($A$3:A41,توريدات!$A$3:$A$3000),),0))),"") ->  | B42: =IF($A42="","",VLOOKUP($A42,توريدات!$A$3:$U$3000,11,0)) ->  | C42: =IF($A42="","",VLOOKUP($A42,توريدات!$A$3:$U$3000,10,0)) ->  | D42: =IF($A42="","",VLOOKUP($A42,توريدات!$A$3:$U$3000,5,0)) ->  | E42: =IF($A42="","",VLOOKUP($A42,توريدات!$A$3:$U$3000,6,0)) ->  | F42: =IF($A42="","",SUMIF(توريدات!$A$3:$A$3000,$A42,توريدات!$L$3:$L$3000)) ->  | G42: =IF($A42="","",VLOOKUP($A42,توريدات!$A$3:$U$3000,13,0)) ->  | H42: =IF($A42="","",SUMIF(توريدات!$A$3:$A$3000,$A42,توريدات!$O$3:$O$3000)) ->  | I42: =IF($A42="","",SUMIF(توريدات!$A$3:$A$3000,$A42,توريدات!$P$3:$P$3000)) ->  | J42: =IF($A42="","",VLOOKUP($A42,توريدات!$A$3:$U$3000,17,0)) ->  | K42: =IF($A42="","",SUMIF(توريدات!$A$3:$A$3000,$A42,توريدات!$T$3:$T$3000)) ->  | L42: =IFERROR(IF(VLOOKUP($A42,توريدات!$A$3:$U$3000,21,0)=0,"",VLOOKUP($A42,توريدات!$A$3:$U$3000,21,0)),"") -> 
A43: =IFERROR(IF(INDEX(توريدات!$A$3:$A$3000,MATCH(0,INDEX(COUNTIF($A$3:A42,توريدات!$A$3:$A$3000),),0))=0,"",INDEX(توريدات!$A$3:$A$3000,MATCH(0,INDEX(COUNTIF($A$3:A42,توريدات!$A$3:$A$3000),),0))),"") ->  | B43: =IF($A43="","",VLOOKUP($A43,توريدات!$A$3:$U$3000,11,0)) ->  | C43: =IF($A43="","",VLOOKUP($A43,توريدات!$A$3:$U$3000,10,0)) ->  | D43: =IF($A43="","",VLOOKUP($A43,توريدات!$A$3:$U$3000,5,0)) ->  | E43: =IF($A43="","",VLOOKUP($A43,توريدات!$A$3:$U$3000,6,0)) ->  | F43: =IF($A43="","",SUMIF(توريدات!$A$3:$A$3000,$A43,توريدات!$L$3:$L$3000)) ->  | G43: =IF($A43="","",VLOOKUP($A43,توريدات!$A$3:$U$3000,13,0)) ->  | H43: =IF($A43="","",SUMIF(توريدات!$A$3:$A$3000,$A43,توريدات!$O$3:$O$3000)) ->  | I43: =IF($A43="","",SUMIF(توريدات!$A$3:$A$3000,$A43,توريدات!$P$3:$P$3000)) ->  | J43: =IF($A43="","",VLOOKUP($A43,توريدات!$A$3:$U$3000,17,0)) ->  | K43: =IF($A43="","",SUMIF(توريدات!$A$3:$A$3000,$A43,توريدات!$T$3:$T$3000)) ->  | L43: =IFERROR(IF(VLOOKUP($A43,توريدات!$A$3:$U$3000,21,0)=0,"",VLOOKUP($A43,توريدات!$A$3:$U$3000,21,0)),"") -> 
A44: =IFERROR(IF(INDEX(توريدات!$A$3:$A$3000,MATCH(0,INDEX(COUNTIF($A$3:A43,توريدات!$A$3:$A$3000),),0))=0,"",INDEX(توريدات!$A$3:$A$3000,MATCH(0,INDEX(COUNTIF($A$3:A43,توريدات!$A$3:$A$3000),),0))),"") ->  | B44: =IF($A44="","",VLOOKUP($A44,توريدات!$A$3:$U$3000,11,0)) ->  | C44: =IF($A44="","",VLOOKUP($A44,توريدات!$A$3:$U$3000,10,0)) ->  | D44: =IF($A44="","",VLOOKUP($A44,توريدات!$A$3:$U$3000,5,0)) ->  | E44: =IF($A44="","",VLOOKUP($A44,توريدات!$A$3:$U$3000,6,0)) ->  | F44: =IF($A44="","",SUMIF(توريدات!$A$3:$A$3000,$A44,توريدات!$L$3:$L$3000)) ->  | G44: =IF($A44="","",VLOOKUP($A44,توريدات!$A$3:$U$3000,13,0)) ->  | H44: =IF($A44="","",SUMIF(توريدات!$A$3:$A$3000,$A44,توريدات!$O$3:$O$3000)) ->  | I44: =IF($A44="","",SUMIF(توريدات!$A$3:$A$3000,$A44,توريدات!$P$3:$P$3000)) ->  | J44: =IF($A44="","",VLOOKUP($A44,توريدات!$A$3:$U$3000,17,0)) ->  | K44: =IF($A44="","",SUMIF(توريدات!$A$3:$A$3000,$A44,توريدات!$T$3:$T$3000)) ->  | L44: =IFERROR(IF(VLOOKUP($A44,توريدات!$A$3:$U$3000,21,0)=0,"",VLOOKUP($A44,توريدات!$A$3:$U$3000,21,0)),"") -> 
A45: =IFERROR(IF(INDEX(توريدات!$A$3:$A$3000,MATCH(0,INDEX(COUNTIF($A$3:A44,توريدات!$A$3:$A$3000),),0))=0,"",INDEX(توريدات!$A$3:$A$3000,MATCH(0,INDEX(COUNTIF($A$3:A44,توريدات!$A$3:$A$3000),),0))),"") ->  | B45: =IF($A45="","",VLOOKUP($A45,توريدات!$A$3:$U$3000,11,0)) ->  | C45: =IF($A45="","",VLOOKUP($A45,توريدات!$A$3:$U$3000,10,0)) ->  | D45: =IF($A45="","",VLOOKUP($A45,توريدات!$A$3:$U$3000,5,0)) ->  | E45: =IF($A45="","",VLOOKUP($A45,توريدات!$A$3:$U$3000,6,0)) ->  | F45: =IF($A45="","",SUMIF(توريدات!$A$3:$A$3000,$A45,توريدات!$L$3:$L$3000)) ->  | G45: =IF($A45="","",VLOOKUP($A45,توريدات!$A$3:$U$3000,13,0)) ->  | H45: =IF($A45="","",SUMIF(توريدات!$A$3:$A$3000,$A45,توريدات!$O$3:$O$3000)) ->  | I45: =IF($A45="","",SUMIF(توريدات!$A$3:$A$3000,$A45,توريدات!$P$3:$P$3000)) ->  | J45: =IF($A45="","",VLOOKUP($A45,توريدات!$A$3:$U$3000,17,0)) ->  | K45: =IF($A45="","",SUMIF(توريدات!$A$3:$A$3000,$A45,توريدات!$T$3:$T$3000)) ->  | L45: =IFERROR(IF(VLOOKUP($A45,توريدات!$A$3:$U$3000,21,0)=0,"",VLOOKUP($A45,توريدات!$A$3:$U$3000,21,0)),"") -> 
A46: =IFERROR(IF(INDEX(توريدات!$A$3:$A$3000,MATCH(0,INDEX(COUNTIF($A$3:A45,توريدات!$A$3:$A$3000),),0))=0,"",INDEX(توريدات!$A$3:$A$3000,MATCH(0,INDEX(COUNTIF($A$3:A45,توريدات!$A$3:$A$3000),),0))),"") ->  | B46: =IF($A46="","",VLOOKUP($A46,توريدات!$A$3:$U$3000,11,0)) ->  | C46: =IF($A46="","",VLOOKUP($A46,توريدات!$A$3:$U$3000,10,0)) ->  | D46: =IF($A46="","",VLOOKUP($A46,توريدات!$A$3:$U$3000,5,0)) ->  | E46: =IF($A46="","",VLOOKUP($A46,توريدات!$A$3:$U$3000,6,0)) ->  | F46: =IF($A46="","",SUMIF(توريدات!$A$3:$A$3000,$A46,توريدات!$L$3:$L$3000)) ->  | G46: =IF($A46="","",VLOOKUP($A46,توريدات!$A$3:$U$3000,13,0)) ->  | H46: =IF($A46="","",SUMIF(توريدات!$A$3:$A$3000,$A46,توريدات!$O$3:$O$3000)) ->  | I46: =IF($A46="","",SUMIF(توريدات!$A$3:$A$3000,$A46,توريدات!$P$3:$P$3000)) ->  | J46: =IF($A46="","",VLOOKUP($A46,توريدات!$A$3:$U$3000,17,0)) ->  | K46: =IF($A46="","",SUMIF(توريدات!$A$3:$A$3000,$A46,توريدات!$T$3:$T$3000)) ->  | L46: =IFERROR(IF(VLOOKUP($A46,توريدات!$A$3:$U$3000,21,0)=0,"",VLOOKUP($A46,توريدات!$A$3:$U$3000,21,0)),"") -> 
A47: =IFERROR(IF(INDEX(توريدات!$A$3:$A$3000,MATCH(0,INDEX(COUNTIF($A$3:A46,توريدات!$A$3:$A$3000),),0))=0,"",INDEX(توريدات!$A$3:$A$3000,MATCH(0,INDEX(COUNTIF($A$3:A46,توريدات!$A$3:$A$3000),),0))),"") ->  | B47: =IF($A47="","",VLOOKUP($A47,توريدات!$A$3:$U$3000,11,0)) ->  | C47: =IF($A47="","",VLOOKUP($A47,توريدات!$A$3:$U$3000,10,0)) ->  | D47: =IF($A47="","",VLOOKUP($A47,توريدات!$A$3:$U$3000,5,0)) ->  | E47: =IF($A47="","",VLOOKUP($A47,توريدات!$A$3:$U$3000,6,0)) ->  | F47: =IF($A47="","",SUMIF(توريدات!$A$3:$A$3000,$A47,توريدات!$L$3:$L$3000)) ->  | G47: =IF($A47="","",VLOOKUP($A47,توريدات!$A$3:$U$3000,13,0)) ->  | H47: =IF($A47="","",SUMIF(توريدات!$A$3:$A$3000,$A47,توريدات!$O$3:$O$3000)) ->  | I47: =IF($A47="","",SUMIF(توريدات!$A$3:$A$3000,$A47,توريدات!$P$3:$P$3000)) ->  | J47: =IF($A47="","",VLOOKUP($A47,توريدات!$A$3:$U$3000,17,0)) ->  | K47: =IF($A47="","",SUMIF(توريدات!$A$3:$A$3000,$A47,توريدات!$T$3:$T$3000)) ->  | L47: =IFERROR(IF(VLOOKUP($A47,توريدات!$A$3:$U$3000,21,0)=0,"",VLOOKUP($A47,توريدات!$A$3:$U$3000,21,0)),"") -> 
A48: =IFERROR(IF(INDEX(توريدات!$A$3:$A$3000,MATCH(0,INDEX(COUNTIF($A$3:A47,توريدات!$A$3:$A$3000),),0))=0,"",INDEX(توريدات!$A$3:$A$3000,MATCH(0,INDEX(COUNTIF($A$3:A47,توريدات!$A$3:$A$3000),),0))),"") ->  | B48: =IF($A48="","",VLOOKUP($A48,توريدات!$A$3:$U$3000,11,0)) ->  | C48: =IF($A48="","",VLOOKUP($A48,توريدات!$A$3:$U$3000,10,0)) ->  | D48: =IF($A48="","",VLOOKUP($A48,توريدات!$A$3:$U$3000,5,0)) ->  | E48: =IF($A48="","",VLOOKUP($A48,توريدات!$A$3:$U$3000,6,0)) ->  | F48: =IF($A48="","",SUMIF(توريدات!$A$3:$A$3000,$A48,توريدات!$L$3:$L$3000)) ->  | G48: =IF($A48="","",VLOOKUP($A48,توريدات!$A$3:$U$3000,13,0)) ->  | H48: =IF($A48="","",SUMIF(توريدات!$A$3:$A$3000,$A48,توريدات!$O$3:$O$3000)) ->  | I48: =IF($A48="","",SUMIF(توريدات!$A$3:$A$3000,$A48,توريدات!$P$3:$P$3000)) ->  | J48: =IF($A48="","",VLOOKUP($A48,توريدات!$A$3:$U$3000,17,0)) ->  | K48: =IF($A48="","",SUMIF(توريدات!$A$3:$A$3000,$A48,توريدات!$T$3:$T$3000)) ->  | L48: =IFERROR(IF(VLOOKUP($A48,توريدات!$A$3:$U$3000,21,0)=0,"",VLOOKUP($A48,توريدات!$A$3:$U$3000,21,0)),"") -> 
A49: =IFERROR(IF(INDEX(توريدات!$A$3:$A$3000,MATCH(0,INDEX(COUNTIF($A$3:A48,توريدات!$A$3:$A$3000),),0))=0,"",INDEX(توريدات!$A$3:$A$3000,MATCH(0,INDEX(COUNTIF($A$3:A48,توريدات!$A$3:$A$3000),),0))),"") ->  | B49: =IF($A49="","",VLOOKUP($A49,توريدات!$A$3:$U$3000,11,0)) ->  | C49: =IF($A49="","",VLOOKUP($A49,توريدات!$A$3:$U$3000,10,0)) ->  | D49: =IF($A49="","",VLOOKUP($A49,توريدات!$A$3:$U$3000,5,0)) ->  | E49: =IF($A49="","",VLOOKUP($A49,توريدات!$A$3:$U$3000,6,0)) ->  | F49: =IF($A49="","",SUMIF(توريدات!$A$3:$A$3000,$A49,توريدات!$L$3:$L$3000)) ->  | G49: =IF($A49="","",VLOOKUP($A49,توريدات!$A$3:$U$3000,13,0)) ->  | H49: =IF($A49="","",SUMIF(توريدات!$A$3:$A$3000,$A49,توريدات!$O$3:$O$3000)) ->  | I49: =IF($A49="","",SUMIF(توريدات!$A$3:$A$3000,$A49,توريدات!$P$3:$P$3000)) ->  | J49: =IF($A49="","",VLOOKUP($A49,توريدات!$A$3:$U$3000,17,0)) ->  | K49: =IF($A49="","",SUMIF(توريدات!$A$3:$A$3000,$A49,توريدات!$T$3:$T$3000)) ->  | L49: =IFERROR(IF(VLOOKUP($A49,توريدات!$A$3:$U$3000,21,0)=0,"",VLOOKUP($A49,توريدات!$A$3:$U$3000,21,0)),"") -> 
A50: =IFERROR(IF(INDEX(توريدات!$A$3:$A$3000,MATCH(0,INDEX(COUNTIF($A$3:A49,توريدات!$A$3:$A$3000),),0))=0,"",INDEX(توريدات!$A$3:$A$3000,MATCH(0,INDEX(COUNTIF($A$3:A49,توريدات!$A$3:$A$3000),),0))),"") ->  | B50: =IF($A50="","",VLOOKUP($A50,توريدات!$A$3:$U$3000,11,0)) ->  | C50: =IF($A50="","",VLOOKUP($A50,توريدات!$A$3:$U$3000,10,0)) ->  | D50: =IF($A50="","",VLOOKUP($A50,توريدات!$A$3:$U$3000,5,0)) ->  | E50: =IF($A50="","",VLOOKUP($A50,توريدات!$A$3:$U$3000,6,0)) ->  | F50: =IF($A50="","",SUMIF(توريدات!$A$3:$A$3000,$A50,توريدات!$L$3:$L$3000)) ->  | G50: =IF($A50="","",VLOOKUP($A50,توريدات!$A$3:$U$3000,13,0)) ->  | H50: =IF($A50="","",SUMIF(توريدات!$A$3:$A$3000,$A50,توريدات!$O$3:$O$3000)) ->  | I50: =IF($A50="","",SUMIF(توريدات!$A$3:$A$3000,$A50,توريدات!$P$3:$P$3000)) ->  | J50: =IF($A50="","",VLOOKUP($A50,توريدات!$A$3:$U$3000,17,0)) ->  | K50: =IF($A50="","",SUMIF(توريدات!$A$3:$A$3000,$A50,توريدات!$T$3:$T$3000)) ->  | L50: =IFERROR(IF(VLOOKUP($A50,توريدات!$A$3:$U$3000,21,0)=0,"",VLOOKUP($A50,توريدات!$A$3:$U$3000,21,0)),"") -> 
A51: =IFERROR(IF(INDEX(توريدات!$A$3:$A$3000,MATCH(0,INDEX(COUNTIF($A$3:A50,توريدات!$A$3:$A$3000),),0))=0,"",INDEX(توريدات!$A$3:$A$3000,MATCH(0,INDEX(COUNTIF($A$3:A50,توريدات!$A$3:$A$3000),),0))),"") ->  | B51: =IF($A51="","",VLOOKUP($A51,توريدات!$A$3:$U$3000,11,0)) ->  | C51: =IF($A51="","",VLOOKUP($A51,توريدات!$A$3:$U$3000,10,0)) ->  | D51: =IF($A51="","",VLOOKUP($A51,توريدات!$A$3:$U$3000,5,0)) ->  | E51: =IF($A51="","",VLOOKUP($A51,توريدات!$A$3:$U$3000,6,0)) ->  | F51: =IF($A51="","",SUMIF(توريدات!$A$3:$A$3000,$A51,توريدات!$L$3:$L$3000)) ->  | G51: =IF($A51="","",VLOOKUP($A51,توريدات!$A$3:$U$3000,13,0)) ->  | H51: =IF($A51="","",SUMIF(توريدات!$A$3:$A$3000,$A51,توريدات!$O$3:$O$3000)) ->  | I51: =IF($A51="","",SUMIF(توريدات!$A$3:$A$3000,$A51,توريدات!$P$3:$P$3000)) ->  | J51: =IF($A51="","",VLOOKUP($A51,توريدات!$A$3:$U$3000,17,0)) ->  | K51: =IF($A51="","",SUMIF(توريدات!$A$3:$A$3000,$A51,توريدات!$T$3:$T$3000)) ->  | L51: =IFERROR(IF(VLOOKUP($A51,توريدات!$A$3:$U$3000,21,0)=0,"",VLOOKUP($A51,توريدات!$A$3:$U$3000,21,0)),"") -> 
A52: =IFERROR(IF(INDEX(توريدات!$A$3:$A$3000,MATCH(0,INDEX(COUNTIF($A$3:A51,توريدات!$A$3:$A$3000),),0))=0,"",INDEX(توريدات!$A$3:$A$3000,MATCH(0,INDEX(COUNTIF($A$3:A51,توريدات!$A$3:$A$3000),),0))),"") ->  | B52: =IF($A52="","",VLOOKUP($A52,توريدات!$A$3:$U$3000,11,0)) ->  | C52: =IF($A52="","",VLOOKUP($A52,توريدات!$A$3:$U$3000,10,0)) ->  | D52: =IF($A52="","",VLOOKUP($A52,توريدات!$A$3:$U$3000,5,0)) ->  | E52: =IF($A52="","",VLOOKUP($A52,توريدات!$A$3:$U$3000,6,0)) ->  | F52: =IF($A52="","",SUMIF(توريدات!$A$3:$A$3000,$A52,توريدات!$L$3:$L$3000)) ->  | G52: =IF($A52="","",VLOOKUP($A52,توريدات!$A$3:$U$3000,13,0)) ->  | H52: =IF($A52="","",SUMIF(توريدات!$A$3:$A$3000,$A52,توريدات!$O$3:$O$3000)) ->  | I52: =IF($A52="","",SUMIF(توريدات!$A$3:$A$3000,$A52,توريدات!$P$3:$P$3000)) ->  | J52: =IF($A52="","",VLOOKUP($A52,توريدات!$A$3:$U$3000,17,0)) ->  | K52: =IF($A52="","",SUMIF(توريدات!$A$3:$A$3000,$A52,توريدات!$T$3:$T$3000)) ->  | L52: =IFERROR(IF(VLOOKUP($A52,توريدات!$A$3:$U$3000,21,0)=0,"",VLOOKUP($A52,توريدات!$A$3:$U$3000,21,0)),"") -> 
A53: =IFERROR(IF(INDEX(توريدات!$A$3:$A$3000,MATCH(0,INDEX(COUNTIF($A$3:A52,توريدات!$A$3:$A$3000),),0))=0,"",INDEX(توريدات!$A$3:$A$3000,MATCH(0,INDEX(COUNTIF($A$3:A52,توريدات!$A$3:$A$3000),),0))),"") ->  | B53: =IF($A53="","",VLOOKUP($A53,توريدات!$A$3:$U$3000,11,0)) ->  | C53: =IF($A53="","",VLOOKUP($A53,توريدات!$A$3:$U$3000,10,0)) ->  | D53: =IF($A53="","",VLOOKUP($A53,توريدات!$A$3:$U$3000,5,0)) ->  | E53: =IF($A53="","",VLOOKUP($A53,توريدات!$A$3:$U$3000,6,0)) ->  | F53: =IF($A53="","",SUMIF(توريدات!$A$3:$A$3000,$A53,توريدات!$L$3:$L$3000)) ->  | G53: =IF($A53="","",VLOOKUP($A53,توريدات!$A$3:$U$3000,13,0)) ->  | H53: =IF($A53="","",SUMIF(توريدات!$A$3:$A$3000,$A53,توريدات!$O$3:$O$3000)) ->  | I53: =IF($A53="","",SUMIF(توريدات!$A$3:$A$3000,$A53,توريدات!$P$3:$P$3000)) ->  | J53: =IF($A53="","",VLOOKUP($A53,توريدات!$A$3:$U$3000,17,0)) ->  | K53: =IF($A53="","",SUMIF(توريدات!$A$3:$A$3000,$A53,توريدات!$T$3:$T$3000)) ->  | L53: =IFERROR(IF(VLOOKUP($A53,توريدات!$A$3:$U$3000,21,0)=0,"",VLOOKUP($A53,توريدات!$A$3:$U$3000,21,0)),"") -> 
A54: =IFERROR(IF(INDEX(توريدات!$A$3:$A$3000,MATCH(0,INDEX(COUNTIF($A$3:A53,توريدات!$A$3:$A$3000),),0))=0,"",INDEX(توريدات!$A$3:$A$3000,MATCH(0,INDEX(COUNTIF($A$3:A53,توريدات!$A$3:$A$3000),),0))),"") ->  | B54: =IF($A54="","",VLOOKUP($A54,توريدات!$A$3:$U$3000,11,0)) ->  | C54: =IF($A54="","",VLOOKUP($A54,توريدات!$A$3:$U$3000,10,0)) ->  | D54: =IF($A54="","",VLOOKUP($A54,توريدات!$A$3:$U$3000,5,0)) ->  | E54: =IF($A54="","",VLOOKUP($A54,توريدات!$A$3:$U$3000,6,0)) ->  | F54: =IF($A54="","",SUMIF(توريدات!$A$3:$A$3000,$A54,توريدات!$L$3:$L$3000)) ->  | G54: =IF($A54="","",VLOOKUP($A54,توريدات!$A$3:$U$3000,13,0)) ->  | H54: =IF($A54="","",SUMIF(توريدات!$A$3:$A$3000,$A54,توريدات!$O$3:$O$3000)) ->  | I54: =IF($A54="","",SUMIF(توريدات!$A$3:$A$3000,$A54,توريدات!$P$3:$P$3000)) ->  | J54: =IF($A54="","",VLOOKUP($A54,توريدات!$A$3:$U$3000,17,0)) ->  | K54: =IF($A54="","",SUMIF(توريدات!$A$3:$A$3000,$A54,توريدات!$T$3:$T$3000)) ->  | L54: =IFERROR(IF(VLOOKUP($A54,توريدات!$A$3:$U$3000,21,0)=0,"",VLOOKUP($A54,توريدات!$A$3:$U$3000,21,0)),"") -> 
A55: =IFERROR(IF(INDEX(توريدات!$A$3:$A$3000,MATCH(0,INDEX(COUNTIF($A$3:A54,توريدات!$A$3:$A$3000),),0))=0,"",INDEX(توريدات!$A$3:$A$3000,MATCH(0,INDEX(COUNTIF($A$3:A54,توريدات!$A$3:$A$3000),),0))),"") ->  | B55: =IF($A55="","",VLOOKUP($A55,توريدات!$A$3:$U$3000,11,0)) ->  | C55: =IF($A55="","",VLOOKUP($A55,توريدات!$A$3:$U$3000,10,0)) ->  | D55: =IF($A55="","",VLOOKUP($A55,توريدات!$A$3:$U$3000,5,0)) ->  | E55: =IF($A55="","",VLOOKUP($A55,توريدات!$A$3:$U$3000,6,0)) ->  | F55: =IF($A55="","",SUMIF(توريدات!$A$3:$A$3000,$A55,توريدات!$L$3:$L$3000)) ->  | G55: =IF($A55="","",VLOOKUP($A55,توريدات!$A$3:$U$3000,13,0)) ->  | H55: =IF($A55="","",SUMIF(توريدات!$A$3:$A$3000,$A55,توريدات!$O$3:$O$3000)) ->  | I55: =IF($A55="","",SUMIF(توريدات!$A$3:$A$3000,$A55,توريدات!$P$3:$P$3000)) ->  | J55: =IF($A55="","",VLOOKUP($A55,توريدات!$A$3:$U$3000,17,0)) ->  | K55: =IF($A55="","",SUMIF(توريدات!$A$3:$A$3000,$A55,توريدات!$T$3:$T$3000)) ->  | L55: =IFERROR(IF(VLOOKUP($A55,توريدات!$A$3:$U$3000,21,0)=0,"",VLOOKUP($A55,توريدات!$A$3:$U$3000,21,0)),"") -> 
A56: =IFERROR(IF(INDEX(توريدات!$A$3:$A$3000,MATCH(0,INDEX(COUNTIF($A$3:A55,توريدات!$A$3:$A$3000),),0))=0,"",INDEX(توريدات!$A$3:$A$3000,MATCH(0,INDEX(COUNTIF($A$3:A55,توريدات!$A$3:$A$3000),),0))),"") ->  | B56: =IF($A56="","",VLOOKUP($A56,توريدات!$A$3:$U$3000,11,0)) ->  | C56: =IF($A56="","",VLOOKUP($A56,توريدات!$A$3:$U$3000,10,0)) ->  | D56: =IF($A56="","",VLOOKUP($A56,توريدات!$A$3:$U$3000,5,0)) ->  | E56: =IF($A56="","",VLOOKUP($A56,توريدات!$A$3:$U$3000,6,0)) ->  | F56: =IF($A56="","",SUMIF(توريدات!$A$3:$A$3000,$A56,توريدات!$L$3:$L$3000)) ->  | G56: =IF($A56="","",VLOOKUP($A56,توريدات!$A$3:$U$3000,13,0)) ->  | H56: =IF($A56="","",SUMIF(توريدات!$A$3:$A$3000,$A56,توريدات!$O$3:$O$3000)) ->  | I56: =IF($A56="","",SUMIF(توريدات!$A$3:$A$3000,$A56,توريدات!$P$3:$P$3000)) ->  | J56: =IF($A56="","",VLOOKUP($A56,توريدات!$A$3:$U$3000,17,0)) ->  | K56: =IF($A56="","",SUMIF(توريدات!$A$3:$A$3000,$A56,توريدات!$T$3:$T$3000)) ->  | L56: =IFERROR(IF(VLOOKUP($A56,توريدات!$A$3:$U$3000,21,0)=0,"",VLOOKUP($A56,توريدات!$A$3:$U$3000,21,0)),"") -> 
A57: =IFERROR(IF(INDEX(توريدات!$A$3:$A$3000,MATCH(0,INDEX(COUNTIF($A$3:A56,توريدات!$A$3:$A$3000),),0))=0,"",INDEX(توريدات!$A$3:$A$3000,MATCH(0,INDEX(COUNTIF($A$3:A56,توريدات!$A$3:$A$3000),),0))),"") ->  | B57: =IF($A57="","",VLOOKUP($A57,توريدات!$A$3:$U$3000,11,0)) ->  | C57: =IF($A57="","",VLOOKUP($A57,توريدات!$A$3:$U$3000,10,0)) ->  | D57: =IF($A57="","",VLOOKUP($A57,توريدات!$A$3:$U$3000,5,0)) ->  | E57: =IF($A57="","",VLOOKUP($A57,توريدات!$A$3:$U$3000,6,0)) ->  | F57: =IF($A57="","",SUMIF(توريدات!$A$3:$A$3000,$A57,توريدات!$L$3:$L$3000)) ->  | G57: =IF($A57="","",VLOOKUP($A57,توريدات!$A$3:$U$3000,13,0)) ->  | H57: =IF($A57="","",SUMIF(توريدات!$A$3:$A$3000,$A57,توريدات!$O$3:$O$3000)) ->  | I57: =IF($A57="","",SUMIF(توريدات!$A$3:$A$3000,$A57,توريدات!$P$3:$P$3000)) ->  | J57: =IF($A57="","",VLOOKUP($A57,توريدات!$A$3:$U$3000,17,0)) ->  | K57: =IF($A57="","",SUMIF(توريدات!$A$3:$A$3000,$A57,توريدات!$T$3:$T$3000)) ->  | L57: =IFERROR(IF(VLOOKUP($A57,توريدات!$A$3:$U$3000,21,0)=0,"",VLOOKUP($A57,توريدات!$A$3:$U$3000,21,0)),"") -> 
A58: =IFERROR(IF(INDEX(توريدات!$A$3:$A$3000,MATCH(0,INDEX(COUNTIF($A$3:A57,توريدات!$A$3:$A$3000),),0))=0,"",INDEX(توريدات!$A$3:$A$3000,MATCH(0,INDEX(COUNTIF($A$3:A57,توريدات!$A$3:$A$3000),),0))),"") ->  | B58: =IF($A58="","",VLOOKUP($A58,توريدات!$A$3:$U$3000,11,0)) ->  | C58: =IF($A58="","",VLOOKUP($A58,توريدات!$A$3:$U$3000,10,0)) ->  | D58: =IF($A58="","",VLOOKUP($A58,توريدات!$A$3:$U$3000,5,0)) ->  | E58: =IF($A58="","",VLOOKUP($A58,توريدات!$A$3:$U$3000,6,0)) ->  | F58: =IF($A58="","",SUMIF(توريدات!$A$3:$A$3000,$A58,توريدات!$L$3:$L$3000)) ->  | G58: =IF($A58="","",VLOOKUP($A58,توريدات!$A$3:$U$3000,13,0)) ->  | H58: =IF($A58="","",SUMIF(توريدات!$A$3:$A$3000,$A58,توريدات!$O$3:$O$3000)) ->  | I58: =IF($A58="","",SUMIF(توريدات!$A$3:$A$3000,$A58,توريدات!$P$3:$P$3000)) ->  | J58: =IF($A58="","",VLOOKUP($A58,توريدات!$A$3:$U$3000,17,0)) ->  | K58: =IF($A58="","",SUMIF(توريدات!$A$3:$A$3000,$A58,توريدات!$T$3:$T$3000)) ->  | L58: =IFERROR(IF(VLOOKUP($A58,توريدات!$A$3:$U$3000,21,0)=0,"",VLOOKUP($A58,توريدات!$A$3:$U$3000,21,0)),"") -> 
A59: =IFERROR(IF(INDEX(توريدات!$A$3:$A$3000,MATCH(0,INDEX(COUNTIF($A$3:A58,توريدات!$A$3:$A$3000),),0))=0,"",INDEX(توريدات!$A$3:$A$3000,MATCH(0,INDEX(COUNTIF($A$3:A58,توريدات!$A$3:$A$3000),),0))),"") ->  | B59: =IF($A59="","",VLOOKUP($A59,توريدات!$A$3:$U$3000,11,0)) ->  | C59: =IF($A59="","",VLOOKUP($A59,توريدات!$A$3:$U$3000,10,0)) ->  | D59: =IF($A59="","",VLOOKUP($A59,توريدات!$A$3:$U$3000,5,0)) ->  | E59: =IF($A59="","",VLOOKUP($A59,توريدات!$A$3:$U$3000,6,0)) ->  | F59: =IF($A59="","",SUMIF(توريدات!$A$3:$A$3000,$A59,توريدات!$L$3:$L$3000)) ->  | G59: =IF($A59="","",VLOOKUP($A59,توريدات!$A$3:$U$3000,13,0)) ->  | H59: =IF($A59="","",SUMIF(توريدات!$A$3:$A$3000,$A59,توريدات!$O$3:$O$3000)) ->  | I59: =IF($A59="","",SUMIF(توريدات!$A$3:$A$3000,$A59,توريدات!$P$3:$P$3000)) ->  | J59: =IF($A59="","",VLOOKUP($A59,توريدات!$A$3:$U$3000,17,0)) ->  | K59: =IF($A59="","",SUMIF(توريدات!$A$3:$A$3000,$A59,توريدات!$T$3:$T$3000)) ->  | L59: =IFERROR(IF(VLOOKUP($A59,توريدات!$A$3:$U$3000,21,0)=0,"",VLOOKUP($A59,توريدات!$A$3:$U$3000,21,0)),"") -> 
A60: =IFERROR(IF(INDEX(توريدات!$A$3:$A$3000,MATCH(0,INDEX(COUNTIF($A$3:A59,توريدات!$A$3:$A$3000),),0))=0,"",INDEX(توريدات!$A$3:$A$3000,MATCH(0,INDEX(COUNTIF($A$3:A59,توريدات!$A$3:$A$3000),),0))),"") ->  | B60: =IF($A60="","",VLOOKUP($A60,توريدات!$A$3:$U$3000,11,0)) ->  | C60: =IF($A60="","",VLOOKUP($A60,توريدات!$A$3:$U$3000,10,0)) ->  | D60: =IF($A60="","",VLOOKUP($A60,توريدات!$A$3:$U$3000,5,0)) ->  | E60: =IF($A60="","",VLOOKUP($A60,توريدات!$A$3:$U$3000,6,0)) ->  | F60: =IF($A60="","",SUMIF(توريدات!$A$3:$A$3000,$A60,توريدات!$L$3:$L$3000)) ->  | G60: =IF($A60="","",VLOOKUP($A60,توريدات!$A$3:$U$3000,13,0)) ->  | H60: =IF($A60="","",SUMIF(توريدات!$A$3:$A$3000,$A60,توريدات!$O$3:$O$3000)) ->  | I60: =IF($A60="","",SUMIF(توريدات!$A$3:$A$3000,$A60,توريدات!$P$3:$P$3000)) ->  | J60: =IF($A60="","",VLOOKUP($A60,توريدات!$A$3:$U$3000,17,0)) ->  | K60: =IF($A60="","",SUMIF(توريدات!$A$3:$A$3000,$A60,توريدات!$T$3:$T$3000)) ->  | L60: =IFERROR(IF(VLOOKUP($A60,توريدات!$A$3:$U$3000,21,0)=0,"",VLOOKUP($A60,توريدات!$A$3:$U$3000,21,0)),"") -> 
A61: =IFERROR(IF(INDEX(توريدات!$A$3:$A$3000,MATCH(0,INDEX(COUNTIF($A$3:A60,توريدات!$A$3:$A$3000),),0))=0,"",INDEX(توريدات!$A$3:$A$3000,MATCH(0,INDEX(COUNTIF($A$3:A60,توريدات!$A$3:$A$3000),),0))),"") ->  | B61: =IF($A61="","",VLOOKUP($A61,توريدات!$A$3:$U$3000,11,0)) ->  | C61: =IF($A61="","",VLOOKUP($A61,توريدات!$A$3:$U$3000,10,0)) ->  | D61: =IF($A61="","",VLOOKUP($A61,توريدات!$A$3:$U$3000,5,0)) ->  | E61: =IF($A61="","",VLOOKUP($A61,توريدات!$A$3:$U$3000,6,0)) ->  | F61: =IF($A61="","",SUMIF(توريدات!$A$3:$A$3000,$A61,توريدات!$L$3:$L$3000)) ->  | G61: =IF($A61="","",VLOOKUP($A61,توريدات!$A$3:$U$3000,13,0)) ->  | H61: =IF($A61="","",SUMIF(توريدات!$A$3:$A$3000,$A61,توريدات!$O$3:$O$3000)) ->  | I61: =IF($A61="","",SUMIF(توريدات!$A$3:$A$3000,$A61,توريدات!$P$3:$P$3000)) ->  | J61: =IF($A61="","",VLOOKUP($A61,توريدات!$A$3:$U$3000,17,0)) ->  | K61: =IF($A61="","",SUMIF(توريدات!$A$3:$A$3000,$A61,توريدات!$T$3:$T$3000)) ->  | L61: =IFERROR(IF(VLOOKUP($A61,توريدات!$A$3:$U$3000,21,0)=0,"",VLOOKUP($A61,توريدات!$A$3:$U$3000,21,0)),"") -> 
A62: =IFERROR(IF(INDEX(توريدات!$A$3:$A$3000,MATCH(0,INDEX(COUNTIF($A$3:A61,توريدات!$A$3:$A$3000),),0))=0,"",INDEX(توريدات!$A$3:$A$3000,MATCH(0,INDEX(COUNTIF($A$3:A61,توريدات!$A$3:$A$3000),),0))),"") ->  | B62: =IF($A62="","",VLOOKUP($A62,توريدات!$A$3:$U$3000,11,0)) ->  | C62: =IF($A62="","",VLOOKUP($A62,توريدات!$A$3:$U$3000,10,0)) ->  | D62: =IF($A62="","",VLOOKUP($A62,توريدات!$A$3:$U$3000,5,0)) ->  | E62: =IF($A62="","",VLOOKUP($A62,توريدات!$A$3:$U$3000,6,0)) ->  | F62: =IF($A62="","",SUMIF(توريدات!$A$3:$A$3000,$A62,توريدات!$L$3:$L$3000)) ->  | G62: =IF($A62="","",VLOOKUP($A62,توريدات!$A$3:$U$3000,13,0)) ->  | H62: =IF($A62="","",SUMIF(توريدات!$A$3:$A$3000,$A62,توريدات!$O$3:$O$3000)) ->  | I62: =IF($A62="","",SUMIF(توريدات!$A$3:$A$3000,$A62,توريدات!$P$3:$P$3000)) ->  | J62: =IF($A62="","",VLOOKUP($A62,توريدات!$A$3:$U$3000,17,0)) ->  | K62: =IF($A62="","",SUMIF(توريدات!$A$3:$A$3000,$A62,توريدات!$T$3:$T$3000)) ->  | L62: =IFERROR(IF(VLOOKUP($A62,توريدات!$A$3:$U$3000,21,0)=0,"",VLOOKUP($A62,توريدات!$A$3:$U$3000,21,0)),"") -> 
A63: =IFERROR(IF(INDEX(توريدات!$A$3:$A$3000,MATCH(0,INDEX(COUNTIF($A$3:A62,توريدات!$A$3:$A$3000),),0))=0,"",INDEX(توريدات!$A$3:$A$3000,MATCH(0,INDEX(COUNTIF($A$3:A62,توريدات!$A$3:$A$3000),),0))),"") ->  | B63: =IF($A63="","",VLOOKUP($A63,توريدات!$A$3:$U$3000,11,0)) ->  | C63: =IF($A63="","",VLOOKUP($A63,توريدات!$A$3:$U$3000,10,0)) ->  | D63: =IF($A63="","",VLOOKUP($A63,توريدات!$A$3:$U$3000,5,0)) ->  | E63: =IF($A63="","",VLOOKUP($A63,توريدات!$A$3:$U$3000,6,0)) ->  | F63: =IF($A63="","",SUMIF(توريدات!$A$3:$A$3000,$A63,توريدات!$L$3:$L$3000)) ->  | G63: =IF($A63="","",VLOOKUP($A63,توريدات!$A$3:$U$3000,13,0)) ->  | H63: =IF($A63="","",SUMIF(توريدات!$A$3:$A$3000,$A63,توريدات!$O$3:$O$3000)) ->  | I63: =IF($A63="","",SUMIF(توريدات!$A$3:$A$3000,$A63,توريدات!$P$3:$P$3000)) ->  | J63: =IF($A63="","",VLOOKUP($A63,توريدات!$A$3:$U$3000,17,0)) ->  | K63: =IF($A63="","",SUMIF(توريدات!$A$3:$A$3000,$A63,توريدات!$T$3:$T$3000)) ->  | L63: =IFERROR(IF(VLOOKUP($A63,توريدات!$A$3:$U$3000,21,0)=0,"",VLOOKUP($A63,توريدات!$A$3:$U$3000,21,0)),"") -> 
A64: =IFERROR(IF(INDEX(توريدات!$A$3:$A$3000,MATCH(0,INDEX(COUNTIF($A$3:A63,توريدات!$A$3:$A$3000),),0))=0,"",INDEX(توريدات!$A$3:$A$3000,MATCH(0,INDEX(COUNTIF($A$3:A63,توريدات!$A$3:$A$3000),),0))),"") ->  | B64: =IF($A64="","",VLOOKUP($A64,توريدات!$A$3:$U$3000,11,0)) ->  | C64: =IF($A64="","",VLOOKUP($A64,توريدات!$A$3:$U$3000,10,0)) ->  | D64: =IF($A64="","",VLOOKUP($A64,توريدات!$A$3:$U$3000,5,0)) ->  | E64: =IF($A64="","",VLOOKUP($A64,توريدات!$A$3:$U$3000,6,0)) ->  | F64: =IF($A64="","",SUMIF(توريدات!$A$3:$A$3000,$A64,توريدات!$L$3:$L$3000)) ->  | G64: =IF($A64="","",VLOOKUP($A64,توريدات!$A$3:$U$3000,13,0)) ->  | H64: =IF($A64="","",SUMIF(توريدات!$A$3:$A$3000,$A64,توريدات!$O$3:$O$3000)) ->  | I64: =IF($A64="","",SUMIF(توريدات!$A$3:$A$3000,$A64,توريدات!$P$3:$P$3000)) ->  | J64: =IF($A64="","",VLOOKUP($A64,توريدات!$A$3:$U$3000,17,0)) ->  | K64: =IF($A64="","",SUMIF(توريدات!$A$3:$A$3000,$A64,توريدات!$T$3:$T$3000)) ->  | L64: =IFERROR(IF(VLOOKUP($A64,توريدات!$A$3:$U$3000,21,0)=0,"",VLOOKUP($A64,توريدات!$A$3:$U$3000,21,0)),"") -> 
A65: =IFERROR(IF(INDEX(توريدات!$A$3:$A$3000,MATCH(0,INDEX(COUNTIF($A$3:A64,توريدات!$A$3:$A$3000),),0))=0,"",INDEX(توريدات!$A$3:$A$3000,MATCH(0,INDEX(COUNTIF($A$3:A64,توريدات!$A$3:$A$3000),),0))),"") ->  | B65: =IF($A65="","",VLOOKUP($A65,توريدات!$A$3:$U$3000,11,0)) ->  | C65: =IF($A65="","",VLOOKUP($A65,توريدات!$A$3:$U$3000,10,0)) ->  | D65: =IF($A65="","",VLOOKUP($A65,توريدات!$A$3:$U$3000,5,0)) ->  | E65: =IF($A65="","",VLOOKUP($A65,توريدات!$A$3:$U$3000,6,0)) ->  | F65: =IF($A65="","",SUMIF(توريدات!$A$3:$A$3000,$A65,توريدات!$L$3:$L$3000)) ->  | G65: =IF($A65="","",VLOOKUP($A65,توريدات!$A$3:$U$3000,13,0)) ->  | H65: =IF($A65="","",SUMIF(توريدات!$A$3:$A$3000,$A65,توريدات!$O$3:$O$3000)) ->  | I65: =IF($A65="","",SUMIF(توريدات!$A$3:$A$3000,$A65,توريدات!$P$3:$P$3000)) ->  | J65: =IF($A65="","",VLOOKUP($A65,توريدات!$A$3:$U$3000,17,0)) ->  | K65: =IF($A65="","",SUMIF(توريدات!$A$3:$A$3000,$A65,توريدات!$T$3:$T$3000)) ->  | L65: =IFERROR(IF(VLOOKUP($A65,توريدات!$A$3:$U$3000,21,0)=0,"",VLOOKUP($A65,توريدات!$A$3:$U$3000,21,0)),"") -> 
A66: =IFERROR(IF(INDEX(توريدات!$A$3:$A$3000,MATCH(0,INDEX(COUNTIF($A$3:A65,توريدات!$A$3:$A$3000),),0))=0,"",INDEX(توريدات!$A$3:$A$3000,MATCH(0,INDEX(COUNTIF($A$3:A65,توريدات!$A$3:$A$3000),),0))),"") ->  | B66: =IF($A66="","",VLOOKUP($A66,توريدات!$A$3:$U$3000,11,0)) ->  | C66: =IF($A66="","",VLOOKUP($A66,توريدات!$A$3:$U$3000,10,0)) ->  | D66: =IF($A66="","",VLOOKUP($A66,توريدات!$A$3:$U$3000,5,0)) ->  | E66: =IF($A66="","",VLOOKUP($A66,توريدات!$A$3:$U$3000,6,0)) ->  | F66: =IF($A66="","",SUMIF(توريدات!$A$3:$A$3000,$A66,توريدات!$L$3:$L$3000)) ->  | G66: =IF($A66="","",VLOOKUP($A66,توريدات!$A$3:$U$3000,13,0)) ->  | H66: =IF($A66="","",SUMIF(توريدات!$A$3:$A$3000,$A66,توريدات!$O$3:$O$3000)) ->  | I66: =IF($A66="","",SUMIF(توريدات!$A$3:$A$3000,$A66,توريدات!$P$3:$P$3000)) ->  | J66: =IF($A66="","",VLOOKUP($A66,توريدات!$A$3:$U$3000,17,0)) ->  | K66: =IF($A66="","",SUMIF(توريدات!$A$3:$A$3000,$A66,توريدات!$T$3:$T$3000)) ->  | L66: =IFERROR(IF(VLOOKUP($A66,توريدات!$A$3:$U$3000,21,0)=0,"",VLOOKUP($A66,توريدات!$A$3:$U$3000,21,0)),"") -> 
A67: =IFERROR(IF(INDEX(توريدات!$A$3:$A$3000,MATCH(0,INDEX(COUNTIF($A$3:A66,توريدات!$A$3:$A$3000),),0))=0,"",INDEX(توريدات!$A$3:$A$3000,MATCH(0,INDEX(COUNTIF($A$3:A66,توريدات!$A$3:$A$3000),),0))),"") ->  | B67: =IF($A67="","",VLOOKUP($A67,توريدات!$A$3:$U$3000,11,0)) ->  | C67: =IF($A67="","",VLOOKUP($A67,توريدات!$A$3:$U$3000,10,0)) ->  | D67: =IF($A67="","",VLOOKUP($A67,توريدات!$A$3:$U$3000,5,0)) ->  | E67: =IF($A67="","",VLOOKUP($A67,توريدات!$A$3:$U$3000,6,0)) ->  | F67: =IF($A67="","",SUMIF(توريدات!$A$3:$A$3000,$A67,توريدات!$L$3:$L$3000)) ->  | G67: =IF($A67="","",VLOOKUP($A67,توريدات!$A$3:$U$3000,13,0)) ->  | H67: =IF($A67="","",SUMIF(توريدات!$A$3:$A$3000,$A67,توريدات!$O$3:$O$3000)) ->  | I67: =IF($A67="","",SUMIF(توريدات!$A$3:$A$3000,$A67,توريدات!$P$3:$P$3000)) ->  | J67: =IF($A67="","",VLOOKUP($A67,توريدات!$A$3:$U$3000,17,0)) ->  | K67: =IF($A67="","",SUMIF(توريدات!$A$3:$A$3000,$A67,توريدات!$T$3:$T$3000)) ->  | L67: =IFERROR(IF(VLOOKUP($A67,توريدات!$A$3:$U$3000,21,0)=0,"",VLOOKUP($A67,توريدات!$A$3:$U$3000,21,0)),"") -> 
A68: =IFERROR(IF(INDEX(توريدات!$A$3:$A$3000,MATCH(0,INDEX(COUNTIF($A$3:A67,توريدات!$A$3:$A$3000),),0))=0,"",INDEX(توريدات!$A$3:$A$3000,MATCH(0,INDEX(COUNTIF($A$3:A67,توريدات!$A$3:$A$3000),),0))),"") ->  | B68: =IF($A68="","",VLOOKUP($A68,توريدات!$A$3:$U$3000,11,0)) ->  | C68: =IF($A68="","",VLOOKUP($A68,توريدات!$A$3:$U$3000,10,0)) ->  | D68: =IF($A68="","",VLOOKUP($A68,توريدات!$A$3:$U$3000,5,0)) ->  | E68: =IF($A68="","",VLOOKUP($A68,توريدات!$A$3:$U$3000,6,0)) ->  | F68: =IF($A68="","",SUMIF(توريدات!$A$3:$A$3000,$A68,توريدات!$L$3:$L$3000)) ->  | G68: =IF($A68="","",VLOOKUP($A68,توريدات!$A$3:$U$3000,13,0)) ->  | H68: =IF($A68="","",SUMIF(توريدات!$A$3:$A$3000,$A68,توريدات!$O$3:$O$3000)) ->  | I68: =IF($A68="","",SUMIF(توريدات!$A$3:$A$3000,$A68,توريدات!$P$3:$P$3000)) ->  | J68: =IF($A68="","",VLOOKUP($A68,توريدات!$A$3:$U$3000,17,0)) ->  | K68: =IF($A68="","",SUMIF(توريدات!$A$3:$A$3000,$A68,توريدات!$T$3:$T$3000)) ->  | L68: =IFERROR(IF(VLOOKUP($A68,توريدات!$A$3:$U$3000,21,0)=0,"",VLOOKUP($A68,توريدات!$A$3:$U$3000,21,0)),"") -> 
A69: =IFERROR(IF(INDEX(توريدات!$A$3:$A$3000,MATCH(0,INDEX(COUNTIF($A$3:A68,توريدات!$A$3:$A$3000),),0))=0,"",INDEX(توريدات!$A$3:$A$3000,MATCH(0,INDEX(COUNTIF($A$3:A68,توريدات!$A$3:$A$3000),),0))),"") ->  | B69: =IF($A69="","",VLOOKUP($A69,توريدات!$A$3:$U$3000,11,0)) ->  | C69: =IF($A69="","",VLOOKUP($A69,توريدات!$A$3:$U$3000,10,0)) ->  | D69: =IF($A69="","",VLOOKUP($A69,توريدات!$A$3:$U$3000,5,0)) ->  | E69: =IF($A69="","",VLOOKUP($A69,توريدات!$A$3:$U$3000,6,0)) ->  | F69: =IF($A69="","",SUMIF(توريدات!$A$3:$A$3000,$A69,توريدات!$L$3:$L$3000)) ->  | G69: =IF($A69="","",VLOOKUP($A69,توريدات!$A$3:$U$3000,13,0)) ->  | H69: =IF($A69="","",SUMIF(توريدات!$A$3:$A$3000,$A69,توريدات!$O$3:$O$3000)) ->  | I69: =IF($A69="","",SUMIF(توريدات!$A$3:$A$3000,$A69,توريدات!$P$3:$P$3000)) ->  | J69: =IF($A69="","",VLOOKUP($A69,توريدات!$A$3:$U$3000,17,0)) ->  | K69: =IF($A69="","",SUMIF(توريدات!$A$3:$A$3000,$A69,توريدات!$T$3:$T$3000)) ->  | L69: =IFERROR(IF(VLOOKUP($A69,توريدات!$A$3:$U$3000,21,0)=0,"",VLOOKUP($A69,توريدات!$A$3:$U$3000,21,0)),"") -> 
A70: =IFERROR(IF(INDEX(توريدات!$A$3:$A$3000,MATCH(0,INDEX(COUNTIF($A$3:A69,توريدات!$A$3:$A$3000),),0))=0,"",INDEX(توريدات!$A$3:$A$3000,MATCH(0,INDEX(COUNTIF($A$3:A69,توريدات!$A$3:$A$3000),),0))),"") ->  | B70: =IF($A70="","",VLOOKUP($A70,توريدات!$A$3:$U$3000,11,0)) ->  | C70: =IF($A70="","",VLOOKUP($A70,توريدات!$A$3:$U$3000,10,0)) ->  | D70: =IF($A70="","",VLOOKUP($A70,توريدات!$A$3:$U$3000,5,0)) ->  | E70: =IF($A70="","",VLOOKUP($A70,توريدات!$A$3:$U$3000,6,0)) ->  | F70: =IF($A70="","",SUMIF(توريدات!$A$3:$A$3000,$A70,توريدات!$L$3:$L$3000)) ->  | G70: =IF($A70="","",VLOOKUP($A70,توريدات!$A$3:$U$3000,13,0)) ->  | H70: =IF($A70="","",SUMIF(توريدات!$A$3:$A$3000,$A70,توريدات!$O$3:$O$3000)) ->  | I70: =IF($A70="","",SUMIF(توريدات!$A$3:$A$3000,$A70,توريدات!$P$3:$P$3000)) ->  | J70: =IF($A70="","",VLOOKUP($A70,توريدات!$A$3:$U$3000,17,0)) ->  | K70: =IF($A70="","",SUMIF(توريدات!$A$3:$A$3000,$A70,توريدات!$T$3:$T$3000)) ->  | L70: =IFERROR(IF(VLOOKUP($A70,توريدات!$A$3:$U$3000,21,0)=0,"",VLOOKUP($A70,توريدات!$A$3:$U$3000,21,0)),"") -> 
A71: =IFERROR(IF(INDEX(توريدات!$A$3:$A$3000,MATCH(0,INDEX(COUNTIF($A$3:A70,توريدات!$A$3:$A$3000),),0))=0,"",INDEX(توريدات!$A$3:$A$3000,MATCH(0,INDEX(COUNTIF($A$3:A70,توريدات!$A$3:$A$3000),),0))),"") ->  | B71: =IF($A71="","",VLOOKUP($A71,توريدات!$A$3:$U$3000,11,0)) ->  | C71: =IF($A71="","",VLOOKUP($A71,توريدات!$A$3:$U$3000,10,0)) ->  | D71: =IF($A71="","",VLOOKUP($A71,توريدات!$A$3:$U$3000,5,0)) ->  | E71: =IF($A71="","",VLOOKUP($A71,توريدات!$A$3:$U$3000,6,0)) ->  | F71: =IF($A71="","",SUMIF(توريدات!$A$3:$A$3000,$A71,توريدات!$L$3:$L$3000)) ->  | G71: =IF($A71="","",VLOOKUP($A71,توريدات!$A$3:$U$3000,13,0)) ->  | H71: =IF($A71="","",SUMIF(توريدات!$A$3:$A$3000,$A71,توريدات!$O$3:$O$3000)) ->  | I71: =IF($A71="","",SUMIF(توريدات!$A$3:$A$3000,$A71,توريدات!$P$3:$P$3000)) ->  | J71: =IF($A71="","",VLOOKUP($A71,توريدات!$A$3:$U$3000,17,0)) ->  | K71: =IF($A71="","",SUMIF(توريدات!$A$3:$A$3000,$A71,توريدات!$T$3:$T$3000)) ->  | L71: =IFERROR(IF(VLOOKUP($A71,توريدات!$A$3:$U$3000,21,0)=0,"",VLOOKUP($A71,توريدات!$A$3:$U$3000,21,0)),"") -> 
A72: =IFERROR(IF(INDEX(توريدات!$A$3:$A$3000,MATCH(0,INDEX(COUNTIF($A$3:A71,توريدات!$A$3:$A$3000),),0))=0,"",INDEX(توريدات!$A$3:$A$3000,MATCH(0,INDEX(COUNTIF($A$3:A71,توريدات!$A$3:$A$3000),),0))),"") ->  | B72: =IF($A72="","",VLOOKUP($A72,توريدات!$A$3:$U$3000,11,0)) ->  | C72: =IF($A72="","",VLOOKUP($A72,توريدات!$A$3:$U$3000,10,0)) ->  | D72: =IF($A72="","",VLOOKUP($A72,توريدات!$A$3:$U$3000,5,0)) ->  | E72: =IF($A72="","",VLOOKUP($A72,توريدات!$A$3:$U$3000,6,0)) ->  | F72: =IF($A72="","",SUMIF(توريدات!$A$3:$A$3000,$A72,توريدات!$L$3:$L$3000)) ->  | G72: =IF($A72="","",VLOOKUP($A72,توريدات!$A$3:$U$3000,13,0)) ->  | H72: =IF($A72="","",SUMIF(توريدات!$A$3:$A$3000,$A72,توريدات!$O$3:$O$3000)) ->  | I72: =IF($A72="","",SUMIF(توريدات!$A$3:$A$3000,$A72,توريدات!$P$3:$P$3000)) ->  | J72: =IF($A72="","",VLOOKUP($A72,توريدات!$A$3:$U$3000,17,0)) ->  | K72: =IF($A72="","",SUMIF(توريدات!$A$3:$A$3000,$A72,توريدات!$T$3:$T$3000)) ->  | L72: =IFERROR(IF(VLOOKUP($A72,توريدات!$A$3:$U$3000,21,0)=0,"",VLOOKUP($A72,توريدات!$A$3:$U$3000,21,0)),"") -> 
A73: =IFERROR(IF(INDEX(توريدات!$A$3:$A$3000,MATCH(0,INDEX(COUNTIF($A$3:A72,توريدات!$A$3:$A$3000),),0))=0,"",INDEX(توريدات!$A$3:$A$3000,MATCH(0,INDEX(COUNTIF($A$3:A72,توريدات!$A$3:$A$3000),),0))),"") ->  | B73: =IF($A73="","",VLOOKUP($A73,توريدات!$A$3:$U$3000,11,0)) ->  | C73: =IF($A73="","",VLOOKUP($A73,توريدات!$A$3:$U$3000,10,0)) ->  | D73: =IF($A73="","",VLOOKUP($A73,توريدات!$A$3:$U$3000,5,0)) ->  | E73: =IF($A73="","",VLOOKUP($A73,توريدات!$A$3:$U$3000,6,0)) ->  | F73: =IF($A73="","",SUMIF(توريدات!$A$3:$A$3000,$A73,توريدات!$L$3:$L$3000)) ->  | G73: =IF($A73="","",VLOOKUP($A73,توريدات!$A$3:$U$3000,13,0)) ->  | H73: =IF($A73="","",SUMIF(توريدات!$A$3:$A$3000,$A73,توريدات!$O$3:$O$3000)) ->  | I73: =IF($A73="","",SUMIF(توريدات!$A$3:$A$3000,$A73,توريدات!$P$3:$P$3000)) ->  | J73: =IF($A73="","",VLOOKUP($A73,توريدات!$A$3:$U$3000,17,0)) ->  | K73: =IF($A73="","",SUMIF(توريدات!$A$3:$A$3000,$A73,توريدات!$T$3:$T$3000)) ->  | L73: =IFERROR(IF(VLOOKUP($A73,توريدات!$A$3:$U$3000,21,0)=0,"",VLOOKUP($A73,توريدات!$A$3:$U$3000,21,0)),"") -> 
A74: =IFERROR(IF(INDEX(توريدات!$A$3:$A$3000,MATCH(0,INDEX(COUNTIF($A$3:A73,توريدات!$A$3:$A$3000),),0))=0,"",INDEX(توريدات!$A$3:$A$3000,MATCH(0,INDEX(COUNTIF($A$3:A73,توريدات!$A$3:$A$3000),),0))),"") ->  | B74: =IF($A74="","",VLOOKUP($A74,توريدات!$A$3:$U$3000,11,0)) ->  | C74: =IF($A74="","",VLOOKUP($A74,توريدات!$A$3:$U$3000,10,0)) ->  | D74: =IF($A74="","",VLOOKUP($A74,توريدات!$A$3:$U$3000,5,0)) ->  | E74: =IF($A74="","",VLOOKUP($A74,توريدات!$A$3:$U$3000,6,0)) ->  | F74: =IF($A74="","",SUMIF(توريدات!$A$3:$A$3000,$A74,توريدات!$L$3:$L$3000)) ->  | G74: =IF($A74="","",VLOOKUP($A74,توريدات!$A$3:$U$3000,13,0)) ->  | H74: =IF($A74="","",SUMIF(توريدات!$A$3:$A$3000,$A74,توريدات!$O$3:$O$3000)) ->  | I74: =IF($A74="","",SUMIF(توريدات!$A$3:$A$3000,$A74,توريدات!$P$3:$P$3000)) ->  | J74: =IF($A74="","",VLOOKUP($A74,توريدات!$A$3:$U$3000,17,0)) ->  | K74: =IF($A74="","",SUMIF(توريدات!$A$3:$A$3000,$A74,توريدات!$T$3:$T$3000)) ->  | L74: =IFERROR(IF(VLOOKUP($A74,توريدات!$A$3:$U$3000,21,0)=0,"",VLOOKUP($A74,توريدات!$A$3:$U$3000,21,0)),"") -> 
A75: =IFERROR(IF(INDEX(توريدات!$A$3:$A$3000,MATCH(0,INDEX(COUNTIF($A$3:A74,توريدات!$A$3:$A$3000),),0))=0,"",INDEX(توريدات!$A$3:$A$3000,MATCH(0,INDEX(COUNTIF($A$3:A74,توريدات!$A$3:$A$3000),),0))),"") ->  | B75: =IF($A75="","",VLOOKUP($A75,توريدات!$A$3:$U$3000,11,0)) ->  | C75: =IF($A75="","",VLOOKUP($A75,توريدات!$A$3:$U$3000,10,0)) ->  | D75: =IF($A75="","",VLOOKUP($A75,توريدات!$A$3:$U$3000,5,0)) ->  | E75: =IF($A75="","",VLOOKUP($A75,توريدات!$A$3:$U$3000,6,0)) ->  | F75: =IF($A75="","",SUMIF(توريدات!$A$3:$A$3000,$A75,توريدات!$L$3:$L$3000)) ->  | G75: =IF($A75="","",VLOOKUP($A75,توريدات!$A$3:$U$3000,13,0)) ->  | H75: =IF($A75="","",SUMIF(توريدات!$A$3:$A$3000,$A75,توريدات!$O$3:$O$3000)) ->  | I75: =IF($A75="","",SUMIF(توريدات!$A$3:$A$3000,$A75,توريدات!$P$3:$P$3000)) ->  | J75: =IF($A75="","",VLOOKUP($A75,توريدات!$A$3:$U$3000,17,0)) ->  | K75: =IF($A75="","",SUMIF(توريدات!$A$3:$A$3000,$A75,توريدات!$T$3:$T$3000)) ->  | L75: =IFERROR(IF(VLOOKUP($A75,توريدات!$A$3:$U$3000,21,0)=0,"",VLOOKUP($A75,توريدات!$A$3:$U$3000,21,0)),"") -> 
A76: =IFERROR(IF(INDEX(توريدات!$A$3:$A$3000,MATCH(0,INDEX(COUNTIF($A$3:A75,توريدات!$A$3:$A$3000),),0))=0,"",INDEX(توريدات!$A$3:$A$3000,MATCH(0,INDEX(COUNTIF($A$3:A75,توريدات!$A$3:$A$3000),),0))),"") ->  | B76: =IF($A76="","",VLOOKUP($A76,توريدات!$A$3:$U$3000,11,0)) ->  | C76: =IF($A76="","",VLOOKUP($A76,توريدات!$A$3:$U$3000,10,0)) ->  | D76: =IF($A76="","",VLOOKUP($A76,توريدات!$A$3:$U$3000,5,0)) ->  | E76: =IF($A76="","",VLOOKUP($A76,توريدات!$A$3:$U$3000,6,0)) ->  | F76: =IF($A76="","",SUMIF(توريدات!$A$3:$A$3000,$A76,توريدات!$L$3:$L$3000)) ->  | G76: =IF($A76="","",VLOOKUP($A76,توريدات!$A$3:$U$3000,13,0)) ->  | H76: =IF($A76="","",SUMIF(توريدات!$A$3:$A$3000,$A76,توريدات!$O$3:$O$3000)) ->  | I76: =IF($A76="","",SUMIF(توريدات!$A$3:$A$3000,$A76,توريدات!$P$3:$P$3000)) ->  | J76: =IF($A76="","",VLOOKUP($A76,توريدات!$A$3:$U$3000,17,0)) ->  | K76: =IF($A76="","",SUMIF(توريدات!$A$3:$A$3000,$A76,توريدات!$T$3:$T$3000)) ->  | L76: =IFERROR(IF(VLOOKUP($A76,توريدات!$A$3:$U$3000,21,0)=0,"",VLOOKUP($A76,توريدات!$A$3:$U$3000,21,0)),"") -> 
A77: =IFERROR(IF(INDEX(توريدات!$A$3:$A$3000,MATCH(0,INDEX(COUNTIF($A$3:A76,توريدات!$A$3:$A$3000),),0))=0,"",INDEX(توريدات!$A$3:$A$3000,MATCH(0,INDEX(COUNTIF($A$3:A76,توريدات!$A$3:$A$3000),),0))),"") ->  | B77: =IF($A77="","",VLOOKUP($A77,توريدات!$A$3:$U$3000,11,0)) ->  | C77: =IF($A77="","",VLOOKUP($A77,توريدات!$A$3:$U$3000,10,0)) ->  | D77: =IF($A77="","",VLOOKUP($A77,توريدات!$A$3:$U$3000,5,0)) ->  | E77: =IF($A77="","",VLOOKUP($A77,توريدات!$A$3:$U$3000,6,0)) ->  | F77: =IF($A77="","",SUMIF(توريدات!$A$3:$A$3000,$A77,توريدات!$L$3:$L$3000)) ->  | G77: =IF($A77="","",VLOOKUP($A77,توريدات!$A$3:$U$3000,13,0)) ->  | H77: =IF($A77="","",SUMIF(توريدات!$A$3:$A$3000,$A77,توريدات!$O$3:$O$3000)) ->  | I77: =IF($A77="","",SUMIF(توريدات!$A$3:$A$3000,$A77,توريدات!$P$3:$P$3000)) ->  | J77: =IF($A77="","",VLOOKUP($A77,توريدات!$A$3:$U$3000,17,0)) ->  | K77: =IF($A77="","",SUMIF(توريدات!$A$3:$A$3000,$A77,توريدات!$T$3:$T$3000)) ->  | L77: =IFERROR(IF(VLOOKUP($A77,توريدات!$A$3:$U$3000,21,0)=0,"",VLOOKUP($A77,توريدات!$A$3:$U$3000,21,0)),"") -> 
A78: =IFERROR(IF(INDEX(توريدات!$A$3:$A$3000,MATCH(0,INDEX(COUNTIF($A$3:A77,توريدات!$A$3:$A$3000),),0))=0,"",INDEX(توريدات!$A$3:$A$3000,MATCH(0,INDEX(COUNTIF($A$3:A77,توريدات!$A$3:$A$3000),),0))),"") ->  | B78: =IF($A78="","",VLOOKUP($A78,توريدات!$A$3:$U$3000,11,0)) ->  | C78: =IF($A78="","",VLOOKUP($A78,توريدات!$A$3:$U$3000,10,0)) ->  | D78: =IF($A78="","",VLOOKUP($A78,توريدات!$A$3:$U$3000,5,0)) ->  | E78: =IF($A78="","",VLOOKUP($A78,توريدات!$A$3:$U$3000,6,0)) ->  | F78: =IF($A78="","",SUMIF(توريدات!$A$3:$A$3000,$A78,توريدات!$L$3:$L$3000)) ->  | G78: =IF($A78="","",VLOOKUP($A78,توريدات!$A$3:$U$3000,13,0)) ->  | H78: =IF($A78="","",SUMIF(توريدات!$A$3:$A$3000,$A78,توريدات!$O$3:$O$3000)) ->  | I78: =IF($A78="","",SUMIF(توريدات!$A$3:$A$3000,$A78,توريدات!$P$3:$P$3000)) ->  | J78: =IF($A78="","",VLOOKUP($A78,توريدات!$A$3:$U$3000,17,0)) ->  | K78: =IF($A78="","",SUMIF(توريدات!$A$3:$A$3000,$A78,توريدات!$T$3:$T$3000)) ->  | L78: =IFERROR(IF(VLOOKUP($A78,توريدات!$A$3:$U$3000,21,0)=0,"",VLOOKUP($A78,توريدات!$A$3:$U$3000,21,0)),"") -> 
A79: =IFERROR(IF(INDEX(توريدات!$A$3:$A$3000,MATCH(0,INDEX(COUNTIF($A$3:A78,توريدات!$A$3:$A$3000),),0))=0,"",INDEX(توريدات!$A$3:$A$3000,MATCH(0,INDEX(COUNTIF($A$3:A78,توريدات!$A$3:$A$3000),),0))),"") ->  | B79: =IF($A79="","",VLOOKUP($A79,توريدات!$A$3:$U$3000,11,0)) ->  | C79: =IF($A79="","",VLOOKUP($A79,توريدات!$A$3:$U$3000,10,0)) ->  | D79: =IF($A79="","",VLOOKUP($A79,توريدات!$A$3:$U$3000,5,0)) ->  | E79: =IF($A79="","",VLOOKUP($A79,توريدات!$A$3:$U$3000,6,0)) ->  | F79: =IF($A79="","",SUMIF(توريدات!$A$3:$A$3000,$A79,توريدات!$L$3:$L$3000)) ->  | G79: =IF($A79="","",VLOOKUP($A79,توريدات!$A$3:$U$3000,13,0)) ->  | H79: =IF($A79="","",SUMIF(توريدات!$A$3:$A$3000,$A79,توريدات!$O$3:$O$3000)) ->  | I79: =IF($A79="","",SUMIF(توريدات!$A$3:$A$3000,$A79,توريدات!$P$3:$P$3000)) ->  | J79: =IF($A79="","",VLOOKUP($A79,توريدات!$A$3:$U$3000,17,0)) ->  | K79: =IF($A79="","",SUMIF(توريدات!$A$3:$A$3000,$A79,توريدات!$T$3:$T$3000)) ->  | L79: =IFERROR(IF(VLOOKUP($A79,توريدات!$A$3:$U$3000,21,0)=0,"",VLOOKUP($A79,توريدات!$A$3:$U$3000,21,0)),"") -> 
A80: =IFERROR(IF(INDEX(توريدات!$A$3:$A$3000,MATCH(0,INDEX(COUNTIF($A$3:A79,توريدات!$A$3:$A$3000),),0))=0,"",INDEX(توريدات!$A$3:$A$3000,MATCH(0,INDEX(COUNTIF($A$3:A79,توريدات!$A$3:$A$3000),),0))),"") ->  | B80: =IF($A80="","",VLOOKUP($A80,توريدات!$A$3:$U$3000,11,0)) ->  | C80: =IF($A80="","",VLOOKUP($A80,توريدات!$A$3:$U$3000,10,0)) ->  | D80: =IF($A80="","",VLOOKUP($A80,توريدات!$A$3:$U$3000,5,0)) ->  | E80: =IF($A80="","",VLOOKUP($A80,توريدات!$A$3:$U$3000,6,0)) ->  | F80: =IF($A80="","",SUMIF(توريدات!$A$3:$A$3000,$A80,توريدات!$L$3:$L$3000)) ->  | G80: =IF($A80="","",VLOOKUP($A80,توريدات!$A$3:$U$3000,13,0)) ->  | H80: =IF($A80="","",SUMIF(توريدات!$A$3:$A$3000,$A80,توريدات!$O$3:$O$3000)) ->  | I80: =IF($A80="","",SUMIF(توريدات!$A$3:$A$3000,$A80,توريدات!$P$3:$P$3000)) ->  | J80: =IF($A80="","",VLOOKUP($A80,توريدات!$A$3:$U$3000,17,0)) ->  | K80: =IF($A80="","",SUMIF(توريدات!$A$3:$A$3000,$A80,توريدات!$T$3:$T$3000)) ->  | L80: =IFERROR(IF(VLOOKUP($A80,توريدات!$A$3:$U$3000,21,0)=0,"",VLOOKUP($A80,توريدات!$A$3:$U$3000,21,0)),"") -> 
A81: =IFERROR(IF(INDEX(توريدات!$A$3:$A$3000,MATCH(0,INDEX(COUNTIF($A$3:A80,توريدات!$A$3:$A$3000),),0))=0,"",INDEX(توريدات!$A$3:$A$3000,MATCH(0,INDEX(COUNTIF($A$3:A80,توريدات!$A$3:$A$3000),),0))),"") ->  | B81: =IF($A81="","",VLOOKUP($A81,توريدات!$A$3:$U$3000,11,0)) ->  | C81: =IF($A81="","",VLOOKUP($A81,توريدات!$A$3:$U$3000,10,0)) ->  | D81: =IF($A81="","",VLOOKUP($A81,توريدات!$A$3:$U$3000,5,0)) ->  | E81: =IF($A81="","",VLOOKUP($A81,توريدات!$A$3:$U$3000,6,0)) ->  | F81: =IF($A81="","",SUMIF(توريدات!$A$3:$A$3000,$A81,توريدات!$L$3:$L$3000)) ->  | G81: =IF($A81="","",VLOOKUP($A81,توريدات!$A$3:$U$3000,13,0)) ->  | H81: =IF($A81="","",SUMIF(توريدات!$A$3:$A$3000,$A81,توريدات!$O$3:$O$3000)) ->  | I81: =IF($A81="","",SUMIF(توريدات!$A$3:$A$3000,$A81,توريدات!$P$3:$P$3000)) ->  | J81: =IF($A81="","",VLOOKUP($A81,توريدات!$A$3:$U$3000,17,0)) ->  | K81: =IF($A81="","",SUMIF(توريدات!$A$3:$A$3000,$A81,توريدات!$T$3:$T$3000)) ->  | L81: =IFERROR(IF(VLOOKUP($A81,توريدات!$A$3:$U$3000,21,0)=0,"",VLOOKUP($A81,توريدات!$A$3:$U$3000,21,0)),"") -> 
A82: =IFERROR(IF(INDEX(توريدات!$A$3:$A$3000,MATCH(0,INDEX(COUNTIF($A$3:A81,توريدات!$A$3:$A$3000),),0))=0,"",INDEX(توريدات!$A$3:$A$3000,MATCH(0,INDEX(COUNTIF($A$3:A81,توريدات!$A$3:$A$3000),),0))),"") ->  | B82: =IF($A82="","",VLOOKUP($A82,توريدات!$A$3:$U$3000,11,0)) ->  | C82: =IF($A82="","",VLOOKUP($A82,توريدات!$A$3:$U$3000,10,0)) ->  | D82: =IF($A82="","",VLOOKUP($A82,توريدات!$A$3:$U$3000,5,0)) ->  | E82: =IF($A82="","",VLOOKUP($A82,توريدات!$A$3:$U$3000,6,0)) ->  | F82: =IF($A82="","",SUMIF(توريدات!$A$3:$A$3000,$A82,توريدات!$L$3:$L$3000)) ->  | G82: =IF($A82="","",VLOOKUP($A82,توريدات!$A$3:$U$3000,13,0)) ->  | H82: =IF($A82="","",SUMIF(توريدات!$A$3:$A$3000,$A82,توريدات!$O$3:$O$3000)) ->  | I82: =IF($A82="","",SUMIF(توريدات!$A$3:$A$3000,$A82,توريدات!$P$3:$P$3000)) ->  | J82: =IF($A82="","",VLOOKUP($A82,توريدات!$A$3:$U$3000,17,0)) ->  | K82: =IF($A82="","",SUMIF(توريدات!$A$3:$A$3000,$A82,توريدات!$T$3:$T$3000)) ->  | L82: =IFERROR(IF(VLOOKUP($A82,توريدات!$A$3:$U$3000,21,0)=0,"",VLOOKUP($A82,توريدات!$A$3:$U$3000,21,0)),"") -> 
A83: =IFERROR(IF(INDEX(توريدات!$A$3:$A$3000,MATCH(0,INDEX(COUNTIF($A$3:A82,توريدات!$A$3:$A$3000),),0))=0,"",INDEX(توريدات!$A$3:$A$3000,MATCH(0,INDEX(COUNTIF($A$3:A82,توريدات!$A$3:$A$3000),),0))),"") ->  | B83: =IF($A83="","",VLOOKUP($A83,توريدات!$A$3:$U$3000,11,0)) ->  | C83: =IF($A83="","",VLOOKUP($A83,توريدات!$A$3:$U$3000,10,0)) ->  | D83: =IF($A83="","",VLOOKUP($A83,توريدات!$A$3:$U$3000,5,0)) ->  | E83: =IF($A83="","",VLOOKUP($A83,توريدات!$A$3:$U$3000,6,0)) ->  | F83: =IF($A83="","",SUMIF(توريدات!$A$3:$A$3000,$A83,توريدات!$L$3:$L$3000)) ->  | G83: =IF($A83="","",VLOOKUP($A83,توريدات!$A$3:$U$3000,13,0)) ->  | H83: =IF($A83="","",SUMIF(توريدات!$A$3:$A$3000,$A83,توريدات!$O$3:$O$3000)) ->  | I83: =IF($A83="","",SUMIF(توريدات!$A$3:$A$3000,$A83,توريدات!$P$3:$P$3000)) ->  | J83: =IF($A83="","",VLOOKUP($A83,توريدات!$A$3:$U$3000,17,0)) ->  | K83: =IF($A83="","",SUMIF(توريدات!$A$3:$A$3000,$A83,توريدات!$T$3:$T$3000)) ->  | L83: =IFERROR(IF(VLOOKUP($A83,توريدات!$A$3:$U$3000,21,0)=0,"",VLOOKUP($A83,توريدات!$A$3:$U$3000,21,0)),"") -> 
A84: =IFERROR(IF(INDEX(توريدات!$A$3:$A$3000,MATCH(0,INDEX(COUNTIF($A$3:A83,توريدات!$A$3:$A$3000),),0))=0,"",INDEX(توريدات!$A$3:$A$3000,MATCH(0,INDEX(COUNTIF($A$3:A83,توريدات!$A$3:$A$3000),),0))),"") ->  | B84: =IF($A84="","",VLOOKUP($A84,توريدات!$A$3:$U$3000,11,0)) ->  | C84: =IF($A84="","",VLOOKUP($A84,توريدات!$A$3:$U$3000,10,0)) ->  | D84: =IF($A84="","",VLOOKUP($A84,توريدات!$A$3:$U$3000,5,0)) ->  | E84: =IF($A84="","",VLOOKUP($A84,توريدات!$A$3:$U$3000,6,0)) ->  | F84: =IF($A84="","",SUMIF(توريدات!$A$3:$A$3000,$A84,توريدات!$L$3:$L$3000)) ->  | G84: =IF($A84="","",VLOOKUP($A84,توريدات!$A$3:$U$3000,13,0)) ->  | H84: =IF($A84="","",SUMIF(توريدات!$A$3:$A$3000,$A84,توريدات!$O$3:$O$3000)) ->  | I84: =IF($A84="","",SUMIF(توريدات!$A$3:$A$3000,$A84,توريدات!$P$3:$P$3000)) ->  | J84: =IF($A84="","",VLOOKUP($A84,توريدات!$A$3:$U$3000,17,0)) ->  | K84: =IF($A84="","",SUMIF(توريدات!$A$3:$A$3000,$A84,توريدات!$T$3:$T$3000)) ->  | L84: =IFERROR(IF(VLOOKUP($A84,توريدات!$A$3:$U$3000,21,0)=0,"",VLOOKUP($A84,توريدات!$A$3:$U$3000,21,0)),"") -> 
A85: =IFERROR(IF(INDEX(توريدات!$A$3:$A$3000,MATCH(0,INDEX(COUNTIF($A$3:A84,توريدات!$A$3:$A$3000),),0))=0,"",INDEX(توريدات!$A$3:$A$3000,MATCH(0,INDEX(COUNTIF($A$3:A84,توريدات!$A$3:$A$3000),),0))),"") ->  | B85: =IF($A85="","",VLOOKUP($A85,توريدات!$A$3:$U$3000,11,0)) ->  | C85: =IF($A85="","",VLOOKUP($A85,توريدات!$A$3:$U$3000,10,0)) ->  | D85: =IF($A85="","",VLOOKUP($A85,توريدات!$A$3:$U$3000,5,0)) ->  | E85: =IF($A85="","",VLOOKUP($A85,توريدات!$A$3:$U$3000,6,0)) ->  | F85: =IF($A85="","",SUMIF(توريدات!$A$3:$A$3000,$A85,توريدات!$L$3:$L$3000)) ->  | G85: =IF($A85="","",VLOOKUP($A85,توريدات!$A$3:$U$3000,13,0)) ->  | H85: =IF($A85="","",SUMIF(توريدات!$A$3:$A$3000,$A85,توريدات!$O$3:$O$3000)) ->  | I85: =IF($A85="","",SUMIF(توريدات!$A$3:$A$3000,$A85,توريدات!$P$3:$P$3000)) ->  | J85: =IF($A85="","",VLOOKUP($A85,توريدات!$A$3:$U$3000,17,0)) ->  | K85: =IF($A85="","",SUMIF(توريدات!$A$3:$A$3000,$A85,توريدات!$T$3:$T$3000)) ->  | L85: =IFERROR(IF(VLOOKUP($A85,توريدات!$A$3:$U$3000,21,0)=0,"",VLOOKUP($A85,توريدات!$A$3:$U$3000,21,0)),"") -> 
A86: =IFERROR(IF(INDEX(توريدات!$A$3:$A$3000,MATCH(0,INDEX(COUNTIF($A$3:A85,توريدات!$A$3:$A$3000),),0))=0,"",INDEX(توريدات!$A$3:$A$3000,MATCH(0,INDEX(COUNTIF($A$3:A85,توريدات!$A$3:$A$3000),),0))),"") ->  | B86: =IF($A86="","",VLOOKUP($A86,توريدات!$A$3:$U$3000,11,0)) ->  | C86: =IF($A86="","",VLOOKUP($A86,توريدات!$A$3:$U$3000,10,0)) ->  | D86: =IF($A86="","",VLOOKUP($A86,توريدات!$A$3:$U$3000,5,0)) ->  | E86: =IF($A86="","",VLOOKUP($A86,توريدات!$A$3:$U$3000,6,0)) ->  | F86: =IF($A86="","",SUMIF(توريدات!$A$3:$A$3000,$A86,توريدات!$L$3:$L$3000)) ->  | G86: =IF($A86="","",VLOOKUP($A86,توريدات!$A$3:$U$3000,13,0)) ->  | H86: =IF($A86="","",SUMIF(توريدات!$A$3:$A$3000,$A86,توريدات!$O$3:$O$3000)) ->  | I86: =IF($A86="","",SUMIF(توريدات!$A$3:$A$3000,$A86,توريدات!$P$3:$P$3000)) ->  | J86: =IF($A86="","",VLOOKUP($A86,توريدات!$A$3:$U$3000,17,0)) ->  | K86: =IF($A86="","",SUMIF(توريدات!$A$3:$A$3000,$A86,توريدات!$T$3:$T$3000)) ->  | L86: =IFERROR(IF(VLOOKUP($A86,توريدات!$A$3:$U$3000,21,0)=0,"",VLOOKUP($A86,توريدات!$A$3:$U$3000,21,0)),"") -> 
A87: =IFERROR(IF(INDEX(توريدات!$A$3:$A$3000,MATCH(0,INDEX(COUNTIF($A$3:A86,توريدات!$A$3:$A$3000),),0))=0,"",INDEX(توريدات!$A$3:$A$3000,MATCH(0,INDEX(COUNTIF($A$3:A86,توريدات!$A$3:$A$3000),),0))),"") ->  | B87: =IF($A87="","",VLOOKUP($A87,توريدات!$A$3:$U$3000,11,0)) ->  | C87: =IF($A87="","",VLOOKUP($A87,توريدات!$A$3:$U$3000,10,0)) ->  | D87: =IF($A87="","",VLOOKUP($A87,توريدات!$A$3:$U$3000,5,0)) ->  | E87: =IF($A87="","",VLOOKUP($A87,توريدات!$A$3:$U$3000,6,0)) ->  | F87: =IF($A87="","",SUMIF(توريدات!$A$3:$A$3000,$A87,توريدات!$L$3:$L$3000)) ->  | G87: =IF($A87="","",VLOOKUP($A87,توريدات!$A$3:$U$3000,13,0)) ->  | H87: =IF($A87="","",SUMIF(توريدات!$A$3:$A$3000,$A87,توريدات!$O$3:$O$3000)) ->  | I87: =IF($A87="","",SUMIF(توريدات!$A$3:$A$3000,$A87,توريدات!$P$3:$P$3000)) ->  | J87: =IF($A87="","",VLOOKUP($A87,توريدات!$A$3:$U$3000,17,0)) ->  | K87: =IF($A87="","",SUMIF(توريدات!$A$3:$A$3000,$A87,توريدات!$T$3:$T$3000)) ->  | L87: =IFERROR(IF(VLOOKUP($A87,توريدات!$A$3:$U$3000,21,0)=0,"",VLOOKUP($A87,توريدات!$A$3:$U$3000,21,0)),"") -> 
A88: =IFERROR(IF(INDEX(توريدات!$A$3:$A$3000,MATCH(0,INDEX(COUNTIF($A$3:A87,توريدات!$A$3:$A$3000),),0))=0,"",INDEX(توريدات!$A$3:$A$3000,MATCH(0,INDEX(COUNTIF($A$3:A87,توريدات!$A$3:$A$3000),),0))),"") ->  | B88: =IF($A88="","",VLOOKUP($A88,توريدات!$A$3:$U$3000,11,0)) ->  | C88: =IF($A88="","",VLOOKUP($A88,توريدات!$A$3:$U$3000,10,0)) ->  | D88: =IF($A88="","",VLOOKUP($A88,توريدات!$A$3:$U$3000,5,0)) ->  | E88: =IF($A88="","",VLOOKUP($A88,توريدات!$A$3:$U$3000,6,0)) ->  | F88: =IF($A88="","",SUMIF(توريدات!$A$3:$A$3000,$A88,توريدات!$L$3:$L$3000)) ->  | G88: =IF($A88="","",VLOOKUP($A88,توريدات!$A$3:$U$3000,13,0)) ->  | H88: =IF($A88="","",SUMIF(توريدات!$A$3:$A$3000,$A88,توريدات!$O$3:$O$3000)) ->  | I88: =IF($A88="","",SUMIF(توريدات!$A$3:$A$3000,$A88,توريدات!$P$3:$P$3000)) ->  | J88: =IF($A88="","",VLOOKUP($A88,توريدات!$A$3:$U$3000,17,0)) ->  | K88: =IF($A88="","",SUMIF(توريدات!$A$3:$A$3000,$A88,توريدات!$T$3:$T$3000)) ->  | L88: =IFERROR(IF(VLOOKUP($A88,توريدات!$A$3:$U$3000,21,0)=0,"",VLOOKUP($A88,توريدات!$A$3:$U$3000,21,0)),"") -> 
A89: =IFERROR(IF(INDEX(توريدات!$A$3:$A$3000,MATCH(0,INDEX(COUNTIF($A$3:A88,توريدات!$A$3:$A$3000),),0))=0,"",INDEX(توريدات!$A$3:$A$3000,MATCH(0,INDEX(COUNTIF($A$3:A88,توريدات!$A$3:$A$3000),),0))),"") ->  | B89: =IF($A89="","",VLOOKUP($A89,توريدات!$A$3:$U$3000,11,0)) ->  | C89: =IF($A89="","",VLOOKUP($A89,توريدات!$A$3:$U$3000,10,0)) ->  | D89: =IF($A89="","",VLOOKUP($A89,توريدات!$A$3:$U$3000,5,0)) ->  | E89: =IF($A89="","",VLOOKUP($A89,توريدات!$A$3:$U$3000,6,0)) ->  | F89: =IF($A89="","",SUMIF(توريدات!$A$3:$A$3000,$A89,توريدات!$L$3:$L$3000)) ->  | G89: =IF($A89="","",VLOOKUP($A89,توريدات!$A$3:$U$3000,13,0)) ->  | H89: =IF($A89="","",SUMIF(توريدات!$A$3:$A$3000,$A89,توريدات!$O$3:$O$3000)) ->  | I89: =IF($A89="","",SUMIF(توريدات!$A$3:$A$3000,$A89,توريدات!$P$3:$P$3000)) ->  | J89: =IF($A89="","",VLOOKUP($A89,توريدات!$A$3:$U$3000,17,0)) ->  | K89: =IF($A89="","",SUMIF(توريدات!$A$3:$A$3000,$A89,توريدات!$T$3:$T$3000)) ->  | L89: =IFERROR(IF(VLOOKUP($A89,توريدات!$A$3:$U$3000,21,0)=0,"",VLOOKUP($A89,توريدات!$A$3:$U$3000,21,0)),"") -> 
A90: =IFERROR(IF(INDEX(توريدات!$A$3:$A$3000,MATCH(0,INDEX(COUNTIF($A$3:A89,توريدات!$A$3:$A$3000),),0))=0,"",INDEX(توريدات!$A$3:$A$3000,MATCH(0,INDEX(COUNTIF($A$3:A89,توريدات!$A$3:$A$3000),),0))),"") ->  | B90: =IF($A90="","",VLOOKUP($A90,توريدات!$A$3:$U$3000,11,0)) ->  | C90: =IF($A90="","",VLOOKUP($A90,توريدات!$A$3:$U$3000,10,0)) ->  | D90: =IF($A90="","",VLOOKUP($A90,توريدات!$A$3:$U$3000,5,0)) ->  | E90: =IF($A90="","",VLOOKUP($A90,توريدات!$A$3:$U$3000,6,0)) ->  | F90: =IF($A90="","",SUMIF(توريدات!$A$3:$A$3000,$A90,توريدات!$L$3:$L$3000)) ->  | G90: =IF($A90="","",VLOOKUP($A90,توريدات!$A$3:$U$3000,13,0)) ->  | H90: =IF($A90="","",SUMIF(توريدات!$A$3:$A$3000,$A90,توريدات!$O$3:$O$3000)) ->  | I90: =IF($A90="","",SUMIF(توريدات!$A$3:$A$3000,$A90,توريدات!$P$3:$P$3000)) ->  | J90: =IF($A90="","",VLOOKUP($A90,توريدات!$A$3:$U$3000,17,0)) ->  | K90: =IF($A90="","",SUMIF(توريدات!$A$3:$A$3000,$A90,توريدات!$T$3:$T$3000)) ->  | L90: =IFERROR(IF(VLOOKUP($A90,توريدات!$A$3:$U$3000,21,0)=0,"",VLOOKUP($A90,توريدات!$A$3:$U$3000,21,0)),"") -> 
A91: =IFERROR(IF(INDEX(توريدات!$A$3:$A$3000,MATCH(0,INDEX(COUNTIF($A$3:A90,توريدات!$A$3:$A$3000),),0))=0,"",INDEX(توريدات!$A$3:$A$3000,MATCH(0,INDEX(COUNTIF($A$3:A90,توريدات!$A$3:$A$3000),),0))),"") ->  | B91: =IF($A91="","",VLOOKUP($A91,توريدات!$A$3:$U$3000,11,0)) ->  | C91: =IF($A91="","",VLOOKUP($A91,توريدات!$A$3:$U$3000,10,0)) ->  | D91: =IF($A91="","",VLOOKUP($A91,توريدات!$A$3:$U$3000,5,0)) ->  | E91: =IF($A91="","",VLOOKUP($A91,توريدات!$A$3:$U$3000,6,0)) ->  | F91: =IF($A91="","",SUMIF(توريدات!$A$3:$A$3000,$A91,توريدات!$L$3:$L$3000)) ->  | G91: =IF($A91="","",VLOOKUP($A91,توريدات!$A$3:$U$3000,13,0)) ->  | H91: =IF($A91="","",SUMIF(توريدات!$A$3:$A$3000,$A91,توريدات!$O$3:$O$3000)) ->  | I91: =IF($A91="","",SUMIF(توريدات!$A$3:$A$3000,$A91,توريدات!$P$3:$P$3000)) ->  | J91: =IF($A91="","",VLOOKUP($A91,توريدات!$A$3:$U$3000,17,0)) ->  | K91: =IF($A91="","",SUMIF(توريدات!$A$3:$A$3000,$A91,توريدات!$T$3:$T$3000)) ->  | L91: =IFERROR(IF(VLOOKUP($A91,توريدات!$A$3:$U$3000,21,0)=0,"",VLOOKUP($A91,توريدات!$A$3:$U$3000,21,0)),"") -> 
A92: =IFERROR(IF(INDEX(توريدات!$A$3:$A$3000,MATCH(0,INDEX(COUNTIF($A$3:A91,توريدات!$A$3:$A$3000),),0))=0,"",INDEX(توريدات!$A$3:$A$3000,MATCH(0,INDEX(COUNTIF($A$3:A91,توريدات!$A$3:$A$3000),),0))),"") ->  | B92: =IF($A92="","",VLOOKUP($A92,توريدات!$A$3:$U$3000,11,0)) ->  | C92: =IF($A92="","",VLOOKUP($A92,توريدات!$A$3:$U$3000,10,0)) ->  | D92: =IF($A92="","",VLOOKUP($A92,توريدات!$A$3:$U$3000,5,0)) ->  | E92: =IF($A92="","",VLOOKUP($A92,توريدات!$A$3:$U$3000,6,0)) ->  | F92: =IF($A92="","",SUMIF(توريدات!$A$3:$A$3000,$A92,توريدات!$L$3:$L$3000)) ->  | G92: =IF($A92="","",VLOOKUP($A92,توريدات!$A$3:$U$3000,13,0)) ->  | H92: =IF($A92="","",SUMIF(توريدات!$A$3:$A$3000,$A92,توريدات!$O$3:$O$3000)) ->  | I92: =IF($A92="","",SUMIF(توريدات!$A$3:$A$3000,$A92,توريدات!$P$3:$P$3000)) ->  | J92: =IF($A92="","",VLOOKUP($A92,توريدات!$A$3:$U$3000,17,0)) ->  | K92: =IF($A92="","",SUMIF(توريدات!$A$3:$A$3000,$A92,توريدات!$T$3:$T$3000)) ->  | L92: =IFERROR(IF(VLOOKUP($A92,توريدات!$A$3:$U$3000,21,0)=0,"",VLOOKUP($A92,توريدات!$A$3:$U$3000,21,0)),"") -> 
A93: =IFERROR(IF(INDEX(توريدات!$A$3:$A$3000,MATCH(0,INDEX(COUNTIF($A$3:A92,توريدات!$A$3:$A$3000),),0))=0,"",INDEX(توريدات!$A$3:$A$3000,MATCH(0,INDEX(COUNTIF($A$3:A92,توريدات!$A$3:$A$3000),),0))),"") ->  | B93: =IF($A93="","",VLOOKUP($A93,توريدات!$A$3:$U$3000,11,0)) ->  | C93: =IF($A93="","",VLOOKUP($A93,توريدات!$A$3:$U$3000,10,0)) ->  | D93: =IF($A93="","",VLOOKUP($A93,توريدات!$A$3:$U$3000,5,0)) ->  | E93: =IF($A93="","",VLOOKUP($A93,توريدات!$A$3:$U$3000,6,0)) ->  | F93: =IF($A93="","",SUMIF(توريدات!$A$3:$A$3000,$A93,توريدات!$L$3:$L$3000)) ->  | G93: =IF($A93="","",VLOOKUP($A93,توريدات!$A$3:$U$3000,13,0)) ->  | H93: =IF($A93="","",SUMIF(توريدات!$A$3:$A$3000,$A93,توريدات!$O$3:$O$3000)) ->  | I93: =IF($A93="","",SUMIF(توريدات!$A$3:$A$3000,$A93,توريدات!$P$3:$P$3000)) ->  | J93: =IF($A93="","",VLOOKUP($A93,توريدات!$A$3:$U$3000,17,0)) ->  | K93: =IF($A93="","",SUMIF(توريدات!$A$3:$A$3000,$A93,توريدات!$T$3:$T$3000)) ->  | L93: =IFERROR(IF(VLOOKUP($A93,توريدات!$A$3:$U$3000,21,0)=0,"",VLOOKUP($A93,توريدات!$A$3:$U$3000,21,0)),"") -> 
A94: =IFERROR(IF(INDEX(توريدات!$A$3:$A$3000,MATCH(0,INDEX(COUNTIF($A$3:A93,توريدات!$A$3:$A$3000),),0))=0,"",INDEX(توريدات!$A$3:$A$3000,MATCH(0,INDEX(COUNTIF($A$3:A93,توريدات!$A$3:$A$3000),),0))),"") ->  | B94: =IF($A94="","",VLOOKUP($A94,توريدات!$A$3:$U$3000,11,0)) ->  | C94: =IF($A94="","",VLOOKUP($A94,توريدات!$A$3:$U$3000,10,0)) ->  | D94: =IF($A94="","",VLOOKUP($A94,توريدات!$A$3:$U$3000,5,0)) ->  | E94: =IF($A94="","",VLOOKUP($A94,توريدات!$A$3:$U$3000,6,0)) ->  | F94: =IF($A94="","",SUMIF(توريدات!$A$3:$A$3000,$A94,توريدات!$L$3:$L$3000)) ->  | G94: =IF($A94="","",VLOOKUP($A94,توريدات!$A$3:$U$3000,13,0)) ->  | H94: =IF($A94="","",SUMIF(توريدات!$A$3:$A$3000,$A94,توريدات!$O$3:$O$3000)) ->  | I94: =IF($A94="","",SUMIF(توريدات!$A$3:$A$3000,$A94,توريدات!$P$3:$P$3000)) ->  | J94: =IF($A94="","",VLOOKUP($A94,توريدات!$A$3:$U$3000,17,0)) ->  | K94: =IF($A94="","",SUMIF(توريدات!$A$3:$A$3000,$A94,توريدات!$T$3:$T$3000)) ->  | L94: =IFERROR(IF(VLOOKUP($A94,توريدات!$A$3:$U$3000,21,0)=0,"",VLOOKUP($A94,توريدات!$A$3:$U$3000,21,0)),"") -> 
A95: =IFERROR(IF(INDEX(توريدات!$A$3:$A$3000,MATCH(0,INDEX(COUNTIF($A$3:A94,توريدات!$A$3:$A$3000),),0))=0,"",INDEX(توريدات!$A$3:$A$3000,MATCH(0,INDEX(COUNTIF($A$3:A94,توريدات!$A$3:$A$3000),),0))),"") ->  | B95: =IF($A95="","",VLOOKUP($A95,توريدات!$A$3:$U$3000,11,0)) ->  | C95: =IF($A95="","",VLOOKUP($A95,توريدات!$A$3:$U$3000,10,0)) ->  | D95: =IF($A95="","",VLOOKUP($A95,توريدات!$A$3:$U$3000,5,0)) ->  | E95: =IF($A95="","",VLOOKUP($A95,توريدات!$A$3:$U$3000,6,0)) ->  | F95: =IF($A95="","",SUMIF(توريدات!$A$3:$A$3000,$A95,توريدات!$L$3:$L$3000)) ->  | G95: =IF($A95="","",VLOOKUP($A95,توريدات!$A$3:$U$3000,13,0)) ->  | H95: =IF($A95="","",SUMIF(توريدات!$A$3:$A$3000,$A95,توريدات!$O$3:$O$3000)) ->  | I95: =IF($A95="","",SUMIF(توريدات!$A$3:$A$3000,$A95,توريدات!$P$3:$P$3000)) ->  | J95: =IF($A95="","",VLOOKUP($A95,توريدات!$A$3:$U$3000,17,0)) ->  | K95: =IF($A95="","",SUMIF(توريدات!$A$3:$A$3000,$A95,توريدات!$T$3:$T$3000)) ->  | L95: =IFERROR(IF(VLOOKUP($A95,توريدات!$A$3:$U$3000,21,0)=0,"",VLOOKUP($A95,توريدات!$A$3:$U$3000,21,0)),"") -> 
A96: =IFERROR(IF(INDEX(توريدات!$A$3:$A$3000,MATCH(0,INDEX(COUNTIF($A$3:A95,توريدات!$A$3:$A$3000),),0))=0,"",INDEX(توريدات!$A$3:$A$3000,MATCH(0,INDEX(COUNTIF($A$3:A95,توريدات!$A$3:$A$3000),),0))),"") ->  | B96: =IF($A96="","",VLOOKUP($A96,توريدات!$A$3:$U$3000,11,0)) ->  | C96: =IF($A96="","",VLOOKUP($A96,توريدات!$A$3:$U$3000,10,0)) ->  | D96: =IF($A96="","",VLOOKUP($A96,توريدات!$A$3:$U$3000,5,0)) ->  | E96: =IF($A96="","",VLOOKUP($A96,توريدات!$A$3:$U$3000,6,0)) ->  | F96: =IF($A96="","",SUMIF(توريدات!$A$3:$A$3000,$A96,توريدات!$L$3:$L$3000)) ->  | G96: =IF($A96="","",VLOOKUP($A96,توريدات!$A$3:$U$3000,13,0)) ->  | H96: =IF($A96="","",SUMIF(توريدات!$A$3:$A$3000,$A96,توريدات!$O$3:$O$3000)) ->  | I96: =IF($A96="","",SUMIF(توريدات!$A$3:$A$3000,$A96,توريدات!$P$3:$P$3000)) ->  | J96: =IF($A96="","",VLOOKUP($A96,توريدات!$A$3:$U$3000,17,0)) ->  | K96: =IF($A96="","",SUMIF(توريدات!$A$3:$A$3000,$A96,توريدات!$T$3:$T$3000)) ->  | L96: =IFERROR(IF(VLOOKUP($A96,توريدات!$A$3:$U$3000,21,0)=0,"",VLOOKUP($A96,توريدات!$A$3:$U$3000,21,0)),"") -> 
